Workbook

Sheet Macro (hidden)

Sheet Overview

Sheet Select School
B3: =VLOOKUP(C3,SchList!$I$1:$J$499,2,FALSE) -> 9999 | C3: 1

Sheet Reading
A2: Click here to return to the school and sheet selection interface
A3: ='Select School'!B3 -> 9999
A4: =TEXT(A3,"0000")&"-"&VLOOKUP(A3,SchList!$A$2:$B$504,2,FALSE) -> 9999-District
A5: Reading - Grade 9 | Q5: READING
A6: Satisfactory Progress Cut Scores at 61% or above | B6: Total # of Students | C6: % of Students Tested | D6: ='G9-10 Matrix'!C$2&" ["&'G9-10 Matrix'!C3&"]" -> Overall [57] | F6: ='G9-10 Matrix'!D$2&" ["&'G9-10 Matrix'!D3&"]" -> Vocabulary [13] | H6: ='G9-10 Matrix'!E$2&" ["&'G9-10 Matrix'!E3&"]" -> Reading Application [22] | J6: ='G9-10 Matrix'!F$2&" ["&'G9-10 Matrix'!F3&"]" -> Literary Analysis Fiction/Nonfiction [12] | L6: ='G9-10 Matrix'!G$2&" ["&'G9-10 Matrix'!G3&"]" -> Informational Text/ Research Process [10] | Q6: Grade 9 Test | S6: Overall | V6: Number Sense | Y6: Measurement | AB6: Geometry | AE6: Algrebraic Thinking | AH6: Data Analysis
D7: Average Score | E7: % Satisfactory | F7: Average Score | G7: % Satisfactory | H7: Average Score | I7: % Satisfactory | J7: Average Score | K7: % Satisfactory | L7: Average Score | M7: % Satisfactory | Q7: Number Tested | S7: AVG Combined | T7: % Prof Combined | U7: Number Prof Combined | V7: AVG Combined | W7: % Prof Combined | X7: Number Prof Combined | Y7: AVG Combined | Z7: % Prof Combined | AA7: Number Prof Combined | AB7: AVG Combined | AC7: % Prof Combined | AD7: Number Prof Combined | AE7: AVG Combined | AF7: % Prof Combined | AG7: Number Prof Combined | AH7: AVG Combined | AI7: % Prof Combined | AJ7: Number Prof Combined
A8: All students | B8: =IFERROR(VLOOKUP(TEXT($A$3,"0000"),Mem_All!$A$2:$S$500,13,FALSE),0) -> 27747 | C8: =IFERROR((IF(OR(B8=0,B8="",B8="NA"),"NA",((IF(VLOOKUP($A$3,'G9-RALL'!$A$6:$AM$500,3,FALSE)>=B8,"100% ("&VLOOKUP($A$3,'G9-RALL'!$A$6:$AM$500,3,FALSE)&")",(ROUND((VLOOKUP($A$3,'G9-RALL'!$A$6:$AM$500,3,FALSE)/B8*100),0))&"% ("&IF(VLOOKUP($A$3,'G9-RALL'!$A$6:$AM$500,3,FALSE)="",0,VLOOKUP($A$3,'G9-RALL'!$A$6:$AM$500,3,FALSE))&")"))))),"0% (0)") -> 91% (25134) | D8: =IFERROR((IF($C8="NA","NA",VLOOKUP($A$3,'G9-RALL'!$A$6:$AM$500,4,FALSE))),"NA") -> 32.03538633 | E8: =IFERROR((IF($C8="NA","NA",ROUND(VLOOKUP($A$3,'G9-RALL'!$A$6:$AM$500,6,FALSE),0)&"% ("&IF(VLOOKUP($A$3,'G9-RALL'!$A$6:$AM$500,5,FALSE)="",0,VLOOKUP($A$3,'G9-RALL'!$A$6:$AM$500,5,FALSE))&")")),"NA") -> 46% (11634) | F8: =IFERROR((IF($C8="NA","NA",VLOOKUP($A$3,'G9-RALL'!$A$6:$AM$500,7,FALSE))),"NA") -> 7.54750935 | G8: NA | H8: =IFERROR((IF($C8="NA","NA",VLOOKUP($A$3,'G9-RALL'!$A$6:$AM$500,10,FALSE))),"NA") -> 12.72177528 | I8: NA | J8: =IFERROR((IF($C8="NA","NA",VLOOKUP($A$3,'G9-RALL'!$A$6:$AM$500,13,FALSE))),"NA") -> 5.979127875 | K8: NA | L8: =IFERROR((IF($C8="NA","NA",VLOOKUP($A$3,'G9-RALL'!$A$6:$AM$500,16,FALSE))),"NA") -> 5.791740272 | M8: NA | Q8: =IFERROR(VLOOKUP($A$3,'G9-RALL'!$A$6:$BX$500,3,FALSE),"not tested") -> 25134 | S8: =SUM(VLOOKUP($A$3,'GEO-ALL'!$A$14:$AA$500,4,FALSE)*$Q8,VLOOKUP($A$3,'GEO-ALL'!$A$14:$AA$500,41,FALSE)*$R8)/SUM($Q8,$R8) ->  | T8: =SUM(VLOOKUP($A$3,'GEO-ALL'!$A$14:$AA$500,7,FALSE),VLOOKUP($A$3,'GEO-ALL'!$A$14:$AA$500,44,FALSE))/SUM($Q8:$R8)*100 ->  | U8: =SUM(VLOOKUP($A$3,'GEO-ALL'!$A$14:$AA$500,7,FALSE),VLOOKUP($A$3,'GEO-ALL'!$A$14:$AA$500,44,FALSE)) ->  | V8: =SUM(VLOOKUP($A$3,'GEO-ALL'!$A$14:$AA$500,10,FALSE)*$Q8,VLOOKUP($A$3,'GEO-ALL'!$A$14:$AA$500,47,FALSE)*$R8)/SUM($Q8,$R8) ->  | W8: =SUM(VLOOKUP($A$3,'GEO-ALL'!$A$14:$AA$500,8,FALSE),VLOOKUP($A$3,'GEO-ALL'!$A$14:$AA$500,50,FALSE))/SUM($Q8:$R8)*100 ->  | X8: =SUM(VLOOKUP($A$3,'GEO-ALL'!$A$14:$AA$500,8,FALSE),VLOOKUP($A$3,'GEO-ALL'!$A$14:$AA$500,50,FALSE)) ->  | Y8: =SUM(VLOOKUP($A$3,'GEO-ALL'!$A$14:$AA$500,16,FALSE)*$Q8,VLOOKUP($A$3,'GEO-ALL'!$A$14:$AA$500,53,FALSE)*$R8)/SUM($Q8,$R8) ->  | Z8: =SUM(VLOOKUP($A$3,'GEO-ALL'!$A$14:$AA$500,19,FALSE),VLOOKUP($A$3,'GEO-ALL'!$A$14:$AA$500,56,FALSE))/SUM($Q8:$R8)*100 ->  | AA8: =SUM(VLOOKUP($A$3,'GEO-ALL'!$A$14:$AA$500,19,FALSE),VLOOKUP($A$3,'GEO-ALL'!$A$14:$AA$500,56,FALSE)) ->  | AB8: =SUM(VLOOKUP($A$3,'GEO-ALL'!$A$14:$AA$500,22,FALSE)*$Q8,VLOOKUP($A$3,'GEO-ALL'!$A$14:$AA$500,59,FALSE)*$R8)/SUM($Q8,$R8) ->  | AC8: =SUM(VLOOKUP($A$3,'GEO-ALL'!$A$14:$AA$500,25,FALSE),VLOOKUP($A$3,'GEO-ALL'!$A$14:$AA$500,62,FALSE))/SUM($Q8:$R8)*100 ->  | AD8: =SUM(VLOOKUP($A$3,'GEO-ALL'!$A$14:$AA$500,25,FALSE),VLOOKUP($A$3,'GEO-ALL'!$A$14:$AA$500,62,FALSE)) ->  | AE8: =SUM(VLOOKUP($A$3,'GEO-ALL'!$A$14:$AA$500,28,FALSE)*$Q8,VLOOKUP($A$3,'GEO-ALL'!$A$14:$AA$500,65,FALSE)*$R8)/SUM($Q8,$R8) ->  | AF8: =SUM(VLOOKUP($A$3,'GEO-ALL'!$A$14:$AA$500,31,FALSE),VLOOKUP($A$3,'GEO-ALL'!$A$14:$AA$500,68,FALSE))/SUM($Q8:$R8)*100 ->  | AG8: =SUM(VLOOKUP($A$3,'GEO-ALL'!$A$14:$AA$500,31,FALSE),VLOOKUP($A$3,'GEO-ALL'!$A$14:$AA$500,68,FALSE)) ->  | AH8: =SUM(VLOOKUP($A$3,'GEO-ALL'!$A$14:$AA$500,34,FALSE)*$Q8,VLOOKUP($A$3,'GEO-ALL'!$A$14:$AA$500,71,FALSE)*$R8)/SUM($Q8,$R8) ->  | AI8: =SUM(VLOOKUP($A$3,'GEO-ALL'!$A$14:$AA$500,37,FALSE),VLOOKUP($A$3,'GEO-ALL'!$A$14:$AA$500,74,FALSE))/SUM($Q8:$R8)*100 ->  | AJ8: =SUM(VLOOKUP($A$3,'GEO-ALL'!$A$14:$AA$500,37,FALSE),VLOOKUP($A$3,'GEO-ALL'!$A$14:$AA$500,74,FALSE)) -> 
A9: FCAT Level 1 | B9: =IFERROR(VLOOKUP(TEXT($A$3,"0000"),MEM_RL1!$A$2:$S$500,10,FALSE),0) -> 4819 | C9: =IFERROR((IF(OR(B9=0,B9="",B9="NA"),"NA",((IF(VLOOKUP($A$3,'G9-RL1'!$A$6:$AM$506,3,FALSE)>=B9,"100% ("&VLOOKUP($A$3,'G9-RL1'!$A$6:$AM$506,3,FALSE)&")",(ROUND((VLOOKUP($A$3,'G9-RL1'!$A$6:$AM$506,3,FALSE)/B9*100),0))&"% ("&IF(VLOOKUP($A$3,'G9-RL1'!$A$6:$AM$506,3,FALSE)="",0,VLOOKUP($A$3,'G9-RL1'!$A$6:$AM$506,3,FALSE))&")"))))),"0% (0)") -> 92% (4448) | D9: =IFERROR((IF($C9="NA","NA",VLOOKUP($A$3,'G9-RL1'!$A$6:$AM$506,4,FALSE))),"NA") -> 19.21915468 | E9: =IFERROR((IF($C9="NA","NA",ROUND(VLOOKUP($A$3,'G9-RL1'!$A$6:$AM$506,6,FALSE),0)&"% ("&IF(VLOOKUP($A$3,'G9-RL1'!$A$6:$AM$506,5,FALSE)="",0,VLOOKUP($A$3,'G9-RL1'!$A$6:$AM$506,5,FALSE))&")")),"NA") -> 2% (101) | F9: =IFERROR((IF($C9="NA","NA",VLOOKUP($A$3,'G9-RL1'!$A$6:$AM$506,7,FALSE))),"NA") -> 4.455373201 | G9: NA | H9: =IFERROR((IF($C9="NA","NA",VLOOKUP($A$3,'G9-RL1'!$A$6:$AM$506,10,FALSE))),"NA") -> 7.601933453 | I9: NA | J9: =IFERROR((IF($C9="NA","NA",VLOOKUP($A$3,'G9-RL1'!$A$6:$AM$506,13,FALSE))),"NA") -> 3.424977518 | K9: NA | L9: =IFERROR((IF($C9="NA","NA",VLOOKUP($A$3,'G9-RL1'!$A$6:$AM$506,16,FALSE))),"NA") -> 3.736668165 | M9: NA | Q9: =IFERROR(VLOOKUP($A$3,'G9-RL1'!$A$6:$BX$506,3,FALSE),"not tested") -> 4448 | S9: =SUM(VLOOKUP($A$3,'GEO-L1'!$A$14:$BX$500,4,FALSE)*$Q9,VLOOKUP($A$3,'GEO-L1'!$A$14:$BX$500,41,FALSE)*$R9)/SUM($Q9,$R9) -> 13.54380561 | T9: =SUM(VLOOKUP($A$3,'GEO-L1'!$A$14:$BX$500,7,FALSE),VLOOKUP($A$3,'GEO-L1'!$A$14:$BX$500,44,FALSE))/SUM($Q9:$R9)*100 -> 0.3044920327 | U9: =SUM(VLOOKUP($A$3,'GEO-L1'!$A$14:$BX$500,7,FALSE),VLOOKUP($A$3,'GEO-L1'!$A$14:$BX$500,44,FALSE)) -> 13.54380561 | V9: =SUM(VLOOKUP($A$3,'GEO-L1'!$A$14:$BX$500,10,FALSE)*$Q9,VLOOKUP($A$3,'GEO-L1'!$A$14:$BX$500,47,FALSE)*$R9)/SUM($Q9,$R9) -> 0 | W9: =SUM(VLOOKUP($A$3,'GEO-L1'!$A$14:$BX$500,8,FALSE),VLOOKUP($A$3,'GEO-L1'!$A$14:$BX$500,50,FALSE))/SUM($Q9:$R9)*100 -> 0.7419064748 | X9: =SUM(VLOOKUP($A$3,'GEO-L1'!$A$14:$BX$500,8,FALSE),VLOOKUP($A$3,'GEO-L1'!$A$14:$BX$500,50,FALSE)) -> 33 | Y9: =SUM(VLOOKUP($A$3,'GEO-L1'!$A$14:$BX$500,16,FALSE)*$Q9,VLOOKUP($A$3,'GEO-L1'!$A$14:$BX$500,53,FALSE)*$R9)/SUM($Q9,$R9) -> 0 | Z9: =SUM(VLOOKUP($A$3,'GEO-L1'!$A$14:$BX$500,19,FALSE),VLOOKUP($A$3,'GEO-L1'!$A$14:$BX$500,56,FALSE))/SUM($Q9:$R9)*100 -> 0 | AA9: =SUM(VLOOKUP($A$3,'GEO-L1'!$A$14:$BX$500,19,FALSE),VLOOKUP($A$3,'GEO-L1'!$A$14:$BX$500,56,FALSE)) -> 0 | AB9: =SUM(VLOOKUP($A$3,'GEO-L1'!$A$14:$BX$500,22,FALSE)*$Q9,VLOOKUP($A$3,'GEO-L1'!$A$14:$BX$500,59,FALSE)*$R9)/SUM($Q9,$R9) -> 0 | AC9: =SUM(VLOOKUP($A$3,'GEO-L1'!$A$14:$BX$500,25,FALSE),VLOOKUP($A$3,'GEO-L1'!$A$14:$BX$500,62,FALSE))/SUM($Q9:$R9)*100 -> 0 | AD9: =SUM(VLOOKUP($A$3,'GEO-L1'!$A$14:$BX$500,25,FALSE),VLOOKUP($A$3,'GEO-L1'!$A$14:$BX$500,62,FALSE)) -> 0 | AE9: =SUM(VLOOKUP($A$3,'GEO-L1'!$A$14:$BX$500,28,FALSE)*$Q9,VLOOKUP($A$3,'GEO-L1'!$A$14:$BX$500,65,FALSE)*$R9)/SUM($Q9,$R9) -> 0 | AF9: =SUM(VLOOKUP($A$3,'GEO-L1'!$A$14:$BX$500,31,FALSE),VLOOKUP($A$3,'GEO-L1'!$A$14:$BX$500,68,FALSE))/SUM($Q9:$R9)*100 -> 0 | AG9: =SUM(VLOOKUP($A$3,'GEO-L1'!$A$14:$BX$500,31,FALSE),VLOOKUP($A$3,'GEO-L1'!$A$14:$BX$500,68,FALSE)) -> 0 | AH9: =SUM(VLOOKUP($A$3,'GEO-L1'!$A$14:$BX$500,34,FALSE)*$Q9,VLOOKUP($A$3,'GEO-L1'!$A$14:$BX$500,71,FALSE)*$R9)/SUM($Q9,$R9) -> 0 | AI9: =SUM(VLOOKUP($A$3,'GEO-L1'!$A$14:$BX$500,37,FALSE),VLOOKUP($A$3,'GEO-L1'!$A$14:$BX$500,74,FALSE))/SUM($Q9:$R9)*100 -> 0 | AJ9: =SUM(VLOOKUP($A$3,'GEO-L1'!$A$14:$BX$500,37,FALSE),VLOOKUP($A$3,'GEO-L1'!$A$14:$BX$500,74,FALSE)) -> 0
A10: FCAT Level 2 | B10: =IFERROR(VLOOKUP(TEXT($A$3,"0000"),MEM_RL2!$A$2:$S$500,10,FALSE),0) -> 7031 | C10: =IFERROR((IF(OR(B10=0,B10="",B10="NA"),"NA",((IF(VLOOKUP($A$3,'G9-RL2'!$A$6:$AM$500,3,FALSE)>=B10,"100% ("&VLOOKUP($A$3,'G9-RL2'!$A$6:$AM$500,3,FALSE)&")",(ROUND((VLOOKUP($A$3,'G9-RL2'!$A$6:$AM$500,3,FALSE)/B10*100),0))&"% ("&IF(VLOOKUP($A$3,'G9-RL2'!$A$6:$AM$500,3,FALSE)="",0,VLOOKUP($A$3,'G9-RL2'!$A$6:$AM$500,3,FALSE))&")"))))),"0% (0)") -> 92% (6498) | D10: =IFERROR((IF($C10="NA","NA",VLOOKUP($A$3,'G9-RL2'!$A$6:$AM$500,4,FALSE))),"NA") -> 27.65752539 | E10: =IFERROR((IF($C10="NA","NA",ROUND(VLOOKUP($A$3,'G9-RL2'!$A$6:$AM$500,6,FALSE),0)&"% ("&IF(VLOOKUP($A$3,'G9-RL2'!$A$6:$AM$500,5,FALSE)="",0,VLOOKUP($A$3,'G9-RL2'!$A$6:$AM$500,5,FALSE))&")")),"NA") -> 23% (1509) | F10: =IFERROR((IF($C10="NA","NA",VLOOKUP($A$3,'G9-RL2'!$A$6:$AM$500,7,FALSE))),"NA") -> 6.581301939 | G10: NA | H10: =IFERROR((IF($C10="NA","NA",VLOOKUP($A$3,'G9-RL2'!$A$6:$AM$500,10,FALSE))),"NA") -> 10.95732533 | I10: NA | J10: =IFERROR((IF($C10="NA","NA",VLOOKUP($A$3,'G9-RL2'!$A$6:$AM$500,13,FALSE))),"NA") -> 4.884379809 | K10: NA | L10: =IFERROR((IF($C10="NA","NA",VLOOKUP($A$3,'G9-RL2'!$A$6:$AM$500,16,FALSE))),"NA") -> 5.246645122 | M10: NA | Q10: =IFERROR(VLOOKUP($A$3,'G9-RL2'!$A$6:$BX$500,3,FALSE),"not tested") -> 6498 | S10: =SUM(VLOOKUP($A$3,'GEO-L2'!$A$14:$BX$500,4,FALSE)*$Q10,VLOOKUP($A$3,'GEO-L2'!$A$14:$BX$500,41,FALSE)*$R10)/SUM($Q10,$R10) -> 16.13631013 | T10: =SUM(VLOOKUP($A$3,'GEO-L2'!$A$14:$BX$500,7,FALSE),VLOOKUP($A$3,'GEO-L2'!$A$14:$BX$500,44,FALSE))/SUM($Q10:$R10)*100 -> 0.2483273335 | U10: =SUM(VLOOKUP($A$3,'GEO-L2'!$A$14:$BX$500,7,FALSE),VLOOKUP($A$3,'GEO-L2'!$A$14:$BX$500,44,FALSE)) -> 16.13631013 | V10: =SUM(VLOOKUP($A$3,'GEO-L2'!$A$14:$BX$500,10,FALSE)*$Q10,VLOOKUP($A$3,'GEO-L2'!$A$14:$BX$500,47,FALSE)*$R10)/SUM($Q10,$R10) -> 0 | W10: =SUM(VLOOKUP($A$3,'GEO-L2'!$A$14:$BX$500,8,FALSE),VLOOKUP($A$3,'GEO-L2'!$A$14:$BX$500,50,FALSE))/SUM($Q10:$R10)*100 -> 1.692828563 | X10: =SUM(VLOOKUP($A$3,'GEO-L2'!$A$14:$BX$500,8,FALSE),VLOOKUP($A$3,'GEO-L2'!$A$14:$BX$500,50,FALSE)) -> 110 | Y10: =SUM(VLOOKUP($A$3,'GEO-L2'!$A$14:$BX$500,16,FALSE)*$Q10,VLOOKUP($A$3,'GEO-L2'!$A$14:$BX$500,53,FALSE)*$R10)/SUM($Q10,$R10) -> 0 | Z10: =SUM(VLOOKUP($A$3,'GEO-L2'!$A$14:$BX$500,19,FALSE),VLOOKUP($A$3,'GEO-L2'!$A$14:$BX$500,56,FALSE))/SUM($Q10:$R10)*100 -> 0 | AA10: =SUM(VLOOKUP($A$3,'GEO-L2'!$A$14:$BX$500,19,FALSE),VLOOKUP($A$3,'GEO-L2'!$A$14:$BX$500,56,FALSE)) -> 0 | AB10: =SUM(VLOOKUP($A$3,'GEO-L2'!$A$14:$BX$500,22,FALSE)*$Q10,VLOOKUP($A$3,'GEO-L2'!$A$14:$BX$500,59,FALSE)*$R10)/SUM($Q10,$R10) -> 0 | AC10: =SUM(VLOOKUP($A$3,'GEO-L2'!$A$14:$BX$500,25,FALSE),VLOOKUP($A$3,'GEO-L2'!$A$14:$BX$500,62,FALSE))/SUM($Q10:$R10)*100 -> 0 | AD10: =SUM(VLOOKUP($A$3,'GEO-L2'!$A$14:$BX$500,25,FALSE),VLOOKUP($A$3,'GEO-L2'!$A$14:$BX$500,62,FALSE)) -> 0 | AE10: =SUM(VLOOKUP($A$3,'GEO-L2'!$A$14:$BX$500,28,FALSE)*$Q10,VLOOKUP($A$3,'GEO-L2'!$A$14:$BX$500,65,FALSE)*$R10)/SUM($Q10,$R10) -> 0 | AF10: =SUM(VLOOKUP($A$3,'GEO-L2'!$A$14:$BX$500,31,FALSE),VLOOKUP($A$3,'GEO-L2'!$A$14:$BX$500,68,FALSE))/SUM($Q10:$R10)*100 -> 0 | AG10: =SUM(VLOOKUP($A$3,'GEO-L2'!$A$14:$BX$500,31,FALSE),VLOOKUP($A$3,'GEO-L2'!$A$14:$BX$500,68,FALSE)) -> 0 | AH10: =SUM(VLOOKUP($A$3,'GEO-L2'!$A$14:$BX$500,34,FALSE)*$Q10,VLOOKUP($A$3,'GEO-L2'!$A$14:$BX$500,71,FALSE)*$R10)/SUM($Q10,$R10) -> 0 | AI10: =SUM(VLOOKUP($A$3,'GEO-L2'!$A$14:$BX$500,37,FALSE),VLOOKUP($A$3,'GEO-L2'!$A$14:$BX$500,74,FALSE))/SUM($Q10:$R10)*100 -> 0 | AJ10: =SUM(VLOOKUP($A$3,'GEO-L2'!$A$14:$BX$500,37,FALSE),VLOOKUP($A$3,'GEO-L2'!$A$14:$BX$500,74,FALSE)) -> 0
A11: FCAT Level 3 | B11: =IFERROR(VLOOKUP(TEXT($A$3,"0000"),MEM_RL3!$A$2:$S$500,10,FALSE),0) -> 6579 | C11: =IFERROR((IF(OR(B11=0,B11="",B11="NA"),"NA",((IF(VLOOKUP($A$3,'G9-RL3'!$A$6:$AM$500,3,FALSE)>=B11,"100% ("&VLOOKUP($A$3,'G9-RL3'!$A$6:$AM$500,3,FALSE)&")",(ROUND((VLOOKUP($A$3,'G9-RL3'!$A$6:$AM$500,3,FALSE)/B11*100),0))&"% ("&IF(VLOOKUP($A$3,'G9-RL3'!$A$6:$AM$500,3,FALSE)="",0,VLOOKUP($A$3,'G9-RL3'!$A$6:$AM$500,3,FALSE))&")"))))),"0% (0)") -> 96% (6323) | D11: =IFERROR((IF($C11="NA","NA",VLOOKUP($A$3,'G9-RL3'!$A$6:$AM$500,4,FALSE))),"NA") -> 34.81026412 | E11: =IFERROR((IF($C11="NA","NA",ROUND(VLOOKUP($A$3,'G9-RL3'!$A$6:$AM$500,6,FALSE),0)&"% ("&IF(VLOOKUP($A$3,'G9-RL3'!$A$6:$AM$500,5,FALSE)="",0,VLOOKUP($A$3,'G9-RL3'!$A$6:$AM$500,5,FALSE))&")")),"NA") -> 59% (3701) | F11: =IFERROR((IF($C11="NA","NA",VLOOKUP($A$3,'G9-RL3'!$A$6:$AM$500,7,FALSE))),"NA") -> 8.252522537 | G11: NA | H11: =IFERROR((IF($C11="NA","NA",VLOOKUP($A$3,'G9-RL3'!$A$6:$AM$500,10,FALSE))),"NA") -> 13.88918235 | I11: NA | J11: =IFERROR((IF($C11="NA","NA",VLOOKUP($A$3,'G9-RL3'!$A$6:$AM$500,13,FALSE))),"NA") -> 6.405566978 | K11: NA | L11: =IFERROR((IF($C11="NA","NA",VLOOKUP($A$3,'G9-RL3'!$A$6:$AM$500,16,FALSE))),"NA") -> 6.265206389 | M11: NA | Q11: =IFERROR(VLOOKUP($A$3,'G9-RL3'!$A$6:$BX$500,3,FALSE),"not tested") -> 6323 | S11: =SUM(VLOOKUP($A$3,'GEO-L3'!$A$14:$BX$500,4,FALSE)*$Q11,VLOOKUP($A$3,'GEO-L3'!$A$14:$BX$500,41,FALSE)*$R11)/SUM($Q11,$R11) -> 19.78892412 | T11: =SUM(VLOOKUP($A$3,'GEO-L3'!$A$14:$BX$500,7,FALSE),VLOOKUP($A$3,'GEO-L3'!$A$14:$BX$500,44,FALSE))/SUM($Q11:$R11)*100 -> 0.3129673275 | U11: =SUM(VLOOKUP($A$3,'GEO-L3'!$A$14:$BX$500,7,FALSE),VLOOKUP($A$3,'GEO-L3'!$A$14:$BX$500,44,FALSE)) -> 19.78892412 | V11: =SUM(VLOOKUP($A$3,'GEO-L3'!$A$14:$BX$500,10,FALSE)*$Q11,VLOOKUP($A$3,'GEO-L3'!$A$14:$BX$500,47,FALSE)*$R11)/SUM($Q11,$R11) -> 0 | W11: =SUM(VLOOKUP($A$3,'GEO-L3'!$A$14:$BX$500,8,FALSE),VLOOKUP($A$3,'GEO-L3'!$A$14:$BX$500,50,FALSE))/SUM($Q11:$R11)*100 -> 14.28119563 | X11: =SUM(VLOOKUP($A$3,'GEO-L3'!$A$14:$BX$500,8,FALSE),VLOOKUP($A$3,'GEO-L3'!$A$14:$BX$500,50,FALSE)) -> 903 | Y11: =SUM(VLOOKUP($A$3,'GEO-L3'!$A$14:$BX$500,16,FALSE)*$Q11,VLOOKUP($A$3,'GEO-L3'!$A$14:$BX$500,53,FALSE)*$R11)/SUM($Q11,$R11) -> 0 | Z11: =SUM(VLOOKUP($A$3,'GEO-L3'!$A$14:$BX$500,19,FALSE),VLOOKUP($A$3,'GEO-L3'!$A$14:$BX$500,56,FALSE))/SUM($Q11:$R11)*100 -> 0 | AA11: =SUM(VLOOKUP($A$3,'GEO-L3'!$A$14:$BX$500,19,FALSE),VLOOKUP($A$3,'GEO-L3'!$A$14:$BX$500,56,FALSE)) -> 0 | AB11: =SUM(VLOOKUP($A$3,'GEO-L3'!$A$14:$BX$500,22,FALSE)*$Q11,VLOOKUP($A$3,'GEO-L3'!$A$14:$BX$500,59,FALSE)*$R11)/SUM($Q11,$R11) -> 0 | AC11: =SUM(VLOOKUP($A$3,'GEO-L3'!$A$14:$BX$500,25,FALSE),VLOOKUP($A$3,'GEO-L3'!$A$14:$BX$500,62,FALSE))/SUM($Q11:$R11)*100 -> 0 | AD11: =SUM(VLOOKUP($A$3,'GEO-L3'!$A$14:$BX$500,25,FALSE),VLOOKUP($A$3,'GEO-L3'!$A$14:$BX$500,62,FALSE)) -> 0 | AE11: =SUM(VLOOKUP($A$3,'GEO-L3'!$A$14:$BX$500,28,FALSE)*$Q11,VLOOKUP($A$3,'GEO-L3'!$A$14:$BX$500,65,FALSE)*$R11)/SUM($Q11,$R11) -> 0 | AF11: =SUM(VLOOKUP($A$3,'GEO-L3'!$A$14:$BX$500,31,FALSE),VLOOKUP($A$3,'GEO-L3'!$A$14:$BX$500,68,FALSE))/SUM($Q11:$R11)*100 -> 0 | AG11: =SUM(VLOOKUP($A$3,'GEO-L3'!$A$14:$BX$500,31,FALSE),VLOOKUP($A$3,'GEO-L3'!$A$14:$BX$500,68,FALSE)) -> 0 | AH11: =SUM(VLOOKUP($A$3,'GEO-L3'!$A$14:$BX$500,34,FALSE)*$Q11,VLOOKUP($A$3,'GEO-L3'!$A$14:$BX$500,71,FALSE)*$R11)/SUM($Q11,$R11) -> 0 | AI11: =SUM(VLOOKUP($A$3,'GEO-L3'!$A$14:$BX$500,37,FALSE),VLOOKUP($A$3,'GEO-L3'!$A$14:$BX$500,74,FALSE))/SUM($Q11:$R11)*100 -> 0 | AJ11: =SUM(VLOOKUP($A$3,'GEO-L3'!$A$14:$BX$500,37,FALSE),VLOOKUP($A$3,'GEO-L3'!$A$14:$BX$500,74,FALSE)) -> 0
A12: FCAT Level 4 | B12: =IFERROR(VLOOKUP(TEXT($A$3,"0000"),MEM_RL4!$A$2:$S$500,10,FALSE),0) -> 4332 | C12: =IFERROR((IF(OR(B12=0,B12="",B12="NA"),"NA",((IF(VLOOKUP($A$3,'G9-RL4'!$A$6:$AM$500,3,FALSE)>=B12,"100% ("&VLOOKUP($A$3,'G9-RL4'!$A$6:$AM$500,3,FALSE)&")",(ROUND((VLOOKUP($A$3,'G9-RL4'!$A$6:$AM$500,3,FALSE)/B12*100),0))&"% ("&IF(VLOOKUP($A$3,'G9-RL4'!$A$6:$AM$500,3,FALSE)="",0,VLOOKUP($A$3,'G9-RL4'!$A$6:$AM$500,3,FALSE))&")"))))),"0% (0)") -> 95% (4133) | D12: =IFERROR((IF($C12="NA","NA",VLOOKUP($A$3,'G9-RL4'!$A$6:$AM$500,4,FALSE))),"NA") -> 41.34706025 | E12: =IFERROR((IF($C12="NA","NA",ROUND(VLOOKUP($A$3,'G9-RL4'!$A$6:$AM$500,6,FALSE),0)&"% ("&IF(VLOOKUP($A$3,'G9-RL4'!$A$6:$AM$500,5,FALSE)="",0,VLOOKUP($A$3,'G9-RL4'!$A$6:$AM$500,5,FALSE))&")")),"NA") -> 85% (3530) | F12: =IFERROR((IF($C12="NA","NA",VLOOKUP($A$3,'G9-RL4'!$A$6:$AM$500,7,FALSE))),"NA") -> 9.697556255 | G12: NA | H12: =IFERROR((IF($C12="NA","NA",VLOOKUP($A$3,'G9-RL4'!$A$6:$AM$500,10,FALSE))),"NA") -> 16.41550932 | I12: NA | J12: =IFERROR((IF($C12="NA","NA",VLOOKUP($A$3,'G9-RL4'!$A$6:$AM$500,13,FALSE))),"NA") -> 8.029494314 | K12: NA | L12: =IFERROR((IF($C12="NA","NA",VLOOKUP($A$3,'G9-RL4'!$A$6:$AM$500,16,FALSE))),"NA") -> 7.184369707 | M12: NA | Q12: =IFERROR(VLOOKUP($A$3,'G9-RL4'!$A$6:$BX$500,3,FALSE),"not tested") -> 4133 | S12: =SUM(VLOOKUP($A$3,'GEO-L4'!$A$14:$BX$500,4,FALSE)*$Q12,VLOOKUP($A$3,'GEO-L4'!$A$14:$BX$500,41,FALSE)*$R12)/SUM($Q12,$R12) -> 24.29728896 | T12: =SUM(VLOOKUP($A$3,'GEO-L4'!$A$14:$BX$500,7,FALSE),VLOOKUP($A$3,'GEO-L4'!$A$14:$BX$500,44,FALSE))/SUM($Q12:$R12)*100 -> 0.5878850462 | U12: =SUM(VLOOKUP($A$3,'GEO-L4'!$A$14:$BX$500,7,FALSE),VLOOKUP($A$3,'GEO-L4'!$A$14:$BX$500,44,FALSE)) -> 24.29728896 | V12: =SUM(VLOOKUP($A$3,'GEO-L4'!$A$14:$BX$500,10,FALSE)*$Q12,VLOOKUP($A$3,'GEO-L4'!$A$14:$BX$500,47,FALSE)*$R12)/SUM($Q12,$R12) -> 0 | W12: =SUM(VLOOKUP($A$3,'GEO-L4'!$A$14:$BX$500,8,FALSE),VLOOKUP($A$3,'GEO-L4'!$A$14:$BX$500,50,FALSE))/SUM($Q12:$R12)*100 -> 38.15630293 | X12: =SUM(VLOOKUP($A$3,'GEO-L4'!$A$14:$BX$500,8,FALSE),VLOOKUP($A$3,'GEO-L4'!$A$14:$BX$500,50,FALSE)) -> 1577 | Y12: =SUM(VLOOKUP($A$3,'GEO-L4'!$A$14:$BX$500,16,FALSE)*$Q12,VLOOKUP($A$3,'GEO-L4'!$A$14:$BX$500,53,FALSE)*$R12)/SUM($Q12,$R12) -> 0 | Z12: =SUM(VLOOKUP($A$3,'GEO-L4'!$A$14:$BX$500,19,FALSE),VLOOKUP($A$3,'GEO-L4'!$A$14:$BX$500,56,FALSE))/SUM($Q12:$R12)*100 -> 0 | AA12: =SUM(VLOOKUP($A$3,'GEO-L4'!$A$14:$BX$500,19,FALSE),VLOOKUP($A$3,'GEO-L4'!$A$14:$BX$500,56,FALSE)) -> 0 | AB12: =SUM(VLOOKUP($A$3,'GEO-L4'!$A$14:$BX$500,22,FALSE)*$Q12,VLOOKUP($A$3,'GEO-L4'!$A$14:$BX$500,59,FALSE)*$R12)/SUM($Q12,$R12) -> 0 | AC12: =SUM(VLOOKUP($A$3,'GEO-L4'!$A$14:$BX$500,25,FALSE),VLOOKUP($A$3,'GEO-L4'!$A$14:$BX$500,62,FALSE))/SUM($Q12:$R12)*100 -> 0 | AD12: =SUM(VLOOKUP($A$3,'GEO-L4'!$A$14:$BX$500,25,FALSE),VLOOKUP($A$3,'GEO-L4'!$A$14:$BX$500,62,FALSE)) -> 0 | AE12: =SUM(VLOOKUP($A$3,'GEO-L4'!$A$14:$BX$500,28,FALSE)*$Q12,VLOOKUP($A$3,'GEO-L4'!$A$14:$BX$500,65,FALSE)*$R12)/SUM($Q12,$R12) -> 0 | AF12: =SUM(VLOOKUP($A$3,'GEO-L4'!$A$14:$BX$500,31,FALSE),VLOOKUP($A$3,'GEO-L4'!$A$14:$BX$500,68,FALSE))/SUM($Q12:$R12)*100 -> 0 | AG12: =SUM(VLOOKUP($A$3,'GEO-L4'!$A$14:$BX$500,31,FALSE),VLOOKUP($A$3,'GEO-L4'!$A$14:$BX$500,68,FALSE)) -> 0 | AH12: =SUM(VLOOKUP($A$3,'GEO-L4'!$A$14:$BX$500,34,FALSE)*$Q12,VLOOKUP($A$3,'GEO-L4'!$A$14:$BX$500,71,FALSE)*$R12)/SUM($Q12,$R12) -> 0 | AI12: =SUM(VLOOKUP($A$3,'GEO-L4'!$A$14:$BX$500,37,FALSE),VLOOKUP($A$3,'GEO-L4'!$A$14:$BX$500,74,FALSE))/SUM($Q12:$R12)*100 -> 0 | AJ12: =SUM(VLOOKUP($A$3,'GEO-L4'!$A$14:$BX$500,37,FALSE),VLOOKUP($A$3,'GEO-L4'!$A$14:$BX$500,74,FALSE)) -> 0
A13: FCAT Level 5 | B13: =IFERROR(VLOOKUP(TEXT($A$3,"0000"),MEM_RL5!$A$2:$S$500,9,FALSE),0) -> 2618 | C13: =IFERROR((IF(OR(B13=0,B13="",B13="NA"),"NA",((IF(VLOOKUP($A$3,'G9-RL5'!$A$6:$AM$500,3,FALSE)>=B13,"100% ("&VLOOKUP($A$3,'G9-RL5'!$A$6:$AM$500,3,FALSE)&")",(ROUND((VLOOKUP($A$3,'G9-RL5'!$A$6:$AM$500,3,FALSE)/B13*100),0))&"% ("&IF(VLOOKUP($A$3,'G9-RL5'!$A$6:$AM$500,3,FALSE)="",0,VLOOKUP($A$3,'G9-RL5'!$A$6:$AM$500,3,FALSE))&")"))))),"0% (0)") -> 95% (2478) | D13: =IFERROR((IF($C13="NA","NA",VLOOKUP($A$3,'G9-RL5'!$A$6:$AM$500,4,FALSE))),"NA") -> 46.54979822 | E13: =IFERROR((IF($C13="NA","NA",ROUND(VLOOKUP($A$3,'G9-RL5'!$A$6:$AM$500,6,FALSE),0)&"% ("&IF(VLOOKUP($A$3,'G9-RL5'!$A$6:$AM$500,5,FALSE)="",0,VLOOKUP($A$3,'G9-RL5'!$A$6:$AM$500,5,FALSE))&")")),"NA") -> 96% (2390) | F13: =IFERROR((IF($C13="NA","NA",VLOOKUP($A$3,'G9-RL5'!$A$6:$AM$500,7,FALSE))),"NA") -> 10.8877724 | G13: NA | H13: =IFERROR((IF($C13="NA","NA",VLOOKUP($A$3,'G9-RL5'!$A$6:$AM$500,10,FALSE))),"NA") -> 18.52158999 | I13: NA | J13: =IFERROR((IF($C13="NA","NA",VLOOKUP($A$3,'G9-RL5'!$A$6:$AM$500,13,FALSE))),"NA") -> 9.353672316 | K13: NA | L13: =IFERROR((IF($C13="NA","NA",VLOOKUP($A$3,'G9-RL5'!$A$6:$AM$500,16,FALSE))),"NA") -> 7.805690073 | M13: NA | Q13: =IFERROR(VLOOKUP($A$3,'G9-RL5'!$A$6:$BX$500,3,FALSE),"not tested") -> 2478 | S13: =SUM(VLOOKUP($A$3,'GEO-L5'!$A$14:$BX$500,4,FALSE)*$Q13,VLOOKUP($A$3,'GEO-L5'!$A$14:$BX$500,41,FALSE)*$R13)/SUM($Q13,$R13) -> 28.59462415 | T13: =SUM(VLOOKUP($A$3,'GEO-L5'!$A$14:$BX$500,7,FALSE),VLOOKUP($A$3,'GEO-L5'!$A$14:$BX$500,44,FALSE))/SUM($Q13:$R13)*100 -> 1.153939635 | U13: =SUM(VLOOKUP($A$3,'GEO-L5'!$A$14:$BX$500,7,FALSE),VLOOKUP($A$3,'GEO-L5'!$A$14:$BX$500,44,FALSE)) -> 28.59462415 | V13: =SUM(VLOOKUP($A$3,'GEO-L5'!$A$14:$BX$500,10,FALSE)*$Q13,VLOOKUP($A$3,'GEO-L5'!$A$14:$BX$500,47,FALSE)*$R13)/SUM($Q13,$R13) -> 0 | W13: =SUM(VLOOKUP($A$3,'GEO-L5'!$A$14:$BX$500,8,FALSE),VLOOKUP($A$3,'GEO-L5'!$A$14:$BX$500,50,FALSE))/SUM($Q13:$R13)*100 -> 61.82405165 | X13: =SUM(VLOOKUP($A$3,'GEO-L5'!$A$14:$BX$500,8,FALSE),VLOOKUP($A$3,'GEO-L5'!$A$14:$BX$500,50,FALSE)) -> 1532 | Y13: =SUM(VLOOKUP($A$3,'GEO-L5'!$A$14:$BX$500,16,FALSE)*$Q13,VLOOKUP($A$3,'GEO-L5'!$A$14:$BX$500,53,FALSE)*$R13)/SUM($Q13,$R13) -> 0 | Z13: =SUM(VLOOKUP($A$3,'GEO-L5'!$A$14:$BX$500,19,FALSE),VLOOKUP($A$3,'GEO-L5'!$A$14:$BX$500,56,FALSE))/SUM($Q13:$R13)*100 -> 0 | AA13: =SUM(VLOOKUP($A$3,'GEO-L5'!$A$14:$BX$500,19,FALSE),VLOOKUP($A$3,'GEO-L5'!$A$14:$BX$500,56,FALSE)) -> 0 | AB13: =SUM(VLOOKUP($A$3,'GEO-L5'!$A$14:$BX$500,22,FALSE)*$Q13,VLOOKUP($A$3,'GEO-L5'!$A$14:$BX$500,59,FALSE)*$R13)/SUM($Q13,$R13) -> 0 | AC13: =SUM(VLOOKUP($A$3,'GEO-L5'!$A$14:$BX$500,25,FALSE),VLOOKUP($A$3,'GEO-L5'!$A$14:$BX$500,62,FALSE))/SUM($Q13:$R13)*100 -> 0 | AD13: =SUM(VLOOKUP($A$3,'GEO-L5'!$A$14:$BX$500,25,FALSE),VLOOKUP($A$3,'GEO-L5'!$A$14:$BX$500,62,FALSE)) -> 0 | AE13: =SUM(VLOOKUP($A$3,'GEO-L5'!$A$14:$BX$500,28,FALSE)*$Q13,VLOOKUP($A$3,'GEO-L5'!$A$14:$BX$500,65,FALSE)*$R13)/SUM($Q13,$R13) -> 0 | AF13: =SUM(VLOOKUP($A$3,'GEO-L5'!$A$14:$BX$500,31,FALSE),VLOOKUP($A$3,'GEO-L5'!$A$14:$BX$500,68,FALSE))/SUM($Q13:$R13)*100 -> 0 | AG13: =SUM(VLOOKUP($A$3,'GEO-L5'!$A$14:$BX$500,31,FALSE),VLOOKUP($A$3,'GEO-L5'!$A$14:$BX$500,68,FALSE)) -> 0 | AH13: =SUM(VLOOKUP($A$3,'GEO-L5'!$A$14:$BX$500,34,FALSE)*$Q13,VLOOKUP($A$3,'GEO-L5'!$A$14:$BX$500,71,FALSE)*$R13)/SUM($Q13,$R13) -> 0 | AI13: =SUM(VLOOKUP($A$3,'GEO-L5'!$A$14:$BX$500,37,FALSE),VLOOKUP($A$3,'GEO-L5'!$A$14:$BX$500,74,FALSE))/SUM($Q13:$R13)*100 -> 0 | AJ13: =SUM(VLOOKUP($A$3,'GEO-L5'!$A$14:$BX$500,37,FALSE),VLOOKUP($A$3,'GEO-L5'!$A$14:$BX$500,74,FALSE)) -> 0
A14: White | B14: =IFERROR(VLOOKUP(TEXT($A$3,"0000"),MEM_W!$A$2:$S$500,13,FALSE),0) -> 2385 | C14: =IFERROR((IF(OR(B14=0,B14="",B14="NA"),"NA",((IF(VLOOKUP($A$3,'G9-RW'!$A$6:$AM$500,3,FALSE)>=B14,"100% ("&VLOOKUP($A$3,'G9-RW'!$A$6:$AM$500,3,FALSE)&")",(ROUND((VLOOKUP($A$3,'G9-RW'!$A$6:$AM$500,3,FALSE)/B14*100),0))&"% ("&IF(VLOOKUP($A$3,'G9-RW'!$A$6:$AM$500,3,FALSE)="",0,VLOOKUP($A$3,'G9-RW'!$A$6:$AM$500,3,FALSE))&")"))))),"0% (0)") -> 89% (2126) | D14: =IFERROR((IF($C14="NA","NA",VLOOKUP($A$3,'G9-RW'!$A$6:$AM$500,4,FALSE))),"NA") -> 37.70555033 | E14: =IFERROR((IF($C14="NA","NA",ROUND(VLOOKUP($A$3,'G9-RW'!$A$6:$AM$500,6,FALSE),0)&"% ("&IF(VLOOKUP($A$3,'G9-RW'!$A$6:$AM$500,5,FALSE)="",0,VLOOKUP($A$3,'G9-RW'!$A$6:$AM$500,5,FALSE))&")")),"NA") -> 67% (1417) | F14: =IFERROR((IF($C14="NA","NA",VLOOKUP($A$3,'G9-RW'!$A$6:$AM$500,7,FALSE))),"NA") -> 8.898777046 | G14: NA | H14: =IFERROR((IF($C14="NA","NA",VLOOKUP($A$3,'G9-RW'!$A$6:$AM$500,10,FALSE))),"NA") -> 14.94571966 | I14: NA | J14: =IFERROR((IF($C14="NA","NA",VLOOKUP($A$3,'G9-RW'!$A$6:$AM$500,13,FALSE))),"NA") -> 7.212652869 | K14: NA | L14: =IFERROR((IF($C14="NA","NA",VLOOKUP($A$3,'G9-RW'!$A$6:$AM$500,16,FALSE))),"NA") -> 6.613311383 | M14: NA | Q14: =IFERROR(VLOOKUP($A$3,'G9-RW'!$A$6:$BX$500,3,FALSE),"not tested") -> 2126 | S14: =SUM(VLOOKUP($A$3,'GEO-W'!$A$14:$BX$500,4,FALSE)*$Q14,VLOOKUP($A$3,'GEO-W'!$A$14:$BX$500,41,FALSE)*$R14)/SUM($Q14,$R14) -> 22.18972047 | T14: =SUM(VLOOKUP($A$3,'GEO-W'!$A$14:$BX$500,7,FALSE),VLOOKUP($A$3,'GEO-W'!$A$14:$BX$500,44,FALSE))/SUM($Q14:$R14)*100 -> 1.043730972 | U14: =SUM(VLOOKUP($A$3,'GEO-W'!$A$14:$BX$500,7,FALSE),VLOOKUP($A$3,'GEO-W'!$A$14:$BX$500,44,FALSE)) -> 22.18972047 | V14: =SUM(VLOOKUP($A$3,'GEO-W'!$A$14:$BX$500,10,FALSE)*$Q14,VLOOKUP($A$3,'GEO-W'!$A$14:$BX$500,47,FALSE)*$R14)/SUM($Q14,$R14) -> 0 | W14: =SUM(VLOOKUP($A$3,'GEO-W'!$A$14:$BX$500,8,FALSE),VLOOKUP($A$3,'GEO-W'!$A$14:$BX$500,50,FALSE))/SUM($Q14:$R14)*100 -> 28.64534337 | X14: =SUM(VLOOKUP($A$3,'GEO-W'!$A$14:$BX$500,8,FALSE),VLOOKUP($A$3,'GEO-W'!$A$14:$BX$500,50,FALSE)) -> 609 | Y14: =SUM(VLOOKUP($A$3,'GEO-W'!$A$14:$BX$500,16,FALSE)*$Q14,VLOOKUP($A$3,'GEO-W'!$A$14:$BX$500,53,FALSE)*$R14)/SUM($Q14,$R14) -> 0 | Z14: =SUM(VLOOKUP($A$3,'GEO-W'!$A$14:$BX$500,19,FALSE),VLOOKUP($A$3,'GEO-W'!$A$14:$BX$500,56,FALSE))/SUM($Q14:$R14)*100 -> 0 | AA14: =SUM(VLOOKUP($A$3,'GEO-W'!$A$14:$BX$500,19,FALSE),VLOOKUP($A$3,'GEO-W'!$A$14:$BX$500,56,FALSE)) -> 0 | AB14: =SUM(VLOOKUP($A$3,'GEO-W'!$A$14:$BX$500,22,FALSE)*$Q14,VLOOKUP($A$3,'GEO-W'!$A$14:$BX$500,59,FALSE)*$R14)/SUM($Q14,$R14) -> 0 | AC14: =SUM(VLOOKUP($A$3,'GEO-W'!$A$14:$BX$500,25,FALSE),VLOOKUP($A$3,'GEO-W'!$A$14:$BX$500,62,FALSE))/SUM($Q14:$R14)*100 -> 0 | AD14: =SUM(VLOOKUP($A$3,'GEO-W'!$A$14:$BX$500,25,FALSE),VLOOKUP($A$3,'GEO-W'!$A$14:$BX$500,62,FALSE)) -> 0 | AE14: =SUM(VLOOKUP($A$3,'GEO-W'!$A$14:$BX$500,28,FALSE)*$Q14,VLOOKUP($A$3,'GEO-W'!$A$14:$BX$500,65,FALSE)*$R14)/SUM($Q14,$R14) -> 0 | AF14: =SUM(VLOOKUP($A$3,'GEO-W'!$A$14:$BX$500,31,FALSE),VLOOKUP($A$3,'GEO-W'!$A$14:$BX$500,68,FALSE))/SUM($Q14:$R14)*100 -> 0 | AG14: =SUM(VLOOKUP($A$3,'GEO-W'!$A$14:$BX$500,31,FALSE),VLOOKUP($A$3,'GEO-W'!$A$14:$BX$500,68,FALSE)) -> 0 | AH14: =SUM(VLOOKUP($A$3,'GEO-W'!$A$14:$BX$500,34,FALSE)*$Q14,VLOOKUP($A$3,'GEO-W'!$A$14:$BX$500,71,FALSE)*$R14)/SUM($Q14,$R14) -> 0 | AI14: =SUM(VLOOKUP($A$3,'GEO-W'!$A$14:$BX$500,37,FALSE),VLOOKUP($A$3,'GEO-W'!$A$14:$BX$500,74,FALSE))/SUM($Q14:$R14)*100 -> 0 | AJ14: =SUM(VLOOKUP($A$3,'GEO-W'!$A$14:$BX$500,37,FALSE),VLOOKUP($A$3,'GEO-W'!$A$14:$BX$500,74,FALSE)) -> 0
A15: Black | B15: =IFERROR(VLOOKUP(TEXT($A$3,"0000"),MEM_B!$A$2:$S$500,13,FALSE),0) -> 6456 | C15: =IFERROR((IF(OR(B15=0,B15="",B15="NA"),"NA",((IF(VLOOKUP($A$3,'G9-RB'!$A$6:$AM$500,3,FALSE)>=B15,"100% ("&VLOOKUP($A$3,'G9-RB'!$A$6:$AM$500,3,FALSE)&")",(ROUND((VLOOKUP($A$3,'G9-RB'!$A$6:$AM$500,3,FALSE)/B15*100),0))&"% ("&IF(VLOOKUP($A$3,'G9-RB'!$A$6:$AM$500,3,FALSE)="",0,VLOOKUP($A$3,'G9-RB'!$A$6:$AM$500,3,FALSE))&")"))))),"0% (0)") -> 90% (5808) | D15: =IFERROR((IF($C15="NA","NA",VLOOKUP($A$3,'G9-RB'!$A$6:$AG$500,4,FALSE))),"NA") -> 29.28243802 | E15: =IFERROR((IF($C15="NA","NA",ROUND(VLOOKUP($A$3,'G9-RB'!$A$6:$AG$500,6,FALSE),0)&"% ("&IF(VLOOKUP($A$3,'G9-RB'!$A$6:$AG$500,5,FALSE)="",0,VLOOKUP($A$3,'G9-RB'!$A$6:$AG$500,5,FALSE))&")")),"NA") -> 35% (2007) | F15: =IFERROR((IF($C15="NA","NA",VLOOKUP($A$3,'G9-RB'!$A$6:$AG$500,7,FALSE))),"NA") -> 6.99047865 | G15: NA | H15: =IFERROR((IF($C15="NA","NA",VLOOKUP($A$3,'G9-RB'!$A$6:$AG$500,10,FALSE))),"NA") -> 11.6109332 | I15: NA | J15: =IFERROR((IF($C15="NA","NA",VLOOKUP($A$3,'G9-RB'!$A$6:$AG$500,13,FALSE))),"NA") -> 5.359607438 | K15: NA | L15: =IFERROR((IF($C15="NA","NA",VLOOKUP($A$3,'G9-RB'!$A$6:$AG$500,16,FALSE))),"NA") -> 5.325998623 | M15: NA | Q15: =IFERROR(VLOOKUP($A$3,'G9-RB'!$A$6:$BX$500,3,FALSE),"not tested") -> 5808 | S15: =SUM(VLOOKUP($A$3,'GEO-B'!$A$14:$BX$500,4,FALSE)*$Q15,VLOOKUP($A$3,'GEO-B'!$A$14:$BX$500,41,FALSE)*$R15)/SUM($Q15,$R15) -> 17.64989831 | T15: =SUM(VLOOKUP($A$3,'GEO-B'!$A$14:$BX$500,7,FALSE),VLOOKUP($A$3,'GEO-B'!$A$14:$BX$500,44,FALSE))/SUM($Q15:$R15)*100 -> 0.3038894336 | U15: =SUM(VLOOKUP($A$3,'GEO-B'!$A$14:$BX$500,7,FALSE),VLOOKUP($A$3,'GEO-B'!$A$14:$BX$500,44,FALSE)) -> 17.64989831 | V15: =SUM(VLOOKUP($A$3,'GEO-B'!$A$14:$BX$500,10,FALSE)*$Q15,VLOOKUP($A$3,'GEO-B'!$A$14:$BX$500,47,FALSE)*$R15)/SUM($Q15,$R15) -> 0 | W15: =SUM(VLOOKUP($A$3,'GEO-B'!$A$14:$BX$500,8,FALSE),VLOOKUP($A$3,'GEO-B'!$A$14:$BX$500,50,FALSE))/SUM($Q15:$R15)*100 -> 8.333333333 | X15: =SUM(VLOOKUP($A$3,'GEO-B'!$A$14:$BX$500,8,FALSE),VLOOKUP($A$3,'GEO-B'!$A$14:$BX$500,50,FALSE)) -> 484 | Y15: =SUM(VLOOKUP($A$3,'GEO-B'!$A$14:$BX$500,16,FALSE)*$Q15,VLOOKUP($A$3,'GEO-B'!$A$14:$BX$500,53,FALSE)*$R15)/SUM($Q15,$R15) -> 0 | Z15: =SUM(VLOOKUP($A$3,'GEO-B'!$A$14:$BX$500,19,FALSE),VLOOKUP($A$3,'GEO-B'!$A$14:$BX$500,56,FALSE))/SUM($Q15:$R15)*100 -> 0 | AA15: =SUM(VLOOKUP($A$3,'GEO-B'!$A$14:$BX$500,19,FALSE),VLOOKUP($A$3,'GEO-B'!$A$14:$BX$500,56,FALSE)) -> 0 | AB15: =SUM(VLOOKUP($A$3,'GEO-B'!$A$14:$BX$500,22,FALSE)*$Q15,VLOOKUP($A$3,'GEO-B'!$A$14:$BX$500,59,FALSE)*$R15)/SUM($Q15,$R15) -> 0 | AC15: =SUM(VLOOKUP($A$3,'GEO-B'!$A$14:$BX$500,25,FALSE),VLOOKUP($A$3,'GEO-B'!$A$14:$BX$500,62,FALSE))/SUM($Q15:$R15)*100 -> 0 | AD15: =SUM(VLOOKUP($A$3,'GEO-B'!$A$14:$BX$500,25,FALSE),VLOOKUP($A$3,'GEO-B'!$A$14:$BX$500,62,FALSE)) -> 0 | AE15: =SUM(VLOOKUP($A$3,'GEO-B'!$A$14:$BX$500,28,FALSE)*$Q15,VLOOKUP($A$3,'GEO-B'!$A$14:$BX$500,65,FALSE)*$R15)/SUM($Q15,$R15) -> 0 | AF15: =SUM(VLOOKUP($A$3,'GEO-B'!$A$14:$BX$500,31,FALSE),VLOOKUP($A$3,'GEO-B'!$A$14:$BX$500,68,FALSE))/SUM($Q15:$R15)*100 -> 0 | AG15: =SUM(VLOOKUP($A$3,'GEO-B'!$A$14:$BX$500,31,FALSE),VLOOKUP($A$3,'GEO-B'!$A$14:$BX$500,68,FALSE)) -> 0 | AH15: =SUM(VLOOKUP($A$3,'GEO-B'!$A$14:$BX$500,34,FALSE)*$Q15,VLOOKUP($A$3,'GEO-B'!$A$14:$BX$500,71,FALSE)*$R15)/SUM($Q15,$R15) -> 0 | AI15: =SUM(VLOOKUP($A$3,'GEO-B'!$A$14:$BX$500,37,FALSE),VLOOKUP($A$3,'GEO-B'!$A$14:$BX$500,74,FALSE))/SUM($Q15:$R15)*100 -> 0 | AJ15: =SUM(VLOOKUP($A$3,'GEO-B'!$A$14:$BX$500,37,FALSE),VLOOKUP($A$3,'GEO-B'!$A$14:$BX$500,74,FALSE)) -> 0
A16: Hispanic | B16: =IFERROR(VLOOKUP(TEXT($A$3,"0000"),MEM_H!$A$2:$S$500,13,FALSE),0) -> 18500 | C16: =IFERROR((IF(OR(B16=0,B16="",B16="NA"),"NA",((IF(VLOOKUP($A$3,'G9-RH'!$A$6:$AM$500,3,FALSE)>=B16,"100% ("&VLOOKUP($A$3,'G9-RH'!$A$6:$AM$500,3,FALSE)&")",(ROUND((VLOOKUP($A$3,'G9-RH'!$A$6:$AM$500,3,FALSE)/B16*100),0))&"% ("&IF(VLOOKUP($A$3,'G9-RH'!$A$6:$AM$500,3,FALSE)="",0,VLOOKUP($A$3,'G9-RH'!$A$6:$AM$500,3,FALSE))&")"))))),"0% (0)") -> 91% (16824) | D16: =IFERROR((IF($C16="NA","NA",VLOOKUP($A$3,'G9-RH'!$A$6:$AM$500,4,FALSE))),"NA") -> 32.12610556 | E16: =IFERROR((IF($C16="NA","NA",ROUND(VLOOKUP($A$3,'G9-RH'!$A$6:$AM$500,6,FALSE),0)&"% ("&IF(VLOOKUP($A$3,'G9-RH'!$A$6:$AM$500,5,FALSE)="",0,VLOOKUP($A$3,'G9-RH'!$A$6:$AM$500,5,FALSE))&")")),"NA") -> 47% (7947) | F16: =IFERROR((IF($C16="NA","NA",VLOOKUP($A$3,'G9-RH'!$A$6:$AM$500,7,FALSE))),"NA") -> 7.535098669 | G16: NA | H16: =IFERROR((IF($C16="NA","NA",VLOOKUP($A$3,'G9-RH'!$A$6:$AM$500,10,FALSE))),"NA") -> 12.77163576 | I16: NA | J16: =IFERROR((IF($C16="NA","NA",VLOOKUP($A$3,'G9-RH'!$A$6:$AM$500,13,FALSE))),"NA") -> 5.990394674 | K16: NA | L16: =IFERROR((IF($C16="NA","NA",VLOOKUP($A$3,'G9-RH'!$A$6:$AM$500,16,FALSE))),"NA") -> 5.826789111 | M16: NA | Q16: =IFERROR(VLOOKUP($A$3,'G9-RH'!$A$6:$BX$500,3,FALSE),"not tested") -> 16824 | S16: =SUM(VLOOKUP($A$3,'GEO-H'!$A$14:$BX$500,4,FALSE)*$Q16,VLOOKUP($A$3,'GEO-H'!$A$14:$BX$500,41,FALSE)*$R16)/SUM($Q16,$R16) -> 20.15886999 | T16: =SUM(VLOOKUP($A$3,'GEO-H'!$A$14:$BX$500,7,FALSE),VLOOKUP($A$3,'GEO-H'!$A$14:$BX$500,44,FALSE))/SUM($Q16:$R16)*100 -> 0.1198220993 | U16: =SUM(VLOOKUP($A$3,'GEO-H'!$A$14:$BX$500,7,FALSE),VLOOKUP($A$3,'GEO-H'!$A$14:$BX$500,44,FALSE)) -> 20.15886999 | V16: =SUM(VLOOKUP($A$3,'GEO-H'!$A$14:$BX$500,10,FALSE)*$Q16,VLOOKUP($A$3,'GEO-H'!$A$14:$BX$500,47,FALSE)*$R16)/SUM($Q16,$R16) -> 0 | W16: =SUM(VLOOKUP($A$3,'GEO-H'!$A$14:$BX$500,8,FALSE),VLOOKUP($A$3,'GEO-H'!$A$14:$BX$500,50,FALSE))/SUM($Q16:$R16)*100 -> 19.07988588 | X16: =SUM(VLOOKUP($A$3,'GEO-H'!$A$14:$BX$500,8,FALSE),VLOOKUP($A$3,'GEO-H'!$A$14:$BX$500,50,FALSE)) -> 3210 | Y16: =SUM(VLOOKUP($A$3,'GEO-H'!$A$14:$BX$500,16,FALSE)*$Q16,VLOOKUP($A$3,'GEO-H'!$A$14:$BX$500,53,FALSE)*$R16)/SUM($Q16,$R16) -> 0 | Z16: =SUM(VLOOKUP($A$3,'GEO-H'!$A$14:$BX$500,19,FALSE),VLOOKUP($A$3,'GEO-H'!$A$14:$BX$500,56,FALSE))/SUM($Q16:$R16)*100 -> 0 | AA16: =SUM(VLOOKUP($A$3,'GEO-H'!$A$14:$BX$500,19,FALSE),VLOOKUP($A$3,'GEO-H'!$A$14:$BX$500,56,FALSE)) -> 0 | AB16: =SUM(VLOOKUP($A$3,'GEO-H'!$A$14:$BX$500,22,FALSE)*$Q16,VLOOKUP($A$3,'GEO-H'!$A$14:$BX$500,59,FALSE)*$R16)/SUM($Q16,$R16) -> 0 | AC16: =SUM(VLOOKUP($A$3,'GEO-H'!$A$14:$BX$500,25,FALSE),VLOOKUP($A$3,'GEO-H'!$A$14:$BX$500,62,FALSE))/SUM($Q16:$R16)*100 -> 0 | AD16: =SUM(VLOOKUP($A$3,'GEO-H'!$A$14:$BX$500,25,FALSE),VLOOKUP($A$3,'GEO-H'!$A$14:$BX$500,62,FALSE)) -> 0 | AE16: =SUM(VLOOKUP($A$3,'GEO-H'!$A$14:$BX$500,28,FALSE)*$Q16,VLOOKUP($A$3,'GEO-H'!$A$14:$BX$500,65,FALSE)*$R16)/SUM($Q16,$R16) -> 0 | AF16: =SUM(VLOOKUP($A$3,'GEO-H'!$A$14:$BX$500,31,FALSE),VLOOKUP($A$3,'GEO-H'!$A$14:$BX$500,68,FALSE))/SUM($Q16:$R16)*100 -> 0 | AG16: =SUM(VLOOKUP($A$3,'GEO-H'!$A$14:$BX$500,31,FALSE),VLOOKUP($A$3,'GEO-H'!$A$14:$BX$500,68,FALSE)) -> 0 | AH16: =SUM(VLOOKUP($A$3,'GEO-H'!$A$14:$BX$500,34,FALSE)*$Q16,VLOOKUP($A$3,'GEO-H'!$A$14:$BX$500,71,FALSE)*$R16)/SUM($Q16,$R16) -> 0 | AI16: =SUM(VLOOKUP($A$3,'GEO-H'!$A$14:$BX$500,37,FALSE),VLOOKUP($A$3,'GEO-H'!$A$14:$BX$500,74,FALSE))/SUM($Q16:$R16)*100 -> 0 | AJ16: =SUM(VLOOKUP($A$3,'GEO-H'!$A$14:$BX$500,37,FALSE),VLOOKUP($A$3,'GEO-H'!$A$14:$BX$500,74,FALSE)) -> 0
A17: Asian | B17: =IFERROR(VLOOKUP(TEXT($A$3,"0000"),MEM_A!$A$2:$S$500,13,FALSE),0) -> 301 | C17: =IFERROR((IF(OR(B17=0,B17="",B17="NA"),"NA",((IF(VLOOKUP($A$3,'G9-RA'!$A$6:$AM$500,3,FALSE)>=B17,"100% ("&VLOOKUP($A$3,'G9-RA'!$A$6:$AM$500,3,FALSE)&")",(ROUND((VLOOKUP($A$3,'G9-RA'!$A$6:$AM$500,3,FALSE)/B17*100),0))&"% ("&IF(VLOOKUP($A$3,'G9-RA'!$A$6:$AM$500,3,FALSE)="",0,VLOOKUP($A$3,'G9-RA'!$A$6:$AM$500,3,FALSE))&")"))))),"0% (0)") -> 92% (278) | D17: =IFERROR((IF($C17="NA","NA",VLOOKUP($A$3,'G9-RA'!$A$6:$AM$500,4,FALSE))),"NA") -> 39.42338129 | E17: =IFERROR((IF($C17="NA","NA",ROUND(VLOOKUP($A$3,'G9-RA'!$A$6:$AM$500,6,FALSE),0)&"% ("&IF(VLOOKUP($A$3,'G9-RA'!$A$6:$AM$500,5,FALSE)="",0,VLOOKUP($A$3,'G9-RA'!$A$6:$AM$500,5,FALSE))&")")),"NA") -> 73% (203) | F17: =IFERROR((IF($C17="NA","NA",VLOOKUP($A$3,'G9-RA'!$A$6:$AM$500,7,FALSE))),"NA") -> 9.33381295 | G17: NA | H17: =IFERROR((IF($C17="NA","NA",VLOOKUP($A$3,'G9-RA'!$A$6:$AM$500,10,FALSE))),"NA") -> 15.62805755 | I17: NA | J17: =IFERROR((IF($C17="NA","NA",VLOOKUP($A$3,'G9-RA'!$A$6:$AM$500,13,FALSE))),"NA") -> 7.652517986 | K17: NA | L17: =IFERROR((IF($C17="NA","NA",VLOOKUP($A$3,'G9-RA'!$A$6:$AM$500,16,FALSE))),"NA") -> 6.825179856 | M17: NA | Q17: =IFERROR(VLOOKUP($A$3,'G9-RA'!$A$6:$BX$500,3,FALSE),"not tested") -> 278 | S17: =SUM(VLOOKUP($A$3,'GEO-A'!$A$14:$BX$500,4,FALSE)*$Q17,VLOOKUP($A$3,'GEO-A'!$A$14:$BX$500,41,FALSE)*$R17)/SUM($Q17,$R17) -> 23.82633333 | T17: =SUM(VLOOKUP($A$3,'GEO-A'!$A$14:$BX$500,7,FALSE),VLOOKUP($A$3,'GEO-A'!$A$14:$BX$500,44,FALSE))/SUM($Q17:$R17)*100 -> 8.570623501 | U17: =SUM(VLOOKUP($A$3,'GEO-A'!$A$14:$BX$500,7,FALSE),VLOOKUP($A$3,'GEO-A'!$A$14:$BX$500,44,FALSE)) -> 23.82633333 | V17: =SUM(VLOOKUP($A$3,'GEO-A'!$A$14:$BX$500,10,FALSE)*$Q17,VLOOKUP($A$3,'GEO-A'!$A$14:$BX$500,47,FALSE)*$R17)/SUM($Q17,$R17) -> 0 | W17: =SUM(VLOOKUP($A$3,'GEO-A'!$A$14:$BX$500,8,FALSE),VLOOKUP($A$3,'GEO-A'!$A$14:$BX$500,50,FALSE))/SUM($Q17:$R17)*100 -> 43.52517986 | X17: =SUM(VLOOKUP($A$3,'GEO-A'!$A$14:$BX$500,8,FALSE),VLOOKUP($A$3,'GEO-A'!$A$14:$BX$500,50,FALSE)) -> 121 | Y17: =SUM(VLOOKUP($A$3,'GEO-A'!$A$14:$BX$500,16,FALSE)*$Q17,VLOOKUP($A$3,'GEO-A'!$A$14:$BX$500,53,FALSE)*$R17)/SUM($Q17,$R17) -> 0 | Z17: =SUM(VLOOKUP($A$3,'GEO-A'!$A$14:$BX$500,19,FALSE),VLOOKUP($A$3,'GEO-A'!$A$14:$BX$500,56,FALSE))/SUM($Q17:$R17)*100 -> 0 | AA17: =SUM(VLOOKUP($A$3,'GEO-A'!$A$14:$BX$500,19,FALSE),VLOOKUP($A$3,'GEO-A'!$A$14:$BX$500,56,FALSE)) -> 0 | AB17: =SUM(VLOOKUP($A$3,'GEO-A'!$A$14:$BX$500,22,FALSE)*$Q17,VLOOKUP($A$3,'GEO-A'!$A$14:$BX$500,59,FALSE)*$R17)/SUM($Q17,$R17) -> 0 | AC17: =SUM(VLOOKUP($A$3,'GEO-A'!$A$14:$BX$500,25,FALSE),VLOOKUP($A$3,'GEO-A'!$A$14:$BX$500,62,FALSE))/SUM($Q17:$R17)*100 -> 0 | AD17: =SUM(VLOOKUP($A$3,'GEO-A'!$A$14:$BX$500,25,FALSE),VLOOKUP($A$3,'GEO-A'!$A$14:$BX$500,62,FALSE)) -> 0 | AE17: =SUM(VLOOKUP($A$3,'GEO-A'!$A$14:$BX$500,28,FALSE)*$Q17,VLOOKUP($A$3,'GEO-A'!$A$14:$BX$500,65,FALSE)*$R17)/SUM($Q17,$R17) -> 0 | AF17: =SUM(VLOOKUP($A$3,'GEO-A'!$A$14:$BX$500,31,FALSE),VLOOKUP($A$3,'GEO-A'!$A$14:$BX$500,68,FALSE))/SUM($Q17:$R17)*100 -> 0 | AG17: =SUM(VLOOKUP($A$3,'GEO-A'!$A$14:$BX$500,31,FALSE),VLOOKUP($A$3,'GEO-A'!$A$14:$BX$500,68,FALSE)) -> 0 | AH17: =SUM(VLOOKUP($A$3,'GEO-A'!$A$14:$BX$500,34,FALSE)*$Q17,VLOOKUP($A$3,'GEO-A'!$A$14:$BX$500,71,FALSE)*$R17)/SUM($Q17,$R17) -> 0 | AI17: =SUM(VLOOKUP($A$3,'GEO-A'!$A$14:$BX$500,37,FALSE),VLOOKUP($A$3,'GEO-A'!$A$14:$BX$500,74,FALSE))/SUM($Q17:$R17)*100 -> 0 | AJ17: =SUM(VLOOKUP($A$3,'GEO-A'!$A$14:$BX$500,37,FALSE),VLOOKUP($A$3,'GEO-A'!$A$14:$BX$500,74,FALSE)) -> 0
A18: Am. Indian | B18: =IFERROR(VLOOKUP(TEXT($A$3,"0000"),MEM_I!$A$2:$S$500,13,FALSE),0) -> 33 | C18: =IFERROR((IF(OR(B18=0,B18="",B18="NA"),"NA",((IF(VLOOKUP($A$3,'G9-RI'!$A$6:$AM$500,3,FALSE)>=B18,"100% ("&VLOOKUP($A$3,'G9-RI'!$A$6:$AM$500,3,FALSE)&")",(ROUND((VLOOKUP($A$3,'G9-RI'!$A$6:$AM$500,3,FALSE)/B18*100),0))&"% ("&IF(VLOOKUP($A$3,'G9-RI'!$A$6:$AM$500,3,FALSE)="",0,VLOOKUP($A$3,'G9-RI'!$A$6:$AM$500,3,FALSE))&")"))))),"0% (0)") -> 97% (32) | D18: =IFERROR((IF($C18="NA","NA",VLOOKUP($A$3,'G9-RI'!$A$6:$AM$500,4,FALSE))),"NA") -> 36.384375 | E18: =IFERROR((IF($C18="NA","NA",ROUND(VLOOKUP($A$3,'G9-RI'!$A$6:$AM$500,6,FALSE),0)&"% ("&IF(VLOOKUP($A$3,'G9-RI'!$A$6:$AM$500,5,FALSE)="",0,VLOOKUP($A$3,'G9-RI'!$A$6:$AM$500,5,FALSE))&")")),"NA") -> 66% (21) | F18: =IFERROR((IF($C18="NA","NA",VLOOKUP($A$3,'G9-RI'!$A$6:$AM$500,7,FALSE))),"NA") -> 8.771875 | G18: NA | H18: =IFERROR((IF($C18="NA","NA",VLOOKUP($A$3,'G9-RI'!$A$6:$AM$500,10,FALSE))),"NA") -> 14.246875 | I18: NA | J18: =IFERROR((IF($C18="NA","NA",VLOOKUP($A$3,'G9-RI'!$A$6:$AM$500,13,FALSE))),"NA") -> 6.759375 | K18: NA | L18: =IFERROR((IF($C18="NA","NA",VLOOKUP($A$3,'G9-RI'!$A$6:$AM$500,16,FALSE))),"NA") -> 6.584375 | M18: NA | Q18: =IFERROR(VLOOKUP($A$3,'G9-RI'!$A$6:$BX$500,3,FALSE),"not tested") -> 32 | S18: =SUM(VLOOKUP($A$3,'GEO-I'!$A$14:$BX$500,4,FALSE)*$Q18,VLOOKUP($A$3,'GEO-I'!$A$14:$BX$500,41,FALSE)*$R18)/SUM($Q18,$R18) -> 20.23 | T18: =SUM(VLOOKUP($A$3,'GEO-I'!$A$14:$BX$500,7,FALSE),VLOOKUP($A$3,'GEO-I'!$A$14:$BX$500,44,FALSE))/SUM($Q18:$R18)*100 -> 63.21875 | U18: =SUM(VLOOKUP($A$3,'GEO-I'!$A$14:$BX$500,7,FALSE),VLOOKUP($A$3,'GEO-I'!$A$14:$BX$500,44,FALSE)) -> 20.23 | V18: =SUM(VLOOKUP($A$3,'GEO-I'!$A$14:$BX$500,10,FALSE)*$Q18,VLOOKUP($A$3,'GEO-I'!$A$14:$BX$500,47,FALSE)*$R18)/SUM($Q18,$R18) -> 0 | W18: =SUM(VLOOKUP($A$3,'GEO-I'!$A$14:$BX$500,8,FALSE),VLOOKUP($A$3,'GEO-I'!$A$14:$BX$500,50,FALSE))/SUM($Q18:$R18)*100 -> 21.875 | X18: =SUM(VLOOKUP($A$3,'GEO-I'!$A$14:$BX$500,8,FALSE),VLOOKUP($A$3,'GEO-I'!$A$14:$BX$500,50,FALSE)) -> 7 | Y18: =SUM(VLOOKUP($A$3,'GEO-I'!$A$14:$BX$500,16,FALSE)*$Q18,VLOOKUP($A$3,'GEO-I'!$A$14:$BX$500,53,FALSE)*$R18)/SUM($Q18,$R18) -> 0 | Z18: =SUM(VLOOKUP($A$3,'GEO-I'!$A$14:$BX$500,19,FALSE),VLOOKUP($A$3,'GEO-I'!$A$14:$BX$500,56,FALSE))/SUM($Q18:$R18)*100 -> 0 | AA18: =SUM(VLOOKUP($A$3,'GEO-I'!$A$14:$BX$500,19,FALSE),VLOOKUP($A$3,'GEO-I'!$A$14:$BX$500,56,FALSE)) -> 0 | AB18: =SUM(VLOOKUP($A$3,'GEO-I'!$A$14:$BX$500,22,FALSE)*$Q18,VLOOKUP($A$3,'GEO-I'!$A$14:$BX$500,59,FALSE)*$R18)/SUM($Q18,$R18) -> 0 | AC18: =SUM(VLOOKUP($A$3,'GEO-I'!$A$14:$BX$500,25,FALSE),VLOOKUP($A$3,'GEO-I'!$A$14:$BX$500,62,FALSE))/SUM($Q18:$R18)*100 -> 0 | AD18: =SUM(VLOOKUP($A$3,'GEO-I'!$A$14:$BX$500,25,FALSE),VLOOKUP($A$3,'GEO-I'!$A$14:$BX$500,62,FALSE)) -> 0 | AE18: =SUM(VLOOKUP($A$3,'GEO-I'!$A$14:$BX$500,28,FALSE)*$Q18,VLOOKUP($A$3,'GEO-I'!$A$14:$BX$500,65,FALSE)*$R18)/SUM($Q18,$R18) -> 0 | AF18: =SUM(VLOOKUP($A$3,'GEO-I'!$A$14:$BX$500,31,FALSE),VLOOKUP($A$3,'GEO-I'!$A$14:$BX$500,68,FALSE))/SUM($Q18:$R18)*100 -> 0 | AG18: =SUM(VLOOKUP($A$3,'GEO-I'!$A$14:$BX$500,31,FALSE),VLOOKUP($A$3,'GEO-I'!$A$14:$BX$500,68,FALSE)) -> 0 | AH18: =SUM(VLOOKUP($A$3,'GEO-I'!$A$14:$BX$500,34,FALSE)*$Q18,VLOOKUP($A$3,'GEO-I'!$A$14:$BX$500,71,FALSE)*$R18)/SUM($Q18,$R18) -> 0 | AI18: =SUM(VLOOKUP($A$3,'GEO-I'!$A$14:$BX$500,37,FALSE),VLOOKUP($A$3,'GEO-I'!$A$14:$BX$500,74,FALSE))/SUM($Q18:$R18)*100 -> 0 | AJ18: =SUM(VLOOKUP($A$3,'GEO-I'!$A$14:$BX$500,37,FALSE),VLOOKUP($A$3,'GEO-I'!$A$14:$BX$500,74,FALSE)) -> 0
A19: ED | B19: =IFERROR(VLOOKUP(TEXT($A$3,"0000"),MEM_ED!$A$2:$S$500,13,FALSE),0) -> 20200 | C19: =IFERROR((IF(OR(B19=0,B19="",B19="NA"),"NA",((IF(VLOOKUP($A$3,'G9-RED'!$A$6:$AM$500,3,FALSE)>=B19,"100% ("&VLOOKUP($A$3,'G9-RED'!$A$6:$AM$500,3,FALSE)&")",(ROUND((VLOOKUP($A$3,'G9-RED'!$A$6:$AM$500,3,FALSE)/B19*100),0))&"% ("&IF(VLOOKUP($A$3,'G9-RED'!$A$6:$AM$500,3,FALSE)="",0,VLOOKUP($A$3,'G9-RED'!$A$6:$AM$500,3,FALSE))&")"))))),"0% (0)") -> 99% (19935) | D19: =IFERROR((IF($C19="NA","NA",VLOOKUP($A$3,'G9-RED'!$A$6:$AM$500,4,FALSE))),"NA") -> 30.64042639 | E19: =IFERROR((IF($C19="NA","NA",ROUND(VLOOKUP($A$3,'G9-RED'!$A$6:$AM$500,6,FALSE),0)&"% ("&IF(VLOOKUP($A$3,'G9-RED'!$A$6:$AM$500,5,FALSE)="",0,VLOOKUP($A$3,'G9-RED'!$A$6:$AM$500,5,FALSE))&")")),"NA") -> 41% (8205) | F19: =IFERROR((IF($C19="NA","NA",VLOOKUP($A$3,'G9-RED'!$A$6:$AM$500,7,FALSE))),"NA") -> 7.221294206 | G19: NA | H19: =IFERROR((IF($C19="NA","NA",VLOOKUP($A$3,'G9-RED'!$A$6:$AM$500,10,FALSE))),"NA") -> 12.17493855 | I19: NA | J19: =IFERROR((IF($C19="NA","NA",VLOOKUP($A$3,'G9-RED'!$A$6:$AM$500,13,FALSE))),"NA") -> 5.661173815 | K19: NA | L19: =IFERROR((IF($C19="NA","NA",VLOOKUP($A$3,'G9-RED'!$A$6:$AM$500,16,FALSE))),"NA") -> 5.588116378 | M19: NA | Q19: =IFERROR(VLOOKUP($A$3,'G9-RED'!$A$6:$BX$500,3,FALSE),"not tested") -> 19935 | S19: =SUM(VLOOKUP($A$3,'GEO-ED'!$A$14:$BX$500,4,FALSE)*$Q19,VLOOKUP($A$3,'GEO-ED'!$A$14:$BX$500,41,FALSE)*$R19)/SUM($Q19,$R19) -> 19.17144711 | T19: =SUM(VLOOKUP($A$3,'GEO-ED'!$A$14:$BX$500,7,FALSE),VLOOKUP($A$3,'GEO-ED'!$A$14:$BX$500,44,FALSE))/SUM($Q19:$R19)*100 -> 0.09616978734 | U19: =SUM(VLOOKUP($A$3,'GEO-ED'!$A$14:$BX$500,7,FALSE),VLOOKUP($A$3,'GEO-ED'!$A$14:$BX$500,44,FALSE)) -> 19.17144711 | V19: =SUM(VLOOKUP($A$3,'GEO-ED'!$A$14:$BX$500,10,FALSE)*$Q19,VLOOKUP($A$3,'GEO-ED'!$A$14:$BX$500,47,FALSE)*$R19)/SUM($Q19,$R19) -> 0 | W19: =SUM(VLOOKUP($A$3,'GEO-ED'!$A$14:$BX$500,8,FALSE),VLOOKUP($A$3,'GEO-ED'!$A$14:$BX$500,50,FALSE))/SUM($Q19:$R19)*100 -> 14.20617005 | X19: =SUM(VLOOKUP($A$3,'GEO-ED'!$A$14:$BX$500,8,FALSE),VLOOKUP($A$3,'GEO-ED'!$A$14:$BX$500,50,FALSE)) -> 2832 | Y19: =SUM(VLOOKUP($A$3,'GEO-ED'!$A$14:$BX$500,16,FALSE)*$Q19,VLOOKUP($A$3,'GEO-ED'!$A$14:$BX$500,53,FALSE)*$R19)/SUM($Q19,$R19) -> 0 | Z19: =SUM(VLOOKUP($A$3,'GEO-ED'!$A$14:$BX$500,19,FALSE),VLOOKUP($A$3,'GEO-ED'!$A$14:$BX$500,56,FALSE))/SUM($Q19:$R19)*100 -> 0 | AA19: =SUM(VLOOKUP($A$3,'GEO-ED'!$A$14:$BX$500,19,FALSE),VLOOKUP($A$3,'GEO-ED'!$A$14:$BX$500,56,FALSE)) -> 0 | AB19: =SUM(VLOOKUP($A$3,'GEO-ED'!$A$14:$BX$500,22,FALSE)*$Q19,VLOOKUP($A$3,'GEO-ED'!$A$14:$BX$500,59,FALSE)*$R19)/SUM($Q19,$R19) -> 0 | AC19: =SUM(VLOOKUP($A$3,'GEO-ED'!$A$14:$BX$500,25,FALSE),VLOOKUP($A$3,'GEO-ED'!$A$14:$BX$500,62,FALSE))/SUM($Q19:$R19)*100 -> 0 | AD19: =SUM(VLOOKUP($A$3,'GEO-ED'!$A$14:$BX$500,25,FALSE),VLOOKUP($A$3,'GEO-ED'!$A$14:$BX$500,62,FALSE)) -> 0 | AE19: =SUM(VLOOKUP($A$3,'GEO-ED'!$A$14:$BX$500,28,FALSE)*$Q19,VLOOKUP($A$3,'GEO-ED'!$A$14:$BX$500,65,FALSE)*$R19)/SUM($Q19,$R19) -> 0 | AF19: =SUM(VLOOKUP($A$3,'GEO-ED'!$A$14:$BX$500,31,FALSE),VLOOKUP($A$3,'GEO-ED'!$A$14:$BX$500,68,FALSE))/SUM($Q19:$R19)*100 -> 0 | AG19: =SUM(VLOOKUP($A$3,'GEO-ED'!$A$14:$BX$500,31,FALSE),VLOOKUP($A$3,'GEO-ED'!$A$14:$BX$500,68,FALSE)) -> 0 | AH19: =SUM(VLOOKUP($A$3,'GEO-ED'!$A$14:$BX$500,34,FALSE)*$Q19,VLOOKUP($A$3,'GEO-ED'!$A$14:$BX$500,71,FALSE)*$R19)/SUM($Q19,$R19) -> 0 | AI19: =SUM(VLOOKUP($A$3,'GEO-ED'!$A$14:$BX$500,37,FALSE),VLOOKUP($A$3,'GEO-ED'!$A$14:$BX$500,74,FALSE))/SUM($Q19:$R19)*100 -> 0 | AJ19: =SUM(VLOOKUP($A$3,'GEO-ED'!$A$14:$BX$500,37,FALSE),VLOOKUP($A$3,'GEO-ED'!$A$14:$BX$500,74,FALSE)) -> 0
A20: ELL | B20: =IFERROR(VLOOKUP(TEXT($A$3,"0000"),MEM_ELL!$A$2:$S$500,13,FALSE),0) -> 3730 | C20: =IFERROR((IF(OR(B20=0,B20="",B20="NA"),"NA",((IF(VLOOKUP($A$3,'G9-RELL'!$A$6:$AM$500,3,FALSE)>=B20,"100% ("&VLOOKUP($A$3,'G9-RELL'!$A$6:$AM$500,3,FALSE)&")",(ROUND((VLOOKUP($A$3,'G9-RELL'!$A$6:$AM$500,3,FALSE)/B20*100),0))&"% ("&IF(VLOOKUP($A$3,'G9-RELL'!$A$6:$AM$500,3,FALSE)="",0,VLOOKUP($A$3,'G9-RELL'!$A$6:$AM$500,3,FALSE))&")"))))),"0% (0)") -> 94% (3496) | D20: =IFERROR((IF($C20="NA","NA",VLOOKUP($A$3,'G9-RELL'!$A$6:$AM$500,4,FALSE))),"NA") -> 21.7125286 | E20: =IFERROR((IF($C20="NA","NA",ROUND(VLOOKUP($A$3,'G9-RELL'!$A$6:$AM$500,6,FALSE),0)&"% ("&IF(VLOOKUP($A$3,'G9-RELL'!$A$6:$AM$500,5,FALSE)="",0,VLOOKUP($A$3,'G9-RELL'!$A$6:$AM$500,5,FALSE))&")")),"NA") -> 12% (414) | F20: =IFERROR((IF($C20="NA","NA",VLOOKUP($A$3,'G9-RELL'!$A$6:$AM$500,7,FALSE))),"NA") -> 4.99771167 | G20: NA | H20: =IFERROR((IF($C20="NA","NA",VLOOKUP($A$3,'G9-RELL'!$A$6:$AM$500,10,FALSE))),"NA") -> 8.522025172 | I20: NA | J20: =IFERROR((IF($C20="NA","NA",VLOOKUP($A$3,'G9-RELL'!$A$6:$AM$500,13,FALSE))),"NA") -> 3.936212815 | K20: NA | L20: =IFERROR((IF($C20="NA","NA",VLOOKUP($A$3,'G9-RELL'!$A$6:$AM$500,16,FALSE))),"NA") -> 4.256578947 | M20: NA | Q20: =IFERROR(VLOOKUP($A$3,'G9-RELL'!$A$6:$BX$500,3,FALSE),"not tested") -> 3496 | S20: =SUM(VLOOKUP($A$3,'GEO-ELL'!$A$14:$BX$500,4,FALSE)*$Q20,VLOOKUP($A$3,'GEO-ELL'!$A$14:$BX$500,41,FALSE)*$R20)/SUM($Q20,$R20) -> 17.15954991 | T20: =SUM(VLOOKUP($A$3,'GEO-ELL'!$A$14:$BX$500,7,FALSE),VLOOKUP($A$3,'GEO-ELL'!$A$14:$BX$500,44,FALSE))/SUM($Q20:$R20)*100 -> 0.4908338076 | U20: =SUM(VLOOKUP($A$3,'GEO-ELL'!$A$14:$BX$500,7,FALSE),VLOOKUP($A$3,'GEO-ELL'!$A$14:$BX$500,44,FALSE)) -> 17.15954991 | V20: =SUM(VLOOKUP($A$3,'GEO-ELL'!$A$14:$BX$500,10,FALSE)*$Q20,VLOOKUP($A$3,'GEO-ELL'!$A$14:$BX$500,47,FALSE)*$R20)/SUM($Q20,$R20) -> 0 | W20: =SUM(VLOOKUP($A$3,'GEO-ELL'!$A$14:$BX$500,8,FALSE),VLOOKUP($A$3,'GEO-ELL'!$A$14:$BX$500,50,FALSE))/SUM($Q20:$R20)*100 -> 9.696796339 | X20: =SUM(VLOOKUP($A$3,'GEO-ELL'!$A$14:$BX$500,8,FALSE),VLOOKUP($A$3,'GEO-ELL'!$A$14:$BX$500,50,FALSE)) -> 339 | Y20: =SUM(VLOOKUP($A$3,'GEO-ELL'!$A$14:$BX$500,16,FALSE)*$Q20,VLOOKUP($A$3,'GEO-ELL'!$A$14:$BX$500,53,FALSE)*$R20)/SUM($Q20,$R20) -> 0 | Z20: =SUM(VLOOKUP($A$3,'GEO-ELL'!$A$14:$BX$500,19,FALSE),VLOOKUP($A$3,'GEO-ELL'!$A$14:$BX$500,56,FALSE))/SUM($Q20:$R20)*100 -> 0 | AA20: =SUM(VLOOKUP($A$3,'GEO-ELL'!$A$14:$BX$500,19,FALSE),VLOOKUP($A$3,'GEO-ELL'!$A$14:$BX$500,56,FALSE)) -> 0 | AB20: =SUM(VLOOKUP($A$3,'GEO-ELL'!$A$14:$BX$500,22,FALSE)*$Q20,VLOOKUP($A$3,'GEO-ELL'!$A$14:$BX$500,59,FALSE)*$R20)/SUM($Q20,$R20) -> 0 | AC20: =SUM(VLOOKUP($A$3,'GEO-ELL'!$A$14:$BX$500,25,FALSE),VLOOKUP($A$3,'GEO-ELL'!$A$14:$BX$500,62,FALSE))/SUM($Q20:$R20)*100 -> 0 | AD20: =SUM(VLOOKUP($A$3,'GEO-ELL'!$A$14:$BX$500,25,FALSE),VLOOKUP($A$3,'GEO-ELL'!$A$14:$BX$500,62,FALSE)) -> 0 | AE20: =SUM(VLOOKUP($A$3,'GEO-ELL'!$A$14:$BX$500,28,FALSE)*$Q20,VLOOKUP($A$3,'GEO-ELL'!$A$14:$BX$500,65,FALSE)*$R20)/SUM($Q20,$R20) -> 0 | AF20: =SUM(VLOOKUP($A$3,'GEO-ELL'!$A$14:$BX$500,31,FALSE),VLOOKUP($A$3,'GEO-ELL'!$A$14:$BX$500,68,FALSE))/SUM($Q20:$R20)*100 -> 0 | AG20: =SUM(VLOOKUP($A$3,'GEO-ELL'!$A$14:$BX$500,31,FALSE),VLOOKUP($A$3,'GEO-ELL'!$A$14:$BX$500,68,FALSE)) -> 0 | AH20: =SUM(VLOOKUP($A$3,'GEO-ELL'!$A$14:$BX$500,34,FALSE)*$Q20,VLOOKUP($A$3,'GEO-ELL'!$A$14:$BX$500,71,FALSE)*$R20)/SUM($Q20,$R20) -> 0 | AI20: =SUM(VLOOKUP($A$3,'GEO-ELL'!$A$14:$BX$500,37,FALSE),VLOOKUP($A$3,'GEO-ELL'!$A$14:$BX$500,74,FALSE))/SUM($Q20:$R20)*100 -> 0 | AJ20: =SUM(VLOOKUP($A$3,'GEO-ELL'!$A$14:$BX$500,37,FALSE),VLOOKUP($A$3,'GEO-ELL'!$A$14:$BX$500,74,FALSE)) -> 0
A21: SWD | B21: =IFERROR(VLOOKUP(TEXT($A$3,"0000"),MEM_SWD!$A$2:$S$500,13,FALSE),0) -> 2701 | C21: =IFERROR((IF(OR(B21=0,B21="",B21="NA"),"NA",((IF(VLOOKUP($A$3,'G9-RSWD'!$A$6:$AM$500,3,FALSE)>=B21,"100% ("&VLOOKUP($A$3,'G9-RSWD'!$A$6:$AM$500,3,FALSE)&")",(ROUND((VLOOKUP($A$3,'G9-RSWD'!$A$6:$AM$500,3,FALSE)/B21*100),0))&"% ("&IF(VLOOKUP($A$3,'G9-RSWD'!$A$6:$AM$500,3,FALSE)="",0,VLOOKUP($A$3,'G9-RSWD'!$A$6:$AM$500,3,FALSE))&")"))))),"0% (0)") -> 85% (2297) | D21: =IFERROR((IF($C21="NA","NA",VLOOKUP($A$3,'G9-RSWD'!$A$6:$AM$500,4,FALSE))),"NA") -> 23.68406617 | E21: =IFERROR((IF($C21="NA","NA",ROUND(VLOOKUP($A$3,'G9-RSWD'!$A$6:$AM$500,6,FALSE),0)&"% ("&IF(VLOOKUP($A$3,'G9-RSWD'!$A$6:$AM$500,5,FALSE)="",0,VLOOKUP($A$3,'G9-RSWD'!$A$6:$AM$500,5,FALSE))&")")),"NA") -> 17% (396) | F21: =IFERROR((IF($C21="NA","NA",VLOOKUP($A$3,'G9-RSWD'!$A$6:$AM$500,7,FALSE))),"NA") -> 5.551327819 | G21: NA | H21: =IFERROR((IF($C21="NA","NA",VLOOKUP($A$3,'G9-RSWD'!$A$6:$AM$500,10,FALSE))),"NA") -> 9.485285155 | I21: NA | J21: =IFERROR((IF($C21="NA","NA",VLOOKUP($A$3,'G9-RSWD'!$A$6:$AM$500,13,FALSE))),"NA") -> 4.213060514 | K21: NA | L21: =IFERROR((IF($C21="NA","NA",VLOOKUP($A$3,'G9-RSWD'!$A$6:$AM$500,16,FALSE))),"NA") -> 4.458772312 | M21: NA | Q21: =IFERROR(VLOOKUP($A$3,'G9-RSWD'!$A$6:$BX$500,3,FALSE),"not tested") -> 2297 | S21: =SUM(VLOOKUP($A$3,'GEO-SWD'!$A$14:$BX$500,4,FALSE)*$Q21,VLOOKUP($A$3,'GEO-SWD'!$A$14:$BX$500,41,FALSE)*$R21)/SUM($Q21,$R21) -> 15.37640167 | T21: =SUM(VLOOKUP($A$3,'GEO-SWD'!$A$14:$BX$500,7,FALSE),VLOOKUP($A$3,'GEO-SWD'!$A$14:$BX$500,44,FALSE))/SUM($Q21:$R21)*100 -> 0.6694123497 | U21: =SUM(VLOOKUP($A$3,'GEO-SWD'!$A$14:$BX$500,7,FALSE),VLOOKUP($A$3,'GEO-SWD'!$A$14:$BX$500,44,FALSE)) -> 15.37640167 | V21: =SUM(VLOOKUP($A$3,'GEO-SWD'!$A$14:$BX$500,10,FALSE)*$Q21,VLOOKUP($A$3,'GEO-SWD'!$A$14:$BX$500,47,FALSE)*$R21)/SUM($Q21,$R21) -> 0 | W21: =SUM(VLOOKUP($A$3,'GEO-SWD'!$A$14:$BX$500,8,FALSE),VLOOKUP($A$3,'GEO-SWD'!$A$14:$BX$500,50,FALSE))/SUM($Q21:$R21)*100 -> 5.354810623 | X21: =SUM(VLOOKUP($A$3,'GEO-SWD'!$A$14:$BX$500,8,FALSE),VLOOKUP($A$3,'GEO-SWD'!$A$14:$BX$500,50,FALSE)) -> 123 | Y21: =SUM(VLOOKUP($A$3,'GEO-SWD'!$A$14:$BX$500,16,FALSE)*$Q21,VLOOKUP($A$3,'GEO-SWD'!$A$14:$BX$500,53,FALSE)*$R21)/SUM($Q21,$R21) -> 0 | Z21: =SUM(VLOOKUP($A$3,'GEO-SWD'!$A$14:$BX$500,19,FALSE),VLOOKUP($A$3,'GEO-SWD'!$A$14:$BX$500,56,FALSE))/SUM($Q21:$R21)*100 -> 0 | AA21: =SUM(VLOOKUP($A$3,'GEO-SWD'!$A$14:$BX$500,19,FALSE),VLOOKUP($A$3,'GEO-SWD'!$A$14:$BX$500,56,FALSE)) -> 0 | AB21: =SUM(VLOOKUP($A$3,'GEO-SWD'!$A$14:$BX$500,22,FALSE)*$Q21,VLOOKUP($A$3,'GEO-SWD'!$A$14:$BX$500,59,FALSE)*$R21)/SUM($Q21,$R21) -> 0 | AC21: =SUM(VLOOKUP($A$3,'GEO-SWD'!$A$14:$BX$500,25,FALSE),VLOOKUP($A$3,'GEO-SWD'!$A$14:$BX$500,62,FALSE))/SUM($Q21:$R21)*100 -> 0 | AD21: =SUM(VLOOKUP($A$3,'GEO-SWD'!$A$14:$BX$500,25,FALSE),VLOOKUP($A$3,'GEO-SWD'!$A$14:$BX$500,62,FALSE)) -> 0 | AE21: =SUM(VLOOKUP($A$3,'GEO-SWD'!$A$14:$BX$500,28,FALSE)*$Q21,VLOOKUP($A$3,'GEO-SWD'!$A$14:$BX$500,65,FALSE)*$R21)/SUM($Q21,$R21) -> 0 | AF21: =SUM(VLOOKUP($A$3,'GEO-SWD'!$A$14:$BX$500,31,FALSE),VLOOKUP($A$3,'GEO-SWD'!$A$14:$BX$500,68,FALSE))/SUM($Q21:$R21)*100 -> 0 | AG21: =SUM(VLOOKUP($A$3,'GEO-SWD'!$A$14:$BX$500,31,FALSE),VLOOKUP($A$3,'GEO-SWD'!$A$14:$BX$500,68,FALSE)) -> 0 | AH21: =SUM(VLOOKUP($A$3,'GEO-SWD'!$A$14:$BX$500,34,FALSE)*$Q21,VLOOKUP($A$3,'GEO-SWD'!$A$14:$BX$500,71,FALSE)*$R21)/SUM($Q21,$R21) -> 0 | AI21: =SUM(VLOOKUP($A$3,'GEO-SWD'!$A$14:$BX$500,37,FALSE),VLOOKUP($A$3,'GEO-SWD'!$A$14:$BX$500,74,FALSE))/SUM($Q21:$R21)*100 -> 0 | AJ21: =SUM(VLOOKUP($A$3,'GEO-SWD'!$A$14:$BX$500,37,FALSE),VLOOKUP($A$3,'GEO-SWD'!$A$14:$BX$500,74,FALSE)) -> 0
A22: Reading - Grade 10 | Q22: READING
A23: Satisfactory Progress Cut Scores at 57% or above | B23: Total # of Students | C23: % of Students Tested | D23: ='G9-10 Matrix'!C$2&" ["&'G9-10 Matrix'!C5&"]" -> Overall [53] | F23: ='G9-10 Matrix'!D$2&" ["&'G9-10 Matrix'!D5&"]" -> Vocabulary [11] | H23: ='G9-10 Matrix'!E$2&" ["&'G9-10 Matrix'!E5&"]" -> Reading Application [23] | J23: ='G9-10 Matrix'!F$2&" ["&'G9-10 Matrix'!F5&"]" -> Literary Analysis Fiction/Nonfiction [10] | L23: ='G9-10 Matrix'!G$2&" ["&'G9-10 Matrix'!G5&"]" -> Informational Text/ Research Process [9] | Q23: Grade 10 Test
D24: Average Score | E24: % Satisfactory | F24: Average Score | G24: % Satisfactory | H24: Average Score | I24: % Satisfactory | J24: Average Score | K24: % Proficient | L24: Average Score | M24: % Satisfactory | Q24: Number Tested
A25: All students | B25: =IFERROR(VLOOKUP(TEXT($A$3,"0000"),Mem_All!$A$2:$S$500,18,FALSE),0) -> 27278 | C25: =IFERROR((IF(OR(B25=0,B25="",B25="NA"),"NA",((IF(VLOOKUP($A$3,'G10-RALL'!$A$6:$AM$500,3,FALSE)>=B25,"100% ("&VLOOKUP($A$3,'G10-RALL'!$A$6:$AM$500,3,FALSE)&")",(ROUND((VLOOKUP($A$3,'G10-RALL'!$A$6:$AM$500,3,FALSE)/B25*100),0))&"% ("&IF(VLOOKUP($A$3,'G10-RALL'!$A$6:$AM$500,3,FALSE)="",0,VLOOKUP($A$3,'G10-RALL'!$A$6:$AM$500,3,FALSE))&")"))))),"0% (0)") -> 89% (24293) | D25: =IFERROR((IF($C25="NA","NA",VLOOKUP($A$3,'G10-RALL'!$A$6:$AM$500,4,FALSE))),"NA") -> 29.3933026 | E25: =IFERROR((IF($C25="NA","NA",ROUND(VLOOKUP($A$3,'G10-RALL'!$A$6:$AM$500,6,FALSE),0)&"% ("&IF(VLOOKUP($A$3,'G10-RALL'!$A$6:$AM$500,5,FALSE)="",0,VLOOKUP($A$3,'G10-RALL'!$A$6:$AM$500,5,FALSE))&")")),"NA") -> 53% (12908) | F25: =IFERROR((IF($C25="NA","NA",VLOOKUP($A$3,'G10-RALL'!$A$6:$AM$500,7,FALSE))),"NA") -> 6.321821101 | G25: NA | H25: =IFERROR((IF($C25="NA","NA",VLOOKUP($A$3,'G10-RALL'!$A$6:$AM$500,10,FALSE))),"NA") -> 12.87593957 | I25: NA | J25: =IFERROR((IF($C25="NA","NA",VLOOKUP($A$3,'G10-RALL'!$A$6:$AM$500,13,FALSE))),"NA") -> 5.45935043 | K25: NA | L25: =IFERROR((IF($C25="NA","NA",VLOOKUP($A$3,'G10-RALL'!$A$6:$AM$500,16,FALSE))),"NA") -> 4.722487959 | M25: NA | N25: =IFERROR(IF($C25="NA","NA",IF($R25=0,VLOOKUP($A$3,'GEO-ALL'!$A$14:$AA$500,34,FALSE),IF($Q25=0,VLOOKUP($A$3,'GEO-ALL'!$A$14:$AA$500,71,FALSE),AH25))),"NA") -> NA | O25: =IF($C25="NA","NA",IF($R25=0,ROUND(VLOOKUP($A$3,'GEO-ALL'!$A$14:$AA$500,39,FALSE)*100,0)&"% ("&VLOOKUP($A$3,'GEO-ALL'!$A$14:$AA$500,37,FALSE)&")",IF($Q25=0,ROUND(VLOOKUP($A$3,'GEO-ALL'!$A$14:$AA$500,76,FALSE)*100,0)&"% ("&VLOOKUP($A$3,'GEO-ALL'!$A$14:$AA$500,74,FALSE)&")",ROUND(AI25,0)&"% ("&AJ25&")"))) ->  | Q25: =IFERROR(VLOOKUP($A$3,'G10-RALL'!$A$6:$BX$500,3,FALSE),"not tested") -> 24293
A26: FCAT Level 1 | B26: =IFERROR(VLOOKUP(TEXT($A$3,"0000"),MEM_RL1!$A$2:$S$500,11,FALSE),0) -> 5231 | C26: =IFERROR((IF(OR(B26=0,B26="",B26="NA"),"NA",((IF(VLOOKUP($A$3,'G10-RL1'!$A$6:$AM$500,3,FALSE)>=B26,"100% ("&VLOOKUP($A$3,'G10-RL1'!$A$6:$AM$500,3,FALSE)&")",(ROUND((VLOOKUP($A$3,'G10-RL1'!$A$6:$AM$500,3,FALSE)/B26*100),0))&"% ("&IF(VLOOKUP($A$3,'G10-RL1'!$A$6:$AM$500,3,FALSE)="",0,VLOOKUP($A$3,'G10-RL1'!$A$6:$AM$500,3,FALSE))&")"))))),"0% (0)") -> 88% (4611) | D26: =IFERROR((IF($C26="NA","NA",VLOOKUP($A$3,'G10-RL1'!$A$6:$AM$500,4,FALSE))),"NA") -> 18.84096725 | E26: =IFERROR((IF($C26="NA","NA",ROUND(VLOOKUP($A$3,'G10-RL1'!$A$6:$AM$500,6,FALSE),0)&"% ("&IF(VLOOKUP($A$3,'G10-RL1'!$A$6:$AM$500,5,FALSE)="",0,VLOOKUP($A$3,'G10-RL1'!$A$6:$AM$500,5,FALSE))&")")),"NA") -> 6% (274) | F26: =IFERROR((IF($C26="NA","NA",VLOOKUP($A$3,'G10-RL1'!$A$6:$AM$500,7,FALSE))),"NA") -> 4.132812839 | G26: NA | H26: =IFERROR((IF($C26="NA","NA",VLOOKUP($A$3,'G10-RL1'!$A$6:$AM$500,10,FALSE))),"NA") -> 8.091086532 | I26: NA | J26: =IFERROR((IF($C26="NA","NA",VLOOKUP($A$3,'G10-RL1'!$A$6:$AM$500,13,FALSE))),"NA") -> 3.680720017 | K26: NA | L26: =IFERROR((IF($C26="NA","NA",VLOOKUP($A$3,'G10-RL1'!$A$6:$AM$500,16,FALSE))),"NA") -> 2.953459119 | M26: NA | N26: =IFERROR(IF($C26="NA","NA",IF($R26=0,VLOOKUP($A$3,'GEO-L1'!$A$14:$BX$500,34,FALSE),IF($Q26=0,VLOOKUP($A$3,'GEO-L1'!$A$14:$BX$500,71,FALSE),AH26))),"NA") -> 0 | O26: =IF($C26="NA","NA",IF($R26=0,ROUND(VLOOKUP($A$3,'GEO-L1'!$A$14:$BX$500,39,FALSE)*100,0)&"% ("&VLOOKUP($A$3,'GEO-L1'!$A$14:$BX$500,37,FALSE)&")",IF($Q26=0,ROUND(VLOOKUP($A$3,'GEO-L1'!$A$14:$BX$500,76,FALSE)*100,0)&"% ("&VLOOKUP($A$3,'GEO-L1'!$A$14:$BX$500,74,FALSE)&")",ROUND(AI26,0)&"% ("&AJ26&")"))) -> 0% () | Q26: =IFERROR(VLOOKUP($A$3,'G10-RL1'!$A$6:$BX$500,3,FALSE),"not tested") -> 4611
A27: FCAT Level 2 | B27: =IFERROR(VLOOKUP(TEXT($A$3,"0000"),MEM_RL2!$A$2:$S$500,18,FALSE),0) -> 7750 | C27: =IFERROR((IF(OR(B27=0,B27="",B27="NA"),"NA",((IF(VLOOKUP($A$3,'G10-RL2'!$A$6:$AM$500,3,FALSE)>=B27,"100% ("&VLOOKUP($A$3,'G10-RL2'!$A$6:$AM$500,3,FALSE)&")",(ROUND((VLOOKUP($A$3,'G10-RL2'!$A$6:$AM$500,3,FALSE)/B27*100),0))&"% ("&IF(VLOOKUP($A$3,'G10-RL2'!$A$6:$AM$500,3,FALSE)="",0,VLOOKUP($A$3,'G10-RL2'!$A$6:$AM$500,3,FALSE))&")"))))),"0% (0)") -> 91% (7091) | D27: =IFERROR((IF($C27="NA","NA",VLOOKUP($A$3,'G10-RL2'!$A$6:$AM$500,4,FALSE))),"NA") -> 26.18547455 | E27: =IFERROR((IF($C27="NA","NA",ROUND(VLOOKUP($A$3,'G10-RL2'!$A$6:$AM$500,6,FALSE),0)&"% ("&IF(VLOOKUP($A$3,'G10-RL2'!$A$6:$AM$500,5,FALSE)="",0,VLOOKUP($A$3,'G10-RL2'!$A$6:$AM$500,5,FALSE))&")")),"NA") -> 37% (2659) | F27: =IFERROR((IF($C27="NA","NA",VLOOKUP($A$3,'G10-RL2'!$A$6:$AM$500,7,FALSE))),"NA") -> 5.662981244 | G27: NA | H27: =IFERROR((IF($C27="NA","NA",VLOOKUP($A$3,'G10-RL2'!$A$6:$AM$500,10,FALSE))),"NA") -> 11.3633338 | I27: NA | J27: =IFERROR((IF($C27="NA","NA",VLOOKUP($A$3,'G10-RL2'!$A$6:$AM$500,13,FALSE))),"NA") -> 4.994528275 | K27: NA | L27: =IFERROR((IF($C27="NA","NA",VLOOKUP($A$3,'G10-RL2'!$A$6:$AM$500,16,FALSE))),"NA") -> 4.160682555 | M27: NA | N27: =IFERROR(IF($C27="NA","NA",IF($R27=0,VLOOKUP($A$3,'GEO-L2'!$A$14:$BX$500,34,FALSE),IF($Q27=0,VLOOKUP($A$3,'GEO-L2'!$A$14:$BX$500,71,FALSE),AH27))),"NA") -> 0 | O27: =IF($C27="NA","NA",IF($R27=0,ROUND(VLOOKUP($A$3,'GEO-L2'!$A$14:$BX$500,39,FALSE)*100,0)&"% ("&VLOOKUP($A$3,'GEO-L2'!$A$14:$BX$500,37,FALSE)&")",IF($Q27=0,ROUND(VLOOKUP($A$3,'GEO-L2'!$A$14:$BX$500,76,FALSE)*100,0)&"% ("&VLOOKUP($A$3,'GEO-L2'!$A$14:$BX$500,74,FALSE)&")",ROUND(AI27,0)&"% ("&AJ27&")"))) -> 0% () | Q27: =IFERROR(VLOOKUP($A$3,'G10-RL2'!$A$6:$BX$500,3,FALSE),"not tested") -> 7091
A28: FCAT Level 3 | B28: =IFERROR(VLOOKUP(TEXT($A$3,"0000"),MEM_RL3!$A$2:$S$500,18,FALSE),0) -> 6346 | C28: =IFERROR((IF(OR(B28=0,B28="",B28="NA"),"NA",((IF(VLOOKUP($A$3,'G10-RL3'!$A$6:$AM$500,3,FALSE)>=B28,"100% ("&VLOOKUP($A$3,'G10-RL3'!$A$6:$AM$500,3,FALSE)&")",(ROUND((VLOOKUP($A$3,'G10-RL3'!$A$6:$AM$500,3,FALSE)/B28*100),0))&"% ("&IF(VLOOKUP($A$3,'G10-RL3'!$A$6:$AM$500,3,FALSE)="",0,VLOOKUP($A$3,'G10-RL3'!$A$6:$AM$500,3,FALSE))&")"))))),"0% (0)") -> 95% (6031) | D28: =IFERROR((IF($C28="NA","NA",VLOOKUP($A$3,'G10-RL3'!$A$6:$AM$500,4,FALSE))),"NA") -> 32.55223014 | E28: =IFERROR((IF($C28="NA","NA",ROUND(VLOOKUP($A$3,'G10-RL3'!$A$6:$AM$500,6,FALSE),0)&"% ("&IF(VLOOKUP($A$3,'G10-RL3'!$A$6:$AM$500,5,FALSE)="",0,VLOOKUP($A$3,'G10-RL3'!$A$6:$AM$500,5,FALSE))&")")),"NA") -> 72% (4358) | F28: =IFERROR((IF($C28="NA","NA",VLOOKUP($A$3,'G10-RL3'!$A$6:$AM$500,7,FALSE))),"NA") -> 7.005106947 | G28: NA | H28: =IFERROR((IF($C28="NA","NA",VLOOKUP($A$3,'G10-RL3'!$A$6:$AM$500,10,FALSE))),"NA") -> 14.31021389 | I28: NA | J28: =IFERROR((IF($C28="NA","NA",VLOOKUP($A$3,'G10-RL3'!$A$6:$AM$500,13,FALSE))),"NA") -> 5.986436743 | K28: NA | L28: =IFERROR((IF($C28="NA","NA",VLOOKUP($A$3,'G10-RL3'!$A$6:$AM$500,16,FALSE))),"NA") -> 5.245664069 | M28: NA | N28: =IFERROR(IF($C28="NA","NA",IF($R28=0,VLOOKUP($A$3,'GEO-L3'!$A$14:$BX$500,34,FALSE),IF($Q28=0,VLOOKUP($A$3,'GEO-L3'!$A$14:$BX$500,71,FALSE),AH28))),"NA") -> 0 | O28: =IF($C28="NA","NA",IF($R28=0,ROUND(VLOOKUP($A$3,'GEO-L3'!$A$14:$BX$500,39,FALSE)*100,0)&"% ("&VLOOKUP($A$3,'GEO-L3'!$A$14:$BX$500,37,FALSE)&")",IF($Q28=0,ROUND(VLOOKUP($A$3,'GEO-L3'!$A$14:$BX$500,76,FALSE)*100,0)&"% ("&VLOOKUP($A$3,'GEO-L3'!$A$14:$BX$500,74,FALSE)&")",ROUND(AI28,0)&"% ("&AJ28&")"))) -> 0% () | Q28: =IFERROR(VLOOKUP($A$3,'G10-RL3'!$A$6:$BX$500,3,FALSE),"not tested") -> 6031
A29: FCAT Level 4 | B29: =IFERROR(VLOOKUP(TEXT($A$3,"0000"),MEM_RL4!$A$2:$S$500,18,FALSE),0) -> 4329 | C29: =IFERROR((IF(OR(B29=0,B29="",B29="NA"),"NA",((IF(VLOOKUP($A$3,'G10-RL4'!$A$6:$AM$500,3,FALSE)>=B29,"100% ("&VLOOKUP($A$3,'G10-RL4'!$A$6:$AM$500,3,FALSE)&")",(ROUND((VLOOKUP($A$3,'G10-RL4'!$A$6:$AM$500,3,FALSE)/B29*100),0))&"% ("&IF(VLOOKUP($A$3,'G10-RL4'!$A$6:$AM$500,3,FALSE)="",0,VLOOKUP($A$3,'G10-RL4'!$A$6:$AM$500,3,FALSE))&")"))))),"0% (0)") -> 96% (4142) | D29: =IFERROR((IF($C29="NA","NA",VLOOKUP($A$3,'G10-RL4'!$A$6:$AM$500,4,FALSE))),"NA") -> 38.0535973 | E29: =IFERROR((IF($C29="NA","NA",ROUND(VLOOKUP($A$3,'G10-RL4'!$A$6:$AM$500,6,FALSE),0)&"% ("&IF(VLOOKUP($A$3,'G10-RL4'!$A$6:$AM$500,5,FALSE)="",0,VLOOKUP($A$3,'G10-RL4'!$A$6:$AM$500,5,FALSE))&")")),"NA") -> 91% (3776) | F29: =IFERROR((IF($C29="NA","NA",VLOOKUP($A$3,'G10-RL4'!$A$6:$AM$500,7,FALSE))),"NA") -> 8.136431676 | G29: NA | H29: =IFERROR((IF($C29="NA","NA",VLOOKUP($A$3,'G10-RL4'!$A$6:$AM$500,10,FALSE))),"NA") -> 16.85697731 | I29: NA | J29: =IFERROR((IF($C29="NA","NA",VLOOKUP($A$3,'G10-RL4'!$A$6:$AM$500,13,FALSE))),"NA") -> 6.888845968 | K29: NA | L29: =IFERROR((IF($C29="NA","NA",VLOOKUP($A$3,'G10-RL4'!$A$6:$AM$500,16,FALSE))),"NA") -> 6.170449058 | M29: NA | N29: =IFERROR(IF($C29="NA","NA",IF($R29=0,VLOOKUP($A$3,'GEO-L4'!$A$14:$BX$500,34,FALSE),IF($Q29=0,VLOOKUP($A$3,'GEO-L4'!$A$14:$BX$500,71,FALSE),AH29))),"NA") -> 0 | O29: =IF($C29="NA","NA",IF($R29=0,ROUND(VLOOKUP($A$3,'GEO-L4'!$A$14:$BX$500,39,FALSE)*100,0)&"% ("&VLOOKUP($A$3,'GEO-L4'!$A$14:$BX$500,37,FALSE)&")",IF($Q29=0,ROUND(VLOOKUP($A$3,'GEO-L4'!$A$14:$BX$500,76,FALSE)*100,0)&"% ("&VLOOKUP($A$3,'GEO-L4'!$A$14:$BX$500,74,FALSE)&")",ROUND(AI29,0)&"% ("&AJ29&")"))) -> 0% () | Q29: =IFERROR(VLOOKUP($A$3,'G10-RL4'!$A$6:$BX$500,3,FALSE),"not tested") -> 4142
A30: FCAT Level 5 | B30: =IFERROR(VLOOKUP(TEXT($A$3,"0000"),MEM_RL5!$A$2:$S$500,18,FALSE),0) -> 1784 | C30: =IFERROR((IF(OR(B30=0,B30="",B30="NA"),"NA",((IF(VLOOKUP($A$3,'G10-RL5'!$A$6:$AM$500,3,FALSE)>=B30,"100% ("&VLOOKUP($A$3,'G10-RL5'!$A$6:$AM$500,3,FALSE)&")",(ROUND((VLOOKUP($A$3,'G10-RL5'!$A$6:$AM$500,3,FALSE)/B30*100),0))&"% ("&IF(VLOOKUP($A$3,'G10-RL5'!$A$6:$AM$500,3,FALSE)="",0,VLOOKUP($A$3,'G10-RL5'!$A$6:$AM$500,3,FALSE))&")"))))),"0% (0)") -> 94% (1677) | D30: =IFERROR((IF($C30="NA","NA",VLOOKUP($A$3,'G10-RL5'!$A$6:$AM$500,4,FALSE))),"NA") -> 42.0935003 | E30: =IFERROR((IF($C30="NA","NA",ROUND(VLOOKUP($A$3,'G10-RL5'!$A$6:$AM$500,6,FALSE),0)&"% ("&IF(VLOOKUP($A$3,'G10-RL5'!$A$6:$AM$500,5,FALSE)="",0,VLOOKUP($A$3,'G10-RL5'!$A$6:$AM$500,5,FALSE))&")")),"NA") -> 98% (1645) | F30: =IFERROR((IF($C30="NA","NA",VLOOKUP($A$3,'G10-RL5'!$A$6:$AM$500,7,FALSE))),"NA") -> 8.839654144 | G30: NA | H30: =IFERROR((IF($C30="NA","NA",VLOOKUP($A$3,'G10-RL5'!$A$6:$AM$500,10,FALSE))),"NA") -> 18.70882528 | I30: NA | J30: =IFERROR((IF($C30="NA","NA",VLOOKUP($A$3,'G10-RL5'!$A$6:$AM$500,13,FALSE))),"NA") -> 7.577042338 | K30: NA | L30: =IFERROR((IF($C30="NA","NA",VLOOKUP($A$3,'G10-RL5'!$A$6:$AM$500,16,FALSE))),"NA") -> 6.986225403 | M30: NA | N30: =IFERROR(IF($C30="NA","NA",IF($R30=0,VLOOKUP($A$3,'GEO-L5'!$A$14:$BX$500,34,FALSE),IF($Q30=0,VLOOKUP($A$3,'GEO-L5'!$A$14:$BX$500,71,FALSE),AH30))),"NA") -> 0 | O30: =IF($C30="NA","NA",IF($R30=0,ROUND(VLOOKUP($A$3,'GEO-L5'!$A$14:$BX$500,39,FALSE)*100,0)&"% ("&VLOOKUP($A$3,'GEO-L5'!$A$14:$BX$500,37,FALSE)&")",IF($Q30=0,ROUND(VLOOKUP($A$3,'GEO-L5'!$A$14:$BX$500,76,FALSE)*100,0)&"% ("&VLOOKUP($A$3,'GEO-L5'!$A$14:$BX$500,74,FALSE)&")",ROUND(AI30,0)&"% ("&AJ30&")"))) -> 0% () | Q30: =IFERROR(VLOOKUP($A$3,'G10-RL5'!$A$6:$BX$500,3,FALSE),"not tested") -> 1677
A31: White | B31: =IFERROR(VLOOKUP(TEXT($A$3,"0000"),MEM_W!$A$2:$S$500,18,FALSE),0) -> 2069 | C31: =IFERROR((IF(OR(B31=0,B31="",B31="NA"),"NA",((IF(VLOOKUP($A$3,'G10-RW'!$A$6:$AM$500,3,FALSE)>=B31,"100% ("&VLOOKUP($A$3,'G10-RW'!$A$6:$AM$500,3,FALSE)&")",(ROUND((VLOOKUP($A$3,'G10-RW'!$A$6:$AM$500,3,FALSE)/B31*100),0))&"% ("&IF(VLOOKUP($A$3,'G10-RW'!$A$6:$AM$500,3,FALSE)="",0,VLOOKUP($A$3,'G10-RW'!$A$6:$AM$500,3,FALSE))&")"))))),"0% (0)") -> 100% (2186) | D31: =IFERROR((IF($C31="NA","NA",VLOOKUP($A$3,'G10-RW'!$A$6:$AM$500,4,FALSE))),"NA") -> 34.15068618 | E31: =IFERROR((IF($C31="NA","NA",ROUND(VLOOKUP($A$3,'G10-RW'!$A$6:$AM$500,6,FALSE),0)&"% ("&IF(VLOOKUP($A$3,'G10-RW'!$A$6:$AM$500,5,FALSE)="",0,VLOOKUP($A$3,'G10-RW'!$A$6:$AM$500,5,FALSE))&")")),"NA") -> 73% (1604) | F31: =IFERROR((IF($C31="NA","NA",VLOOKUP($A$3,'G10-RW'!$A$6:$AM$500,7,FALSE))),"NA") -> 7.327172919 | G31: NA | H31: =IFERROR((IF($C31="NA","NA",VLOOKUP($A$3,'G10-RW'!$A$6:$AM$500,10,FALSE))),"NA") -> 15.05773102 | I31: NA | J31: =IFERROR((IF($C31="NA","NA",VLOOKUP($A$3,'G10-RW'!$A$6:$AM$500,13,FALSE))),"NA") -> 6.26820677 | K31: NA | L31: =IFERROR((IF($C31="NA","NA",VLOOKUP($A$3,'G10-RW'!$A$6:$AM$500,16,FALSE))),"NA") -> 5.50137237 | M31: NA | N31: =IFERROR(IF($C31="NA","NA",IF($R31=0,VLOOKUP($A$3,'GEO-W'!$A$14:$BX$500,34,FALSE),IF($Q31=0,VLOOKUP($A$3,'GEO-W'!$A$14:$BX$500,71,FALSE),AH31))),"NA") -> 0 | O31: =IF($C31="NA","NA",IF($R31=0,ROUND(VLOOKUP($A$3,'GEO-W'!$A$14:$BX$500,39,FALSE)*100,0)&"% ("&VLOOKUP($A$3,'GEO-W'!$A$14:$BX$500,37,FALSE)&")",IF($Q31=0,ROUND(VLOOKUP($A$3,'GEO-W'!$A$14:$BX$500,76,FALSE)*100,0)&"% ("&VLOOKUP($A$3,'GEO-W'!$A$14:$BX$500,74,FALSE)&")",ROUND(AI31,0)&"% ("&AJ31&")"))) -> 0% () | Q31: =IFERROR(VLOOKUP($A$3,'G10-RW'!$A$6:$BX$500,3,FALSE),"not tested") -> 2186
A32: Black | B32: =IFERROR(VLOOKUP(TEXT($A$3,"0000"),MEM_B!$A$2:$S$500,18,FALSE),0) -> 6461 | C32: =IFERROR((IF(OR(B32=0,B32="",B32="NA"),"NA",((IF(VLOOKUP($A$3,'G10-RB'!$A$6:$AM$500,3,FALSE)>=B32,"100% ("&VLOOKUP($A$3,'G10-RB'!$A$6:$AM$500,3,FALSE)&")",(ROUND((VLOOKUP($A$3,'G10-RB'!$A$6:$AM$500,3,FALSE)/B32*100),0))&"% ("&IF(VLOOKUP($A$3,'G10-RB'!$A$6:$AM$500,3,FALSE)="",0,VLOOKUP($A$3,'G10-RB'!$A$6:$AM$500,3,FALSE))&")"))))),"0% (0)") -> 86% (5558) | D32: =IFERROR((IF($C32="NA","NA",VLOOKUP($A$3,'G10-RB'!$A$6:$AM$500,4,FALSE))),"NA") -> 26.53693775 | E32: =IFERROR((IF($C32="NA","NA",ROUND(VLOOKUP($A$3,'G10-RB'!$A$6:$AM$500,6,FALSE),0)&"% ("&IF(VLOOKUP($A$3,'G10-RB'!$A$6:$AM$500,5,FALSE)="",0,VLOOKUP($A$3,'G10-RB'!$A$6:$AM$500,5,FALSE))&")")),"NA") -> 41% (2252) | F32: =IFERROR((IF($C32="NA","NA",VLOOKUP($A$3,'G10-RB'!$A$6:$AM$500,7,FALSE))),"NA") -> 5.852338971 | G32: NA | H32: =IFERROR((IF($C32="NA","NA",VLOOKUP($A$3,'G10-RB'!$A$6:$AM$500,10,FALSE))),"NA") -> 11.51509536 | I32: NA | J32: =IFERROR((IF($C32="NA","NA",VLOOKUP($A$3,'G10-RB'!$A$6:$AM$500,13,FALSE))),"NA") -> 5.001907161 | K32: NA | L32: =IFERROR((IF($C32="NA","NA",VLOOKUP($A$3,'G10-RB'!$A$6:$AM$500,16,FALSE))),"NA") -> 4.1740914 | M32: NA | N32: =IFERROR(IF($C32="NA","NA",IF($R32=0,VLOOKUP($A$3,'GEO-B'!$A$14:$BX$500,34,FALSE),IF($Q32=0,VLOOKUP($A$3,'GEO-B'!$A$14:$BX$500,71,FALSE),AH32))),"NA") -> 0 | O32: =IF($C32="NA","NA",IF($R32=0,ROUND(VLOOKUP($A$3,'GEO-B'!$A$14:$BX$500,39,FALSE)*100,0)&"% ("&VLOOKUP($A$3,'GEO-B'!$A$14:$BX$500,37,FALSE)&")",IF($Q32=0,ROUND(VLOOKUP($A$3,'GEO-B'!$A$14:$BX$500,76,FALSE)*100,0)&"% ("&VLOOKUP($A$3,'GEO-B'!$A$14:$BX$500,74,FALSE)&")",ROUND(AI32,0)&"% ("&AJ32&")"))) -> 0% () | Q32: =IFERROR(VLOOKUP($A$3,'G10-RB'!$A$6:$BX$500,3,FALSE),"not tested") -> 5558
A33: Hispanic | B33: =IFERROR(VLOOKUP(TEXT($A$3,"0000"),MEM_H!$A$2:$S$500,18,FALSE),0) -> 17952 | C33: =IFERROR((IF(OR(B33=0,B33="",B33="NA"),"NA",((IF(VLOOKUP($A$3,'G10-RH'!$A$6:$AM$500,3,FALSE)>=B33,"100% ("&VLOOKUP($A$3,'G10-RH'!$A$6:$AM$500,3,FALSE)&")",(ROUND((VLOOKUP($A$3,'G10-RH'!$A$6:$AM$500,3,FALSE)/B33*100),0))&"% ("&IF(VLOOKUP($A$3,'G10-RH'!$A$6:$AM$500,3,FALSE)="",0,VLOOKUP($A$3,'G10-RH'!$A$6:$AM$500,3,FALSE))&")"))))),"0% (0)") -> 90% (16147) | D33: =IFERROR((IF($C33="NA","NA",VLOOKUP($A$3,'G10-RH'!$A$6:$AM$500,4,FALSE))),"NA") -> 29.57717223 | E33: =IFERROR((IF($C33="NA","NA",ROUND(VLOOKUP($A$3,'G10-RH'!$A$6:$AM$500,6,FALSE),0)&"% ("&IF(VLOOKUP($A$3,'G10-RH'!$A$6:$AM$500,5,FALSE)="",0,VLOOKUP($A$3,'G10-RH'!$A$6:$AM$500,5,FALSE))&")")),"NA") -> 54% (8738) | F33: =IFERROR((IF($C33="NA","NA",VLOOKUP($A$3,'G10-RH'!$A$6:$AM$500,7,FALSE))),"NA") -> 6.312850684 | G33: NA | H33: =IFERROR((IF($C33="NA","NA",VLOOKUP($A$3,'G10-RH'!$A$6:$AM$500,10,FALSE))),"NA") -> 12.97802068 | I33: NA | J33: =IFERROR((IF($C33="NA","NA",VLOOKUP($A$3,'G10-RH'!$A$6:$AM$500,13,FALSE))),"NA") -> 5.487582833 | K33: NA | L33: =IFERROR((IF($C33="NA","NA",VLOOKUP($A$3,'G10-RH'!$A$6:$AM$500,16,FALSE))),"NA") -> 4.776713941 | M33: NA | N33: =IFERROR(IF($C33="NA","NA",IF($R33=0,VLOOKUP($A$3,'GEO-H'!$A$14:$BX$500,34,FALSE),IF($Q33=0,VLOOKUP($A$3,'GEO-H'!$A$14:$BX$500,71,FALSE),AH33))),"NA") -> 0 | O33: =IF($C33="NA","NA",IF($R33=0,ROUND(VLOOKUP($A$3,'GEO-H'!$A$14:$BX$500,39,FALSE)*100,0)&"% ("&VLOOKUP($A$3,'GEO-H'!$A$14:$BX$500,37,FALSE)&")",IF($Q33=0,ROUND(VLOOKUP($A$3,'GEO-H'!$A$14:$BX$500,76,FALSE)*100,0)&"% ("&VLOOKUP($A$3,'GEO-H'!$A$14:$BX$500,74,FALSE)&")",ROUND(AI33,0)&"% ("&AJ33&")"))) -> 0% () | Q33: =IFERROR(VLOOKUP($A$3,'G10-RH'!$A$6:$BX$500,3,FALSE),"not tested") -> 16147
A34: Asian | B34: =IFERROR(VLOOKUP(TEXT($A$3,"0000"),MEM_A!$A$2:$S$500,18,FALSE),0) -> 356 | C34: =IFERROR((IF(OR(B34=0,B34="",B34="NA"),"NA",((IF(VLOOKUP($A$3,'G10-RA'!$A$6:$AM$500,3,FALSE)>=B34,"100% ("&VLOOKUP($A$3,'G10-RA'!$A$6:$AM$500,3,FALSE)&")",(ROUND((VLOOKUP($A$3,'G10-RA'!$A$6:$AM$500,3,FALSE)/B34*100),0))&"% ("&IF(VLOOKUP($A$3,'G10-RA'!$A$6:$AM$500,3,FALSE)="",0,VLOOKUP($A$3,'G10-RA'!$A$6:$AM$500,3,FALSE))&")"))))),"0% (0)") -> 92% (326) | D34: =IFERROR((IF($C34="NA","NA",VLOOKUP($A$3,'G10-RA'!$A$6:$AM$500,4,FALSE))),"NA") -> 35.59846626 | E34: =IFERROR((IF($C34="NA","NA",ROUND(VLOOKUP($A$3,'G10-RA'!$A$6:$AM$500,6,FALSE),0)&"% ("&IF(VLOOKUP($A$3,'G10-RA'!$A$6:$AM$500,5,FALSE)="",0,VLOOKUP($A$3,'G10-RA'!$A$6:$AM$500,5,FALSE))&")")),"NA") -> 80% (261) | F34: =IFERROR((IF($C34="NA","NA",VLOOKUP($A$3,'G10-RA'!$A$6:$AM$500,7,FALSE))),"NA") -> 7.638650307 | G34: NA | H34: =IFERROR((IF($C34="NA","NA",VLOOKUP($A$3,'G10-RA'!$A$6:$AM$500,10,FALSE))),"NA") -> 15.76319018 | I34: NA | J34: =IFERROR((IF($C34="NA","NA",VLOOKUP($A$3,'G10-RA'!$A$6:$AM$500,13,FALSE))),"NA") -> 6.508895706 | K34: NA | L34: =IFERROR((IF($C34="NA","NA",VLOOKUP($A$3,'G10-RA'!$A$6:$AM$500,16,FALSE))),"NA") -> 5.671779141 | M34: NA | N34: =IFERROR(IF($C34="NA","NA",IF($R34=0,VLOOKUP($A$3,'GEO-A'!$A$14:$BX$500,34,FALSE),IF($Q34=0,VLOOKUP($A$3,'GEO-A'!$A$14:$BX$500,71,FALSE),AH34))),"NA") -> 0 | O34: =IF($C34="NA","NA",IF($R34=0,ROUND(VLOOKUP($A$3,'GEO-A'!$A$14:$BX$500,39,FALSE)*100,0)&"% ("&VLOOKUP($A$3,'GEO-A'!$A$14:$BX$500,37,FALSE)&")",IF($Q34=0,ROUND(VLOOKUP($A$3,'GEO-A'!$A$14:$BX$500,76,FALSE)*100,0)&"% ("&VLOOKUP($A$3,'GEO-A'!$A$14:$BX$500,74,FALSE)&")",ROUND(AI34,0)&"% ("&AJ34&")"))) -> 0% () | Q34: =IFERROR(VLOOKUP($A$3,'G10-RA'!$A$6:$BX$500,3,FALSE),"not tested") -> 326
A35: Am. Indian | B35: =IFERROR(VLOOKUP(TEXT($A$3,"0000"),MEM_I!$A$2:$S$500,18,FALSE),0) -> 24 | C35: =IFERROR((IF(OR(B35=0,B35="",B35="NA"),"NA",((IF(VLOOKUP($A$3,'G10-RI'!$A$6:$AM$500,3,FALSE)>=B35,"100% ("&VLOOKUP($A$3,'G10-RI'!$A$6:$AM$500,3,FALSE)&")",(ROUND((VLOOKUP($A$3,'G10-RI'!$A$6:$AM$500,3,FALSE)/B35*100),0))&"% ("&IF(VLOOKUP($A$3,'G10-RI'!$A$6:$AM$500,3,FALSE)="",0,VLOOKUP($A$3,'G10-RI'!$A$6:$AM$500,3,FALSE))&")"))))),"0% (0)") -> 92% (22) | D35: =IFERROR((IF($C35="NA","NA",VLOOKUP($A$3,'G10-RI'!$A$6:$AM$500,4,FALSE))),"NA") -> 28.95454545 | E35: =IFERROR((IF($C35="NA","NA",ROUND(VLOOKUP($A$3,'G10-RI'!$A$6:$AM$500,6,FALSE),0)&"% ("&IF(VLOOKUP($A$3,'G10-RI'!$A$6:$AM$500,5,FALSE)="",0,VLOOKUP($A$3,'G10-RI'!$A$6:$AM$500,5,FALSE))&")")),"NA") -> 45% (10) | F35: =IFERROR((IF($C35="NA","NA",VLOOKUP($A$3,'G10-RI'!$A$6:$AM$500,7,FALSE))),"NA") -> 5.863636364 | G35: NA | H35: =IFERROR((IF($C35="NA","NA",VLOOKUP($A$3,'G10-RI'!$A$6:$AM$500,10,FALSE))),"NA") -> 12.77272727 | I35: NA | J35: =IFERROR((IF($C35="NA","NA",VLOOKUP($A$3,'G10-RI'!$A$6:$AM$500,13,FALSE))),"NA") -> 5.463636364 | K35: NA | L35: =IFERROR((IF($C35="NA","NA",VLOOKUP($A$3,'G10-RI'!$A$6:$AM$500,16,FALSE))),"NA") -> 4.872727273 | M35: NA | N35: =IFERROR(IF($C35="NA","NA",IF($R35=0,VLOOKUP($A$3,'GEO-I'!$A$14:$BX$500,34,FALSE),IF($Q35=0,VLOOKUP($A$3,'GEO-I'!$A$14:$BX$500,71,FALSE),AH35))),"NA") -> 0 | O35: =IF($C35="NA","NA",IF($R35=0,ROUND(VLOOKUP($A$3,'GEO-I'!$A$14:$BX$500,39,FALSE)*100,0)&"% ("&VLOOKUP($A$3,'GEO-I'!$A$14:$BX$500,37,FALSE)&")",IF($Q35=0,ROUND(VLOOKUP($A$3,'GEO-I'!$A$14:$BX$500,76,FALSE)*100,0)&"% ("&VLOOKUP($A$3,'GEO-I'!$A$14:$BX$500,74,FALSE)&")",ROUND(AI35,0)&"% ("&AJ35&")"))) -> 0% () | Q35: =IFERROR(VLOOKUP($A$3,'G10-RI'!$A$6:$BX$500,3,FALSE),"not tested") -> 22
A36: ED | B36: =IFERROR(VLOOKUP(TEXT($A$3,"0000"),MEM_ED!$A$2:$S$500,18,FALSE),0) -> 19016 | C36: =IFERROR((IF(OR(B36=0,B36="",B36="NA"),"NA",((IF(VLOOKUP($A$3,'G10-RED'!$A$6:$AM$500,3,FALSE)>=B36,"100% ("&VLOOKUP($A$3,'G10-RED'!$A$6:$AM$500,3,FALSE)&")",(ROUND((VLOOKUP($A$3,'G10-RED'!$A$6:$AM$500,3,FALSE)/B36*100),0))&"% ("&IF(VLOOKUP($A$3,'G10-RED'!$A$6:$AM$500,3,FALSE)="",0,VLOOKUP($A$3,'G10-RED'!$A$6:$AM$500,3,FALSE))&")"))))),"0% (0)") -> 98% (18553) | D36: =IFERROR((IF($C36="NA","NA",VLOOKUP($A$3,'G10-RED'!$A$6:$AM$500,4,FALSE))),"NA") -> 28.16369859 | E36: =IFERROR((IF($C36="NA","NA",ROUND(VLOOKUP($A$3,'G10-RED'!$A$6:$AM$500,6,FALSE),0)&"% ("&IF(VLOOKUP($A$3,'G10-RED'!$A$6:$AM$500,5,FALSE)="",0,VLOOKUP($A$3,'G10-RED'!$A$6:$AM$500,5,FALSE))&")")),"NA") -> 48% (8909) | F36: =IFERROR((IF($C36="NA","NA",VLOOKUP($A$3,'G10-RED'!$A$6:$AM$500,7,FALSE))),"NA") -> 6.055058481 | G36: NA | H36: =IFERROR((IF($C36="NA","NA",VLOOKUP($A$3,'G10-RED'!$A$6:$AM$500,10,FALSE))),"NA") -> 12.32678273 | I36: NA | J36: =IFERROR((IF($C36="NA","NA",VLOOKUP($A$3,'G10-RED'!$A$6:$AM$500,13,FALSE))),"NA") -> 5.268808279 | K36: NA | L36: =IFERROR((IF($C36="NA","NA",VLOOKUP($A$3,'G10-RED'!$A$6:$AM$500,16,FALSE))),"NA") -> 4.519554789 | M36: NA | N36: =IFERROR(IF($C36="NA","NA",IF($R36=0,VLOOKUP($A$3,'GEO-ED'!$A$14:$BX$500,34,FALSE),IF($Q36=0,VLOOKUP($A$3,'GEO-ED'!$A$14:$BX$500,71,FALSE),AH36))),"NA") -> 0 | O36: =IF($C36="NA","NA",IF($R36=0,ROUND(VLOOKUP($A$3,'GEO-ED'!$A$14:$BX$500,39,FALSE)*100,0)&"% ("&VLOOKUP($A$3,'GEO-ED'!$A$14:$BX$500,37,FALSE)&")",IF($Q36=0,ROUND(VLOOKUP($A$3,'GEO-ED'!$A$14:$BX$500,76,FALSE)*100,0)&"% ("&VLOOKUP($A$3,'GEO-ED'!$A$14:$BX$500,74,FALSE)&")",ROUND(AI36,0)&"% ("&AJ36&")"))) -> 0% () | Q36: =IFERROR(VLOOKUP($A$3,'G10-RED'!$A$6:$BX$500,3,FALSE),"not tested") -> 18553
A37: ELL | B37: =IFERROR(VLOOKUP(TEXT($A$3,"0000"),MEM_ELL!$A$2:$S$500,18,FALSE),0) -> 3504 | C37: =IFERROR((IF(OR(B37=0,B37="",B37="NA"),"NA",((IF(VLOOKUP($A$3,'G10-RELL'!$A$6:$AM$500,3,FALSE)>=B37,"100% ("&VLOOKUP($A$3,'G10-RELL'!$A$6:$AM$500,3,FALSE)&")",(ROUND((VLOOKUP($A$3,'G10-RELL'!$A$6:$AM$500,3,FALSE)/B37*100),0))&"% ("&IF(VLOOKUP($A$3,'G10-RELL'!$A$6:$AM$500,3,FALSE)="",0,VLOOKUP($A$3,'G10-RELL'!$A$6:$AM$500,3,FALSE))&")"))))),"0% (0)") -> 91% (3174) | D37: =IFERROR((IF($C37="NA","NA",VLOOKUP($A$3,'G10-RELL'!$A$6:$AM$500,4,FALSE))),"NA") -> 21.16477631 | E37: =IFERROR((IF($C37="NA","NA",ROUND(VLOOKUP($A$3,'G10-RELL'!$A$6:$AM$500,6,FALSE),0)&"% ("&IF(VLOOKUP($A$3,'G10-RELL'!$A$6:$AM$500,5,FALSE)="",0,VLOOKUP($A$3,'G10-RELL'!$A$6:$AM$500,5,FALSE))&")")),"NA") -> 18% (578) | F37: =IFERROR((IF($C37="NA","NA",VLOOKUP($A$3,'G10-RELL'!$A$6:$AM$500,7,FALSE))),"NA") -> 4.45431632 | G37: NA | H37: =IFERROR((IF($C37="NA","NA",VLOOKUP($A$3,'G10-RELL'!$A$6:$AM$500,10,FALSE))),"NA") -> 9.303402647 | I37: NA | J37: =IFERROR((IF($C37="NA","NA",VLOOKUP($A$3,'G10-RELL'!$A$6:$AM$500,13,FALSE))),"NA") -> 3.935727788 | K37: NA | L37: =IFERROR((IF($C37="NA","NA",VLOOKUP($A$3,'G10-RELL'!$A$6:$AM$500,16,FALSE))),"NA") -> 3.471329553 | M37: NA | N37: =IFERROR(IF($C37="NA","NA",IF($R37=0,VLOOKUP($A$3,'GEO-ELL'!$A$14:$BX$500,34,FALSE),IF($Q37=0,VLOOKUP($A$3,'GEO-ELL'!$A$14:$BX$500,71,FALSE),AH37))),"NA") -> 0 | O37: =IF($C37="NA","NA",IF($R37=0,ROUND(VLOOKUP($A$3,'GEO-ELL'!$A$14:$BX$500,39,FALSE)*100,0)&"% ("&VLOOKUP($A$3,'GEO-ELL'!$A$14:$BX$500,37,FALSE)&")",IF($Q37=0,ROUND(VLOOKUP($A$3,'GEO-ELL'!$A$14:$BX$500,76,FALSE)*100,0)&"% ("&VLOOKUP($A$3,'GEO-ELL'!$A$14:$BX$500,74,FALSE)&")",ROUND(AI37,0)&"% ("&AJ37&")"))) -> 0% () | Q37: =IFERROR(VLOOKUP($A$3,'G10-RELL'!$A$6:$BX$500,3,FALSE),"not tested") -> 3174
A38: SWD | B38: =IFERROR(VLOOKUP(TEXT($A$3,"0000"),MEM_SWD!$A$2:$S$500,18,FALSE),0) -> 2584 | C38: =IFERROR((IF(OR(B38=0,B38="",B38="NA"),"NA",((IF(VLOOKUP($A$3,'G10-RSWD'!$A$6:$AM$500,3,FALSE)>=B38,"100% ("&VLOOKUP($A$3,'G10-RSWD'!$A$6:$AM$500,3,FALSE)&")",(ROUND((VLOOKUP($A$3,'G10-RSWD'!$A$6:$AM$500,3,FALSE)/B38*100),0))&"% ("&IF(VLOOKUP($A$3,'G10-RSWD'!$A$6:$AM$500,3,FALSE)="",0,VLOOKUP($A$3,'G10-RSWD'!$A$6:$AM$500,3,FALSE))&")"))))),"0% (0)") -> 82% (2124) | D38: =IFERROR((IF($C38="NA","NA",VLOOKUP($A$3,'G10-RSWD'!$A$6:$AM$500,4,FALSE))),"NA") -> 22.1096516 | E38: =IFERROR((IF($C38="NA","NA",ROUND(VLOOKUP($A$3,'G10-RSWD'!$A$6:$AM$500,6,FALSE),0)&"% ("&IF(VLOOKUP($A$3,'G10-RSWD'!$A$6:$AM$500,5,FALSE)="",0,VLOOKUP($A$3,'G10-RSWD'!$A$6:$AM$500,5,FALSE))&")")),"NA") -> 22% (468) | F38: =IFERROR((IF($C38="NA","NA",VLOOKUP($A$3,'G10-RSWD'!$A$6:$AM$500,7,FALSE))),"NA") -> 4.791996234 | G38: NA | H38: =IFERROR((IF($C38="NA","NA",VLOOKUP($A$3,'G10-RSWD'!$A$6:$AM$500,10,FALSE))),"NA") -> 9.681120527 | I38: NA | J38: =IFERROR((IF($C38="NA","NA",VLOOKUP($A$3,'G10-RSWD'!$A$6:$AM$500,13,FALSE))),"NA") -> 4.17113936 | K38: NA | L38: =IFERROR((IF($C38="NA","NA",VLOOKUP($A$3,'G10-RSWD'!$A$6:$AM$500,16,FALSE))),"NA") -> 3.472881356 | M38: NA | N38: =IFERROR(IF($C38="NA","NA",IF($R38=0,VLOOKUP($A$3,'GEO-SWD'!$A$14:$BX$500,34,FALSE),IF($Q38=0,VLOOKUP($A$3,'GEO-SWD'!$A$14:$BX$500,71,FALSE),AH38))),"NA") -> 0 | O38: =IF($C38="NA","NA",IF($R38=0,ROUND(VLOOKUP($A$3,'GEO-SWD'!$A$14:$BX$500,39,FALSE)*100,0)&"% ("&VLOOKUP($A$3,'GEO-SWD'!$A$14:$BX$500,37,FALSE)&")",IF($Q38=0,ROUND(VLOOKUP($A$3,'GEO-SWD'!$A$14:$BX$500,76,FALSE)*100,0)&"% ("&VLOOKUP($A$3,'GEO-SWD'!$A$14:$BX$500,74,FALSE)&")",ROUND(AI38,0)&"% ("&AJ38&")"))) -> 0% () | Q38: =IFERROR(VLOOKUP($A$3,'G10-RSWD'!$A$6:$BX$500,3,FALSE),"not tested") -> 2124
A39: District Writing, No Testing for the Fall Interim Assessment | Q39: Writing Grade 10
A40: Level of Proficiency at 3 or above | B40: Total # of Students | C40: % of Students Tested (Max. of the two prompts) | D40: Combined Prompts (Weighted Values) | H40: Expository | J40: Persuasive | Q40: =H40 -> Expository | R40: =J40 -> Persuasive
D41: Average Score | E41: % at 3.0 | F41: % at or above 4.0 | H41: Average Score | I41: % Proficient | J41: Average Score | K41: % Proficient | Q41: Number Tested | R41: Number Tested
A42: All students | B42: =IFERROR(VLOOKUP(TEXT($A$3,"0000"),Mem_All!$A$2:$S$500,14,FALSE),0) -> 27365 | C42: =IF(OR(B42=0,B42="",B42="NA"),"NA",IF(VLOOKUP($A$3,'G10-WALL'!$A$6:$Z$500,3,FALSE)>B42,"100% ("&VLOOKUP($A$3,'G10-WALL'!$A$6:$Z$500,3,FALSE)&")",ROUND(VLOOKUP($A$3,'G10-WALL'!$A$6:$Z$500,3,FALSE)/B42*100,0)&"% ("&VLOOKUP($A$3,'G10-WALL'!$A$6:$Z$500,3,FALSE)&")")) -> 45% (12207) | D42: =IFERROR((IF($C42="NA","NA",VLOOKUP($A$3,'G10-WALL'!$A$6:$Z$500,4,FALSE))),"NA") -> 2.968214174 | E42: =IF($D42="NA","NA",ROUND(VLOOKUP($A$3,'G10-WALL'!$A$6:$Z$500,6,FALSE),0)&"% ("&VLOOKUP($A$3,'G10-WALL'!$A$6:$Z$500,5,FALSE)&")") -> 34% (4172) | F42: =IF($D42="NA","NA",ROUND(VLOOKUP($A$3,'G10-WALL'!$A$6:$Z$500,8,FALSE),0)&"% ("&VLOOKUP($A$3,'G10-WALL'!$A$6:$Z$500,7,FALSE)&")") -> 24% (2964) | H42: =IFERROR(IF(VLOOKUP($A$3,'G10-WALL'!$A$6:$Z$500,9,FALSE)=0,"NA",VLOOKUP($A$3,'G10-WALL'!$A$6:$Z$500,10,FALSE)),"NA") -> 2.657366182 | I42: =IFERROR(IF($H42="NA","NA",VLOOKUP($A$3,'G10-WALL'!$A$6:$Z$500,16,FALSE)&"% ("&VLOOKUP($A$3,'G10-WALL'!$A$6:$Z$500,12,FALSE)&")"),"NA") -> 58% (5901) | J42: =IFERROR(IF(VLOOKUP($A$3,'G10-WALL'!$A$6:$Z$500,17,FALSE)=0,"NA",VLOOKUP($A$3,'G10-WALL'!$A$6:$Z$500,18,FALSE)),"NA") -> 3.225586227 | K42: =IFERROR(IF($J42="NA","NA",VLOOKUP($A$3,'G10-WALL'!$A$6:$Z$500,24,FALSE)&"% ("&VLOOKUP($A$3,'G10-WALL'!$A$6:$Z$500,20,FALSE)&")"),"NA") -> 71% (7144) | Q42: =IFERROR(VLOOKUP($A$3,'G10-WALL'!$A$6:$Z$500,9,FALSE),"Not Test") -> 10107 | R42: =IFERROR(VLOOKUP($A$3,'G10-WALL'!$A$6:$Z$500,17,FALSE),"Not Test") -> 12207
A43: White | B43: =IFERROR(VLOOKUP(TEXT($A$3,"0000"),MEM_W!$A$2:$S$500,14,FALSE),0) -> 2443 | C43: =IF(OR(B43=0,B43="",B43="NA"),"NA",IF(VLOOKUP($A$3,'G10-WW'!$A$6:$Z$500,3,FALSE)>B43,"100% ("&VLOOKUP($A$3,'G10-WW'!$A$6:$Z$500,3,FALSE)&")",ROUND(VLOOKUP($A$3,'G10-WW'!$A$6:$Z$500,3,FALSE)/B43*100,0)&"% ("&VLOOKUP($A$3,'G10-WW'!$A$6:$Z$500,3,FALSE)&")")) -> 55% (1333) | D43: =IFERROR((IF($C43="NA","NA",VLOOKUP($A$3,'G10-WW'!$A$6:$Z$500,4,FALSE))),"NA") -> 3.201425307 | E43: =IF($D43="NA","NA",ROUND(VLOOKUP($A$3,'G10-WW'!$A$6:$Z$500,6,FALSE),0)&"% ("&VLOOKUP($A$3,'G10-WW'!$A$6:$Z$500,5,FALSE)&")") -> 35% (465) | F43: =IF($D43="NA","NA",ROUND(VLOOKUP($A$3,'G10-WW'!$A$6:$Z$500,8,FALSE),0)&"% ("&VLOOKUP($A$3,'G10-WW'!$A$6:$Z$500,7,FALSE)&")") -> 34% (454) | H43: =IFERROR(IF(VLOOKUP($A$3,'G10-WW'!$A$6:$Z$500,9,FALSE)=0,"NA",VLOOKUP($A$3,'G10-WW'!$A$6:$Z$500,10,FALSE)),"NA") -> 3.068319328 | I43: =IFERROR(IF($H43="NA","NA",VLOOKUP($A$3,'G10-WW'!$A$6:$Z$500,16,FALSE)&"% ("&VLOOKUP($A$3,'G10-WW'!$A$6:$Z$500,12,FALSE)&")"),"NA") -> 71% (842) | J43: =IFERROR(IF(VLOOKUP($A$3,'G10-WW'!$A$6:$Z$500,17,FALSE)=0,"NA",VLOOKUP($A$3,'G10-WW'!$A$6:$Z$500,18,FALSE)),"NA") -> 3.320252101 | K43: =IFERROR(IF($J43="NA","NA",VLOOKUP($A$3,'G10-WW'!$A$6:$Z$500,24,FALSE)&"% ("&VLOOKUP($A$3,'G10-WW'!$A$6:$Z$500,20,FALSE)&")"),"NA") -> 76% (899) | Q43: =IFERROR(VLOOKUP($A$3,'G10-WW'!$A$6:$Z$500,9,FALSE),"Not Test") -> 1190 | R43: =IFERROR(VLOOKUP($A$3,'G10-WW'!$A$6:$Z$500,17,FALSE),"Not Test") -> 1333
A44: Black | B44: =IFERROR(VLOOKUP(TEXT($A$3,"0000"),MEM_B!$A$2:$S$500,14,FALSE),0) -> 6474 | C44: =IF(OR(B44=0,B44="",B44="NA"),"NA",IF(VLOOKUP($A$3,'G10-WB'!$A$6:$Z$500,3,FALSE)>B44,"100% ("&VLOOKUP($A$3,'G10-WB'!$A$6:$Z$500,3,FALSE)&")",ROUND(VLOOKUP($A$3,'G10-WB'!$A$6:$Z$500,3,FALSE)/B44*100,0)&"% ("&VLOOKUP($A$3,'G10-WB'!$A$6:$Z$500,3,FALSE)&")")) -> 22% (1451) | D44: =IFERROR((IF($C44="NA","NA",VLOOKUP($A$3,'G10-WB'!$A$6:$Z$500,4,FALSE))),"NA") -> 2.824897564 | E44: =IF($D44="NA","NA",ROUND(VLOOKUP($A$3,'G10-WB'!$A$6:$Z$500,6,FALSE),0)&"% ("&VLOOKUP($A$3,'G10-WB'!$A$6:$Z$500,5,FALSE)&")") -> 33% (477) | F44: =IF($D44="NA","NA",ROUND(VLOOKUP($A$3,'G10-WB'!$A$6:$Z$500,8,FALSE),0)&"% ("&VLOOKUP($A$3,'G10-WB'!$A$6:$Z$500,7,FALSE)&")") -> 23% (336) | H44: =IFERROR(IF(VLOOKUP($A$3,'G10-WB'!$A$6:$Z$500,9,FALSE)=0,"NA",VLOOKUP($A$3,'G10-WB'!$A$6:$Z$500,10,FALSE)),"NA") -> 2.615244866 | I44: =IFERROR(IF($H44="NA","NA",VLOOKUP($A$3,'G10-WB'!$A$6:$Z$500,16,FALSE)&"% ("&VLOOKUP($A$3,'G10-WB'!$A$6:$Z$500,12,FALSE)&")"),"NA") -> 57% (726) | J44: =IFERROR(IF(VLOOKUP($A$3,'G10-WB'!$A$6:$Z$500,17,FALSE)=0,"NA",VLOOKUP($A$3,'G10-WB'!$A$6:$Z$500,18,FALSE)),"NA") -> 3.007819905 | K44: =IFERROR(IF($J44="NA","NA",VLOOKUP($A$3,'G10-WB'!$A$6:$Z$500,24,FALSE)&"% ("&VLOOKUP($A$3,'G10-WB'!$A$6:$Z$500,20,FALSE)&")"),"NA") -> 63% (797) | Q44: =IFERROR(VLOOKUP($A$3,'G10-WB'!$A$6:$Z$500,9,FALSE),"Not Test") -> 1266 | R44: =IFERROR(VLOOKUP($A$3,'G10-WB'!$A$6:$Z$500,17,FALSE),"Not Test") -> 1451
A45: Hispanic | B45: =IFERROR(VLOOKUP(TEXT($A$3,"0000"),MEM_H!$A$2:$S$500,14,FALSE),0) -> 18019 | C45: =IF(OR(B45=0,B45="",B45="NA"),"NA",IF(VLOOKUP($A$3,'G10-WH'!$A$6:$Z$500,3,FALSE)>B45,"100% ("&VLOOKUP($A$3,'G10-WH'!$A$6:$Z$500,3,FALSE)&")",ROUND(VLOOKUP($A$3,'G10-WH'!$A$6:$Z$500,3,FALSE)/B45*100,0)&"% ("&VLOOKUP($A$3,'G10-WH'!$A$6:$Z$500,3,FALSE)&")")) -> 51% (9240) | D45: =IFERROR((IF($C45="NA","NA",VLOOKUP($A$3,'G10-WH'!$A$6:$Z$500,4,FALSE))),"NA") -> 2.949475025 | E45: =IF($D45="NA","NA",ROUND(VLOOKUP($A$3,'G10-WH'!$A$6:$Z$500,6,FALSE),0)&"% ("&VLOOKUP($A$3,'G10-WH'!$A$6:$Z$500,5,FALSE)&")") -> 34% (3169) | F45: =IF($D45="NA","NA",ROUND(VLOOKUP($A$3,'G10-WH'!$A$6:$Z$500,8,FALSE),0)&"% ("&VLOOKUP($A$3,'G10-WH'!$A$6:$Z$500,7,FALSE)&")") -> 23% (2081) | H45: =IFERROR(IF(VLOOKUP($A$3,'G10-WH'!$A$6:$Z$500,9,FALSE)=0,"NA",VLOOKUP($A$3,'G10-WH'!$A$6:$Z$500,10,FALSE)),"NA") -> 2.585783068 | I45: =IFERROR(IF($H45="NA","NA",VLOOKUP($A$3,'G10-WH'!$A$6:$Z$500,16,FALSE)&"% ("&VLOOKUP($A$3,'G10-WH'!$A$6:$Z$500,12,FALSE)&")"),"NA") -> 56% (4192) | J45: =IFERROR(IF(VLOOKUP($A$3,'G10-WH'!$A$6:$Z$500,17,FALSE)=0,"NA",VLOOKUP($A$3,'G10-WH'!$A$6:$Z$500,18,FALSE)),"NA") -> 3.243774241 | K45: =IFERROR(IF($J45="NA","NA",VLOOKUP($A$3,'G10-WH'!$A$6:$Z$500,24,FALSE)&"% ("&VLOOKUP($A$3,'G10-WH'!$A$6:$Z$500,20,FALSE)&")"),"NA") -> 71% (5307) | Q45: =IFERROR(VLOOKUP($A$3,'G10-WH'!$A$6:$Z$500,9,FALSE),"Not Test") -> 7477 | R45: =IFERROR(VLOOKUP($A$3,'G10-WH'!$A$6:$Z$500,17,FALSE),"Not Test") -> 9240
A46: Asian | B46: =IFERROR(VLOOKUP(TEXT($A$3,"0000"),MEM_A!$A$2:$S$500,14,FALSE),0) -> 356 | C46: =IF(OR(B46=0,B46="",B46="NA"),"NA",IF(VLOOKUP($A$3,'G10-WA'!$A$6:$Z$500,3,FALSE)>B46,"100% ("&VLOOKUP($A$3,'G10-WA'!$A$6:$Z$500,3,FALSE)&")",ROUND(VLOOKUP($A$3,'G10-WA'!$A$6:$Z$500,3,FALSE)/B46*100,0)&"% ("&VLOOKUP($A$3,'G10-WA'!$A$6:$Z$500,3,FALSE)&")")) -> 47% (166) | D46: =IFERROR((IF($C46="NA","NA",VLOOKUP($A$3,'G10-WA'!$A$6:$Z$500,4,FALSE))),"NA") -> 3.430482456 | E46: =IF($D46="NA","NA",ROUND(VLOOKUP($A$3,'G10-WA'!$A$6:$Z$500,6,FALSE),0)&"% ("&VLOOKUP($A$3,'G10-WA'!$A$6:$Z$500,5,FALSE)&")") -> 31% (51) | F46: =IF($D46="NA","NA",ROUND(VLOOKUP($A$3,'G10-WA'!$A$6:$Z$500,8,FALSE),0)&"% ("&VLOOKUP($A$3,'G10-WA'!$A$6:$Z$500,7,FALSE)&")") -> 46% (76) | H46: =IFERROR(IF(VLOOKUP($A$3,'G10-WA'!$A$6:$Z$500,9,FALSE)=0,"NA",VLOOKUP($A$3,'G10-WA'!$A$6:$Z$500,10,FALSE)),"NA") -> 3.339473684 | I46: =IFERROR(IF($H46="NA","NA",VLOOKUP($A$3,'G10-WA'!$A$6:$Z$500,16,FALSE)&"% ("&VLOOKUP($A$3,'G10-WA'!$A$6:$Z$500,12,FALSE)&")"),"NA") -> 79% (120) | J46: =IFERROR(IF(VLOOKUP($A$3,'G10-WA'!$A$6:$Z$500,17,FALSE)=0,"NA",VLOOKUP($A$3,'G10-WA'!$A$6:$Z$500,18,FALSE)),"NA") -> 3.513815789 | K46: =IFERROR(IF($J46="NA","NA",VLOOKUP($A$3,'G10-WA'!$A$6:$Z$500,24,FALSE)&"% ("&VLOOKUP($A$3,'G10-WA'!$A$6:$Z$500,20,FALSE)&")"),"NA") -> 82% (124) | Q46: =IFERROR(VLOOKUP($A$3,'G10-WA'!$A$6:$Z$500,9,FALSE),"Not Test") -> 152 | R46: =IFERROR(VLOOKUP($A$3,'G10-WA'!$A$6:$Z$500,17,FALSE),"Not Test") -> 166
A47: Am. Indian | B47: =IFERROR(VLOOKUP(TEXT($A$3,"0000"),MEM_I!$A$2:$S$500,14,FALSE),0) -> 24 | C47: =IF(OR(B47=0,B47="",B47="NA"),"NA",IF(VLOOKUP($A$3,'G10-WI'!$A$6:$Z$500,3,FALSE)>B47,"100% ("&VLOOKUP($A$3,'G10-WI'!$A$6:$Z$500,3,FALSE)&")",ROUND(VLOOKUP($A$3,'G10-WI'!$A$6:$Z$500,3,FALSE)/B47*100,0)&"% ("&VLOOKUP($A$3,'G10-WI'!$A$6:$Z$500,3,FALSE)&")")) -> 38% (9) | D47: =IFERROR((IF($C47="NA","NA",VLOOKUP($A$3,'G10-WI'!$A$6:$Z$500,4,FALSE))),"NA") -> 3.544642857 | E47: =IF($D47="NA","NA",ROUND(VLOOKUP($A$3,'G10-WI'!$A$6:$Z$500,6,FALSE),0)&"% ("&VLOOKUP($A$3,'G10-WI'!$A$6:$Z$500,5,FALSE)&")") -> 38% (3) | F47: =IF($D47="NA","NA",ROUND(VLOOKUP($A$3,'G10-WI'!$A$6:$Z$500,8,FALSE),0)&"% ("&VLOOKUP($A$3,'G10-WI'!$A$6:$Z$500,7,FALSE)&")") -> 31% (3) | H47: =IFERROR(IF(VLOOKUP($A$3,'G10-WI'!$A$6:$Z$500,9,FALSE)=0,"NA",VLOOKUP($A$3,'G10-WI'!$A$6:$Z$500,10,FALSE)),"NA") -> 3.142857143 | I47: =IFERROR(IF($H47="NA","NA",VLOOKUP($A$3,'G10-WI'!$A$6:$Z$500,16,FALSE)&"% ("&VLOOKUP($A$3,'G10-WI'!$A$6:$Z$500,12,FALSE)&")"),"NA") -> 57% (4) | J47: =IFERROR(IF(VLOOKUP($A$3,'G10-WI'!$A$6:$Z$500,17,FALSE)=0,"NA",VLOOKUP($A$3,'G10-WI'!$A$6:$Z$500,18,FALSE)),"NA") -> 3.857142857 | K47: =IFERROR(IF($J47="NA","NA",VLOOKUP($A$3,'G10-WI'!$A$6:$Z$500,24,FALSE)&"% ("&VLOOKUP($A$3,'G10-WI'!$A$6:$Z$500,20,FALSE)&")"),"NA") -> 100% (7) | Q47: =IFERROR(VLOOKUP($A$3,'G10-WI'!$A$6:$Z$500,9,FALSE),"Not Test") -> 7 | R47: =IFERROR(VLOOKUP($A$3,'G10-WI'!$A$6:$Z$500,17,FALSE),"Not Test") -> 9
A48: ED | B48: =IFERROR(VLOOKUP(TEXT($A$3,"0000"),MEM_ED!$A$2:$S$500,14,FALSE),0) -> 19082 | C48: =IF(OR(B48=0,B48="",B48="NA"),"NA",IF(VLOOKUP($A$3,'G10-WED'!$A$6:$Z$500,3,FALSE)>B48,"100% ("&VLOOKUP($A$3,'G10-WED'!$A$6:$Z$500,3,FALSE)&")",ROUND(VLOOKUP($A$3,'G10-WED'!$A$6:$Z$500,3,FALSE)/B48*100,0)&"% ("&VLOOKUP($A$3,'G10-WED'!$A$6:$Z$500,3,FALSE)&")")) -> 46% (8844) | D48: =IFERROR((IF($C48="NA","NA",VLOOKUP($A$3,'G10-WED'!$A$6:$Z$500,4,FALSE))),"NA") -> 2.829603793 | E48: =IF($D48="NA","NA",ROUND(VLOOKUP($A$3,'G10-WED'!$A$6:$Z$500,6,FALSE),0)&"% ("&VLOOKUP($A$3,'G10-WED'!$A$6:$Z$500,5,FALSE)&")") -> 34% (3026) | F48: =IF($D48="NA","NA",ROUND(VLOOKUP($A$3,'G10-WED'!$A$6:$Z$500,8,FALSE),0)&"% ("&VLOOKUP($A$3,'G10-WED'!$A$6:$Z$500,7,FALSE)&")") -> 21% (1839) | H48: =IFERROR(IF(VLOOKUP($A$3,'G10-WED'!$A$6:$Z$500,9,FALSE)=0,"NA",VLOOKUP($A$3,'G10-WED'!$A$6:$Z$500,10,FALSE)),"NA") -> 2.535595982 | I48: =IFERROR(IF($H48="NA","NA",VLOOKUP($A$3,'G10-WED'!$A$6:$Z$500,16,FALSE)&"% ("&VLOOKUP($A$3,'G10-WED'!$A$6:$Z$500,12,FALSE)&")"),"NA") -> 55% (4022) | J48: =IFERROR(IF(VLOOKUP($A$3,'G10-WED'!$A$6:$Z$500,17,FALSE)=0,"NA",VLOOKUP($A$3,'G10-WED'!$A$6:$Z$500,18,FALSE)),"NA") -> 3.074477328 | K48: =IFERROR(IF($J48="NA","NA",VLOOKUP($A$3,'G10-WED'!$A$6:$Z$500,24,FALSE)&"% ("&VLOOKUP($A$3,'G10-WED'!$A$6:$Z$500,20,FALSE)&")"),"NA") -> 66% (4896) | Q48: =IFERROR(VLOOKUP($A$3,'G10-WED'!$A$6:$Z$500,9,FALSE),"Not Test") -> 7366 | R48: =IFERROR(VLOOKUP($A$3,'G10-WED'!$A$6:$Z$500,17,FALSE),"Not Test") -> 8844
A49: ELL | B49: =IFERROR(VLOOKUP(TEXT($A$3,"0000"),MEM_ELL!$A$2:$S$500,14,FALSE),0) -> 3508 | C49: =IF(OR(B49=0,B49="",B49="NA"),"NA",IF(VLOOKUP($A$3,'G10-WELL'!$A$6:$Z$500,3,FALSE)>B49,"100% ("&VLOOKUP($A$3,'G10-WELL'!$A$6:$Z$500,3,FALSE)&")",ROUND(VLOOKUP($A$3,'G10-WELL'!$A$6:$Z$500,3,FALSE)/B49*100,0)&"%("&VLOOKUP($A$3,'G10-WELL'!$A$6:$Z$500,3,FALSE)&")")) -> 44%(1540) | D49: =IFERROR((IF($C49="NA","NA",VLOOKUP($A$3,'G10-WELL'!$A$6:$Z$500,4,FALSE))),"NA") -> 0.9067175799 | E49: =IF($D49="NA","NA",ROUND(VLOOKUP($A$3,'G10-WELL'!$A$6:$Z$500,6,FALSE),0)&"% ("&VLOOKUP($A$3,'G10-WELL'!$A$6:$Z$500,5,FALSE)&")") -> 19% (293) | F49: =IF($D49="NA","NA",ROUND(VLOOKUP($A$3,'G10-WELL'!$A$6:$Z$500,8,FALSE),0)&"% ("&VLOOKUP($A$3,'G10-WELL'!$A$6:$Z$500,7,FALSE)&")") -> 5% (81) | H49: =IFERROR(IF(VLOOKUP($A$3,'G10-WELL'!$A$6:$Z$500,9,FALSE)=0,"NA",VLOOKUP($A$3,'G10-WELL'!$A$6:$Z$500,10,FALSE)),"NA") -> 1.635586636 | I49: =IFERROR(IF($H49="NA","NA",VLOOKUP($A$3,'G10-WELL'!$A$6:$Z$500,16,FALSE)&"% ("&VLOOKUP($A$3,'G10-WELL'!$A$6:$Z$500,12,FALSE)&")"),"NA") -> 25% (316) | J49: =IFERROR(IF(VLOOKUP($A$3,'G10-WELL'!$A$6:$Z$500,17,FALSE)=0,"NA",VLOOKUP($A$3,'G10-WELL'!$A$6:$Z$500,18,FALSE)),"NA") -> 0.2975912976 | K49: =IFERROR(IF($J49="NA","NA",VLOOKUP($A$3,'G10-WELL'!$A$6:$Z$500,24,FALSE)&"% ("&VLOOKUP($A$3,'G10-WELL'!$A$6:$Z$500,20,FALSE)&")"),"NA") -> 29% (371) | Q49: =IFERROR(VLOOKUP($A$3,'G10-WELL'!$A$6:$Z$500,9,FALSE),"Not Test") -> 1287 | R49: =IFERROR(VLOOKUP($A$3,'G10-WELL'!$A$6:$Z$500,17,FALSE),"Not Test") -> 1540
A50: SWD | B50: =IFERROR(VLOOKUP(TEXT($A$3,"0000"),MEM_SWD!$A$2:$S$500,14,FALSE),0) -> 2591 | C50: =IF(OR(B50=0,B50="",B50="NA"),"NA",IF(VLOOKUP($A$3,'G10-WSWD'!$A$6:$Z$500,3,FALSE)>B50,"100% ("&VLOOKUP($A$3,'G10-WSWD'!$A$6:$Z$500,3,FALSE)&")",ROUND(VLOOKUP($A$3,'G10-WSWD'!$A$6:$Z$500,3,FALSE)/B50*100,0)&"% ("&VLOOKUP($A$3,'G10-WSWD'!$A$6:$Z$500,3,FALSE)&")")) -> 40% (1031) | D50: =IFERROR((IF($C50="NA","NA",VLOOKUP($A$3,'G10-WSWD'!$A$6:$Z$500,4,FALSE))),"NA") -> 2.23937487 | E50: =IF($D50="NA","NA",ROUND(VLOOKUP($A$3,'G10-WSWD'!$A$6:$Z$500,6,FALSE),0)&"% ("&VLOOKUP($A$3,'G10-WSWD'!$A$6:$Z$500,5,FALSE)&")") -> 28% (293) | F50: =IF($D50="NA","NA",ROUND(VLOOKUP($A$3,'G10-WSWD'!$A$6:$Z$500,8,FALSE),0)&"% ("&VLOOKUP($A$3,'G10-WSWD'!$A$6:$Z$500,7,FALSE)&")") -> 8% (82) | H50: =IFERROR(IF(VLOOKUP($A$3,'G10-WSWD'!$A$6:$Z$500,9,FALSE)=0,"NA",VLOOKUP($A$3,'G10-WSWD'!$A$6:$Z$500,10,FALSE)),"NA") -> 2.094098361 | I50: =IFERROR(IF($H50="NA","NA",VLOOKUP($A$3,'G10-WSWD'!$A$6:$Z$500,16,FALSE)&"% ("&VLOOKUP($A$3,'G10-WSWD'!$A$6:$Z$500,12,FALSE)&")"),"NA") -> 35% (323) | J50: =IFERROR(IF(VLOOKUP($A$3,'G10-WSWD'!$A$6:$Z$500,17,FALSE)=0,"NA",VLOOKUP($A$3,'G10-WSWD'!$A$6:$Z$500,18,FALSE)),"NA") -> 2.368306011 | K50: =IFERROR(IF($J50="NA","NA",VLOOKUP($A$3,'G10-WSWD'!$A$6:$Z$500,24,FALSE)&"% ("&VLOOKUP($A$3,'G10-WSWD'!$A$6:$Z$500,20,FALSE)&")"),"NA") -> 42% (384) | Q50: =IFERROR(VLOOKUP($A$3,'G10-WSWD'!$A$6:$Z$500,9,FALSE),"Not Test") -> 915 | R50: =IFERROR(VLOOKUP($A$3,'G10-WSWD'!$A$6:$Z$500,17,FALSE),"Not Test") -> 1031

Sheet EOC Reports
A2: Click here to return to the school and sheet selection interface
A3: ='Select School'!B3 -> 9999
A4: =TEXT(A3,"0000")&"-"&VLOOKUP(A3,SchList!$A$2:$B$504,2,FALSE) -> 9999-District
A5: Algebra I | Q5: Algebra I
A6: Satisfactory Progress Cut Scores at 44% or above | B6: Course Enrollment | C6: % and/or Number of Tested | D6: ='G9-10 Matrix'!C8&" ["&'G9-10 Matrix'!C9&"]" -> Overall [34] | F6: ='G9-10 Matrix'!D8&" ["&'G9-10 Matrix'!D9&"]" -> Functions, Linear Equations, and Inequalities [13] | H6: ='G9-10 Matrix'!E8&" ["&'G9-10 Matrix'!E9&"]" -> Polynomials [5] | J6: ='G9-10 Matrix'!F8&" ["&'G9-10 Matrix'!F9&"]" -> Rationals, Radicals, Quadratics, and Discrete Mathematics [16] | Q6: Number Tested
D7: Average Score | E7: % Satisfactory | F7: Average Score | G7: % Satisfactory | H7: Average Score | I7: % Satisfactory | J7: Average Score | K7: % Satisfactory
A8: All students | B8: =IFERROR(VLOOKUP(TEXT($A$3,"0000"),'Alg Enrollment'!$A$2:$Q$500,3,FALSE),0) -> 32444 | C8: =IFERROR((IF(OR(B8=0,B8="",B8="NA"),"NA",((IF(VLOOKUP($A$3,'ALG-ALL'!$A$6:$AM$500,3,FALSE)>=B8,"100% ("&VLOOKUP($A$3,'ALG-ALL'!$A$6:$AM$500,3,FALSE)&")",(ROUND((VLOOKUP($A$3,'ALG-ALL'!$A$6:$AM$500,3,FALSE)/B8*100),0))&"% ("&IF(VLOOKUP($A$3,'ALG-ALL'!$A$6:$AM$500,3,FALSE)="",0,VLOOKUP($A$3,'ALG-ALL'!$A$6:$AM$500,3,FALSE))&")"))))),"0% (0)") -> 92% (29850) | D8: =IFERROR((IF($C8="NA","NA",VLOOKUP($A$3,'ALG-ALL'!$A$6:$AM$500,4,FALSE))),"NA") -> 15.27446901 | E8: =IFERROR((IF($C8="NA","NA",ROUND(VLOOKUP($A$3,'ALG-ALL'!$A$6:$AM$500,6,FALSE),0)&"% ("&IF(VLOOKUP($A$3,'ALG-ALL'!$A$6:$AM$500,5,FALSE)="",0,VLOOKUP($A$3,'ALG-ALL'!$A$6:$AM$500,5,FALSE))&")")),"NA") -> 50% (14854) | F8: =IFERROR((IF($C8="NA","NA",VLOOKUP($A$3,'ALG-ALL'!$A$6:$AM$500,7,FALSE))),"NA") -> 6.034046901 | G8: NA | H8: =IFERROR((IF($C8="NA","NA",VLOOKUP($A$3,'ALG-ALL'!$A$6:$AM$500,10,FALSE))),"NA") -> 2.022703518 | I8: NA | J8: =IFERROR((IF($C8="NA","NA",VLOOKUP($A$3,'ALG-ALL'!$A$6:$AM$500,13,FALSE))),"NA") -> 7.213865997 | K8: NA | Q8: =IFERROR(VLOOKUP($A$3,'ALG-ALL'!$A$6:$AA$500,3,FALSE),"not tested") -> 29850
A9: FCAT Level 1 | B9: =IFERROR(VLOOKUP(TEXT($A$3,"0000"),'Alg Enrollment'!$A$2:$Q$500,4,FALSE),0) -> 5332 | C9: =IFERROR((IF(OR(B9=0,B9="",B9="NA"),"NA",((IF(VLOOKUP($A$3,'ALG-L1'!$A$6:$AM$500,3,FALSE)>=B9,"100% ("&VLOOKUP($A$3,'ALG-L1'!$A$6:$AM$500,3,FALSE)&")",(ROUND((VLOOKUP($A$3,'ALG-L1'!$A$6:$AM$500,3,FALSE)/B9*100),0))&"% ("&IF(VLOOKUP($A$3,'ALG-L1'!$A$6:$AM$500,3,FALSE)="",0,VLOOKUP($A$3,'ALG-L1'!$A$6:$AM$500,3,FALSE))&")"))))),"0% (0)") -> 100% (5460) | D9: =IFERROR((IF($C9="NA","NA",VLOOKUP($A$3,'ALG-L1'!$A$6:$AG$500,4,FALSE))),"NA") -> 10.57049451 | E9: =IFERROR((IF($C9="NA","NA",ROUND(VLOOKUP($A$3,'ALG-L1'!$A$6:$AG$500,6,FALSE),0)&"% ("&IF(VLOOKUP($A$3,'ALG-L1'!$A$6:$AG$500,5,FALSE)="",0,VLOOKUP($A$3,'ALG-L1'!$A$6:$AG$500,5,FALSE))&")")),"NA") -> 13% (718) | F9: =IFERROR((IF($C9="NA","NA",VLOOKUP($A$3,'ALG-L1'!$A$6:$AG$500,7,FALSE))),"NA") -> 4.094432234 | G9: NA | H9: =IFERROR((IF($C9="NA","NA",VLOOKUP($A$3,'ALG-L1'!$A$6:$AM$500,10,FALSE))),"NA") -> 1.462838828 | I9: NA | J9: =IFERROR((IF($C9="NA","NA",VLOOKUP($A$3,'ALG-L1'!$A$6:$AM$500,13,FALSE))),"NA") -> 5.017802198 | K9: NA | Q9: =IFERROR(VLOOKUP($A$3,'ALG-L1'!$A$6:$BX$500,3,FALSE),"not tested") -> 5460
A10: FCAT Level 2 | B10: =IFERROR(VLOOKUP(TEXT($A$3,"0000"),'Alg Enrollment'!$A$2:$Q$500,5,FALSE),0) -> 5370 | C10: =IFERROR((IF(OR(B10=0,B10="",B10="NA"),"NA",((IF(VLOOKUP($A$3,'ALG-L2'!$A$6:$AM$500,3,FALSE)>=B10,"100% ("&VLOOKUP($A$3,'ALG-L2'!$A$6:$AM$500,3,FALSE)&")",(ROUND((VLOOKUP($A$3,'ALG-L2'!$A$6:$AM$500,3,FALSE)/B10*100),0))&"% ("&IF(VLOOKUP($A$3,'ALG-L2'!$A$6:$AM$500,3,FALSE)="",0,VLOOKUP($A$3,'ALG-L2'!$A$6:$AM$500,3,FALSE))&")"))))),"0% (0)") -> 100% (5454) | D10: =IFERROR((IF($C10="NA","NA",VLOOKUP($A$3,'ALG-L2'!$A$6:$AG$500,4,FALSE))),"NA") -> 12.72779611 | E10: =IFERROR((IF($C10="NA","NA",ROUND(VLOOKUP($A$3,'ALG-L2'!$A$6:$AG$500,6,FALSE),0)&"% ("&IF(VLOOKUP($A$3,'ALG-L2'!$A$6:$AG$500,5,FALSE)="",0,VLOOKUP($A$3,'ALG-L2'!$A$6:$AG$500,5,FALSE))&")")),"NA") -> 30% (1632) | F10: =IFERROR((IF($C10="NA","NA",VLOOKUP($A$3,'ALG-L2'!$A$6:$AG$500,7,FALSE))),"NA") -> 4.861716172 | G10: NA | H10: =IFERROR((IF($C10="NA","NA",VLOOKUP($A$3,'ALG-L2'!$A$6:$AM$500,10,FALSE))),"NA") -> 1.738723872 | I10: NA | J10: =IFERROR((IF($C10="NA","NA",VLOOKUP($A$3,'ALG-L2'!$A$6:$AM$500,13,FALSE))),"NA") -> 6.118426843 | K10: NA | Q10: =IFERROR(VLOOKUP($A$3,'ALG-L2'!$A$6:$BX$500,3,FALSE),"not tested") -> 5454
A11: FCAT Level 3 | B11: =IFERROR(VLOOKUP(TEXT($A$3,"0000"),'Alg Enrollment'!$A$2:$Q$500,6,FALSE),0) -> 9822 | C11: =IFERROR((IF(OR(B11=0,B11="",B11="NA"),"NA",((IF(VLOOKUP($A$3,'ALG-L3'!$A$6:$AM$500,3,FALSE)>=B11,"100% ("&VLOOKUP($A$3,'ALG-L3'!$A$6:$AM$500,3,FALSE)&")",(ROUND((VLOOKUP($A$3,'ALG-L3'!$A$6:$AM$500,3,FALSE)/B11*100),0))&"% ("&IF(VLOOKUP($A$3,'ALG-L3'!$A$6:$AM$500,3,FALSE)="",0,VLOOKUP($A$3,'ALG-L3'!$A$6:$AM$500,3,FALSE))&")"))))),"0% (0)") -> 100% (9835) | D11: =IFERROR((IF($C11="NA","NA",VLOOKUP($A$3,'ALG-L3'!$A$6:$AG$500,4,FALSE))),"NA") -> 15.43846467 | E11: =IFERROR((IF($C11="NA","NA",ROUND(VLOOKUP($A$3,'ALG-L3'!$A$6:$AG$500,6,FALSE),0)&"% ("&IF(VLOOKUP($A$3,'ALG-L3'!$A$6:$AG$500,5,FALSE)="",0,VLOOKUP($A$3,'ALG-L3'!$A$6:$AG$500,5,FALSE))&")")),"NA") -> 54% (5299) | F11: =IFERROR((IF($C11="NA","NA",VLOOKUP($A$3,'ALG-L3'!$A$6:$AG$500,7,FALSE))),"NA") -> 6.066446365 | G11: NA | H11: =IFERROR((IF($C11="NA","NA",VLOOKUP($A$3,'ALG-L3'!$A$6:$AM$500,10,FALSE))),"NA") -> 2.014641586 | I11: NA | J11: =IFERROR((IF($C11="NA","NA",VLOOKUP($A$3,'ALG-L3'!$A$6:$AM$500,13,FALSE))),"NA") -> 7.363070666 | K11: NA | Q11: =IFERROR(VLOOKUP($A$3,'ALG-L3'!$A$6:$BX$500,3,FALSE),"not tested") -> 9835
A12: FCAT Level 4 | B12: =IFERROR(VLOOKUP(TEXT($A$3,"0000"),'Alg Enrollment'!$A$2:$Q$500,7,FALSE),0) -> 5534 | C12: =IFERROR((IF(OR(B12=0,B12="",B12="NA"),"NA",((IF(VLOOKUP($A$3,'ALG-L4'!$A$6:$AM$500,3,FALSE)>=B12,"100% ("&VLOOKUP($A$3,'ALG-L4'!$A$6:$AM$500,3,FALSE)&")",(ROUND((VLOOKUP($A$3,'ALG-L4'!$A$6:$AM$500,3,FALSE)/B12*100),0))&"% ("&IF(VLOOKUP($A$3,'ALG-L4'!$A$6:$AM$500,3,FALSE)="",0,VLOOKUP($A$3,'ALG-L4'!$A$6:$AM$500,3,FALSE))&")"))))),"0% (0)") -> 96% (5294) | D12: =IFERROR((IF($C12="NA","NA",VLOOKUP($A$3,'ALG-L4'!$A$6:$AG$500,4,FALSE))),"NA") -> 19.14344541 | E12: =IFERROR((IF($C12="NA","NA",ROUND(VLOOKUP($A$3,'ALG-L4'!$A$6:$AG$500,6,FALSE),0)&"% ("&IF(VLOOKUP($A$3,'ALG-L4'!$A$6:$AG$500,5,FALSE)="",0,VLOOKUP($A$3,'ALG-L4'!$A$6:$AG$500,5,FALSE))&")")),"NA") -> 81% (4280) | F12: =IFERROR((IF($C12="NA","NA",VLOOKUP($A$3,'ALG-L4'!$A$6:$AG$500,7,FALSE))),"NA") -> 7.748243294 | G12: NA | H12: =IFERROR((IF($C12="NA","NA",VLOOKUP($A$3,'ALG-L4'!$A$6:$AM$500,10,FALSE))),"NA") -> 2.443332074 | I12: NA | J12: =IFERROR((IF($C12="NA","NA",VLOOKUP($A$3,'ALG-L4'!$A$6:$AM$500,13,FALSE))),"NA") -> 8.957442388 | K12: NA | Q12: =IFERROR(VLOOKUP($A$3,'ALG-L4'!$A$6:$BX$500,3,FALSE),"not tested") -> 5294
A13: FCAT Level 5 | B13: =IFERROR(VLOOKUP(TEXT($A$3,"0000"),'Alg Enrollment'!$A$2:$Q$500,8,FALSE),0) -> 2712 | C13: =IFERROR((IF(OR(B13=0,B13="",B13="NA"),"NA",((IF(VLOOKUP($A$3,'ALG-L5'!$A$6:$AM$500,3,FALSE)>=B13,"100% ("&VLOOKUP($A$3,'ALG-L5'!$A$6:$AM$500,3,FALSE)&")",(ROUND((VLOOKUP($A$3,'ALG-L5'!$A$6:$AM$500,3,FALSE)/B13*100),0))&"% ("&IF(VLOOKUP($A$3,'ALG-L5'!$A$6:$AM$500,3,FALSE)="",0,VLOOKUP($A$3,'ALG-L5'!$A$6:$AM$500,3,FALSE))&")"))))),"0% (0)") -> 94% (2555) | D13: =IFERROR((IF($C13="NA","NA",VLOOKUP($A$3,'ALG-L5'!$A$6:$AG$500,4,FALSE))),"NA") -> 22.89600783 | E13: =IFERROR((IF($C13="NA","NA",ROUND(VLOOKUP($A$3,'ALG-L5'!$A$6:$AG$500,6,FALSE),0)&"% ("&IF(VLOOKUP($A$3,'ALG-L5'!$A$6:$AG$500,5,FALSE)="",0,VLOOKUP($A$3,'ALG-L5'!$A$6:$AG$500,5,FALSE))&")")),"NA") -> 95% (2436) | F13: =IFERROR((IF($C13="NA","NA",VLOOKUP($A$3,'ALG-L5'!$A$6:$AG$500,7,FALSE))),"NA") -> 9.337612524 | G13: NA | H13: =IFERROR((IF($C13="NA","NA",VLOOKUP($A$3,'ALG-L5'!$A$6:$AM$500,10,FALSE))),"NA") -> 2.943561644 | I13: NA | J13: =IFERROR((IF($C13="NA","NA",VLOOKUP($A$3,'ALG-L5'!$A$6:$AM$500,13,FALSE))),"NA") -> 10.61111546 | K13: NA | Q13: =IFERROR(VLOOKUP($A$3,'ALG-L5'!$A$6:$BX$500,3,FALSE),"not tested") -> 2555
A14: White | B14: =IFERROR(VLOOKUP(TEXT($A$3,"0000"),'Alg Enrollment'!$A$2:$Q$500,10,FALSE),0) -> 2752 | C14: =IFERROR((IF(OR(B14=0,B14="",B14="NA"),"NA",((IF(VLOOKUP($A$3,'ALG-W'!$A$6:$AG$500,3,FALSE)>=B14,"100% ("&VLOOKUP($A$3,'ALG-W'!$A$6:$AG$500,3,FALSE)&")",(ROUND((VLOOKUP($A$3,'ALG-W'!$A$6:$AG$500,3,FALSE)/B14*100),0))&"% ("&IF(VLOOKUP($A$3,'ALG-W'!$A$6:$AG$500,3,FALSE)="",0,VLOOKUP($A$3,'ALG-W'!$A$6:$AG$500,3,FALSE))&")"))))),"0% (0)") -> 88% (2417) | D14: =IFERROR((IF($C14="NA","NA",VLOOKUP($A$3,'ALG-W'!$A$6:$AG$500,4,FALSE))),"NA") -> 17.04720728 | E14: =IFERROR((IF($C14="NA","NA",ROUND(VLOOKUP($A$3,'ALG-W'!$A$6:$AG$500,6,FALSE),0)&"% ("&IF(VLOOKUP($A$3,'ALG-W'!$A$6:$AG$500,5,FALSE)="",0,VLOOKUP($A$3,'ALG-W'!$A$6:$AG$500,5,FALSE))&")")),"NA") -> 60% (1462) | F14: =IFERROR((IF($C14="NA","NA",VLOOKUP($A$3,'ALG-W'!$A$6:$AG$500,7,FALSE))),"NA") -> 6.849689698 | G14: NA | H14: =IFERROR((IF($C14="NA","NA",VLOOKUP($A$3,'ALG-W'!$A$6:$AM$500,10,FALSE))),"NA") -> 2.195614398 | I14: NA | J14: =IFERROR((IF($C14="NA","NA",VLOOKUP($A$3,'ALG-W'!$A$6:$AM$500,13,FALSE))),"NA") -> 8.011170873 | K14: NA | Q14: =IFERROR(VLOOKUP($A$3,'ALG-W'!$A$6:$BX$500,3,FALSE),"not tested") -> 2417
A15: Black | B15: =IFERROR(VLOOKUP(TEXT($A$3,"0000"),'Alg Enrollment'!$A$2:$Q$500,11,FALSE),0) -> 7658 | C15: =IFERROR((IF(OR(B15=0,B15="",B15="NA"),"NA",((IF(VLOOKUP($A$3,'ALG-B'!$A$6:$AG$500,3,FALSE)>=B15,"100% ("&VLOOKUP($A$3,'ALG-B'!$A$6:$AG$500,3,FALSE)&")",(ROUND((VLOOKUP($A$3,'ALG-B'!$A$6:$AG$500,3,FALSE)/B15*100),0))&"% ("&IF(VLOOKUP($A$3,'ALG-B'!$A$6:$AG$500,3,FALSE)="",0,VLOOKUP($A$3,'ALG-B'!$A$6:$AG$500,3,FALSE))&")"))))),"0% (0)") -> 89% (6829) | D15: =IFERROR((IF($C15="NA","NA",VLOOKUP($A$3,'ALG-B'!$A$6:$AG$500,4,FALSE))),"NA") -> 14.07348074 | E15: =IFERROR((IF($C15="NA","NA",ROUND(VLOOKUP($A$3,'ALG-B'!$A$6:$AG$500,6,FALSE),0)&"% ("&IF(VLOOKUP($A$3,'ALG-B'!$A$6:$AG$500,5,FALSE)="",0,VLOOKUP($A$3,'ALG-B'!$A$6:$AG$500,5,FALSE))&")")),"NA") -> 42% (2864) | F15: =IFERROR((IF($C15="NA","NA",VLOOKUP($A$3,'ALG-B'!$A$6:$AG$500,7,FALSE))),"NA") -> 5.322492312 | G15: NA | H15: =IFERROR((IF($C15="NA","NA",VLOOKUP($A$3,'ALG-B'!$A$6:$AM$500,10,FALSE))),"NA") -> 1.894186557 | I15: NA | J15: =IFERROR((IF($C15="NA","NA",VLOOKUP($A$3,'ALG-B'!$A$6:$AM$500,13,FALSE))),"NA") -> 6.888680627 | K15: NA | Q15: =IFERROR(VLOOKUP($A$3,'ALG-B'!$A$6:$BX$500,3,FALSE),"not tested") -> 6829
A16: Hispanic | B16: =IFERROR(VLOOKUP(TEXT($A$3,"0000"),'Alg Enrollment'!$A$2:$Q$500,12,FALSE),0) -> 21560 | C16: =IFERROR((IF(OR(B16=0,B16="",B16="NA"),"NA",((IF(VLOOKUP($A$3,'ALG-H'!$A$6:$AG$500,3,FALSE)>=B16,"100% ("&VLOOKUP($A$3,'ALG-H'!$A$6:$AG$500,3,FALSE)&")",(ROUND((VLOOKUP($A$3,'ALG-H'!$A$6:$AG$500,3,FALSE)/B16*100),0))&"% ("&IF(VLOOKUP($A$3,'ALG-H'!$A$6:$AG$500,3,FALSE)="",0,VLOOKUP($A$3,'ALG-H'!$A$6:$AG$500,3,FALSE))&")"))))),"0% (0)") -> 94% (20168) | D16: =IFERROR((IF($C16="NA","NA",VLOOKUP($A$3,'ALG-H'!$A$6:$AG$500,4,FALSE))),"NA") -> 15.37754363 | E16: =IFERROR((IF($C16="NA","NA",ROUND(VLOOKUP($A$3,'ALG-H'!$A$6:$AG$500,6,FALSE),0)&"% ("&IF(VLOOKUP($A$3,'ALG-H'!$A$6:$AG$500,5,FALSE)="",0,VLOOKUP($A$3,'ALG-H'!$A$6:$AG$500,5,FALSE))&")")),"NA") -> 51% (10199) | F16: =IFERROR((IF($C16="NA","NA",VLOOKUP($A$3,'ALG-H'!$A$6:$AG$500,7,FALSE))),"NA") -> 6.138214002 | G16: NA | H16: =IFERROR((IF($C16="NA","NA",VLOOKUP($A$3,'ALG-H'!$A$6:$AM$500,10,FALSE))),"NA") -> 2.036681872 | I16: NA | J16: =IFERROR((IF($C16="NA","NA",VLOOKUP($A$3,'ALG-H'!$A$6:$AM$500,13,FALSE))),"NA") -> 7.198790163 | K16: NA | Q16: =IFERROR(VLOOKUP($A$3,'ALG-H'!$A$6:$BX$500,3,FALSE),"not tested") -> 20168
A17: Asian | B17: =IFERROR(VLOOKUP(TEXT($A$3,"0000"),'Alg Enrollment'!$A$2:$Q$500,13,FALSE),0) -> 364 | C17: =IFERROR((IF(OR(B17=0,B17="",B17="NA"),"NA",((IF(VLOOKUP($A$3,'ALG-A'!$A$6:$AG$500,3,FALSE)>=B17,"100% ("&VLOOKUP($A$3,'ALG-A'!$A$6:$AG$500,3,FALSE)&")",(ROUND((VLOOKUP($A$3,'ALG-A'!$A$6:$AG$500,3,FALSE)/B17*100),0))&"% ("&IF(VLOOKUP($A$3,'ALG-A'!$A$6:$AG$500,3,FALSE)="",0,VLOOKUP($A$3,'ALG-A'!$A$6:$AG$500,3,FALSE))&")"))))),"0% (0)") -> 92% (334) | D17: =IFERROR((IF($C17="NA","NA",VLOOKUP($A$3,'ALG-A'!$A$6:$AG$500,4,FALSE))),"NA") -> 19.87844311 | E17: =IFERROR((IF($C17="NA","NA",ROUND(VLOOKUP($A$3,'ALG-A'!$A$6:$AG$500,6,FALSE),0)&"% ("&IF(VLOOKUP($A$3,'ALG-A'!$A$6:$AG$500,5,FALSE)="",0,VLOOKUP($A$3,'ALG-A'!$A$6:$AG$500,5,FALSE))&")")),"NA") -> 79% (263) | F17: =IFERROR((IF($C17="NA","NA",VLOOKUP($A$3,'ALG-A'!$A$6:$AG$500,7,FALSE))),"NA") -> 7.935628743 | G17: NA | H17: =IFERROR((IF($C17="NA","NA",VLOOKUP($A$3,'ALG-A'!$A$6:$AM$500,10,FALSE))),"NA") -> 2.762874251 | I17: NA | J17: =IFERROR((IF($C17="NA","NA",VLOOKUP($A$3,'ALG-A'!$A$6:$AM$500,13,FALSE))),"NA") -> 9.196407186 | K17: NA | Q17: =IFERROR(VLOOKUP($A$3,'ALG-A'!$A$6:$BX$500,3,FALSE),"not tested") -> 334
A18: Am. Indian | B18: =IFERROR(VLOOKUP(TEXT($A$3,"0000"),'Alg Enrollment'!$A$2:$Q$500,14,FALSE),0) -> 30 | C18: =IFERROR((IF(OR(B18=0,B18="",B18="NA"),"NA",((IF(VLOOKUP($A$3,'ALG-I'!$A$6:$AG$500,3,FALSE)>=B18,"100% ("&VLOOKUP($A$3,'ALG-I'!$A$6:$AG$500,3,FALSE)&")",(ROUND((VLOOKUP($A$3,'ALG-I'!$A$6:$AG$500,3,FALSE)/B18*100),0))&"% ("&IF(VLOOKUP($A$3,'ALG-I'!$A$6:$AG$500,3,FALSE)="",0,VLOOKUP($A$3,'ALG-I'!$A$6:$AG$500,3,FALSE))&")"))))),"0% (0)") -> 90% (27) | D18: =IFERROR((IF($C18="NA","NA",VLOOKUP($A$3,'ALG-I'!$A$6:$AG$500,4,FALSE))),"NA") -> 17.2962963 | E18: =IFERROR((IF($C18="NA","NA",ROUND(VLOOKUP($A$3,'ALG-I'!$A$6:$AG$500,6,FALSE),0)&"% ("&IF(VLOOKUP($A$3,'ALG-I'!$A$6:$AG$500,5,FALSE)="",0,VLOOKUP($A$3,'ALG-I'!$A$6:$AG$500,5,FALSE))&")")),"NA") -> 59% (16) | F18: =IFERROR((IF($C18="NA","NA",VLOOKUP($A$3,'ALG-I'!$A$6:$AG$500,7,FALSE))),"NA") -> 7.337037037 | G18: NA | H18: =IFERROR((IF($C18="NA","NA",VLOOKUP($A$3,'ALG-I'!$A$6:$AM$500,10,FALSE))),"NA") -> 2.218518519 | I18: NA | J18: =IFERROR((IF($C18="NA","NA",VLOOKUP($A$3,'ALG-I'!$A$6:$AM$500,13,FALSE))),"NA") -> 7.740740741 | K18: NA | Q18: =IFERROR(VLOOKUP($A$3,'ALG-I'!$A$6:$BX$500,3,FALSE),"not tested") -> 27
A19: ED | B19: =IFERROR(VLOOKUP(TEXT($A$3,"0000"),'Alg Enrollment'!$A$2:$Q$500,15,FALSE),0) -> 23742 | C19: =IFERROR((IF(OR(B19=0,B19="",B19="NA"),"NA",((IF(VLOOKUP($A$3,'ALG-ED'!$A$6:$AG$500,3,FALSE)>=B19,"100% ("&VLOOKUP($A$3,'ALG-ED'!$A$6:$AG$500,3,FALSE)&")",(ROUND((VLOOKUP($A$3,'ALG-ED'!$A$6:$AG$500,3,FALSE)/B19*100),0))&"% ("&IF(VLOOKUP($A$3,'ALG-ED'!$A$6:$AG$500,3,FALSE)="",0,VLOOKUP($A$3,'ALG-ED'!$A$6:$AG$500,3,FALSE))&")"))))),"0% (0)") -> 100% (23828) | D19: =IFERROR((IF($C19="NA","NA",VLOOKUP($A$3,'ALG-ED'!$A$6:$AG$500,4,FALSE))),"NA") -> 14.80173745 | E19: =IFERROR((IF($C19="NA","NA",ROUND(VLOOKUP($A$3,'ALG-ED'!$A$6:$AG$500,6,FALSE),0)&"% ("&IF(VLOOKUP($A$3,'ALG-ED'!$A$6:$AG$500,5,FALSE)="",0,VLOOKUP($A$3,'ALG-ED'!$A$6:$AG$500,5,FALSE))&")")),"NA") -> 47% (11093) | F19: =IFERROR((IF($C19="NA","NA",VLOOKUP($A$3,'ALG-ED'!$A$6:$AG$500,7,FALSE))),"NA") -> 5.81475575 | G19: NA | H19: =IFERROR((IF($C19="NA","NA",VLOOKUP($A$3,'ALG-ED'!$A$6:$AM$500,10,FALSE))),"NA") -> 1.967189861 | I19: NA | J19: =IFERROR((IF($C19="NA","NA",VLOOKUP($A$3,'ALG-ED'!$A$6:$AM$500,13,FALSE))),"NA") -> 7.025935874 | K19: NA | Q19: =IFERROR(VLOOKUP($A$3,'ALG-ED'!$A$6:$BX$500,3,FALSE),"not tested") -> 23828
A20: ELL | B20: =IFERROR(VLOOKUP(TEXT($A$3,"0000"),'Alg Enrollment'!$A$2:$Q$500,16,FALSE),0) -> 4642 | C20: =IFERROR((IF(OR(B20=0,B20="",B20="NA"),"NA",((IF(VLOOKUP($A$3,'ALG-ELL'!$A$6:$AG$500,3,FALSE)>=B20,"100% ("&VLOOKUP($A$3,'ALG-ELL'!$A$6:$AG$500,3,FALSE)&")",(ROUND((VLOOKUP($A$3,'ALG-ELL'!$A$6:$AG$500,3,FALSE)/B20*100),0))&"% ("&IF(VLOOKUP($A$3,'ALG-ELL'!$A$6:$AG$500,3,FALSE)="",0,VLOOKUP($A$3,'ALG-ELL'!$A$6:$AG$500,3,FALSE))&")"))))),"0% (0)") -> 88% (4070) | D20: =IFERROR((IF($C20="NA","NA",VLOOKUP($A$3,'ALG-ELL'!$A$6:$AG$500,4,FALSE))),"NA") -> 13.75823096 | E20: =IFERROR((IF($C20="NA","NA",ROUND(VLOOKUP($A$3,'ALG-ELL'!$A$6:$AG$500,6,FALSE),0)&"% ("&IF(VLOOKUP($A$3,'ALG-ELL'!$A$6:$AG$500,5,FALSE)="",0,VLOOKUP($A$3,'ALG-ELL'!$A$6:$AG$500,5,FALSE))&")")),"NA") -> 38% (1564) | F20: =IFERROR((IF($C20="NA","NA",VLOOKUP($A$3,'ALG-ELL'!$A$6:$AG$500,7,FALSE))),"NA") -> 5.491154791 | G20: NA | H20: =IFERROR((IF($C20="NA","NA",VLOOKUP($A$3,'ALG-ELL'!$A$6:$AM$500,10,FALSE))),"NA") -> 1.964127764 | I20: NA | J20: =IFERROR((IF($C20="NA","NA",VLOOKUP($A$3,'ALG-ELL'!$A$6:$AM$500,13,FALSE))),"NA") -> 6.302948403 | K20: NA | Q20: =IFERROR(VLOOKUP($A$3,'ALG-ELL'!$A$6:$BX$500,3,FALSE),"not tested") -> 4070
A21: SWD | B21: =IFERROR(VLOOKUP(TEXT($A$3,"0000"),'Alg Enrollment'!$A$2:$Q$500,17,FALSE),0) -> 3084 | C21: =IFERROR((IF(OR(B21=0,B21="",B21="NA"),"NA",((IF(VLOOKUP($A$3,'ALG-SWD'!$A$6:$AG$500,3,FALSE)>=B21,"100% ("&VLOOKUP($A$3,'ALG-SWD'!$A$6:$AG$500,3,FALSE)&")",(ROUND((VLOOKUP($A$3,'ALG-SWD'!$A$6:$AG$500,3,FALSE)/B21*100),0))&"% ("&IF(VLOOKUP($A$3,'ALG-SWD'!$A$6:$AG$500,3,FALSE)="",0,VLOOKUP($A$3,'ALG-SWD'!$A$6:$AG$500,3,FALSE))&")"))))),"0% (0)") -> 88% (2705) | D21: =IFERROR((IF($C21="NA","NA",VLOOKUP($A$3,'ALG-SWD'!$A$6:$AG$500,4,FALSE))),"NA") -> 11.95020333 | E21: =IFERROR((IF($C21="NA","NA",ROUND(VLOOKUP($A$3,'ALG-SWD'!$A$6:$AG$500,6,FALSE),0)&"% ("&IF(VLOOKUP($A$3,'ALG-SWD'!$A$6:$AG$500,5,FALSE)="",0,VLOOKUP($A$3,'ALG-SWD'!$A$6:$AG$500,5,FALSE))&")")),"NA") -> 25% (664) | F21: =IFERROR((IF($C21="NA","NA",VLOOKUP($A$3,'ALG-SWD'!$A$6:$AG$500,7,FALSE))),"NA") -> 4.683401109 | G21: NA | H21: =IFERROR((IF($C21="NA","NA",VLOOKUP($A$3,'ALG-SWD'!$A$6:$AM$500,10,FALSE))),"NA") -> 1.632495379 | I21: NA | J21: =IFERROR((IF($C21="NA","NA",VLOOKUP($A$3,'ALG-SWD'!$A$6:$AM$500,13,FALSE))),"NA") -> 5.643216266 | K21: NA | Q21: =IFERROR(VLOOKUP($A$3,'ALG-SWD'!$A$6:$BX$500,3,FALSE),"not tested") -> 2705
A22: Geometry | Q22: Geometry
A23: Level of Proficiency at 70% or above | B23: Course Enrollment | C23: % and/or Number of Tested | D23: ='G9-10 Matrix'!C12&" ["&'G9-10 Matrix'!C13&"]" -> Overall [38] | F23: ='G9-10 Matrix'!D12&" ["&'G9-10 Matrix'!D13&"]" -> Two-Dimensional Geometry [38] | H23: ='G9-10 Matrix'!E12&" ["&'G9-10 Matrix'!E13&"]" -> Three-Dimensional Geometry [0] | J23: ='G9-10 Matrix'!F12&" ["&'G9-10 Matrix'!F13&"]" -> Trigonometry and Discrete Mathematics [0] | Q23: Number Tested
D24: Average Score | E24: % Proficient | F24: Average Score | G24: % Proficient | H24: Average Score | I24: % Proficient | J24: Average Score | K24: % Proficient
A25: All students | B25: =IFERROR(VLOOKUP(TEXT($A$3,"0000"),'Geo Enrollment'!$A$3:$Q$500,3,FALSE),0) -> 28296 | C25: =IFERROR((IF(OR(B25=0,B25="",B25="NA"),"NA",((IF(VLOOKUP($A$3,'GEO-ALL'!$A$6:$AM$500,3,FALSE)>=B25,"100% ("&VLOOKUP($A$3,'GEO-ALL'!$A$6:$AM$500,3,FALSE)&")",(ROUND((VLOOKUP($A$3,'GEO-ALL'!$A$6:$AM$500,3,FALSE)/B25*100),0))&"% ("&IF(VLOOKUP($A$3,'GEO-ALL'!$A$6:$AM$500,3,FALSE)="",0,VLOOKUP($A$3,'GEO-ALL'!$A$6:$AM$500,3,FALSE))&")"))))),"0% (0)") -> 91% (25864) | D25: =IFERROR((IF($C25="NA","NA",VLOOKUP($A$3,'GEO-ALL'!$A$6:$AM$500,4,FALSE))),"NA") -> 19.81481983 | E25: =IFERROR((IF($C25="NA","NA",ROUND(VLOOKUP($A$3,'GEO-ALL'!$A$6:$AM$500,6,FALSE),0)&"% ("&IF(VLOOKUP($A$3,'GEO-ALL'!$A$6:$AM$500,5,FALSE)="",0,VLOOKUP($A$3,'GEO-ALL'!$A$6:$AM$500,5,FALSE))&")")),"NA") -> 17% (4448) | F25: =IFERROR((IF($C25="NA","NA",VLOOKUP($A$3,'GEO-ALL'!$A$6:$AM$500,7,FALSE))),"NA") -> 19.81481983 | G25: =IFERROR((IF($C25="NA","NA",ROUND(VLOOKUP($A$3,'GEO-ALL'!$A$6:$AM$500,9,FALSE),0)&"% ("&IF(VLOOKUP($A$3,'GEO-ALL'!$A$6:$AM$500,8,FALSE)="",0,VLOOKUP($A$3,'GEO-ALL'!$A$6:$AM$500,8,FALSE))&")")),"NA") -> 17% (4448) | H25: NT | I25: NT | J25: NT | K25: NT | Q25: =IFERROR(VLOOKUP($A$3,'GEO-ALL'!$A$6:$BX$500,3,FALSE),"not tested") -> 25864
A26: FCAT Level 1 | B26: NA | C26: =IFERROR((IF(OR(B26=0,B26="",B26="NA"),"NA",((IF(VLOOKUP($A$3,'GEO-L1'!$A$6:$AM$500,3,FALSE)>=B26,"100% ("&VLOOKUP($A$3,'GEO-L1'!$A$6:$AM$500,3,FALSE)&")",(ROUND((VLOOKUP($A$3,'GEO-L1'!$A$6:$AM$500,3,FALSE)/B26*100),0))&"% ("&IF(VLOOKUP($A$3,'GEO-L1'!$A$6:$AM$500,3,FALSE)="",0,VLOOKUP($A$3,'GEO-L1'!$A$6:$AM$500,3,FALSE))&")"))))),"0% (0)") -> NA | D26: NA | E26: NA | F26: NA | G26: NA | H26: NA | I26: NA | J26: NA | K26: NA | Q26: =IFERROR(VLOOKUP($A$3,'GEO-L1'!$A$6:$BX$500,3,FALSE),"not tested") -> 2922
A27: FCAT Level 2 | B27: NA | C27: =IFERROR((IF(OR(B27=0,B27="",B27="NA"),"NA",((IF(VLOOKUP($A$3,'GEO-L2'!$A$6:$AM$500,3,FALSE)>=B27,"100% ("&VLOOKUP($A$3,'GEO-L2'!$A$6:$AM$500,3,FALSE)&")",(ROUND((VLOOKUP($A$3,'GEO-L2'!$A$6:$AM$500,3,FALSE)/B27*100),0))&"% ("&IF(VLOOKUP($A$3,'GEO-L2'!$A$6:$AM$500,3,FALSE)="",0,VLOOKUP($A$3,'GEO-L2'!$A$6:$AM$500,3,FALSE))&")"))))),"0% (0)") -> NA | D27: NA | E27: NA | F27: NA | G27: NA | H27: NA | I27: NA | J27: NA | K27: NA | Q27: =IFERROR(VLOOKUP($A$3,'GEO-L2'!$A$6:$BX$500,3,FALSE),"not tested") -> 4927
A28: FCAT Level 3 | B28: NA | C28: =IFERROR((IF(OR(B28=0,B28="",B28="NA"),"NA",((IF(VLOOKUP($A$3,'GEO-L3'!$A$6:$AM$500,3,FALSE)>=B28,"100% ("&VLOOKUP($A$3,'GEO-L3'!$A$6:$AM$500,3,FALSE)&")",(ROUND((VLOOKUP($A$3,'GEO-L3'!$A$6:$AM$500,3,FALSE)/B28*100),0))&"% ("&IF(VLOOKUP($A$3,'GEO-L3'!$A$6:$AM$500,3,FALSE)="",0,VLOOKUP($A$3,'GEO-L3'!$A$6:$AM$500,3,FALSE))&")"))))),"0% (0)") -> NA | D28: NA | E28: NA | F28: NA | G28: NA | H28: NA | I28: NA | J28: NA | K28: NA | Q28: =IFERROR(VLOOKUP($A$3,'GEO-L3'!$A$6:$BX$500,3,FALSE),"not tested") -> 9146
A29: FCAT Level 4 | B29: NA | C29: =IFERROR((IF(OR(B29=0,B29="",B29="NA"),"NA",((IF(VLOOKUP($A$3,'GEO-L4'!$A$6:$AM$500,3,FALSE)>=B29,"100% ("&VLOOKUP($A$3,'GEO-L4'!$A$6:$AM$500,3,FALSE)&")",(ROUND((VLOOKUP($A$3,'GEO-L4'!$A$6:$AM$500,3,FALSE)/B29*100),0))&"% ("&IF(VLOOKUP($A$3,'GEO-L4'!$A$6:$AM$500,3,FALSE)="",0,VLOOKUP($A$3,'GEO-L4'!$A$6:$AM$500,3,FALSE))&")"))))),"0% (0)") -> NA | D29: NA | E29: NA | F29: NA | G29: NA | H29: NA | I29: NA | J29: NA | K29: NA | Q29: =IFERROR(VLOOKUP($A$3,'GEO-L4'!$A$6:$BX$500,3,FALSE),"not tested") -> 4537
A30: FCAT Level 5 | B30: NA | C30: =IFERROR((IF(OR(B30=0,B30="",B30="NA"),"NA",((IF(VLOOKUP($A$3,'GEO-L5'!$A$6:$AM$500,3,FALSE)>=B30,"100% ("&VLOOKUP($A$3,'GEO-L5'!$A$6:$AM$500,3,FALSE)&")",(ROUND((VLOOKUP($A$3,'GEO-L5'!$A$6:$AM$500,3,FALSE)/B30*100),0))&"% ("&IF(VLOOKUP($A$3,'GEO-L5'!$A$6:$AM$500,3,FALSE)="",0,VLOOKUP($A$3,'GEO-L5'!$A$6:$AM$500,3,FALSE))&")"))))),"0% (0)") -> NA | D30: NA | E30: NA | F30: NA | G30: NA | H30: NA | I30: NA | J30: NA | K30: NA | Q30: =IFERROR(VLOOKUP($A$3,'GEO-L5'!$A$6:$BX$500,3,FALSE),"not tested") -> 2195
A31: White | B31: =IFERROR(VLOOKUP(TEXT($A$3,"0000"),'Geo Enrollment'!$A$3:$Q$500,10,FALSE),0) -> 2459 | C31: =IFERROR((IF(OR(B31=0,B31="",B31="NA"),"NA",((IF(VLOOKUP($A$3,'GEO-W'!$A$6:$AG$500,3,FALSE)>=B31,"100% ("&VLOOKUP($A$3,'GEO-W'!$A$6:$AG$500,3,FALSE)&")",(ROUND((VLOOKUP($A$3,'GEO-W'!$A$6:$AG$500,3,FALSE)/B31*100),0))&"% ("&IF(VLOOKUP($A$3,'GEO-W'!$A$6:$AG$500,3,FALSE)="",0,VLOOKUP($A$3,'GEO-W'!$A$6:$AG$500,3,FALSE))&")"))))),"0% (0)") -> 90% (2218) | D31: =IFERROR((IF($C31="NA","NA",VLOOKUP($A$3,'GEO-W'!$A$6:$AM$500,4,FALSE))),"NA") -> 22.18972047 | E31: =IFERROR((IF($C31="NA","NA",ROUND(VLOOKUP($A$3,'GEO-W'!$A$6:$AG$500,6,FALSE),0)&"% ("&IF(VLOOKUP($A$3,'GEO-W'!$A$6:$AG$500,5,FALSE)="",0,VLOOKUP($A$3,'GEO-W'!$A$6:$AG$500,5,FALSE))&")")),"NA") -> 27% (609) | F31: =IFERROR((IF($C31="NA","NA",VLOOKUP($A$3,'GEO-W'!$A$6:$AG$500,7,FALSE))),"NA") -> 22.18972047 | G31: =IFERROR((IF($C31="NA","NA",ROUND(VLOOKUP($A$3,'GEO-W'!$A$6:$AG$500,9,FALSE),0)&"% ("&IF(VLOOKUP($A$3,'GEO-W'!$A$6:$AG$500,8,FALSE)="",0,VLOOKUP($A$3,'GEO-W'!$A$6:$AG$500,8,FALSE))&")")),"NA") -> 27% (609) | H31: NT | I31: NT | J31: NT | K31: NT | Q31: =IFERROR(VLOOKUP($A$3,'GEO-W'!$A$6:$BX$500,3,FALSE),"not tested") -> 2218
A32: Black | B32: =IFERROR(VLOOKUP(TEXT($A$3,"0000"),'Geo Enrollment'!$A$3:$Q$500,11,FALSE),0) -> 6686 | C32: =IFERROR((IF(OR(B32=0,B32="",B32="NA"),"NA",((IF(VLOOKUP($A$3,'GEO-B'!$A$6:$AG$500,3,FALSE)>=B32,"100% ("&VLOOKUP($A$3,'GEO-B'!$A$6:$AG$500,3,FALSE)&")",(ROUND((VLOOKUP($A$3,'GEO-B'!$A$6:$AG$500,3,FALSE)/B32*100),0))&"% ("&IF(VLOOKUP($A$3,'GEO-B'!$A$6:$AG$500,3,FALSE)="",0,VLOOKUP($A$3,'GEO-B'!$A$6:$AG$500,3,FALSE))&")"))))),"0% (0)") -> 88% (5900) | D32: =IFERROR((IF($C32="NA","NA",VLOOKUP($A$3,'GEO-B'!$A$6:$AM$500,4,FALSE))),"NA") -> 17.64989831 | E32: =IFERROR((IF($C32="NA","NA",ROUND(VLOOKUP($A$3,'GEO-B'!$A$6:$AG$500,6,FALSE),0)&"% ("&IF(VLOOKUP($A$3,'GEO-B'!$A$6:$AG$500,5,FALSE)="",0,VLOOKUP($A$3,'GEO-B'!$A$6:$AG$500,5,FALSE))&")")),"NA") -> 8% (484) | F32: =IFERROR((IF($C32="NA","NA",VLOOKUP($A$3,'GEO-B'!$A$6:$AG$500,7,FALSE))),"NA") -> 17.64989831 | G32: =IFERROR((IF($C32="NA","NA",ROUND(VLOOKUP($A$3,'GEO-B'!$A$6:$AG$500,9,FALSE),0)&"% ("&IF(VLOOKUP($A$3,'GEO-B'!$A$6:$AG$500,8,FALSE)="",0,VLOOKUP($A$3,'GEO-B'!$A$6:$AG$500,8,FALSE))&")")),"NA") -> 8% (484) | H32: NT | I32: NT | J32: NT | K32: NT | Q32: =IFERROR(VLOOKUP($A$3,'GEO-B'!$A$6:$BX$500,3,FALSE),"not tested") -> 5900
A33: Hispanic | B33: =IFERROR(VLOOKUP(TEXT($A$3,"0000"),'Geo Enrollment'!$A$3:$Q$500,12,FALSE),0) -> 18724 | C33: =IFERROR((IF(OR(B33=0,B33="",B33="NA"),"NA",((IF(VLOOKUP($A$3,'GEO-H'!$A$6:$AG$500,3,FALSE)>=B33,"100% ("&VLOOKUP($A$3,'GEO-H'!$A$6:$AG$500,3,FALSE)&")",(ROUND((VLOOKUP($A$3,'GEO-H'!$A$6:$AG$500,3,FALSE)/B33*100),0))&"% ("&IF(VLOOKUP($A$3,'GEO-H'!$A$6:$AG$500,3,FALSE)="",0,VLOOKUP($A$3,'GEO-H'!$A$6:$AG$500,3,FALSE))&")"))))),"0% (0)") -> 93% (17345) | D33: =IFERROR((IF($C33="NA","NA",VLOOKUP($A$3,'GEO-H'!$A$6:$AM$500,4,FALSE))),"NA") -> 20.15886999 | E33: =IFERROR((IF($C33="NA","NA",ROUND(VLOOKUP($A$3,'GEO-H'!$A$6:$AG$500,6,FALSE),0)&"% ("&IF(VLOOKUP($A$3,'GEO-H'!$A$6:$AG$500,5,FALSE)="",0,VLOOKUP($A$3,'GEO-H'!$A$6:$AG$500,5,FALSE))&")")),"NA") -> 19% (3210) | F33: =IFERROR((IF($C33="NA","NA",VLOOKUP($A$3,'GEO-H'!$A$6:$AG$500,7,FALSE))),"NA") -> 20.15886999 | G33: =IFERROR((IF($C33="NA","NA",ROUND(VLOOKUP($A$3,'GEO-H'!$A$6:$AG$500,9,FALSE),0)&"% ("&IF(VLOOKUP($A$3,'GEO-H'!$A$6:$AG$500,8,FALSE)="",0,VLOOKUP($A$3,'GEO-H'!$A$6:$AG$500,8,FALSE))&")")),"NA") -> 19% (3210) | H33: NT | I33: NT | J33: NT | K33: NT | Q33: =IFERROR(VLOOKUP($A$3,'GEO-H'!$A$6:$BX$500,3,FALSE),"not tested") -> 17345
A34: Asian | B34: =IFERROR(VLOOKUP(TEXT($A$3,"0000"),'Geo Enrollment'!$A$3:$Q$500,13,FALSE),0) -> 319 | C34: =IFERROR((IF(OR(B34=0,B34="",B34="NA"),"NA",((IF(VLOOKUP($A$3,'GEO-A'!$A$6:$AG$500,3,FALSE)>=B34,"100% ("&VLOOKUP($A$3,'GEO-A'!$A$6:$AG$500,3,FALSE)&")",(ROUND((VLOOKUP($A$3,'GEO-A'!$A$6:$AG$500,3,FALSE)/B34*100),0))&"% ("&IF(VLOOKUP($A$3,'GEO-A'!$A$6:$AG$500,3,FALSE)="",0,VLOOKUP($A$3,'GEO-A'!$A$6:$AG$500,3,FALSE))&")"))))),"0% (0)") -> 94% (300) | D34: =IFERROR((IF($C34="NA","NA",VLOOKUP($A$3,'GEO-A'!$A$6:$AM$500,4,FALSE))),"NA") -> 23.82633333 | E34: =IFERROR((IF($C34="NA","NA",ROUND(VLOOKUP($A$3,'GEO-A'!$A$6:$AG$500,6,FALSE),0)&"% ("&IF(VLOOKUP($A$3,'GEO-A'!$A$6:$AG$500,5,FALSE)="",0,VLOOKUP($A$3,'GEO-A'!$A$6:$AG$500,5,FALSE))&")")),"NA") -> 40% (121) | F34: =IFERROR((IF($C34="NA","NA",VLOOKUP($A$3,'GEO-A'!$A$6:$AG$500,7,FALSE))),"NA") -> 23.82633333 | G34: =IFERROR((IF($C34="NA","NA",ROUND(VLOOKUP($A$3,'GEO-A'!$A$6:$AG$500,9,FALSE),0)&"% ("&IF(VLOOKUP($A$3,'GEO-A'!$A$6:$AG$500,8,FALSE)="",0,VLOOKUP($A$3,'GEO-A'!$A$6:$AG$500,8,FALSE))&")")),"NA") -> 40% (121) | H34: NT | I34: NT | J34: NT | K34: NT | Q34: =IFERROR(VLOOKUP($A$3,'GEO-A'!$A$6:$BX$500,3,FALSE),"not tested") -> 300
A35: Am. Indian | B35: =IFERROR(VLOOKUP(TEXT($A$3,"0000"),'Geo Enrollment'!$A$3:$Q$500,14,FALSE),0) -> 31 | C35: =IFERROR((IF(OR(B35=0,B35="",B35="NA"),"NA",((IF(VLOOKUP($A$3,'GEO-I'!$A$6:$AG$500,3,FALSE)>=B35,"100% ("&VLOOKUP($A$3,'GEO-I'!$A$6:$AG$500,3,FALSE)&")",(ROUND((VLOOKUP($A$3,'GEO-I'!$A$6:$AG$500,3,FALSE)/B35*100),0))&"% ("&IF(VLOOKUP($A$3,'GEO-I'!$A$6:$AG$500,3,FALSE)="",0,VLOOKUP($A$3,'GEO-I'!$A$6:$AG$500,3,FALSE))&")"))))),"0% (0)") -> 97% (30) | D35: =IFERROR((IF($C35="NA","NA",VLOOKUP($A$3,'GEO-I'!$A$6:$AM$500,4,FALSE))),"NA") -> 20.23 | E35: =IFERROR((IF($C35="NA","NA",ROUND(VLOOKUP($A$3,'GEO-I'!$A$6:$AG$500,6,FALSE),0)&"% ("&IF(VLOOKUP($A$3,'GEO-I'!$A$6:$AG$500,5,FALSE)="",0,VLOOKUP($A$3,'GEO-I'!$A$6:$AG$500,5,FALSE))&")")),"NA") -> 23% (7) | F35: =IFERROR((IF($C35="NA","NA",VLOOKUP($A$3,'GEO-I'!$A$6:$AG$500,7,FALSE))),"NA") -> 20.23 | G35: =IFERROR((IF($C35="NA","NA",ROUND(VLOOKUP($A$3,'GEO-I'!$A$6:$AG$500,9,FALSE),0)&"% ("&IF(VLOOKUP($A$3,'GEO-I'!$A$6:$AG$500,8,FALSE)="",0,VLOOKUP($A$3,'GEO-I'!$A$6:$AG$500,8,FALSE))&")")),"NA") -> 23% (7) | H35: NT | I35: NT | J35: NT | K35: NT | Q35: =IFERROR(VLOOKUP($A$3,'GEO-I'!$A$6:$BX$500,3,FALSE),"not tested") -> 30
A36: ED | B36: =IFERROR(VLOOKUP(TEXT($A$3,"0000"),'Geo Enrollment'!$A$3:$Q$500,15,FALSE),0) -> 20034 | C36: =IFERROR((IF(OR(B36=0,B36="",B36="NA"),"NA",((IF(VLOOKUP($A$3,'GEO-ED'!$A$6:$AG$500,3,FALSE)>=B36,"100% ("&VLOOKUP($A$3,'GEO-ED'!$A$6:$AG$500,3,FALSE)&")",(ROUND((VLOOKUP($A$3,'GEO-ED'!$A$6:$AG$500,3,FALSE)/B36*100),0))&"% ("&IF(VLOOKUP($A$3,'GEO-ED'!$A$6:$AG$500,3,FALSE)="",0,VLOOKUP($A$3,'GEO-ED'!$A$6:$AG$500,3,FALSE))&")"))))),"0% (0)") -> 100% (20040) | D36: =IFERROR((IF($C36="NA","NA",VLOOKUP($A$3,'GEO-ED'!$A$6:$AM$500,4,FALSE))),"NA") -> 19.17144711 | E36: =IFERROR((IF($C36="NA","NA",ROUND(VLOOKUP($A$3,'GEO-ED'!$A$6:$AG$500,6,FALSE),0)&"% ("&IF(VLOOKUP($A$3,'GEO-ED'!$A$6:$AG$500,5,FALSE)="",0,VLOOKUP($A$3,'GEO-ED'!$A$6:$AG$500,5,FALSE))&")")),"NA") -> 14% (2832) | F36: =IFERROR((IF($C36="NA","NA",VLOOKUP($A$3,'GEO-ED'!$A$6:$AG$500,7,FALSE))),"NA") -> 19.17144711 | G36: =IFERROR((IF($C36="NA","NA",ROUND(VLOOKUP($A$3,'GEO-ED'!$A$6:$AG$500,9,FALSE),0)&"% ("&IF(VLOOKUP($A$3,'GEO-ED'!$A$6:$AG$500,8,FALSE)="",0,VLOOKUP($A$3,'GEO-ED'!$A$6:$AG$500,8,FALSE))&")")),"NA") -> 14% (2832) | H36: NT | I36: NT | J36: NT | K36: NT | Q36: =IFERROR(VLOOKUP($A$3,'GEO-ED'!$A$6:$BX$500,3,FALSE),"not tested") -> 20040
A37: ELL | B37: =IFERROR(VLOOKUP(TEXT($A$3,"0000"),'Geo Enrollment'!$A$3:$Q$500,16,FALSE),0) -> 3943 | C37: =IFERROR((IF(OR(B37=0,B37="",B37="NA"),"NA",((IF(VLOOKUP($A$3,'GEO-ELL'!$A$6:$AG$500,3,FALSE)>=B37,"100% ("&VLOOKUP($A$3,'GEO-ELL'!$A$6:$AG$500,3,FALSE)&")",(ROUND((VLOOKUP($A$3,'GEO-ELL'!$A$6:$AG$500,3,FALSE)/B37*100),0))&"% ("&IF(VLOOKUP($A$3,'GEO-ELL'!$A$6:$AG$500,3,FALSE)="",0,VLOOKUP($A$3,'GEO-ELL'!$A$6:$AG$500,3,FALSE))&")"))))),"0% (0)") -> 88% (3466) | D37: =IFERROR((IF($C37="NA","NA",VLOOKUP($A$3,'GEO-ELL'!$A$6:$AM$500,4,FALSE))),"NA") -> 17.15954991 | E37: =IFERROR((IF($C37="NA","NA",ROUND(VLOOKUP($A$3,'GEO-ELL'!$A$6:$AG$500,6,FALSE),0)&"% ("&IF(VLOOKUP($A$3,'GEO-ELL'!$A$6:$AG$500,5,FALSE)="",0,VLOOKUP($A$3,'GEO-ELL'!$A$6:$AG$500,5,FALSE))&")")),"NA") -> 10% (339) | F37: =IFERROR((IF($C37="NA","NA",VLOOKUP($A$3,'GEO-ELL'!$A$6:$AG$500,7,FALSE))),"NA") -> 17.15954991 | G37: =IFERROR((IF($C37="NA","NA",ROUND(VLOOKUP($A$3,'GEO-ELL'!$A$6:$AG$500,9,FALSE),0)&"% ("&IF(VLOOKUP($A$3,'GEO-ELL'!$A$6:$AG$500,8,FALSE)="",0,VLOOKUP($A$3,'GEO-ELL'!$A$6:$AG$500,8,FALSE))&")")),"NA") -> 10% (339) | H37: NT | I37: NT | J37: NT | K37: NT | Q37: =IFERROR(VLOOKUP($A$3,'GEO-ELL'!$A$6:$BX$500,3,FALSE),"not tested") -> 3466
A38: SWD | B38: =IFERROR(VLOOKUP(TEXT($A$3,"0000"),'Geo Enrollment'!$A$3:$Q$500,17,FALSE),0) -> 2718 | C38: =IFERROR((IF(OR(B38=0,B38="",B38="NA"),"NA",((IF(VLOOKUP($A$3,'GEO-SWD'!$A$6:$AG$500,3,FALSE)>=B38,"100% ("&VLOOKUP($A$3,'GEO-SWD'!$A$6:$AG$500,3,FALSE)&")",(ROUND((VLOOKUP($A$3,'GEO-SWD'!$A$6:$AG$500,3,FALSE)/B38*100),0))&"% ("&IF(VLOOKUP($A$3,'GEO-SWD'!$A$6:$AG$500,3,FALSE)="",0,VLOOKUP($A$3,'GEO-SWD'!$A$6:$AG$500,3,FALSE))&")"))))),"0% (0)") -> 88% (2390) | D38: =IFERROR((IF($C38="NA","NA",VLOOKUP($A$3,'GEO-SWD'!$A$6:$AM$500,4,FALSE))),"NA") -> 15.37640167 | E38: =IFERROR((IF($C38="NA","NA",ROUND(VLOOKUP($A$3,'GEO-SWD'!$A$6:$AG$500,6,FALSE),0)&"% ("&IF(VLOOKUP($A$3,'GEO-SWD'!$A$6:$AG$500,5,FALSE)="",0,VLOOKUP($A$3,'GEO-SWD'!$A$6:$AG$500,5,FALSE))&")")),"NA") -> 5% (123) | F38: =IFERROR((IF($C38="NA","NA",VLOOKUP($A$3,'GEO-SWD'!$A$6:$AG$500,7,FALSE))),"NA") -> 15.37640167 | G38: =IFERROR((IF($C38="NA","NA",ROUND(VLOOKUP($A$3,'GEO-SWD'!$A$6:$AG$500,9,FALSE),0)&"% ("&IF(VLOOKUP($A$3,'GEO-SWD'!$A$6:$AG$500,8,FALSE)="",0,VLOOKUP($A$3,'GEO-SWD'!$A$6:$AG$500,8,FALSE))&")")),"NA") -> 5% (123) | H38: NT | I38: NT | J38: NT | K38: NT | Q38: =IFERROR(VLOOKUP($A$3,'GEO-SWD'!$A$6:$BX$500,3,FALSE),"not tested") -> 2390
A39: Biology | Q39: Biology
A40: Level of Proficiency at 70% or above | B40: Course Enrollment | C40: % of Students Tested | D40: ='G9-10 Matrix'!C15&" ["&'G9-10 Matrix'!C16&"]" -> Overall [67] | F40: ='G9-10 Matrix'!D15&" ["&'G9-10 Matrix'!D16&"]" -> Molecular and Cellular Biology [24] | H40: ='G9-10 Matrix'!E15&" ["&'G9-10 Matrix'!E16&"]" -> Classification, Heredity, and Evolution [18] | J40: ='G9-10 Matrix'!F15&" ["&'G9-10 Matrix'!F16&"]" -> Organisms, Populations, and Ecosystems [25] | Q40: Number Tested
D41: Average Score | E41: % Proficient | F41: Average Score | G41: % Proficient | H41: Average Score | I41: % Proficient | J41: Average Score | K41: % Proficient
A42: All students | B42: =IFERROR(VLOOKUP(TEXT($A$3,"0000"),'Bio Enrollment'!$A$2:$C$500,3,FALSE),0) -> 27636 | C42: =IFERROR((IF(OR(B42=0,B42="",B42="NA"),"NA",((IF(VLOOKUP($A$3,'Bio-ALL'!$A$14:$X$500,3,FALSE)>=B42,"100% ("&VLOOKUP($A$3,'Bio-ALL'!$A$14:$X$500,3,FALSE)&")",(ROUND((VLOOKUP($A$3,'Bio-ALL'!$A$14:$X$500,3,FALSE)/B42*100),0))&"% ("&VLOOKUP($A$3,'Bio-ALL'!$A$14:$X$500,3,FALSE)&")"))))),"NA") -> 90% (24922) | D42: =IFERROR((IF($C42="NA","NA",VLOOKUP($A$3,'Bio-ALL'!$A$6:$AM$500,4,FALSE))),"NA") -> 28.66760693 | E42: =IFERROR((IF($C42="NA","NA",ROUND(VLOOKUP($A$3,'Bio-ALL'!$A$6:$AM$500,6,FALSE),0)&"% ("&IF(VLOOKUP($A$3,'Bio-ALL'!$A$6:$AM$500,5,FALSE)="",0,VLOOKUP($A$3,'Bio-ALL'!$A$6:$AM$500,5,FALSE))&")")),"NA") -> 3% (739) | F42: =IFERROR((IF($C42="NA","NA",VLOOKUP($A$3,'Bio-ALL'!$A$6:$AM$500,7,FALSE))),"NA") -> 9.663951529 | G42: =IFERROR((IF($C42="NA","NA",ROUND(VLOOKUP($A$3,'Bio-ALL'!$A$6:$AM$500,9,FALSE),0)&"% ("&IF(VLOOKUP($A$3,'Bio-ALL'!$A$6:$AM$500,8,FALSE)="",0,VLOOKUP($A$3,'Bio-ALL'!$A$6:$AM$500,8,FALSE))&")")),"NA") -> 3% (849) | H42: =IFERROR((IF($C42="NA","NA",VLOOKUP($A$3,'Bio-ALL'!$A$6:$AM$500,10,FALSE))),"NA") -> 7.700674103 | I42: =IFERROR((IF($C42="NA","NA",ROUND(VLOOKUP($A$3,'Bio-ALL'!$A$6:$AM$500,12,FALSE),0)&"% ("&IF(VLOOKUP($A$3,'Bio-ALL'!$A$6:$AM$500,11,FALSE)="",0,VLOOKUP($A$3,'Bio-ALL'!$A$6:$AM$500,11,FALSE))&")")),"NA") -> 7% (1652) | J42: =IFERROR((IF($C42="NA","NA",VLOOKUP($A$3,'Bio-ALL'!$A$6:$AM$500,13,FALSE))),"NA") -> 11.29654923 | K42: =IFERROR((IF($C42="NA","NA",ROUND(VLOOKUP($A$3,'Bio-ALL'!$A$6:$AM$500,15,FALSE),0)&"% ("&IF(VLOOKUP($A$3,'Bio-ALL'!$A$6:$AM$500,14,FALSE)="",0,VLOOKUP($A$3,'Bio-ALL'!$A$6:$AM$500,14,FALSE))&")")),"NA") -> 6% (1602) | Q42: =IFERROR(VLOOKUP($A$3,'Bio-ALL'!$A$14:$BR$500,3,FALSE),"not tested") -> 24922
A43: US History | Q43: US History
A44: Level of Proficiency at 70% or above | B44: Course Enrollment | C44: % of Students Tested | D44: ='G9-10 Matrix'!C18&" ["&'G9-10 Matrix'!C19&"]" -> Overall [39] | F44: ='G9-10 Matrix'!D18&" ["&'G9-10 Matrix'!D19&"]" -> Late Nineteenth and Early Century, 1860-1910 [9] | H44: ='G9-10 Matrix'!E18&" ["&'G9-10 Matrix'!E19&"]" -> Global Military, Political, & Eco. Challenges [19] | J44: ='G9-10 Matrix'!F18&" ["&'G9-10 Matrix'!F19&"]" -> The U.S. & Defense of the International Peace [11] | Q44: Number Tested
D45: Average Score | E45: % Proficient | F45: Average Score | G45: % Proficient | H45: Average Score | I45: % Proficient | J45: Average Score | K45: % Proficient
A46: All students | B46: =IFERROR(VLOOKUP(TEXT($A$3,"0000"),'USH Enrollment'!$A$2:$C$497,3,FALSE),0) -> 20752 | C46: =IFERROR((IF(OR(B46=0,B46="",B46="NA"),"NA",((IF(VLOOKUP($A$3,'USH-ALL'!$A$14:$AG$500,3,FALSE)>=B46,"100% ("&VLOOKUP($A$3,'USH-ALL'!$A$14:$AG$500,3,FALSE)&")",(ROUND((VLOOKUP($A$3,'USH-ALL'!$A$14:$AG$500,3,FALSE)/B46*100),0))&"% ("&VLOOKUP($A$3,'USH-ALL'!$A$14:$AG$500,3,FALSE)&")"))))),"NA") -> 92% (19032) | D46: =IFERROR((IF($C46="NA","NA",VLOOKUP($A$3,'USH-ALL'!$A$14:$AG$500,4,FALSE))),"NA") -> 17.75152898 | E46: =IFERROR((IF($C46="NA","NA",ROUND(VLOOKUP($A$3,'USH-ALL'!$A$14:$AG$500,9,FALSE)*100,0)&"% ("&IF(VLOOKUP($A$3,'USH-ALL'!$A$14:$AG$500,7,FALSE)="",0,VLOOKUP($A$3,'USH-ALL'!$A$14:$AG$500,7,FALSE))&")")),"NA") -> 0% (21) | F46: =IFERROR((IF($C46="NA","NA",VLOOKUP($A$3,'USH-ALL'!$A$14:$AG$500,10,FALSE))),"NA") -> 3.14847097 | G46: =IFERROR((IF($C46="NA","NA",ROUND(VLOOKUP($A$3,'USH-ALL'!$A$14:$AG$500,15,FALSE)*100,0)&"% ("&IF(VLOOKUP($A$3,'USH-ALL'!$A$14:$AG$500,13,FALSE)="",0,VLOOKUP($A$3,'USH-ALL'!$A$14:$AG$500,13,FALSE))&")")),"NA") -> 3% (556) | H46: =IFERROR((IF($C46="NA","NA",VLOOKUP($A$3,'USH-ALL'!$A$14:$AG$500,16,FALSE))),"NA") -> 5.74847099 | I46: =IFERROR((IF($C46="NA","NA",ROUND(VLOOKUP($A$3,'USH-ALL'!$A$14:$AG$500,21,FALSE)*100,0)&"% ("&IF(VLOOKUP($A$3,'USH-ALL'!$A$14:$AG$500,19,FALSE)="",0,VLOOKUP($A$3,'USH-ALL'!$A$14:$AG$500,19,FALSE))&")")),"NA") -> 0% (66) | J46: =IFERROR((IF($C46="NA","NA",VLOOKUP($A$3,'USH-ALL'!$A$14:$AG$500,22,FALSE))),"NA") -> 8.8061162 | K46: =IFERROR((IF($C46="NA","NA",ROUND(VLOOKUP($A$3,'USH-ALL'!$A$14:$AG$500,27,FALSE)*100,0)&"% ("&IF(VLOOKUP($A$3,'USH-ALL'!$A$14:$AG$500,25,FALSE)="",0,VLOOKUP($A$3,'USH-ALL'!$A$14:$AG$500,25,FALSE))&")")),"NA") -> 0% (19) | Q46: =IFERROR(VLOOKUP($A$3,'USH-ALL'!$A$14:$BR$500,3,FALSE),"not tested") -> 19032

Sheet G9-10 Matrix (hidden)
A2: Grade | B2: Reading | C2: Overall | D2: Vocabulary | E2: Reading Application | F2: Literary Analysis Fiction/Nonfiction | G2: Informational Text/ Research Process
A3: 9 | B3: N of Items | C3: =SUM(D3:G3) -> 57 | D3: 13 | E3: 22 | F3: 12 | G3: 10
A4: 9 | B4: 51% Cut | C4: =ROUND(0.505*C3,2) -> 28.79 | D4: =ROUND(0.505*D3,2) -> 6.57 | E4: =ROUND(0.505*E3,2) -> 11.11 | F4: =ROUND(0.505*F3,2) -> 6.06 | G4: =ROUND(0.505*G3,2) -> 5.05
A5: 10 | B5: N of Items | C5: =SUM(D5:G5) -> 53 | D5: 11 | E5: 23 | F5: 10 | G5: 9
A6: 10 | B6: 51% Cut | C6: =ROUND(0.505*C5,2) -> 26.77 | D6: =ROUND(0.505*D5,2) -> 5.56 | E6: =ROUND(0.505*E5,2) -> 11.62 | F6: =ROUND(0.505*F5,2) -> 5.05 | G6: =ROUND(0.505*G5,2) -> 4.55
A8: Algebra | B8: Algebra | C8: Overall | D8: Functions, Linear Equations, and Inequalities | E8: Polynomials | F8: Rationals, Radicals, Quadratics, and Discrete Mathematics
B9: N of Items | C9: =SUM(D9:G9) -> 34 | D9: 13 | E9: 5 | F9: 16
B10: 51% Cut | C10: =ROUND(0.505*C9,2) -> 17.17 | D10: =ROUND(0.505*D9,2) -> 6.57 | E10: =ROUND(0.505*E9,2) -> 2.53 | F10: =ROUND(0.505*F9,2) -> 8.08
A12: Geometry | B12: Geometry | C12: Overall | D12: Two-Dimensional Geometry | E12: Three-Dimensional Geometry | F12: Trigonometry and Discrete Mathematics
B13: N of Items | C13: =SUM(D13:F13) -> 38 | D13: 38 | E13: 0 | F13: 0
B14: 51% Cut | C14: =ROUND(0.505*C13,2) -> 19.19 | D14: =ROUND(0.505*D13,2) -> 19.19 | E14: =ROUND(0.505*E13,2) -> 0 | F14: =ROUND(0.505*F13,2) -> 0
A15: Biology | B15: Biology | C15: Overall | D15: Molecular and Cellular Biology | E15: Classification, Heredity, and Evolution | F15: Organisms, Populations, and Ecosystems
B16: N of Items | C16: =SUM(D16:G16) -> 67 | D16: 24 | E16: 18 | F16: 25
B17: 51% Cut | C17: =ROUND(0.505*C16,2) -> 33.84 | D17: =ROUND(0.505*D16,2) -> 12.12 | E17: =ROUND(0.505*E16,2) -> 9.09 | F17: =ROUND(0.505*F16,2) -> 12.63
A18: US History | B18: US History | C18: Overall | D18: Late Nineteenth and Early Century, 1860-1910 | E18: Global Military, Political, & Eco. Challenges | F18: The U.S. & Defense of the International Peace
B19: N of Items | C19: =SUM(D19:G19) -> 39 | D19: 9 | E19: 19 | F19: 11
B20: 51% Cut | C20: =ROUND(0.505*C19,2) -> 19.7 | D20: =ROUND(0.505*D19,2) -> 4.55 | E20: =ROUND(0.505*E19,2) -> 9.6 | F20: =ROUND(0.505*F19,2) -> 5.56

Sheet Alg Enrollment (hidden)
A1: 1 | B1: 2 | C1: 3 | D1: 4 | E1: 5 | F1: 6 | G1: 7 | H1: 8 | I1: 9 | J1: 10 | K1: 11 | L1: 12 | M1: 13 | N1: 14 | O1: 15 | P1: 16 | Q1: 17
B2: SchName | C2: Total | D2: ML1 | E2: ML2 | F2: ML3 | G2: ML4 | H2: ML5 | I2: ML0 | J2: W | K2: B | L2: H | M2: A | N2: I | O2: ED | P2: ELL | Q2: SWD
A3: 0070 | B3: CORAL REEF MONTESSORI ACAD CH | C3: 20 | D3: 0 | E3: 1 | F3: 4 | G3: 7 | H3: 7 | I3: 1 | J3: 4 | K3: 3 | L3: 12 | M3: 1 | N3: 0 | O3: 5 | P3: 0 | Q3: 1
A4: 0071 | B4: EUGENIA B. THOMAS K-8 CENTER | C4: 44 | D4: 0 | E4: 0 | F4: 3 | G4: 23 | H4: 15 | I4: 3 | J4: 4 | K4: 0 | L4: 37 | M4: 3 | N4: 0 | O4: 18 | P4: 1 | Q4: 1
A5: 0073 | B5: MANDARIN LAKES K-8 CENTER | C5: 32 | D5: 0 | E5: 1 | F5: 18 | G5: 10 | H5: 2 | I5: 1 | J5: 3 | K5: 14 | L5: 14 | M5: 0 | N5: 0 | O5: 29 | P5: 0 | Q5: 1
A6: 0091 | B6: BOB GRAHAM EDUCATION CTR | C6: 76 | D6: 0 | E6: 0 | F6: 12 | G6: 33 | H6: 31 | I6: 0 | J6: 5 | K6: 3 | L6: 66 | M6: 1 | N6: 0 | O6: 32 | P6: 0 | Q6: 0
A7: 0092 | B7: NORMAN S. EDELCUP/SUNNY ISLES | C7: 85 | D7: 0 | E7: 0 | F7: 2 | G7: 25 | H7: 56 | I7: 2 | J7: 35 | K7: 1 | L7: 45 | M7: 4 | N7: 0 | O7: 32 | P7: 6 | Q7: 1
A8: 0122 | B8: DR ROLANDO ESPINOSA K-8 | C8: 31 | D8: 0 | E8: 0 | F8: 4 | G8: 11 | H8: 14 | I8: 2 | J8: 1 | K8: 0 | L8: 29 | M8: 1 | N8: 0 | O8: 11 | P8: 12 | Q8: 0
A9: 0231 | B9: AVENTURA WATERWAYS K-8 CENTER | C9: 75 | D9: 0 | E9: 1 | F9: 9 | G9: 39 | H9: 21 | I9: 5 | J9: 22 | K9: 9 | L9: 44 | M9: 0 | N9: 0 | O9: 32 | P9: 4 | Q9: 0
A10: 0241 | B10: RUTH K BROAD/BAY HARBOR K-8 | C10: 49 | D10: 0 | E10: 0 | F10: 2 | G10: 22 | H10: 22 | I10: 3 | J10: 23 | K10: 1 | L10: 25 | M10: 0 | N10: 0 | O10: 15 | P10: 1 | Q10: 2
A11: 0332 | B11: SOMERSET ACADEMY(SILVER PALMS) | C11: 43 | D11: 0 | E11: 0 | F11: 16 | G11: 23 | H11: 4 | I11: 0 | J11: 3 | K11: 4 | L11: 36 | M11: 0 | N11: 0 | O11: 34 | P11: 1 | Q11: 3
A12: 0451 | B12: BOWMAN ASHE/DOOLIN K-8 ACAD | C12: 44 | D12: 0 | E12: 2 | F12: 13 | G12: 21 | H12: 8 | I12: 0 | J12: 3 | K12: 0 | L12: 40 | M12: 1 | N12: 0 | O12: 41 | P12: 2 | Q12: 3
A13: 0761 | B13: FIENBERG/FISHER K-8 CENTER | C13: 24 | D13: 0 | E13: 2 | F13: 5 | G13: 10 | H13: 5 | I13: 2 | J13: 3 | K13: 2 | L13: 16 | M13: 3 | N13: 0 | O13: 23 | P13: 0 | Q13: 0
A14: 0950 | B14: AVENTURA CITY OF EXCELLENCE | C14: 92 | D14: 0 | E14: 0 | F14: 14 | G14: 38 | H14: 37 | I14: 3 | J14: 52 | K14: 1 | L14: 37 | M14: 2 | N14: 0 | O14: 11 | P14: 3 | Q14: 2
A15: 0961 | B15: CORAL GABLES PREPARATORY ACAD | C15: 74 | D15: 1 | E15: 6 | F15: 28 | G15: 18 | H15: 18 | I15: 3 | J15: 11 | K15: 1 | L15: 61 | M15: 1 | N15: 0 | O15: 30 | P15: 2 | Q15: 3
A16: 1020 | B16: YOUTH CO-OP CHARTER SCHOOL | C16: 25 | D16: 0 | E16: 0 | F16: 6 | G16: 10 | H16: 9 | I16: 0 | J16: 0 | K16: 0 | L16: 24 | M16: 0 | N16: 1 | O16: 18 | P16: 2 | Q16: 0
A17: 1121 | B17: CORAL WAY K-8 CENTER | C17: 52 | D17: 0 | E17: 4 | F17: 13 | G17: 15 | H17: 17 | I17: 3 | J17: 9 | K17: 0 | L17: 42 | M17: 1 | N17: 0 | O17: 30 | P17: 5 | Q17: 1
A18: 1331 | B18: DEVON AIRE K-8 CENTER | C18: 77 | D18: 0 | E18: 0 | F18: 8 | G18: 32 | H18: 37 | I18: 0 | J18: 18 | K18: 1 | L18: 54 | M18: 4 | N18: 0 | O18: 34 | P18: 2 | Q18: 2
A19: 1681 | B19: LILLIE C. EVANS K-8 CENTER | C19: 15 | D19: 0 | E19: 0 | F19: 7 | G19: 4 | H19: 4 | I19: 0 | J19: 0 | K19: 13 | L19: 2 | M19: 0 | N19: 0 | O19: 15 | P19: 0 | Q19: 0
A20: 1721 | B20: EVERGLADES K-8 CENTER | C20: 42 | D20: 0 | E20: 1 | F20: 15 | G20: 18 | H20: 8 | I20: 0 | J20: 1 | K20: 0 | L20: 41 | M20: 0 | N20: 0 | O20: 27 | P20: 3 | Q20: 0
A21: 2701 | B21: KENWOOD K-8 CENTER | C21: 53 | D21: 0 | E21: 3 | F21: 16 | G21: 23 | H21: 10 | I21: 1 | J21: 12 | K21: 2 | L21: 38 | M21: 1 | N21: 0 | O21: 15 | P21: 2 | Q21: 1
A22: 2741 | B22: KEY BISCAYNE K-8 CENTER | C22: 93 | D22: 2 | E22: 2 | F22: 17 | G22: 46 | H22: 23 | I22: 3 | J22: 28 | K22: 2 | L22: 63 | M22: 0 | N22: 0 | O22: 11 | P22: 22 | Q22: 5
A23: 2881 | B23: LEEWOOD K-8 CENTER | C23: 35 | D23: 0 | E23: 0 | F23: 7 | G23: 17 | H23: 11 | I23: 0 | J23: 12 | K23: 2 | L23: 21 | M23: 0 | N23: 0 | O23: 4 | P23: 1 | Q23: 1
A24: 2901 | B24: LEISURE CITY K-8 CENTER | C24: 44 | D24: 0 | E24: 0 | F24: 29 | G24: 7 | H24: 7 | I24: 1 | J24: 1 | K24: 5 | L24: 38 | M24: 0 | N24: 0 | O24: 42 | P24: 0 | Q24: 1
A25: 2911 | B25: LINDA LENTIN K-8 CENTER | C25: 39 | D25: 0 | E25: 2 | F25: 22 | G25: 10 | H25: 4 | I25: 1 | J25: 1 | K25: 33 | L25: 5 | M25: 0 | N25: 0 | O25: 34 | P25: 2 | Q25: 1
A26: 3029 | B26: DORAL ACADEMY OF TECHNOLOGY | C26: 57 | D26: 0 | E26: 0 | F26: 19 | G26: 23 | H26: 15 | I26: 0 | J26: 4 | K26: 2 | L26: 51 | M26: 0 | N26: 0 | O26: 25 | P26: 3 | Q26: 0
A27: 3032 | B27: PALM GLADES PREPATORY ACADEMY | C27: 25 | D27: 0 | E27: 0 | F27: 5 | G27: 12 | H27: 4 | I27: 4 | J27: 1 | K27: 4 | L27: 20 | M27: 0 | N27: 0 | O27: 16 | P27: 2 | Q27: 0
A28: 3101 | B28: FRANK C. MARTIN K-8 CENTER | C28: 99 | D28: 0 | E28: 4 | F28: 24 | G28: 48 | H28: 21 | I28: 2 | J28: 7 | K28: 47 | L28: 32 | M28: 4 | N28: 0 | O28: 41 | P28: 1 | Q28: 0
A29: 3191 | B29: ADA MERRITT K-8 CENTER | C29: 70 | D29: 0 | E29: 1 | F29: 18 | G29: 22 | H29: 28 | I29: 1 | J29: 17 | K29: 9 | L29: 42 | M29: 1 | N29: 0 | O29: 18 | P29: 1 | Q29: 1
A30: 3281 | B30: MIAMI LAKES K-8 CENTER | C30: 81 | D30: 0 | E30: 1 | F30: 14 | G30: 32 | H30: 31 | I30: 3 | J30: 12 | K30: 2 | L30: 64 | M30: 3 | N30: 0 | O30: 24 | P30: 8 | Q30: 1
A31: 3421 | B31: M.A. MILAM K-8 CENTER | C31: 16 | D31: 0 | E31: 0 | F31: 1 | G31: 12 | H31: 3 | I31: 0 | J31: 0 | K31: 0 | L31: 16 | M31: 0 | N31: 0 | O31: 15 | P31: 2 | Q31: 1
A32: 3610 | B32: KEYS GATE CHARTER SCHOOL | C32: 164 | D32: 0 | E32: 9 | F32: 49 | G32: 80 | H32: 21 | I32: 5 | J32: 50 | K32: 22 | L32: 87 | M32: 4 | N32: 1 | O32: 76 | P32: 5 | Q32: 5
A33: 3621 | B33: COCONUT PALM K-8 ACADEMY | C33: 77 | D33: 0 | E33: 2 | F33: 34 | G33: 25 | H33: 14 | I33: 2 | J33: 2 | K33: 28 | L33: 44 | M33: 3 | N33: 0 | O33: 67 | P33: 7 | Q33: 5
A34: 4691 | B34: JANE ROBERTS K-8 CENTER | C34: 35 | D34: 0 | E34: 0 | F34: 1 | G34: 16 | H34: 18 | I34: 0 | J34: 4 | K34: 0 | L34: 31 | M34: 0 | N34: 0 | O34: 15 | P34: 1 | Q34: 0
A35: 5003 | B35: SOUTH DADE MIDDLE SCHOOL | C35: 91 | D35: 0 | E35: 1 | F35: 63 | G35: 18 | H35: 5 | I35: 4 | J35: 17 | K35: 10 | L35: 62 | M35: 0 | N35: 0 | O35: 78 | P35: 5 | Q35: 5
A36: 5005 | B36: DAVID LAWRENCE JR K-8 CENTER | C36: 52 | D36: 0 | E36: 0 | F36: 2 | G36: 27 | H36: 22 | I36: 1 | J36: 10 | K36: 11 | L36: 25 | M36: 4 | N36: 0 | O36: 27 | P36: 1 | Q36: 1
A37: 5006 | B37: EVERGLADES PREPARATORY ACADEMY | C37: 75 | D37: 0 | E37: 3 | F37: 7 | G37: 43 | H37: 20 | I37: 2 | J37: 8 | K37: 7 | L37: 59 | M37: 1 | N37: 0 | O37: 58 | P37: 5 | Q37: 2
A38: 5010 | B38: OXFORD ACADEMY OF MIAMI | C38: 1 | D38: 0 | E38: 0 | F38: 0 | G38: 1 | H38: 0 | I38: 0 | J38: 1 | K38: 0 | L38: 0 | M38: 0 | N38: 0 | O38: 0 | P38: 0 | Q38: 0
A39: 5025 | B39: LINCOLN-MARTI CS LITTLE HAVANA | C39: 12 | D39: 0 | E39: 0 | F39: 5 | G39: 6 | H39: 1 | I39: 0 | J39: 0 | K39: 4 | L39: 8 | M39: 0 | N39: 0 | O39: 9 | P39: 5 | Q39: 0
A40: 5029 | B40: EXCELSIOR LANGUAGE ACADEMY K-8 | C40: 28 | D40: 0 | E40: 0 | F40: 18 | G40: 7 | H40: 2 | I40: 1 | J40: 0 | K40: 0 | L40: 28 | M40: 0 | N40: 0 | O40: 24 | P40: 9 | Q40: 1
A41: 5047 | B41: MATER ACADEMY (MIAMI BEACH) | C41: 1 | D41: 0 | E41: 0 | F41: 0 | G41: 0 | H41: 1 | I41: 0 | J41: 0 | K41: 0 | L41: 1 | M41: 0 | N41: 0 | O41: 1 | P41: 0 | Q41: 0
A42: 5101 | B42: JOHN I. SMITH K-8 CENTER | C42: 16 | D42: 0 | E42: 0 | F42: 7 | G42: 6 | H42: 2 | I42: 1 | J42: 2 | K42: 1 | L42: 12 | M42: 1 | N42: 0 | O42: 5 | P42: 1 | Q42: 0
A43: 5141 | B43: HUBERT O. SIBLEY K-8 CENTER | C43: 38 | D43: 0 | E43: 0 | F43: 22 | G43: 12 | H43: 3 | I43: 1 | J43: 0 | K43: 32 | L43: 6 | M43: 0 | N43: 0 | O43: 33 | P43: 7 | Q43: 0
A44: 5241 | B44: SOUTH MIAMI K-8 CENTER | C44: 23 | D44: 0 | E44: 1 | F44: 2 | G44: 11 | H44: 9 | I44: 0 | J44: 3 | K44: 1 | L44: 18 | M44: 1 | N44: 0 | O44: 8 | P44: 0 | Q44: 2
A45: 5671 | B45: VINELAND K-8 CENTER | C45: 28 | D45: 0 | E45: 0 | F45: 1 | G45: 7 | H45: 20 | I45: 0 | J45: 10 | K45: 0 | L45: 16 | M45: 2 | N45: 0 | O45: 4 | P45: 0 | Q45: 1
A46: 5961 | B46: WINSTON PARK K-8 CENTER | C46: 75 | D46: 0 | E46: 2 | F46: 19 | G46: 30 | H46: 23 | I46: 1 | J46: 5 | K46: 0 | L46: 68 | M46: 2 | N46: 0 | O46: 52 | P46: 4 | Q46: 4
A47: 6001 | B47: HERBERT A. AMMONS MIDDLE | C47: 280 | D47: 1 | E47: 11 | F47: 60 | G47: 121 | H47: 86 | I47: 1 | J47: 45 | K47: 35 | L47: 185 | M47: 11 | N47: 1 | O47: 124 | P47: 3 | Q47: 7
A48: 6004 | B48: SOMERSET ACADEMY MIDDLE | C48: 76 | D48: 2 | E48: 11 | F48: 23 | G48: 17 | H48: 21 | I48: 2 | J48: 9 | K48: 1 | L48: 64 | M48: 1 | N48: 0 | O48: 35 | P48: 2 | Q48: 0
A49: 6006 | B49: ARCHIMEDEAN CONSERVATORY | C49: 140 | D49: 3 | E49: 17 | F49: 32 | G49: 36 | H49: 48 | I49: 4 | J49: 16 | K49: 2 | L49: 110 | M49: 12 | N49: 0 | O49: 72 | P49: 13 | Q49: 6
A50: 6009 | B50: MATER ACADEMY EAST MIDDLE | C50: 53 | D50: 0 | E50: 0 | F50: 28 | G50: 18 | H50: 7 | I50: 0 | J50: 0 | K50: 6 | L50: 47 | M50: 0 | N50: 0 | O50: 37 | P50: 3 | Q50: 0
A51: 6010 | B51: FLORIDA INTERNATIONAL ACADEMY | C51: 30 | D51: 0 | E51: 0 | F51: 2 | G51: 22 | H51: 5 | I51: 1 | J51: 0 | K51: 28 | L51: 2 | M51: 0 | N51: 0 | O51: 29 | P51: 2 | Q51: 1
A52: 6011 | B52: ALLAPATTAH MIDDLE | C52: 29 | D52: 0 | E52: 0 | F52: 24 | G52: 2 | H52: 3 | I52: 0 | J52: 1 | K52: 14 | L52: 14 | M52: 0 | N52: 0 | O52: 29 | P52: 1 | Q52: 2
A53: 6012 | B53: MATER ACADEMY CHARTER MIDDLE | C53: 323 | D53: 0 | E53: 1 | F53: 166 | G53: 99 | H53: 57 | I53: 0 | J53: 11 | K53: 9 | L53: 302 | M53: 1 | N53: 0 | O53: 255 | P53: 27 | Q53: 5
A54: 6013 | B54: SOMERSET ACADEMY MIDDLE-SOUTH | C54: 45 | D54: 8 | E54: 11 | F54: 14 | G54: 9 | H54: 1 | I54: 2 | J54: 11 | K54: 4 | L54: 30 | M54: 0 | N54: 0 | O54: 29 | P54: 1 | Q54: 2
A55: 6020 | B55: ASPIRA RAUL A. MARTINEZ CHTR | C55: 74 | D55: 0 | E55: 1 | F55: 59 | G55: 10 | H55: 4 | I55: 0 | J55: 1 | K55: 49 | L55: 24 | M55: 0 | N55: 0 | O55: 74 | P55: 7 | Q55: 3
A56: 6021 | B56: ARVIDA MIDDLE SCHOOL | C56: 142 | D56: 0 | E56: 0 | F56: 6 | G56: 63 | H56: 70 | I56: 3 | J56: 30 | K56: 3 | L56: 100 | M56: 9 | N56: 0 | O56: 51 | P56: 2 | Q56: 0
A57: 6022 | B57: PINECREST ACADEMY CHARTER MIDD | C57: 201 | D57: 0 | E57: 2 | F57: 116 | G57: 60 | H57: 23 | I57: 0 | J57: 9 | K57: 1 | L57: 190 | M57: 1 | N57: 0 | O57: 106 | P57: 15 | Q57: 9
A58: 6023 | B58: ANDOVER MIDDLE SCHOOL | C58: 134 | D58: 0 | E58: 3 | F58: 46 | G58: 59 | H58: 22 | I58: 4 | J58: 2 | K58: 124 | L58: 3 | M58: 3 | N58: 1 | O58: 111 | P58: 5 | Q58: 1
A59: 6028 | B59: RENAISSANCE MIDDLE CHARTER | C59: 61 | D59: 0 | E59: 1 | F59: 4 | G59: 38 | H59: 13 | I59: 5 | J59: 11 | K59: 2 | L59: 47 | M59: 1 | N59: 0 | O59: 19 | P59: 8 | Q59: 2
A60: 6030 | B60: DORAL ACADEMY CHARTER MIDDLE | C60: 209 | D60: 1 | E60: 3 | F60: 70 | G60: 89 | H60: 43 | I60: 3 | J60: 16 | K60: 1 | L60: 187 | M60: 5 | N60: 0 | O60: 98 | P60: 6 | Q60: 0
A61: 6031 | B61: BROWNSVILLE MIDDLE | C61: 74 | D61: 0 | E61: 2 | F61: 49 | G61: 20 | H61: 1 | I61: 2 | J61: 0 | K61: 45 | L61: 29 | M61: 0 | N61: 0 | O61: 73 | P61: 2 | Q61: 3
A62: 6033 | B62: MATER ACADEMY LAKES MIDDLE | C62: 65 | D62: 0 | E62: 2 | F62: 20 | G62: 28 | H62: 13 | I62: 2 | J62: 5 | K62: 0 | L62: 59 | M62: 1 | N62: 0 | O62: 48 | P62: 5 | Q62: 1
A63: 6040 | B63: DOCTORS CHARTER/MIAMI SHORES | C63: 98 | D63: 3 | E63: 11 | F63: 24 | G63: 29 | H63: 21 | I63: 10 | J63: 24 | K63: 45 | L63: 23 | M63: 6 | N63: 0 | O63: 21 | P63: 2 | Q63: 5
A64: 6041 | B64: PAUL W. BELL MIDDLE | C64: 45 | D64: 0 | E64: 1 | F64: 13 | G64: 23 | H64: 7 | I64: 1 | J64: 1 | K64: 0 | L64: 44 | M64: 0 | N64: 0 | O64: 44 | P64: 5 | Q64: 1
A65: 6042 | B65: MATER GARDENS ACADEMY MIDDLE | C65: 36 | D65: 0 | E65: 4 | F65: 8 | G65: 18 | H65: 5 | I65: 1 | J65: 0 | K65: 1 | L65: 34 | M65: 0 | N65: 1 | O65: 9 | P65: 0 | Q65: 0
A66: 6045 | B66: INTL. STUDIES CHARTER MIDDLE | C66: 70 | D66: 0 | E66: 0 | F66: 25 | G66: 24 | H66: 13 | I66: 8 | J66: 12 | K66: 1 | L66: 57 | M66: 0 | N66: 0 | O66: 44 | P66: 11 | Q66: 1
A67: 6047 | B67: MATER ACADEMY MIDDLE-INTL STUD | C67: 33 | D67: 0 | E67: 0 | F67: 20 | G67: 10 | H67: 3 | I67: 0 | J67: 1 | K67: 6 | L67: 25 | M67: 1 | N67: 0 | O67: 28 | P67: 4 | Q67: 0
A68: 6048 | B68: MIAMI COMMUNITY CHARTER MIDDLE | C68: 51 | D68: 1 | E68: 14 | F68: 20 | G68: 13 | H68: 3 | I68: 0 | J68: 2 | K68: 4 | L68: 44 | M68: 1 | N68: 0 | O68: 48 | P68: 5 | Q68: 2
A69: 6049 | B69: RIVER CITIES COMMUNITY CHARTER | C69: 16 | D69: 1 | E69: 6 | F69: 6 | G69: 2 | H69: 1 | I69: 0 | J69: 0 | K69: 7 | L69: 9 | M69: 0 | N69: 0 | O69: 12 | P69: 0 | Q69: 0
A70: 6051 | B70: CAROL CITY MIDDLE | C70: 43 | D70: 1 | E70: 2 | F70: 30 | G70: 9 | H70: 0 | I70: 1 | J70: 0 | K70: 39 | L70: 3 | M70: 0 | N70: 0 | O70: 41 | P70: 1 | Q70: 1
A71: 6052 | B71: ZELDA GLAZER MIDDLE SCHOOL | C71: 316 | D71: 3 | E71: 2 | F71: 160 | G71: 118 | H71: 24 | I71: 9 | J71: 7 | K71: 2 | L71: 303 | M71: 4 | N71: 0 | O71: 229 | P71: 33 | Q71: 19
A72: 6053 | B72: SOMERSET ACAD MIDDLE (S-MIAMI) | C72: 28 | D72: 0 | E72: 0 | F72: 16 | G72: 10 | H72: 1 | I72: 1 | J72: 5 | K72: 0 | L72: 23 | M72: 0 | N72: 0 | O72: 7 | P72: 0 | Q72: 0
A73: 6060 | B73: ASPIRA SOUTH YOUTH LEADERSHIP | C73: 27 | D73: 1 | E73: 4 | F73: 14 | G73: 6 | H73: 0 | I73: 2 | J73: 1 | K73: 2 | L73: 24 | M73: 0 | N73: 0 | O73: 23 | P73: 3 | Q73: 1
A74: 6061 | B74: CAMPBELL DRIVE MIDDLE | C74: 71 | D74: 0 | E74: 0 | F74: 41 | G74: 23 | H74: 3 | I74: 4 | J74: 1 | K74: 26 | L74: 43 | M74: 1 | N74: 0 | O74: 64 | P74: 4 | Q74: 4
A75: 6070 | B75: ASPIRA EUGENIO MARIA DE HOSTOS | C75: 69 | D75: 2 | E75: 12 | F75: 37 | G75: 15 | H75: 2 | I75: 1 | J75: 0 | K75: 21 | L75: 48 | M75: 0 | N75: 0 | O75: 66 | P75: 6 | Q75: 0
A76: 6071 | B76: GEORGE WASHINGTON CARVER | C76: 309 | D76: 2 | E76: 4 | F76: 59 | G76: 112 | H76: 130 | I76: 2 | J76: 101 | K76: 16 | L76: 183 | M76: 8 | N76: 0 | O76: 90 | P76: 23 | Q76: 1
A77: 6081 | B77: CENTENNIAL MIDDLE | C77: 121 | D77: 9 | E77: 18 | F77: 48 | G77: 35 | H77: 5 | I77: 6 | J77: 16 | K77: 26 | L77: 76 | M77: 2 | N77: 0 | O77: 83 | P77: 13 | Q77: 8
A78: 6091 | B78: CITRUS GROVE MIDDLE SCHOOL | C78: 67 | D78: 0 | E78: 0 | F78: 44 | G78: 13 | H78: 9 | I78: 1 | J78: 0 | K78: 4 | L78: 62 | M78: 1 | N78: 0 | O78: 66 | P78: 11 | Q78: 0
A79: 6111 | B79: CUTLER RIDGE MIDDLE | C79: 55 | D79: 4 | E79: 15 | F79: 23 | G79: 11 | H79: 2 | I79: 0 | J79: 10 | K79: 18 | L79: 24 | M79: 3 | N79: 0 | O79: 47 | P79: 1 | Q79: 4
A80: 6121 | B80: RUBEN DARIO MIDDLE | C80: 62 | D80: 0 | E80: 0 | F80: 18 | G80: 31 | H80: 13 | I80: 0 | J80: 1 | K80: 0 | L80: 60 | M80: 1 | N80: 0 | O80: 55 | P80: 9 | Q80: 0
A81: 6141 | B81: CHARLES R. DREW MIDDLE | C81: 26 | D81: 0 | E81: 0 | F81: 20 | G81: 4 | H81: 2 | I81: 0 | J81: 1 | K81: 24 | L81: 1 | M81: 0 | N81: 0 | O81: 26 | P81: 0 | Q81: 1
A82: 6151 | B82: DORAL MIDDLE SCHOOL | C82: 38 | D82: 3 | E82: 0 | F82: 16 | G82: 13 | H82: 5 | I82: 1 | J82: 4 | K82: 8 | L82: 26 | M82: 0 | N82: 0 | O82: 24 | P82: 12 | Q82: 0
A83: 6161 | B83: LAWTON CHILES MIDDLE SCHOOL | C83: 106 | D83: 2 | E83: 5 | F83: 69 | G83: 23 | H83: 7 | I83: 0 | J83: 6 | K83: 36 | L83: 63 | M83: 1 | N83: 0 | O83: 85 | P83: 0 | Q83: 3
A84: 6171 | B84: HENRY H. FILER MIDDLE | C84: 180 | D84: 0 | E84: 1 | F84: 99 | G84: 60 | H84: 18 | I84: 2 | J84: 2 | K84: 2 | L84: 176 | M84: 0 | N84: 0 | O84: 168 | P84: 46 | Q84: 3
A85: 6211 | B85: GLADES MIDDLE | C85: 134 | D85: 0 | E85: 1 | F85: 29 | G85: 68 | H85: 36 | I85: 0 | J85: 15 | K85: 1 | L85: 112 | M85: 6 | N85: 0 | O85: 71 | P85: 8 | Q85: 1
A86: 6221 | B86: HAMMOCKS MIDDLE | C86: 116 | D86: 0 | E86: 0 | F86: 28 | G86: 50 | H86: 34 | I86: 4 | J86: 21 | K86: 5 | L86: 85 | M86: 5 | N86: 0 | O86: 72 | P86: 4 | Q86: 1
A87: 6231 | B87: HIALEAH MIDDLE | C87: 56 | D87: 0 | E87: 1 | F87: 49 | G87: 5 | H87: 1 | I87: 0 | J87: 2 | K87: 2 | L87: 52 | M87: 0 | N87: 0 | O87: 52 | P87: 14 | Q87: 4
A88: 6241 | B88: HIGHLAND OAKS MIDDLE | C88: 268 | D88: 0 | E88: 12 | F88: 93 | G88: 111 | H88: 46 | I88: 6 | J88: 80 | K88: 101 | L88: 76 | M88: 10 | N88: 0 | O88: 162 | P88: 13 | Q88: 9
A89: 6251 | B89: HOMESTEAD MIDDLE | C89: 75 | D89: 0 | E89: 0 | F89: 46 | G89: 25 | H89: 1 | I89: 3 | J89: 3 | K89: 26 | L89: 46 | M89: 0 | N89: 0 | O89: 69 | P89: 5 | Q89: 5
A90: 6281 | B90: THOMAS JEFFERSON MIDDLE | C90: 45 | D90: 0 | E90: 0 | F90: 33 | G90: 10 | H90: 0 | I90: 2 | J90: 0 | K90: 44 | L90: 0 | M90: 0 | N90: 0 | O90: 38 | P90: 7 | Q90: 1
A91: 6301 | B91: JOHN F. KENNEDY MIDDLE | C91: 265 | D91: 1 | E91: 17 | F91: 108 | G91: 99 | H91: 39 | I91: 1 | J91: 14 | K91: 181 | L91: 58 | M91: 8 | N91: 2 | O91: 226 | P91: 9 | Q91: 1
A92: 6331 | B92: KINLOCH PARK MIDDLE | C92: 90 | D92: 0 | E92: 0 | F92: 22 | G92: 50 | H92: 17 | I92: 1 | J92: 2 | K92: 0 | L92: 88 | M92: 0 | N92: 0 | O92: 84 | P92: 12 | Q92: 3
A93: 6351 | B93: LAKE STEVENS MIDDLE | C93: 80 | D93: 0 | E93: 0 | F93: 41 | G93: 29 | H93: 8 | I93: 2 | J93: 2 | K93: 35 | L93: 43 | M93: 0 | N93: 0 | O93: 73 | P93: 3 | Q93: 1
A94: 6361 | B94: JOSE DE DIEGO MIDDLE SCHOOL | C94: 52 | D94: 0 | E94: 2 | F94: 36 | G94: 9 | H94: 2 | I94: 3 | J94: 1 | K94: 22 | L94: 29 | M94: 0 | N94: 0 | O94: 50 | P94: 7 | Q94: 2
A95: 6391 | B95: MADISON MIDDLE SCHOOL | C95: 51 | D95: 0 | E95: 1 | F95: 38 | G95: 9 | H95: 1 | I95: 2 | J95: 0 | K95: 30 | L95: 20 | M95: 0 | N95: 0 | O95: 49 | P95: 1 | Q95: 5
A96: 6411 | B96: HORACE MANN MIDDLE | C96: 59 | D96: 0 | E96: 5 | F96: 40 | G96: 12 | H96: 1 | I96: 1 | J96: 1 | K96: 53 | L96: 5 | M96: 0 | N96: 0 | O96: 57 | P96: 2 | Q96: 2
A97: 6421 | B97: JOSE MARTI MIDDLE | C97: 17 | D97: 0 | E97: 0 | F97: 8 | G97: 6 | H97: 3 | I97: 0 | J97: 3 | K97: 0 | L97: 13 | M97: 1 | N97: 0 | O97: 11 | P97: 2 | Q97: 1
A98: 6431 | B98: MAYS MIDDLE | C98: 42 | D98: 0 | E98: 0 | F98: 25 | G98: 13 | H98: 4 | I98: 0 | J98: 5 | K98: 15 | L98: 21 | M98: 1 | N98: 0 | O98: 38 | P98: 1 | Q98: 1
A99: 6441 | B99: HOWARD D. MCMILLAN MIDDLE | C99: 113 | D99: 0 | E99: 7 | F99: 43 | G99: 38 | H99: 24 | I99: 1 | J99: 7 | K99: 3 | L99: 98 | M99: 5 | N99: 0 | O99: 85 | P99: 11 | Q99: 0
A100: 6481 | B100: MIAMI EDISON MIDDLE | C100: 53 | D100: 0 | E100: 0 | F100: 37 | G100: 11 | H100: 3 | I100: 2 | J100: 3 | K100: 39 | L100: 9 | M100: 0 | N100: 0 | O100: 52 | P100: 9 | Q100: 2
A101: 6501 | B101: MIAMI LAKES MIDDLE | C101: 51 | D101: 1 | E101: 4 | F101: 8 | G101: 15 | H101: 22 | I101: 1 | J101: 3 | K101: 4 | L101: 43 | M101: 1 | N101: 0 | O101: 48 | P101: 4 | Q101: 2
A102: 6521 | B102: MIAMI SPRINGS MIDDLE | C102: 176 | D102: 1 | E102: 7 | F102: 63 | G102: 77 | H102: 26 | I102: 2 | J102: 7 | K102: 22 | L102: 142 | M102: 4 | N102: 0 | O102: 145 | P102: 17 | Q102: 2
A103: 6541 | B103: NAUTILUS MIDDLE | C103: 153 | D103: 2 | E103: 5 | F103: 33 | G103: 57 | H103: 52 | I103: 4 | J103: 59 | K103: 8 | L103: 83 | M103: 2 | N103: 0 | O103: 86 | P103: 4 | Q103: 1
A104: 6571 | B104: NORLAND MIDDLE | C104: 28 | D104: 0 | E104: 1 | F104: 5 | G104: 13 | H104: 8 | I104: 1 | J104: 0 | K104: 28 | L104: 0 | M104: 0 | N104: 0 | O104: 26 | P104: 0 | Q104: 0
A105: 6591 | B105: NORTH DADE MIDDLE | C105: 96 | D105: 0 | E105: 5 | F105: 57 | G105: 25 | H105: 7 | I105: 2 | J105: 0 | K105: 83 | L105: 13 | M105: 0 | N105: 0 | O105: 81 | P105: 5 | Q105: 1
A106: 6611 | B106: COUNTRY CLUB MIDDLE SCHOOL | C106: 83 | D106: 0 | E106: 0 | F106: 17 | G106: 44 | H106: 19 | I106: 3 | J106: 2 | K106: 22 | L106: 56 | M106: 2 | N106: 0 | O106: 68 | P106: 6 | Q106: 0
A107: 6631 | B107: NORTH MIAMI MIDDLE | C107: 118 | D107: 1 | E107: 9 | F107: 61 | G107: 35 | H107: 8 | I107: 4 | J107: 1 | K107: 104 | L107: 11 | M107: 0 | N107: 0 | O107: 114 | P107: 12 | Q107: 4
A108: 6681 | B108: PALM SPRINGS MIDDLE | C108: 183 | D108: 0 | E108: 2 | F108: 102 | G108: 67 | H108: 11 | I108: 1 | J108: 6 | K108: 0 | L108: 176 | M108: 1 | N108: 0 | O108: 164 | P108: 42 | Q108: 7
A109: 6701 | B109: PALMETTO MIDDLE | C109: 213 | D109: 0 | E109: 5 | F109: 36 | G109: 66 | H109: 91 | I109: 15 | J109: 97 | K109: 9 | L109: 89 | M109: 15 | N109: 0 | O109: 29 | P109: 3 | Q109: 7
A110: 6721 | B110: PARKWAY MIDDLE | C110: 32 | D110: 2 | E110: 10 | F110: 18 | G110: 1 | H110: 1 | I110: 0 | J110: 0 | K110: 30 | L110: 2 | M110: 0 | N110: 0 | O110: 30 | P110: 0 | Q110: 2
A111: 6741 | B111: PONCE DE LEON MIDDLE | C111: 237 | D111: 1 | E111: 9 | F111: 58 | G111: 98 | H111: 63 | I111: 8 | J111: 29 | K111: 19 | L111: 184 | M111: 4 | N111: 1 | O111: 171 | P111: 14 | Q111: 10
A112: 6751 | B112: HIALEAH GARDENS MIDDLE SCHOOL | C112: 371 | D112: 4 | E112: 24 | F112: 160 | G112: 129 | H112: 50 | I112: 4 | J112: 5 | K112: 2 | L112: 361 | M112: 3 | N112: 0 | O112: 304 | P112: 58 | Q112: 8
A113: 6761 | B113: REDLAND MIDDLE | C113: 42 | D113: 0 | E113: 5 | F113: 27 | G113: 7 | H113: 0 | I113: 3 | J113: 8 | K113: 12 | L113: 22 | M113: 0 | N113: 0 | O113: 39 | P113: 1 | Q113: 5
A114: 6771 | B114: JORGE MAS CANOSA MIDDLE | C114: 123 | D114: 0 | E114: 3 | F114: 12 | G114: 56 | H114: 50 | I114: 2 | J114: 12 | K114: 4 | L114: 101 | M114: 5 | N114: 0 | O114: 75 | P114: 6 | Q114: 2
A115: 6781 | B115: RICHMOND HEIGHTS MIDDLE | C115: 89 | D115: 0 | E115: 7 | F115: 42 | G115: 30 | H115: 9 | I115: 1 | J115: 9 | K115: 39 | L115: 37 | M115: 3 | N115: 0 | O115: 74 | P115: 4 | Q115: 2
A116: 6801 | B116: RIVIERA MIDDLE | C116: 167 | D116: 0 | E116: 6 | F116: 74 | G116: 64 | H116: 21 | I116: 2 | J116: 14 | K116: 2 | L116: 147 | M116: 3 | N116: 1 | O116: 135 | P116: 14 | Q116: 14
A117: 6821 | B117: ROCKWAY MIDDLE | C117: 173 | D117: 1 | E117: 8 | F117: 59 | G117: 62 | H117: 39 | I117: 4 | J117: 7 | K117: 2 | L117: 160 | M117: 4 | N117: 0 | O117: 128 | P117: 25 | Q117: 3
A118: 6841 | B118: SHENANDOAH MIDDLE | C118: 137 | D118: 0 | E118: 0 | F118: 101 | G118: 24 | H118: 11 | I118: 1 | J118: 5 | K118: 9 | L118: 123 | M118: 0 | N118: 0 | O118: 129 | P118: 12 | Q118: 2
A119: 6861 | B119: SOUTHWOOD MIDDLE | C119: 329 | D119: 0 | E119: 2 | F119: 134 | G119: 97 | H119: 82 | I119: 14 | J119: 111 | K119: 50 | L119: 151 | M119: 13 | N119: 0 | O119: 121 | P119: 4 | Q119: 12
A120: 6881 | B120: SOUTH MIAMI MIDDLE SCHOOL | C120: 115 | D120: 0 | E120: 0 | F120: 6 | G120: 45 | H120: 62 | I120: 2 | J120: 32 | K120: 4 | L120: 73 | M120: 5 | N120: 0 | O120: 37 | P120: 0 | Q120: 2
A121: 6901 | B121: W. R. THOMAS MIDDLE | C121: 248 | D121: 0 | E121: 2 | F121: 63 | G121: 78 | H121: 94 | I121: 11 | J121: 10 | K121: 2 | L121: 228 | M121: 8 | N121: 0 | O121: 172 | P121: 20 | Q121: 17
A122: 6921 | B122: LAMAR LOUISE CURRY MIDDLE SCH | C122: 287 | D122: 0 | E122: 3 | F122: 89 | G122: 88 | H122: 105 | I122: 2 | J122: 17 | K122: 6 | L122: 251 | M122: 13 | N122: 0 | O122: 182 | P122: 13 | Q122: 11
A123: 6961 | B123: WEST MIAMI MIDDLE | C123: 81 | D123: 0 | E123: 0 | F123: 46 | G123: 27 | H123: 7 | I123: 1 | J123: 3 | K123: 0 | L123: 78 | M123: 0 | N123: 0 | O123: 70 | P123: 13 | Q123: 5
A124: 6981 | B124: WESTVIEW MIDDLE | C124: 52 | D124: 0 | E124: 0 | F124: 38 | G124: 11 | H124: 3 | I124: 0 | J124: 0 | K124: 39 | L124: 13 | M124: 0 | N124: 0 | O124: 51 | P124: 11 | Q124: 6
A125: 7001 | B125: MIAMI-DADE ONLINE ACADEMY | C125: 39 | D125: 9 | E125: 7 | F125: 6 | G125: 6 | H125: 3 | I125: 8 | J125: 5 | K125: 6 | L125: 28 | M125: 0 | N125: 0 | O125: 21 | P125: 0 | Q125: 0
A126: 7007 | B126: INTL. STUDIES CHARTER SENIOR | C126: 60 | D126: 8 | E126: 11 | F126: 17 | G126: 5 | H126: 0 | I126: 19 | J126: 4 | K126: 1 | L126: 55 | M126: 0 | N126: 0 | O126: 49 | P126: 22 | Q126: 2
A127: 7009 | B127: DORAL PERFORMING ARTS ACADEMY | C127: 45 | D127: 0 | E127: 6 | F127: 27 | G127: 5 | H127: 3 | I127: 4 | J127: 1 | K127: 0 | L127: 44 | M127: 0 | N127: 0 | O127: 25 | P127: 1 | Q127: 2
A128: 7011 | B128: AMERICAN SENIOR | C128: 468 | D128: 119 | E128: 109 | F128: 129 | G128: 27 | H128: 8 | I128: 76 | J128: 15 | K128: 120 | L128: 327 | M128: 6 | N128: 0 | O128: 386 | P128: 81 | Q128: 60
A129: 7014 | B129: MATER PERFORMING ARTS ACADEMY | C129: 39 | D129: 0 | E129: 2 | F129: 23 | G129: 8 | H129: 5 | I129: 1 | J129: 4 | K129: 3 | L129: 32 | M129: 0 | N129: 0 | O129: 34 | P129: 0 | Q129: 0
A130: 7015 | B130: STELLAR LEADERSHIP ACADEMY | C130: 95 | D130: 6 | E130: 0 | F130: 1 | G130: 0 | H130: 0 | I130: 88 | J130: 0 | K130: 81 | L130: 14 | M130: 0 | N130: 0 | O130: 56 | P130: 3 | Q130: 28
A131: 7016 | B131: SPORTS LEADERSHIP OF MIAMI CHS | C131: 12 | D131: 3 | E131: 3 | F131: 6 | G131: 0 | H131: 0 | I131: 0 | J131: 1 | K131: 0 | L131: 11 | M131: 0 | N131: 0 | O131: 9 | P131: 1 | Q131: 0
A132: 7018 | B132: MATER ACADEMY LAKES HIGH SCH | C132: 173 | D132: 31 | E132: 50 | F132: 62 | G132: 7 | H132: 4 | I132: 19 | J132: 8 | K132: 7 | L132: 157 | M132: 1 | N132: 0 | O132: 137 | P132: 15 | Q132: 7
A133: 7020 | B133: DORAL ACADEMY HIGH SCHOOL | C133: 254 | D133: 22 | E133: 71 | F133: 109 | G133: 33 | H133: 6 | I133: 13 | J133: 12 | K133: 3 | L133: 239 | M133: 0 | N133: 0 | O133: 148 | P133: 25 | Q133: 8
A134: 7022 | B134: ACADEMY OF ARTS AND MINDS | C134: 80 | D134: 11 | E134: 15 | F134: 15 | G134: 2 | H134: 2 | I134: 35 | J134: 15 | K134: 5 | L134: 59 | M134: 0 | N134: 0 | O134: 24 | P134: 7 | Q134: 4
A135: 7024 | B135: MATER ACADEMY HIGH-INTL STUDIE | C135: 24 | D135: 2 | E135: 6 | F135: 11 | G135: 4 | H135: 0 | I135: 1 | J135: 0 | K135: 3 | L135: 21 | M135: 0 | N135: 0 | O135: 16 | P135: 2 | Q135: 0
A136: 7025 | B136: MATER ACAD HIGH (MIAMI BEACH) | C136: 14 | D136: 1 | E136: 1 | F136: 7 | G136: 4 | H136: 1 | I136: 0 | J136: 1 | K136: 0 | L136: 11 | M136: 2 | N136: 0 | O136: 9 | P136: 3 | Q136: 1
A137: 7029 | B137: TERRA ENVIRONMENTAL RESEARCH | C137: 158 | D137: 6 | E137: 14 | F137: 66 | G137: 28 | H137: 8 | I137: 36 | J137: 20 | K137: 4 | L137: 134 | M137: 0 | N137: 0 | O137: 76 | P137: 3 | Q137: 11
A138: 7030 | B138: INTEGRATED ACADEMICS (SIATECH) | C138: 35 | D138: 0 | E138: 0 | F138: 0 | G138: 0 | H138: 0 | I138: 35 | J138: 2 | K138: 26 | L138: 6 | M138: 0 | N138: 0 | O138: 14 | P138: 5 | Q138: 5
A139: 7032 | B139: PALM GLADES PREP HIGH SCHOOL | C139: 88 | D139: 25 | E139: 15 | F139: 21 | G139: 10 | H139: 1 | I139: 16 | J139: 5 | K139: 16 | L139: 64 | M139: 2 | N139: 0 | O139: 62 | P139: 13 | Q139: 5
A140: 7033 | B140: LAW ENFORCEMENT OFFICERS HS | C140: 31 | D140: 6 | E140: 6 | F140: 11 | G140: 3 | H140: 1 | I140: 4 | J140: 0 | K140: 5 | L140: 26 | M140: 0 | N140: 0 | O140: 27 | P140: 0 | Q140: 3
A141: 7034 | B141: SOMERSET ACAD HIGH SOUTH-HMSTD | C141: 13 | D141: 3 | E141: 5 | F141: 2 | G141: 0 | H141: 0 | I141: 3 | J141: 3 | K141: 1 | L141: 9 | M141: 0 | N141: 0 | O141: 11 | P141: 1 | Q141: 1
A142: 7036 | B142: LAWRENCE ACADEMY SENIOR | C142: 30 | D142: 5 | E142: 7 | F142: 10 | G142: 3 | H142: 0 | I142: 5 | J142: 0 | K142: 11 | L142: 19 | M142: 0 | N142: 0 | O142: 28 | P142: 2 | Q142: 3
A143: 7037 | B143: MATER ACADEMY EAST HIGH SCHOOL | C143: 54 | D143: 13 | E143: 12 | F143: 25 | G143: 2 | H143: 1 | I143: 1 | J143: 0 | K143: 5 | L143: 49 | M143: 0 | N143: 0 | O143: 46 | P143: 14 | Q143: 2
A144: 7042 | B144: SOMERSET ACADEMY CHARTER HIGH | C144: 82 | D144: 15 | E144: 18 | F144: 28 | G144: 16 | H144: 3 | I144: 2 | J144: 7 | K144: 8 | L144: 65 | M144: 2 | N144: 0 | O144: 62 | P144: 12 | Q144: 2
A145: 7048 | B145: ALONZO & TRACY MOURNING SH | C145: 392 | D145: 74 | E145: 72 | F145: 109 | G145: 55 | H145: 30 | I145: 52 | J145: 102 | K145: 79 | L145: 205 | M145: 5 | N145: 0 | O145: 238 | P145: 64 | Q145: 33
A146: 7049 | B146: WESTLAND HIALEAH SENIOR HIGH | C146: 490 | D146: 139 | E146: 122 | F146: 142 | G146: 36 | H146: 9 | I146: 42 | J146: 10 | K146: 5 | L146: 474 | M146: 0 | N146: 0 | O146: 447 | P146: 224 | Q146: 41
A147: 7050 | B147: KEYS GATE CHARTER HIGH SCHL | C147: 230 | D147: 53 | E147: 73 | F147: 62 | G147: 8 | H147: 0 | I147: 34 | J147: 36 | K147: 39 | L147: 153 | M147: 1 | N147: 0 | O147: 137 | P147: 32 | Q147: 25
A148: 7051 | B148: G. HOLMES BRADDOCK SENIOR HIGH | C148: 690 | D148: 168 | E148: 198 | F148: 192 | G148: 52 | H148: 11 | I148: 69 | J148: 29 | K148: 11 | L148: 648 | M148: 2 | N148: 0 | O148: 567 | P148: 149 | Q148: 106
A149: 7053 | B149: PINECREST ACADEMY CHARTER HIGH | C149: 95 | D149: 26 | E149: 32 | F149: 31 | G149: 3 | H149: 0 | I149: 3 | J149: 6 | K149: 0 | L149: 88 | M149: 1 | N149: 0 | O149: 56 | P149: 5 | Q149: 6
A150: 7054 | B150: EXCELSIOR CHARTER HIGH SCHOOL | C150: 50 | D150: 15 | E150: 10 | F150: 14 | G150: 7 | H150: 0 | I150: 4 | J150: 1 | K150: 0 | L150: 49 | M150: 0 | N150: 0 | O150: 38 | P150: 23 | Q150: 3
A151: 7055 | B151: YOUNG WOMEN'S PREPARATORY ACAD | C151: 77 | D151: 1 | E151: 12 | F151: 22 | G151: 25 | H151: 16 | I151: 1 | J151: 9 | K151: 18 | L151: 50 | M151: 0 | N151: 0 | O151: 49 | P151: 2 | Q151: 1
A152: 7056 | B152: YOUNG MENS PREPARATORY ACADEMY | C152: 23 | D152: 3 | E152: 11 | F152: 5 | G152: 1 | H152: 1 | I152: 2 | J152: 1 | K152: 20 | L152: 2 | M152: 0 | N152: 0 | O152: 18 | P152: 0 | Q152: 1
A153: 7058 | B153: MIAMI COMMUNITY CH HIGH SCHOOL | C153: 37 | D153: 14 | E153: 3 | F153: 5 | G153: 1 | H153: 1 | I153: 13 | J153: 5 | K153: 4 | L153: 28 | M153: 0 | N153: 0 | O153: 35 | P153: 13 | Q153: 5
A154: 7059 | B154: MIAMI ARTS CHARTER | C154: 120 | D154: 19 | E154: 19 | F154: 36 | G154: 19 | H154: 9 | I154: 18 | J154: 31 | K154: 27 | L154: 60 | M154: 0 | N154: 0 | O154: 22 | P154: 0 | Q154: 5
A155: 7060 | B155: EVERGLADES PREP ACADEMY HIGH | C155: 114 | D155: 22 | E155: 38 | F155: 26 | G155: 9 | H155: 0 | I155: 19 | J155: 16 | K155: 13 | L155: 83 | M155: 0 | N155: 1 | O155: 78 | P155: 16 | Q155: 18
A156: 7062 | B156: MAVERICKS HIGH OF NORTH M-DADE | C156: 113 | D156: 3 | E156: 0 | F156: 0 | G156: 0 | H156: 0 | I156: 110 | J156: 2 | K156: 93 | L156: 18 | M156: 0 | N156: 0 | O156: 51 | P156: 0 | Q156: 19
A157: 7065 | B157: MAVERICKS HIGH OF SOUTH M-DADE | C157: 138 | D157: 8 | E157: 4 | F157: 3 | G157: 0 | H157: 0 | I157: 123 | J157: 11 | K157: 69 | L157: 57 | M157: 1 | N157: 0 | O157: 81 | P157: 6 | Q157: 27
A158: 7066 | B158: LBA CONSTR & BUS MGMT ACAD | C158: 37 | D158: 11 | E158: 9 | F158: 10 | G158: 2 | H158: 0 | I158: 5 | J158: 1 | K158: 1 | L158: 35 | M158: 0 | N158: 0 | O158: 36 | P158: 11 | Q158: 3
A159: 7067 | B159: GREEN SPRINGS HIGH SCHOOL | C159: 86 | D159: 3 | E159: 1 | F159: 2 | G159: 0 | H159: 0 | I159: 80 | J159: 3 | K159: 9 | L159: 74 | M159: 0 | N159: 0 | O159: 58 | P159: 16 | Q159: 10
A160: 7068 | B160: NORTH GARDENS HIGH SCHOOL | C160: 89 | D160: 1 | E160: 0 | F160: 0 | G160: 0 | H160: 0 | I160: 88 | J160: 1 | K160: 70 | L160: 18 | M160: 0 | N160: 0 | O160: 42 | P160: 3 | Q160: 8
A161: 7069 | B161: NORTH PARK HIGH SCHOOL | C161: 89 | D161: 3 | E161: 3 | F161: 0 | G161: 0 | H161: 0 | I161: 83 | J161: 1 | K161: 67 | L161: 21 | M161: 0 | N161: 0 | O161: 53 | P161: 12 | Q161: 10
A162: 7070 | B162: YOUTH CO-OP PREP HIGH SCHOOL | C162: 62 | D162: 12 | E162: 18 | F162: 16 | G162: 6 | H162: 0 | I162: 10 | J162: 2 | K162: 2 | L162: 58 | M162: 0 | N162: 0 | O162: 50 | P162: 16 | Q162: 4
A163: 7071 | B163: CORAL GABLES SENIOR HIGH | C163: 629 | D163: 151 | E163: 137 | F163: 145 | G163: 39 | H163: 4 | I163: 153 | J163: 43 | K163: 53 | L163: 531 | M163: 2 | N163: 0 | O163: 515 | P163: 163 | Q163: 89
A164: 7080 | B164: CHARTER HS OF THE AMERICAS | C164: 25 | D164: 9 | E164: 2 | F164: 9 | G164: 1 | H164: 3 | I164: 1 | J164: 0 | K164: 0 | L164: 25 | M164: 0 | N164: 0 | O164: 15 | P164: 23 | Q164: 0
A165: 7081 | B165: DESIGN & ARCHITECTURE SENIOR | C165: 56 | D165: 1 | E165: 3 | F165: 24 | G165: 20 | H165: 2 | I165: 6 | J165: 13 | K165: 6 | L165: 35 | M165: 2 | N165: 0 | O165: 24 | P165: 4 | Q165: 3
A166: 7101 | B166: CORAL REEF SENIOR HIGH | C166: 340 | D166: 41 | E166: 59 | F166: 139 | G166: 72 | H166: 13 | I166: 16 | J166: 66 | K166: 62 | L166: 208 | M166: 3 | N166: 0 | O166: 169 | P166: 8 | Q166: 30
A167: 7111 | B167: HIALEAH SENIOR | C167: 601 | D167: 189 | E167: 151 | F167: 138 | G167: 21 | H167: 3 | I167: 99 | J167: 6 | K167: 22 | L167: 573 | M167: 0 | N167: 0 | O167: 544 | P167: 189 | Q167: 97
A168: 7121 | B168: JOHN A FERGUSON SENIOR HIGH | C168: 743 | D168: 152 | E168: 175 | F168: 230 | G168: 75 | H168: 10 | I168: 101 | J168: 45 | K168: 12 | L168: 675 | M168: 8 | N168: 3 | O168: 504 | P168: 106 | Q168: 103
A169: 7131 | B169: HIALEAH-MIAMI LAKES SENIOR | C169: 371 | D169: 127 | E169: 90 | F169: 88 | G169: 20 | H169: 2 | I169: 44 | J169: 15 | K169: 97 | L169: 255 | M169: 1 | N169: 2 | O169: 329 | P169: 82 | Q169: 60
A170: 7141 | B170: DR MICHAEL M KROP SENIOR HIGH | C170: 511 | D170: 90 | E170: 106 | F170: 156 | G170: 41 | H170: 6 | I170: 112 | J170: 96 | K170: 245 | L170: 160 | M170: 6 | N170: 1 | O170: 331 | P170: 47 | Q170: 42
A171: 7151 | B171: HOMESTEAD SENIOR HIGH | C171: 406 | D171: 144 | E171: 99 | F171: 90 | G171: 9 | H171: 2 | I171: 62 | J171: 13 | K171: 198 | L171: 192 | M171: 0 | N171: 1 | O171: 370 | P171: 34 | Q171: 85
A172: 7160 | B172: MATER ACADEMY CHARTER HIGH | C172: 279 | D172: 30 | E172: 48 | F172: 131 | G172: 48 | H172: 6 | I172: 16 | J172: 6 | K172: 11 | L172: 262 | M172: 0 | N172: 0 | O172: 236 | P172: 37 | Q172: 21
A173: 7161 | B173: MAST @ VIRGINIA KEY | C173: 76 | D173: 4 | E173: 12 | F173: 18 | G173: 25 | H173: 10 | I173: 7 | J173: 15 | K173: 10 | L173: 51 | M173: 0 | N173: 0 | O173: 22 | P173: 9 | Q173: 1
A174: 7191 | B174: HIALEAH GARDENS SENIOR | C174: 636 | D174: 156 | E174: 175 | F174: 214 | G174: 35 | H174: 3 | I174: 53 | J174: 9 | K174: 5 | L174: 621 | M174: 1 | N174: 0 | O174: 554 | P174: 179 | Q174: 57
A175: 7201 | B175: MIAMI BEACH SENIOR HIGH | C175: 455 | D175: 103 | E175: 104 | F175: 139 | G175: 30 | H175: 5 | I175: 74 | J175: 70 | K175: 41 | L175: 339 | M175: 4 | N175: 0 | O175: 382 | P175: 90 | Q175: 62
A176: 7231 | B176: MIAMI CAROL CITY SENIOR HIGH | C176: 402 | D176: 152 | E176: 98 | F176: 79 | G176: 16 | H176: 3 | I176: 54 | J176: 5 | K176: 342 | L176: 53 | M176: 0 | N176: 1 | O176: 356 | P176: 16 | Q176: 53
A177: 7241 | B177: RONALD W REAGAN/DORAL SENIOR | C177: 343 | D177: 57 | E177: 76 | F177: 119 | G177: 47 | H177: 10 | I177: 34 | J177: 27 | K177: 7 | L177: 304 | M177: 3 | N177: 0 | O177: 167 | P177: 109 | Q177: 21
A178: 7251 | B178: MIAMI CENTRAL SENIOR HIGH | C178: 461 | D178: 188 | E178: 118 | F178: 101 | G178: 11 | H178: 0 | I178: 43 | J178: 4 | K178: 356 | L178: 100 | M178: 1 | N178: 0 | O178: 414 | P178: 43 | Q178: 75
A179: 7262 | B179: CITY OF HIALEAH EDUCATION ACAD | C179: 89 | D179: 16 | E179: 22 | F179: 20 | G179: 9 | H179: 1 | I179: 21 | J179: 2 | K179: 3 | L179: 83 | M179: 1 | N179: 0 | O179: 77 | P179: 20 | Q179: 10
A180: 7271 | B180: MIAMI CORAL PARK SENIOR HIGH | C180: 560 | D180: 147 | E180: 127 | F180: 162 | G180: 46 | H180: 13 | I180: 65 | J180: 11 | K180: 2 | L180: 546 | M180: 1 | N180: 0 | O180: 473 | P180: 180 | Q180: 77
A181: 7291 | B181: JOSE MARTI MAST 6-12 ACADEMY | C181: 62 | D181: 1 | E181: 1 | F181: 26 | G181: 13 | H181: 17 | I181: 4 | J181: 3 | K181: 5 | L181: 53 | M181: 1 | N181: 0 | O181: 48 | P181: 9 | Q181: 0
A182: 7301 | B182: MIAMI EDISON SENIOR HIGH | C182: 212 | D182: 83 | E182: 48 | F182: 32 | G182: 6 | H182: 0 | I182: 43 | J182: 1 | K182: 184 | L182: 26 | M182: 1 | N182: 0 | O182: 191 | P182: 72 | Q182: 28
A183: 7341 | B183: MIAMI JACKSON SENIOR HIGH | C183: 392 | D183: 154 | E183: 101 | F183: 63 | G183: 13 | H183: 0 | I183: 61 | J183: 3 | K183: 138 | L183: 249 | M183: 2 | N183: 0 | O183: 370 | P183: 79 | Q183: 58
A184: 7351 | B184: ARTHUR AND POLLY MAYS CONSERVA | C184: 92 | D184: 20 | E184: 24 | F184: 32 | G184: 10 | H184: 3 | I184: 3 | J184: 3 | K184: 36 | L184: 51 | M184: 1 | N184: 1 | O184: 85 | P184: 6 | Q184: 10
A185: 7361 | B185: MIAMI KILLIAN SENIOR HIGH | C185: 451 | D185: 120 | E185: 113 | F185: 126 | G185: 36 | H185: 9 | I185: 47 | J185: 54 | K185: 102 | L185: 289 | M185: 4 | N185: 1 | O185: 295 | P185: 64 | Q185: 86
A186: 7371 | B186: ROBERT MORGAN EDUCATIONAL CTR | C186: 401 | D186: 53 | E186: 116 | F186: 167 | G186: 46 | H186: 9 | I186: 10 | J186: 34 | K186: 83 | L186: 279 | M186: 2 | N186: 2 | O186: 281 | P186: 33 | Q186: 41
A187: 7381 | B187: MIAMI NORLAND SENIOR HIGH | C187: 444 | D187: 132 | E187: 137 | F187: 116 | G187: 13 | H187: 1 | I187: 45 | J187: 1 | K187: 421 | L187: 19 | M187: 3 | N187: 0 | O187: 378 | P187: 21 | Q187: 48
A188: 7391 | B188: MIAMI LAKES EDUCATIONAL CENTER | C188: 283 | D188: 36 | E188: 60 | F188: 105 | G188: 42 | H188: 10 | I188: 30 | J188: 9 | K188: 86 | L188: 182 | M188: 4 | N188: 0 | O188: 220 | P188: 28 | Q188: 42
A189: 7411 | B189: MIAMI NORTHWESTERN SENIOR HIGH | C189: 373 | D189: 145 | E189: 116 | F189: 67 | G189: 12 | H189: 0 | I189: 33 | J189: 0 | K189: 348 | L189: 23 | M189: 1 | N189: 0 | O189: 334 | P189: 17 | Q189: 60
A190: 7431 | B190: MIAMI PALMETTO SENIOR HIGH | C190: 451 | D190: 70 | E190: 99 | F190: 154 | G190: 61 | H190: 14 | I190: 53 | J190: 128 | K190: 118 | L190: 196 | M190: 4 | N190: 1 | O190: 206 | P190: 41 | Q190: 61
A191: 7461 | B191: MIAMI SENIOR HIGH | C191: 635 | D191: 249 | E191: 164 | F191: 109 | G191: 22 | H191: 5 | I191: 86 | J191: 9 | K191: 22 | L191: 602 | M191: 2 | N191: 0 | O191: 600 | P191: 180 | Q191: 80
A192: 7511 | B192: MIAMI SPRINGS SENIOR HIGH | C192: 381 | D192: 106 | E192: 81 | F192: 114 | G192: 18 | H192: 0 | I192: 62 | J192: 19 | K192: 56 | L192: 303 | M192: 3 | N192: 0 | O192: 321 | P192: 109 | Q192: 24
A193: 7531 | B193: MIAMI SUNSET SENIOR HIGH | C193: 361 | D193: 76 | E193: 97 | F193: 117 | G193: 29 | H193: 1 | I193: 41 | J193: 35 | K193: 21 | L193: 301 | M193: 4 | N193: 0 | O193: 274 | P193: 56 | Q193: 71
A194: 7541 | B194: NORTH MIAMI BEACH SENIOR HIGH | C194: 394 | D194: 126 | E194: 122 | F194: 84 | G194: 10 | H194: 1 | I194: 51 | J194: 12 | K194: 302 | L194: 73 | M194: 6 | N194: 0 | O194: 337 | P194: 77 | Q194: 52
A195: 7571 | B195: INTL STUDIES PREP ACADEMY | C195: 37 | D195: 1 | E195: 7 | F195: 15 | G195: 5 | H195: 0 | I195: 9 | J195: 5 | K195: 1 | L195: 30 | M195: 0 | N195: 0 | O195: 23 | P195: 12 | Q195: 1
A196: 7591 | B196: NORTH MIAMI SENIOR HIGH | C196: 588 | D196: 194 | E196: 155 | F196: 116 | G196: 29 | H196: 0 | I196: 94 | J196: 3 | K196: 516 | L196: 64 | M196: 3 | N196: 2 | O196: 525 | P196: 161 | Q196: 48
A197: 7601 | B197: WILLIAM H. TURNER TECHNICAL | C197: 251 | D197: 26 | E197: 66 | F197: 112 | G197: 19 | H197: 4 | I197: 24 | J197: 0 | K197: 208 | L197: 39 | M197: 1 | N197: 2 | O197: 221 | P197: 31 | Q197: 9
A198: 7631 | B198: MIAMI MACARTHUR SOUTH | C198: 16 | D198: 4 | E198: 4 | F198: 0 | G198: 0 | H198: 0 | I198: 8 | J198: 0 | K198: 6 | L198: 10 | M198: 0 | N198: 0 | O198: 13 | P198: 1 | Q198: 4
A199: 7701 | B199: SOUTH DADE SENIOR HIGH | C199: 621 | D199: 183 | E199: 170 | F199: 150 | G199: 30 | H199: 1 | I199: 87 | J199: 62 | K199: 143 | L199: 413 | M199: 3 | N199: 0 | O199: 534 | P199: 79 | Q199: 123
A200: 7721 | B200: SOUTH MIAMI SENIOR HIGH | C200: 542 | D200: 169 | E200: 137 | F200: 139 | G200: 43 | H200: 4 | I200: 50 | J200: 25 | K200: 27 | L200: 489 | M200: 1 | N200: 0 | O200: 446 | P200: 176 | Q200: 83
... 17 more rows

Sheet Geo Enrollment (hidden)
A1: 1 | B1: 2 | C1: 3 | D1: 4 | E1: 5 | F1: 6 | G1: 7 | H1: 8 | I1: 9 | J1: 10 | K1: 11 | L1: 12 | M1: 13 | N1: 14 | O1: 15 | P1: 16 | Q1: 17
A2: School | B2: SchName | C2: Total | D2: ML1 | E2: ML2 | F2: ML3 | G2: ML4 | H2: ML5 | I2: ML0 | J2: W | K2: B | L2: H | M2: A | N2: I | O2: ED | P2: ELL | Q2: SWD
A3: 0071 | B3: EUGENIA B. THOMAS K-8 CENTER | C3: 23 | D3: 0 | E3: 0 | F3: 1 | G3: 11 | H3: 11 | I3: 0 | J3: 2 | K3: 0 | L3: 21 | M3: 0 | N3: 0 | O3: 6 | P3: 1 | Q3: 0
A4: 0092 | B4: NORMAN S. EDELCUP/SUNNY ISLES | C4: 11 | D4: 0 | E4: 0 | F4: 0 | G4: 0 | H4: 11 | I4: 0 | J4: 6 | K4: 0 | L4: 3 | M4: 2 | N4: 0 | O4: 2 | P4: 0 | Q4: 0
A5: 0122 | B5: DR ROLANDO ESPINOSA K-8 | C5: 12 | D5: 0 | E5: 0 | F5: 0 | G5: 3 | H5: 8 | I5: 1 | J5: 2 | K5: 0 | L5: 10 | M5: 0 | N5: 0 | O5: 2 | P5: 0 | Q5: 0
A6: 0231 | B6: AVENTURA WATERWAYS K-8 CENTER | C6: 20 | D6: 0 | E6: 0 | F6: 1 | G6: 3 | H6: 16 | I6: 0 | J6: 8 | K6: 2 | L6: 7 | M6: 3 | N6: 0 | O6: 4 | P6: 2 | Q6: 0
A7: 0241 | B7: RUTH K BROAD/BAY HARBOR K-8 | C7: 7 | D7: 0 | E7: 0 | F7: 0 | G7: 4 | H7: 3 | I7: 0 | J7: 3 | K7: 0 | L7: 4 | M7: 0 | N7: 0 | O7: 1 | P7: 0 | Q7: 0
A8: 0332 | B8: SOMERSET ACADEMY(SILVER PALMS) | C8: 2 | D8: 0 | E8: 0 | F8: 0 | G8: 1 | H8: 0 | I8: 1 | J8: 1 | K8: 0 | L8: 1 | M8: 0 | N8: 0 | O8: 1 | P8: 0 | Q8: 0
A9: 0950 | B9: AVENTURA CITY OF EXCELLENCE | C9: 16 | D9: 0 | E9: 0 | F9: 0 | G9: 1 | H9: 14 | I9: 1 | J9: 8 | K9: 0 | L9: 7 | M9: 1 | N9: 0 | O9: 0 | P9: 0 | Q9: 0
A10: 0961 | B10: CORAL GABLES PREPARATORY ACAD | C10: 13 | D10: 0 | E10: 1 | F10: 1 | G10: 7 | H10: 4 | I10: 0 | J10: 1 | K10: 0 | L10: 11 | M10: 1 | N10: 0 | O10: 6 | P10: 1 | Q10: 1
A11: 1020 | B11: YOUTH CO-OP CHARTER SCHOOL | C11: 20 | D11: 0 | E11: 1 | F11: 7 | G11: 9 | H11: 3 | I11: 0 | J11: 1 | K11: 1 | L11: 18 | M11: 0 | N11: 0 | O11: 14 | P11: 0 | Q11: 0
A12: 1331 | B12: DEVON AIRE K-8 CENTER | C12: 15 | D12: 0 | E12: 0 | F12: 1 | G12: 1 | H12: 13 | I12: 0 | J12: 3 | K12: 0 | L12: 11 | M12: 1 | N12: 0 | O12: 6 | P12: 0 | Q12: 0
A13: 1721 | B13: EVERGLADES K-8 CENTER | C13: 35 | D13: 0 | E13: 0 | F13: 6 | G13: 14 | H13: 15 | I13: 0 | J13: 1 | K13: 0 | L13: 33 | M13: 1 | N13: 0 | O13: 19 | P13: 1 | Q13: 1
A14: 2741 | B14: KEY BISCAYNE K-8 CENTER | C14: 4 | D14: 0 | E14: 0 | F14: 1 | G14: 1 | H14: 2 | I14: 0 | J14: 1 | K14: 0 | L14: 3 | M14: 0 | N14: 0 | O14: 0 | P14: 0 | Q14: 0
A15: 3029 | B15: DORAL ACADEMY OF TECHNOLOGY | C15: 38 | D15: 0 | E15: 0 | F15: 3 | G15: 17 | H15: 18 | I15: 0 | J15: 4 | K15: 0 | L15: 31 | M15: 3 | N15: 0 | O15: 14 | P15: 0 | Q15: 0
A16: 3032 | B16: PALM GLADES PREPATORY ACADEMY | C16: 1 | D16: 0 | E16: 0 | F16: 0 | G16: 0 | H16: 0 | I16: 1 | J16: 0 | K16: 0 | L16: 1 | M16: 0 | N16: 0 | O16: 0 | P16: 0 | Q16: 0
A17: 3101 | B17: FRANK C. MARTIN K-8 CENTER | C17: 40 | D17: 0 | E17: 0 | F17: 7 | G17: 19 | H17: 14 | I17: 0 | J17: 8 | K17: 14 | L17: 13 | M17: 4 | N17: 1 | O17: 11 | P17: 0 | Q17: 1
A18: 3191 | B18: ADA MERRITT K-8 CENTER | C18: 20 | D18: 0 | E18: 0 | F18: 0 | G18: 8 | H18: 12 | I18: 0 | J18: 9 | K18: 1 | L18: 9 | M18: 0 | N18: 0 | O18: 6 | P18: 0 | Q18: 0
A19: 3281 | B19: MIAMI LAKES K-8 CENTER | C19: 34 | D19: 0 | E19: 0 | F19: 0 | G19: 17 | H19: 17 | I19: 0 | J19: 2 | K19: 0 | L19: 31 | M19: 1 | N19: 0 | O19: 12 | P19: 0 | Q19: 0
A20: 3421 | B20: M.A. MILAM K-8 CENTER | C20: 12 | D20: 0 | E20: 0 | F20: 0 | G20: 4 | H20: 8 | I20: 0 | J20: 0 | K20: 0 | L20: 12 | M20: 0 | N20: 0 | O20: 9 | P20: 0 | Q20: 0
A21: 5003 | B21: SOUTH DADE MIDDLE SCHOOL | C21: 9 | D21: 0 | E21: 0 | F21: 2 | G21: 4 | H21: 3 | I21: 0 | J21: 2 | K21: 0 | L21: 7 | M21: 0 | N21: 0 | O21: 8 | P21: 0 | Q21: 0
A22: 5005 | B22: DAVID LAWRENCE JR K-8 CENTER | C22: 14 | D22: 0 | E22: 0 | F22: 0 | G22: 0 | H22: 14 | I22: 0 | J22: 6 | K22: 2 | L22: 5 | M22: 1 | N22: 0 | O22: 5 | P22: 0 | Q22: 0
A23: 5006 | B23: EVERGLADES PREPARATORY ACADEMY | C23: 17 | D23: 1 | E23: 3 | F23: 5 | G23: 5 | H23: 3 | I23: 0 | J23: 1 | K23: 0 | L23: 16 | M23: 0 | N23: 0 | O23: 15 | P23: 2 | Q23: 1
A24: 5961 | B24: WINSTON PARK K-8 CENTER | C24: 12 | D24: 0 | E24: 0 | F24: 2 | G24: 7 | H24: 3 | I24: 0 | J24: 0 | K24: 0 | L24: 12 | M24: 0 | N24: 0 | O24: 6 | P24: 0 | Q24: 1
A25: 6001 | B25: HERBERT A. AMMONS MIDDLE | C25: 98 | D25: 0 | E25: 0 | F25: 8 | G25: 42 | H25: 46 | I25: 2 | J25: 20 | K25: 12 | L25: 55 | M25: 8 | N25: 0 | O25: 39 | P25: 1 | Q25: 0
A26: 6006 | B26: ARCHIMEDEAN CONSERVATORY | C26: 79 | D26: 1 | E26: 5 | F26: 18 | G26: 19 | H26: 34 | I26: 2 | J26: 15 | K26: 1 | L26: 62 | M26: 1 | N26: 0 | O26: 39 | P26: 2 | Q26: 3
A27: 6010 | B27: FLORIDA INTERNATIONAL ACADEMY | C27: 15 | D27: 0 | E27: 0 | F27: 2 | G27: 11 | H27: 2 | I27: 0 | J27: 0 | K27: 14 | L27: 1 | M27: 0 | N27: 0 | O27: 14 | P27: 0 | Q27: 0
A28: 6012 | B28: MATER ACADEMY CHARTER MIDDLE | C28: 47 | D28: 0 | E28: 0 | F28: 0 | G28: 10 | H28: 37 | I28: 0 | J28: 1 | K28: 0 | L28: 45 | M28: 1 | N28: 0 | O28: 34 | P28: 5 | Q28: 1
A29: 6021 | B29: ARVIDA MIDDLE SCHOOL | C29: 40 | D29: 0 | E29: 0 | F29: 0 | G29: 11 | H29: 29 | I29: 0 | J29: 10 | K29: 2 | L29: 24 | M29: 4 | N29: 0 | O29: 18 | P29: 0 | Q29: 0
A30: 6022 | B30: PINECREST ACADEMY CHARTER MIDD | C30: 21 | D30: 0 | E30: 0 | F30: 2 | G30: 11 | H30: 8 | I30: 0 | J30: 2 | K30: 0 | L30: 19 | M30: 0 | N30: 0 | O30: 11 | P30: 0 | Q30: 0
A31: 6030 | B31: DORAL ACADEMY CHARTER MIDDLE | C31: 29 | D31: 0 | E31: 0 | F31: 5 | G31: 13 | H31: 11 | I31: 0 | J31: 3 | K31: 0 | L31: 26 | M31: 0 | N31: 0 | O31: 10 | P31: 0 | Q31: 0
A32: 6033 | B32: MATER ACADEMY LAKES MIDDLE | C32: 8 | D32: 0 | E32: 1 | F32: 2 | G32: 2 | H32: 3 | I32: 0 | J32: 0 | K32: 0 | L32: 8 | M32: 0 | N32: 0 | O32: 6 | P32: 0 | Q32: 0
A33: 6040 | B33: DOCTORS CHARTER/MIAMI SHORES | C33: 73 | D33: 0 | E33: 0 | F33: 5 | G33: 6 | H33: 3 | I33: 59 | J33: 14 | K33: 38 | L33: 18 | M33: 3 | N33: 0 | O33: 12 | P33: 1 | Q33: 3
A34: 6045 | B34: INTL. STUDIES CHARTER MIDDLE | C34: 1 | D34: 0 | E34: 0 | F34: 0 | G34: 0 | H34: 1 | I34: 0 | J34: 0 | K34: 0 | L34: 1 | M34: 0 | N34: 0 | O34: 0 | P34: 0 | Q34: 0
A35: 6052 | B35: ZELDA GLAZER MIDDLE SCHOOL | C35: 116 | D35: 0 | E35: 0 | F35: 30 | G35: 50 | H35: 35 | I35: 1 | J35: 4 | K35: 1 | L35: 108 | M35: 3 | N35: 0 | O35: 65 | P35: 1 | Q35: 1
A36: 6060 | B36: ASPIRA SOUTH YOUTH LEADERSHIP | C36: 23 | D36: 0 | E36: 1 | F36: 9 | G36: 11 | H36: 2 | I36: 0 | J36: 0 | K36: 0 | L36: 23 | M36: 0 | N36: 0 | O36: 19 | P36: 0 | Q36: 0
A37: 6071 | B37: GEORGE WASHINGTON CARVER | C37: 36 | D37: 0 | E37: 0 | F37: 3 | G37: 4 | H37: 29 | I37: 0 | J37: 17 | K37: 2 | L37: 15 | M37: 2 | N37: 0 | O37: 5 | P37: 0 | Q37: 0
A38: 6081 | B38: CENTENNIAL MIDDLE | C38: 24 | D38: 0 | E38: 2 | F38: 3 | G38: 15 | H38: 2 | I38: 2 | J38: 9 | K38: 5 | L38: 9 | M38: 0 | N38: 1 | O38: 22 | P38: 2 | Q38: 1
A39: 6111 | B39: CUTLER RIDGE MIDDLE | C39: 17 | D39: 1 | E39: 0 | F39: 8 | G39: 5 | H39: 3 | I39: 0 | J39: 3 | K39: 6 | L39: 8 | M39: 0 | N39: 0 | O39: 15 | P39: 0 | Q39: 1
A40: 6151 | B40: DORAL MIDDLE SCHOOL | C40: 29 | D40: 0 | E40: 0 | F40: 7 | G40: 10 | H40: 12 | I40: 0 | J40: 5 | K40: 2 | L40: 21 | M40: 1 | N40: 0 | O40: 13 | P40: 1 | Q40: 2
A41: 6161 | B41: LAWTON CHILES MIDDLE SCHOOL | C41: 2 | D41: 0 | E41: 0 | F41: 1 | G41: 1 | H41: 0 | I41: 0 | J41: 0 | K41: 0 | L41: 2 | M41: 0 | N41: 0 | O41: 2 | P41: 0 | Q41: 0
A42: 6211 | B42: GLADES MIDDLE | C42: 43 | D42: 0 | E42: 0 | F42: 5 | G42: 20 | H42: 18 | I42: 0 | J42: 6 | K42: 0 | L42: 34 | M42: 1 | N42: 0 | O42: 23 | P42: 0 | Q42: 2
A43: 6231 | B43: HIALEAH MIDDLE | C43: 31 | D43: 1 | E43: 2 | F43: 7 | G43: 19 | H43: 2 | I43: 0 | J43: 1 | K43: 1 | L43: 29 | M43: 0 | N43: 0 | O43: 27 | P43: 0 | Q43: 0
A44: 6241 | B44: HIGHLAND OAKS MIDDLE | C44: 44 | D44: 0 | E44: 1 | F44: 7 | G44: 18 | H44: 18 | I44: 0 | J44: 25 | K44: 5 | L44: 11 | M44: 2 | N44: 0 | O44: 17 | P44: 0 | Q44: 0
A45: 6301 | B45: JOHN F. KENNEDY MIDDLE | C45: 54 | D45: 0 | E45: 0 | F45: 5 | G45: 22 | H45: 27 | I45: 0 | J45: 1 | K45: 36 | L45: 15 | M45: 1 | N45: 1 | O45: 50 | P45: 0 | Q45: 0
A46: 6411 | B46: HORACE MANN MIDDLE | C46: 21 | D46: 0 | E46: 1 | F46: 9 | G46: 10 | H46: 1 | I46: 0 | J46: 2 | K46: 17 | L46: 2 | M46: 0 | N46: 0 | O46: 20 | P46: 0 | Q46: 1
A47: 6431 | B47: MAYS MIDDLE | C47: 3 | D47: 0 | E47: 0 | F47: 1 | G47: 2 | H47: 0 | I47: 0 | J47: 0 | K47: 2 | L47: 1 | M47: 0 | N47: 0 | O47: 1 | P47: 0 | Q47: 0
A48: 6441 | B48: HOWARD D. MCMILLAN MIDDLE | C48: 49 | D48: 0 | E48: 0 | F48: 6 | G48: 29 | H48: 14 | I48: 0 | J48: 1 | K48: 0 | L48: 45 | M48: 3 | N48: 0 | O48: 38 | P48: 2 | Q48: 2
A49: 6501 | B49: MIAMI LAKES MIDDLE | C49: 31 | D49: 0 | E49: 0 | F49: 3 | G49: 8 | H49: 20 | I49: 0 | J49: 0 | K49: 4 | L49: 25 | M49: 1 | N49: 0 | O49: 19 | P49: 0 | Q49: 0
A50: 6521 | B50: MIAMI SPRINGS MIDDLE | C50: 25 | D50: 0 | E50: 0 | F50: 3 | G50: 10 | H50: 12 | I50: 0 | J50: 3 | K50: 1 | L50: 20 | M50: 0 | N50: 0 | O50: 17 | P50: 0 | Q50: 0
A51: 6541 | B51: NAUTILUS MIDDLE | C51: 50 | D51: 0 | E51: 0 | F51: 6 | G51: 16 | H51: 27 | I51: 1 | J51: 32 | K51: 1 | L51: 16 | M51: 1 | N51: 0 | O51: 12 | P51: 1 | Q51: 0
A52: 6591 | B52: NORTH DADE MIDDLE | C52: 9 | D52: 0 | E52: 1 | F52: 3 | G52: 2 | H52: 3 | I52: 0 | J52: 0 | K52: 8 | L52: 1 | M52: 0 | N52: 0 | O52: 7 | P52: 0 | Q52: 0
A53: 6611 | B53: COUNTRY CLUB MIDDLE SCHOOL | C53: 20 | D53: 0 | E53: 0 | F53: 3 | G53: 7 | H53: 9 | I53: 1 | J53: 1 | K53: 2 | L53: 16 | M53: 1 | N53: 0 | O53: 15 | P53: 0 | Q53: 0
A54: 6701 | B54: PALMETTO MIDDLE | C54: 21 | D54: 0 | E54: 0 | F54: 1 | G54: 4 | H54: 16 | I54: 0 | J54: 7 | K54: 0 | L54: 7 | M54: 6 | N54: 0 | O54: 1 | P54: 0 | Q54: 0
A55: 6741 | B55: PONCE DE LEON MIDDLE | C55: 20 | D55: 0 | E55: 0 | F55: 1 | G55: 6 | H55: 11 | I55: 2 | J55: 7 | K55: 1 | L55: 10 | M55: 2 | N55: 0 | O55: 8 | P55: 0 | Q55: 0
A56: 6751 | B56: HIALEAH GARDENS MIDDLE SCHOOL | C56: 217 | D56: 1 | E56: 13 | F56: 68 | G56: 82 | H56: 53 | I56: 0 | J56: 6 | K56: 2 | L56: 206 | M56: 3 | N56: 0 | O56: 178 | P56: 7 | Q56: 1
A57: 6761 | B57: REDLAND MIDDLE | C57: 26 | D57: 0 | E57: 1 | F57: 17 | G57: 6 | H57: 2 | I57: 0 | J57: 7 | K57: 4 | L57: 15 | M57: 0 | N57: 0 | O57: 20 | P57: 2 | Q57: 1
A58: 6771 | B58: JORGE MAS CANOSA MIDDLE | C58: 55 | D58: 0 | E58: 1 | F58: 7 | G58: 23 | H58: 23 | I58: 1 | J58: 9 | K58: 2 | L58: 41 | M58: 2 | N58: 0 | O58: 38 | P58: 1 | Q58: 1
A59: 6781 | B59: RICHMOND HEIGHTS MIDDLE | C59: 10 | D59: 0 | E59: 0 | F59: 0 | G59: 4 | H59: 6 | I59: 0 | J59: 1 | K59: 3 | L59: 6 | M59: 0 | N59: 0 | O59: 8 | P59: 0 | Q59: 1
A60: 6801 | B60: RIVIERA MIDDLE | C60: 21 | D60: 0 | E60: 0 | F60: 3 | G60: 12 | H60: 6 | I60: 0 | J60: 3 | K60: 0 | L60: 16 | M60: 2 | N60: 0 | O60: 14 | P60: 0 | Q60: 1
A61: 6821 | B61: ROCKWAY MIDDLE | C61: 21 | D61: 0 | E61: 0 | F61: 0 | G61: 5 | H61: 16 | I61: 0 | J61: 1 | K61: 0 | L61: 20 | M61: 0 | N61: 0 | O61: 7 | P61: 0 | Q61: 0
A62: 6841 | B62: SHENANDOAH MIDDLE | C62: 46 | D62: 0 | E62: 0 | F62: 4 | G62: 31 | H62: 11 | I62: 0 | J62: 2 | K62: 1 | L62: 43 | M62: 0 | N62: 0 | O62: 36 | P62: 4 | Q62: 0
A63: 6861 | B63: SOUTHWOOD MIDDLE | C63: 32 | D63: 0 | E63: 0 | F63: 0 | G63: 4 | H63: 27 | I63: 1 | J63: 10 | K63: 0 | L63: 15 | M63: 7 | N63: 0 | O63: 2 | P63: 0 | Q63: 1
A64: 6901 | B64: W. R. THOMAS MIDDLE | C64: 54 | D64: 0 | E64: 0 | F64: 13 | G64: 26 | H64: 15 | I64: 0 | J64: 2 | K64: 0 | L64: 51 | M64: 0 | N64: 1 | O64: 39 | P64: 1 | Q64: 0
A65: 6921 | B65: LAMAR LOUISE CURRY MIDDLE SCH | C65: 21 | D65: 0 | E65: 0 | F65: 0 | G65: 3 | H65: 18 | I65: 0 | J65: 3 | K65: 1 | L65: 15 | M65: 1 | N65: 1 | O65: 7 | P65: 0 | Q65: 0
A66: 7001 | B66: MIAMI-DADE ONLINE ACADEMY | C66: 38 | D66: 1 | E66: 0 | F66: 2 | G66: 3 | H66: 2 | I66: 30 | J66: 6 | K66: 8 | L66: 24 | M66: 0 | N66: 0 | O66: 22 | P66: 0 | Q66: 0
A67: 7007 | B67: INTL. STUDIES CHARTER SENIOR | C67: 95 | D67: 2 | E67: 0 | F67: 11 | G67: 6 | H67: 7 | I67: 69 | J67: 25 | K67: 1 | L67: 69 | M67: 0 | N67: 0 | O67: 56 | P67: 35 | Q67: 1
A68: 7009 | B68: DORAL PERFORMING ARTS ACADEMY | C68: 88 | D68: 0 | E68: 4 | F68: 15 | G68: 17 | H68: 10 | I68: 42 | J68: 10 | K68: 1 | L68: 77 | M68: 0 | N68: 0 | O68: 32 | P68: 4 | Q68: 1
A69: 7011 | B69: AMERICAN SENIOR | C69: 486 | D69: 0 | E69: 1 | F69: 12 | G69: 10 | H69: 6 | I69: 457 | J69: 14 | K69: 143 | L69: 324 | M69: 4 | N69: 0 | O69: 389 | P69: 70 | Q69: 54
A70: 7014 | B70: MATER PERFORMING ARTS ACADEMY | C70: 92 | D70: 0 | E70: 0 | F70: 0 | G70: 0 | H70: 0 | I70: 92 | J70: 2 | K70: 4 | L70: 86 | M70: 0 | N70: 0 | O70: 67 | P70: 1 | Q70: 0
A71: 7015 | B71: STELLAR LEADERSHIP ACADEMY | C71: 83 | D71: 4 | E71: 1 | F71: 0 | G71: 0 | H71: 0 | I71: 78 | J71: 0 | K71: 71 | L71: 12 | M71: 0 | N71: 0 | O71: 49 | P71: 5 | Q71: 13
A72: 7016 | B72: SPORTS LEADERSHIP OF MIAMI CHS | C72: 12 | D72: 0 | E72: 1 | F72: 1 | G72: 0 | H72: 0 | I72: 10 | J72: 0 | K72: 1 | L72: 11 | M72: 0 | N72: 0 | O72: 7 | P72: 0 | Q72: 0
A73: 7018 | B73: MATER ACADEMY LAKES HIGH SCH | C73: 309 | D73: 0 | E73: 2 | F73: 41 | G73: 43 | H73: 27 | I73: 196 | J73: 22 | K73: 5 | L73: 281 | M73: 1 | N73: 0 | O73: 228 | P73: 32 | Q73: 8
A74: 7020 | B74: DORAL ACADEMY HIGH SCHOOL | C74: 385 | D74: 1 | E74: 6 | F74: 53 | G74: 53 | H74: 29 | I74: 243 | J74: 22 | K74: 4 | L74: 359 | M74: 0 | N74: 0 | O74: 203 | P74: 33 | Q74: 11
A75: 7022 | B75: ACADEMY OF ARTS AND MINDS | C75: 100 | D75: 0 | E75: 0 | F75: 8 | G75: 3 | H75: 2 | I75: 87 | J75: 25 | K75: 7 | L75: 68 | M75: 0 | N75: 0 | O75: 35 | P75: 11 | Q75: 4
A76: 7024 | B76: MATER ACADEMY HIGH-INTL STUDIE | C76: 12 | D76: 0 | E76: 0 | F76: 0 | G76: 0 | H76: 0 | I76: 12 | J76: 0 | K76: 5 | L76: 7 | M76: 0 | N76: 0 | O76: 10 | P76: 1 | Q76: 0
A77: 7029 | B77: TERRA ENVIRONMENTAL RESEARCH | C77: 467 | D77: 0 | E77: 5 | F77: 74 | G77: 93 | H77: 88 | I77: 207 | J77: 98 | K77: 12 | L77: 333 | M77: 20 | N77: 0 | O77: 196 | P77: 14 | Q77: 21
A78: 7030 | B78: INTEGRATED ACADEMICS (SIATECH) | C78: 68 | D78: 1 | E78: 0 | F78: 0 | G78: 0 | H78: 0 | I78: 67 | J78: 4 | K78: 53 | L78: 9 | M78: 0 | N78: 0 | O78: 21 | P78: 6 | Q78: 15
A79: 7032 | B79: PALM GLADES PREP HIGH SCHOOL | C79: 34 | D79: 0 | E79: 2 | F79: 0 | G79: 0 | H79: 0 | I79: 32 | J79: 0 | K79: 6 | L79: 28 | M79: 0 | N79: 0 | O79: 26 | P79: 3 | Q79: 2
A80: 7033 | B80: LAW ENFORCEMENT OFFICERS HS | C80: 145 | D80: 0 | E80: 2 | F80: 18 | G80: 9 | H80: 6 | I80: 110 | J80: 9 | K80: 34 | L80: 101 | M80: 1 | N80: 0 | O80: 114 | P80: 5 | Q80: 7
A81: 7034 | B81: SOMERSET ACAD HIGH SOUTH-HMSTD | C81: 18 | D81: 0 | E81: 1 | F81: 4 | G81: 0 | H81: 0 | I81: 13 | J81: 6 | K81: 0 | L81: 12 | M81: 0 | N81: 0 | O81: 12 | P81: 1 | Q81: 1
A82: 7036 | B82: LAWRENCE ACADEMY SENIOR | C82: 11 | D82: 0 | E82: 0 | F82: 0 | G82: 0 | H82: 0 | I82: 11 | J82: 0 | K82: 4 | L82: 7 | M82: 0 | N82: 0 | O82: 11 | P82: 2 | Q82: 0
A83: 7037 | B83: MATER ACADEMY EAST HIGH SCHOOL | C83: 121 | D83: 0 | E83: 4 | F83: 5 | G83: 5 | H83: 2 | I83: 105 | J83: 6 | K83: 6 | L83: 108 | M83: 1 | N83: 0 | O83: 75 | P83: 18 | Q83: 5
A84: 7042 | B84: SOMERSET ACADEMY CHARTER HIGH | C84: 75 | D84: 0 | E84: 3 | F84: 5 | G84: 5 | H84: 2 | I84: 60 | J84: 3 | K84: 6 | L84: 66 | M84: 0 | N84: 0 | O84: 62 | P84: 9 | Q84: 7
A85: 7048 | B85: ALONZO & TRACY MOURNING SH | C85: 470 | D85: 3 | E85: 4 | F85: 4 | G85: 14 | H85: 19 | I85: 426 | J85: 130 | K85: 97 | L85: 236 | M85: 5 | N85: 0 | O85: 291 | P85: 69 | Q85: 31
A86: 7049 | B86: WESTLAND HIALEAH SENIOR HIGH | C86: 514 | D86: 1 | E86: 1 | F86: 18 | G86: 47 | H86: 11 | I86: 436 | J86: 11 | K86: 7 | L86: 496 | M86: 0 | N86: 0 | O86: 451 | P86: 214 | Q86: 35
A87: 7050 | B87: KEYS GATE CHARTER HIGH SCHL | C87: 278 | D87: 0 | E87: 7 | F87: 24 | G87: 15 | H87: 6 | I87: 226 | J87: 42 | K87: 54 | L87: 179 | M87: 3 | N87: 0 | O87: 165 | P87: 31 | Q87: 20
A88: 7051 | B88: G. HOLMES BRADDOCK SENIOR HIGH | C88: 777 | D88: 0 | E88: 11 | F88: 32 | G88: 38 | H88: 20 | I88: 676 | J88: 40 | K88: 11 | L88: 719 | M88: 4 | N88: 2 | O88: 599 | P88: 140 | Q88: 119
A89: 7053 | B89: PINECREST ACADEMY CHARTER HIGH | C89: 154 | D89: 1 | E89: 6 | F89: 15 | G89: 7 | H89: 5 | I89: 120 | J89: 7 | K89: 1 | L89: 146 | M89: 0 | N89: 0 | O89: 87 | P89: 11 | Q89: 14
A90: 7054 | B90: EXCELSIOR CHARTER HIGH SCHOOL | C90: 34 | D90: 0 | E90: 0 | F90: 3 | G90: 1 | H90: 0 | I90: 30 | J90: 0 | K90: 0 | L90: 34 | M90: 0 | N90: 0 | O90: 30 | P90: 16 | Q90: 1
A91: 7055 | B91: YOUNG WOMEN'S PREPARATORY ACAD | C91: 54 | D91: 2 | E91: 4 | F91: 24 | G91: 18 | H91: 4 | I91: 2 | J91: 7 | K91: 9 | L91: 38 | M91: 0 | N91: 0 | O91: 36 | P91: 3 | Q91: 0
A92: 7056 | B92: YOUNG MENS PREPARATORY ACADEMY | C92: 30 | D92: 0 | E92: 1 | F92: 1 | G92: 1 | H92: 0 | I92: 27 | J92: 1 | K92: 21 | L92: 8 | M92: 0 | N92: 0 | O92: 18 | P92: 0 | Q92: 5
A93: 7058 | B93: MIAMI COMMUNITY CH HIGH SCHOOL | C93: 30 | D93: 0 | E93: 3 | F93: 1 | G93: 0 | H93: 0 | I93: 26 | J93: 3 | K93: 3 | L93: 24 | M93: 0 | N93: 0 | O93: 26 | P93: 5 | Q93: 5
A94: 7059 | B94: MIAMI ARTS CHARTER | C94: 76 | D94: 2 | E94: 4 | F94: 8 | G94: 6 | H94: 7 | I94: 49 | J94: 18 | K94: 16 | L94: 40 | M94: 2 | N94: 0 | O94: 14 | P94: 1 | Q94: 1
A95: 7060 | B95: EVERGLADES PREP ACADEMY HIGH | C95: 64 | D95: 1 | E95: 1 | F95: 9 | G95: 11 | H95: 4 | I95: 38 | J95: 5 | K95: 2 | L95: 57 | M95: 0 | N95: 0 | O95: 42 | P95: 7 | Q95: 6
A96: 7062 | B96: MAVERICKS HIGH OF NORTH M-DADE | C96: 89 | D96: 2 | E96: 0 | F96: 0 | G96: 0 | H96: 0 | I96: 87 | J96: 2 | K96: 68 | L96: 19 | M96: 0 | N96: 0 | O96: 46 | P96: 1 | Q96: 15
A97: 7065 | B97: MAVERICKS HIGH OF SOUTH M-DADE | C97: 68 | D97: 2 | E97: 5 | F97: 0 | G97: 0 | H97: 0 | I97: 61 | J97: 8 | K97: 25 | L97: 34 | M97: 1 | N97: 0 | O97: 42 | P97: 6 | Q97: 14
A98: 7067 | B98: GREEN SPRINGS HIGH SCHOOL | C98: 84 | D98: 0 | E98: 2 | F98: 0 | G98: 0 | H98: 0 | I98: 82 | J98: 2 | K98: 11 | L98: 71 | M98: 0 | N98: 0 | O98: 61 | P98: 14 | Q98: 12
A99: 7068 | B99: NORTH GARDENS HIGH SCHOOL | C99: 94 | D99: 2 | E99: 3 | F99: 0 | G99: 0 | H99: 0 | I99: 89 | J99: 0 | K99: 69 | L99: 25 | M99: 0 | N99: 0 | O99: 47 | P99: 5 | Q99: 3
A100: 7069 | B100: NORTH PARK HIGH SCHOOL | C100: 64 | D100: 0 | E100: 0 | F100: 0 | G100: 0 | H100: 0 | I100: 64 | J100: 1 | K100: 46 | L100: 17 | M100: 0 | N100: 0 | O100: 35 | P100: 6 | Q100: 6
A101: 7070 | B101: YOUTH CO-OP PREP HIGH SCHOOL | C101: 6 | D101: 0 | E101: 0 | F101: 1 | G101: 2 | H101: 2 | I101: 1 | J101: 0 | K101: 0 | L101: 6 | M101: 0 | N101: 0 | O101: 2 | P101: 0 | Q101: 0
A102: 7071 | B102: CORAL GABLES SENIOR HIGH | C102: 910 | D102: 5 | E102: 12 | F102: 73 | G102: 90 | H102: 68 | I102: 662 | J102: 91 | K102: 69 | L102: 739 | M102: 11 | N102: 0 | O102: 676 | P102: 195 | Q102: 85
A103: 7080 | B103: CHARTER HS OF THE AMERICAS | C103: 16 | D103: 0 | E103: 0 | F103: 7 | G103: 4 | H103: 4 | I103: 1 | J103: 0 | K103: 1 | L103: 15 | M103: 0 | N103: 0 | O103: 9 | P103: 5 | Q103: 0
A104: 7081 | B104: DESIGN & ARCHITECTURE SENIOR | C104: 109 | D104: 0 | E104: 1 | F104: 8 | G104: 31 | H104: 18 | I104: 51 | J104: 31 | K104: 19 | L104: 56 | M104: 1 | N104: 0 | O104: 43 | P104: 7 | Q104: 7
A105: 7101 | B105: CORAL REEF SENIOR HIGH | C105: 598 | D105: 0 | E105: 4 | F105: 67 | G105: 118 | H105: 105 | I105: 304 | J105: 127 | K105: 83 | L105: 360 | M105: 14 | N105: 1 | O105: 229 | P105: 11 | Q105: 31
A106: 7111 | B106: HIALEAH SENIOR | C106: 743 | D106: 2 | E106: 5 | F106: 29 | G106: 25 | H106: 12 | I106: 670 | J106: 11 | K106: 34 | L106: 698 | M106: 0 | N106: 0 | O106: 654 | P106: 202 | Q106: 110
A107: 7121 | B107: JOHN A FERGUSON SENIOR HIGH | C107: 943 | D107: 2 | E107: 20 | F107: 82 | G107: 81 | H107: 45 | I107: 713 | J107: 68 | K107: 14 | L107: 842 | M107: 14 | N107: 3 | O107: 606 | P107: 116 | Q107: 101
A108: 7131 | B108: HIALEAH-MIAMI LAKES SENIOR | C108: 429 | D108: 3 | E108: 4 | F108: 15 | G108: 12 | H108: 10 | I108: 385 | J108: 16 | K108: 94 | L108: 315 | M108: 3 | N108: 1 | O108: 356 | P108: 80 | Q108: 50
A109: 7141 | B109: DR MICHAEL M KROP SENIOR HIGH | C109: 674 | D109: 0 | E109: 1 | F109: 6 | G109: 3 | H109: 1 | I109: 663 | J109: 119 | K109: 317 | L109: 224 | M109: 12 | N109: 1 | O109: 420 | P109: 76 | Q109: 41
A110: 7151 | B110: HOMESTEAD SENIOR HIGH | C110: 512 | D110: 3 | E110: 6 | F110: 18 | G110: 17 | H110: 4 | I110: 464 | J110: 24 | K110: 226 | L110: 259 | M110: 2 | N110: 0 | O110: 459 | P110: 47 | Q110: 83
A111: 7160 | B111: MATER ACADEMY CHARTER HIGH | C111: 379 | D111: 0 | E111: 0 | F111: 0 | G111: 0 | H111: 2 | I111: 377 | J111: 10 | K111: 13 | L111: 356 | M111: 0 | N111: 0 | O111: 288 | P111: 46 | Q111: 16
A112: 7161 | B112: MAST @ VIRGINIA KEY | C112: 141 | D112: 0 | E112: 2 | F112: 24 | G112: 52 | H112: 38 | I112: 25 | J112: 40 | K112: 14 | L112: 84 | M112: 3 | N112: 0 | O112: 43 | P112: 4 | Q112: 2
A113: 7171 | B113: MED ACAD SCIENCE & TECHNOLOGY | C113: 136 | D113: 1 | E113: 14 | F113: 40 | G113: 43 | H113: 31 | I113: 7 | J113: 18 | K113: 24 | L113: 91 | M113: 3 | N113: 0 | O113: 100 | P113: 4 | Q113: 3
A114: 7191 | B114: HIALEAH GARDENS SENIOR | C114: 732 | D114: 0 | E114: 4 | F114: 43 | G114: 44 | H114: 18 | I114: 623 | J114: 15 | K114: 5 | L114: 708 | M114: 4 | N114: 0 | O114: 610 | P114: 178 | Q114: 56
A115: 7201 | B115: MIAMI BEACH SENIOR HIGH | C115: 590 | D115: 0 | E115: 4 | F115: 30 | G115: 40 | H115: 26 | I115: 490 | J115: 125 | K115: 68 | L115: 387 | M115: 8 | N115: 0 | O115: 406 | P115: 77 | Q115: 58
A116: 7231 | B116: MIAMI CAROL CITY SENIOR HIGH | C116: 450 | D116: 0 | E116: 1 | F116: 1 | G116: 5 | H116: 0 | I116: 443 | J116: 2 | K116: 379 | L116: 67 | M116: 1 | N116: 0 | O116: 373 | P116: 16 | Q116: 57
A117: 7241 | B117: RONALD W REAGAN/DORAL SENIOR | C117: 431 | D117: 0 | E117: 1 | F117: 14 | G117: 42 | H117: 19 | I117: 355 | J117: 30 | K117: 5 | L117: 388 | M117: 6 | N117: 2 | O117: 202 | P117: 130 | Q117: 18
A118: 7251 | B118: MIAMI CENTRAL SENIOR HIGH | C118: 447 | D118: 4 | E118: 8 | F118: 12 | G118: 7 | H118: 2 | I118: 414 | J118: 2 | K118: 359 | L118: 84 | M118: 0 | N118: 0 | O118: 371 | P118: 58 | Q118: 67
A119: 7262 | B119: CITY OF HIALEAH EDUCATION ACAD | C119: 84 | D119: 1 | E119: 0 | F119: 2 | G119: 1 | H119: 0 | I119: 80 | J119: 7 | K119: 1 | L119: 75 | M119: 1 | N119: 0 | O119: 72 | P119: 11 | Q119: 6
A120: 7265 | B120: ARCHIMEDEAN UPPER CONSERV CHAR | C120: 62 | D120: 0 | E120: 1 | F120: 13 | G120: 11 | H120: 35 | I120: 2 | J120: 6 | K120: 2 | L120: 47 | M120: 5 | N120: 0 | O120: 31 | P120: 0 | Q120: 0
A121: 7271 | B121: MIAMI CORAL PARK SENIOR HIGH | C121: 646 | D121: 0 | E121: 3 | F121: 31 | G121: 45 | H121: 22 | I121: 545 | J121: 17 | K121: 8 | L121: 619 | M121: 2 | N121: 0 | O121: 517 | P121: 176 | Q121: 65
A122: 7291 | B122: JOSE MARTI MAST 6-12 ACADEMY | C122: 42 | D122: 0 | E122: 2 | F122: 3 | G122: 7 | H122: 8 | I122: 22 | J122: 3 | K122: 5 | L122: 34 | M122: 0 | N122: 0 | O122: 32 | P122: 8 | Q122: 0
A123: 7301 | B123: MIAMI EDISON SENIOR HIGH | C123: 243 | D123: 0 | E123: 0 | F123: 6 | G123: 6 | H123: 1 | I123: 230 | J123: 2 | K123: 207 | L123: 34 | M123: 0 | N123: 0 | O123: 212 | P123: 50 | Q123: 25
A124: 7341 | B124: MIAMI JACKSON SENIOR HIGH | C124: 409 | D124: 1 | E124: 3 | F124: 23 | G124: 7 | H124: 8 | I124: 367 | J124: 6 | K124: 143 | L124: 260 | M124: 0 | N124: 0 | O124: 378 | P124: 68 | Q124: 48
A125: 7351 | B125: ARTHUR AND POLLY MAYS CONSERVA | C125: 82 | D125: 0 | E125: 1 | F125: 6 | G125: 4 | H125: 0 | I125: 71 | J125: 7 | K125: 33 | L125: 41 | M125: 1 | N125: 0 | O125: 72 | P125: 8 | Q125: 12
A126: 7361 | B126: MIAMI KILLIAN SENIOR HIGH | C126: 590 | D126: 0 | E126: 3 | F126: 23 | G126: 28 | H126: 14 | I126: 522 | J126: 83 | K126: 139 | L126: 356 | M126: 8 | N126: 1 | O126: 382 | P126: 70 | Q126: 100
A127: 7371 | B127: ROBERT MORGAN EDUCATIONAL CTR | C127: 504 | D127: 3 | E127: 13 | F127: 55 | G127: 56 | H127: 29 | I127: 348 | J127: 73 | K127: 115 | L127: 306 | M127: 6 | N127: 1 | O127: 322 | P127: 23 | Q127: 56
A128: 7381 | B128: MIAMI NORLAND SENIOR HIGH | C128: 375 | D128: 0 | E128: 1 | F128: 15 | G128: 10 | H128: 1 | I128: 348 | J128: 2 | K128: 358 | L128: 13 | M128: 2 | N128: 0 | O128: 292 | P128: 22 | Q128: 25
A129: 7391 | B129: MIAMI LAKES EDUCATIONAL CENTER | C129: 319 | D129: 1 | E129: 4 | F129: 39 | G129: 39 | H129: 18 | I129: 218 | J129: 10 | K129: 87 | L129: 220 | M129: 2 | N129: 0 | O129: 247 | P129: 21 | Q129: 44
A130: 7411 | B130: MIAMI NORTHWESTERN SENIOR HIGH | C130: 441 | D130: 1 | E130: 7 | F130: 34 | G130: 26 | H130: 4 | I130: 369 | J130: 1 | K130: 400 | L130: 38 | M130: 1 | N130: 1 | O130: 375 | P130: 15 | Q130: 51
A131: 7431 | B131: MIAMI PALMETTO SENIOR HIGH | C131: 637 | D131: 0 | E131: 0 | F131: 26 | G131: 61 | H131: 59 | I131: 491 | J131: 209 | K131: 127 | L131: 277 | M131: 17 | N131: 2 | O131: 239 | P131: 32 | Q131: 82
A132: 7461 | B132: MIAMI SENIOR HIGH | C132: 704 | D132: 0 | E132: 7 | F132: 28 | G132: 27 | H132: 9 | I132: 633 | J132: 23 | K132: 18 | L132: 660 | M132: 3 | N132: 0 | O132: 620 | P132: 183 | Q132: 72
A133: 7511 | B133: MIAMI SPRINGS SENIOR HIGH | C133: 485 | D133: 0 | E133: 0 | F133: 16 | G133: 21 | H133: 10 | I133: 438 | J133: 22 | K133: 68 | L133: 390 | M133: 5 | N133: 0 | O133: 397 | P133: 120 | Q133: 39
A134: 7531 | B134: MIAMI SUNSET SENIOR HIGH | C134: 474 | D134: 1 | E134: 1 | F134: 16 | G134: 21 | H134: 6 | I134: 429 | J134: 52 | K134: 22 | L134: 393 | M134: 5 | N134: 0 | O134: 350 | P134: 80 | Q134: 80
A135: 7541 | B135: NORTH MIAMI BEACH SENIOR HIGH | C135: 507 | D135: 1 | E135: 8 | F135: 42 | G135: 31 | H135: 11 | I135: 414 | J135: 7 | K135: 383 | L135: 100 | M135: 15 | N135: 1 | O135: 414 | P135: 80 | Q135: 40
A136: 7571 | B136: INTL STUDIES PREP ACADEMY | C136: 82 | D136: 0 | E136: 4 | F136: 19 | G136: 22 | H136: 11 | I136: 26 | J136: 15 | K136: 1 | L136: 64 | M136: 2 | N136: 0 | O136: 43 | P136: 16 | Q136: 2
A137: 7581 | B137: IPREPARATORY ACADEMY | C137: 57 | D137: 2 | E137: 4 | F137: 11 | G137: 22 | H137: 12 | I137: 6 | J137: 8 | K137: 11 | L137: 37 | M137: 0 | N137: 0 | O137: 35 | P137: 1 | Q137: 0
A138: 7591 | B138: NORTH MIAMI SENIOR HIGH | C138: 702 | D138: 6 | E138: 11 | F138: 29 | G138: 33 | H138: 12 | I138: 611 | J138: 3 | K138: 614 | L138: 78 | M138: 6 | N138: 0 | O138: 615 | P138: 186 | Q138: 42
A139: 7601 | B139: WILLIAM H. TURNER TECHNICAL | C139: 375 | D139: 3 | E139: 14 | F139: 72 | G139: 53 | H139: 9 | I139: 224 | J139: 1 | K139: 308 | L139: 65 | M139: 1 | N139: 0 | O139: 329 | P139: 27 | Q139: 10
A140: 7631 | B140: MIAMI MACARTHUR SOUTH | C140: 14 | D140: 1 | E140: 0 | F140: 0 | G140: 0 | H140: 0 | I140: 13 | J140: 0 | K140: 9 | L140: 5 | M140: 0 | N140: 0 | O140: 11 | P140: 0 | Q140: 7
A141: 7701 | B141: SOUTH DADE SENIOR HIGH | C141: 868 | D141: 6 | E141: 7 | F141: 76 | G141: 45 | H141: 19 | I141: 715 | J141: 90 | K141: 197 | L141: 566 | M141: 10 | N141: 3 | O141: 706 | P141: 90 | Q141: 112
A142: 7721 | B142: SOUTH MIAMI SENIOR HIGH | C142: 550 | D142: 1 | E142: 3 | F142: 23 | G142: 26 | H142: 11 | I142: 486 | J142: 29 | K142: 26 | L142: 494 | M142: 1 | N142: 0 | O142: 420 | P142: 155 | Q142: 68
A143: 7731 | B143: MIAMI SOUTHRIDGE SENIOR HIGH | C143: 612 | D143: 4 | E143: 16 | F143: 22 | G143: 12 | H143: 2 | I143: 556 | J143: 33 | K143: 246 | L143: 313 | M143: 11 | N143: 5 | O143: 478 | P143: 65 | Q143: 106
A144: 7741 | B144: SOUTHWEST MIAMI SENIOR HIGH | C144: 771 | D144: 2 | E144: 11 | F144: 41 | G144: 46 | H144: 29 | I144: 642 | J144: 42 | K144: 11 | L144: 715 | M144: 1 | N144: 1 | O144: 605 | P144: 163 | Q144: 124
A145: 7751 | B145: BARBARA GOLEMAN SENIOR HIGH | C145: 466 | D145: 1 | E145: 0 | F145: 12 | G145: 23 | H145: 9 | I145: 421 | J145: 29 | K145: 68 | L145: 366 | M145: 2 | N145: 0 | O145: 298 | P145: 55 | Q145: 45
A146: 7781 | B146: FELIX VARELA SENIOR HIGH | C146: 852 | D146: 2 | E146: 8 | F146: 51 | G146: 73 | H146: 34 | I146: 684 | J146: 77 | K146: 40 | L146: 719 | M146: 11 | N146: 1 | O146: 586 | P146: 101 | Q146: 76
A147: 7791 | B147: BOOKER T. WASHINGTON SR. HIGH | C147: 235 | D147: 1 | E147: 2 | F147: 5 | G147: 5 | H147: 2 | I147: 220 | J147: 2 | K147: 130 | L147: 102 | M147: 1 | N147: 0 | O147: 218 | P147: 29 | Q147: 33
A148: 7901 | B148: NEW WORLD SCHOOL OF THE ARTS | C148: 102 | D148: 0 | E148: 0 | F148: 0 | G148: 0 | H148: 1 | I148: 101 | J148: 26 | K148: 16 | L148: 57 | M148: 2 | N148: 0 | O148: 31 | P148: 2 | Q148: 7
A149: 8014 | B149: ALTERNATIVE OUTREACH-EXT. YR | C149: 42 | D149: 1 | E149: 0 | F149: 0 | G149: 0 | H149: 0 | I149: 41 | J149: 5 | K149: 28 | L149: 9 | M149: 0 | N149: 0 | O149: 10 | P149: 1 | Q149: 17
A150: 8017 | B150: ALTERNATIVE OUTREACH PROGRAM | C150: 78 | D150: 4 | E150: 2 | F150: 2 | G150: 0 | H150: 0 | I150: 70 | J150: 5 | K150: 50 | L150: 23 | M150: 0 | N150: 0 | O150: 43 | P150: 6 | Q150: 10
A151: 8019 | B151: ACADEMY FOR COMMUNITY ED | C151: 26 | D151: 0 | E151: 0 | F151: 0 | G151: 0 | H151: 0 | I151: 26 | J151: 1 | K151: 17 | L151: 8 | M151: 0 | N151: 0 | O151: 22 | P151: 0 | Q151: 0
A152: 8101 | B152: JAN MANN OPPORTUNITY SCHOOL | C152: 9 | D152: 0 | E152: 0 | F152: 0 | G152: 0 | H152: 0 | I152: 9 | J152: 1 | K152: 4 | L152: 4 | M152: 0 | N152: 0 | O152: 8 | P152: 0 | Q152: 2
A153: 8121 | B153: COPE CENTER NORTH | C153: 35 | D153: 0 | E153: 1 | F153: 0 | G153: 0 | H153: 0 | I153: 34 | J153: 0 | K153: 26 | L153: 9 | M153: 0 | N153: 0 | O153: 33 | P153: 3 | Q153: 3
A154: 8131 | B154: DOROTHY M WALLACE COPE CENTER | C154: 20 | D154: 0 | E154: 0 | F154: 1 | G154: 0 | H154: 0 | I154: 19 | J154: 0 | K154: 12 | L154: 8 | M154: 0 | N154: 0 | O154: 20 | P154: 1 | Q154: 1
A155: 8141 | B155: JUVENILE JUSTICE CENTER | C155: 22 | D155: 0 | E155: 0 | F155: 0 | G155: 0 | H155: 0 | I155: 22 | J155: 1 | K155: 14 | L155: 7 | M155: 0 | N155: 0 | O155: 6 | P155: 1 | Q155: 8
A156: 8151 | B156: ROBERT RENICK EDUCATION CTR | C156: 6 | D156: 0 | E156: 0 | F156: 0 | G156: 0 | H156: 0 | I156: 6 | J156: 0 | K156: 5 | L156: 1 | M156: 0 | N156: 0 | O156: 6 | P156: 0 | Q156: 6
A157: 8181 | B157: RUTH OWENS KRUSE' EDUC CENTER | C157: 10 | D157: 0 | E157: 0 | F157: 0 | G157: 0 | H157: 0 | I157: 10 | J157: 1 | K157: 2 | L157: 7 | M157: 0 | N157: 0 | O157: 9 | P157: 1 | Q157: 10
A158: 9732 | B158: MERRICK EDUCATIONAL CENTER | C158: 36 | D158: 0 | E158: 0 | F158: 1 | G158: 1 | H158: 0 | I158: 34 | J158: 0 | K158: 6 | L158: 29 | M158: 0 | N158: 0 | O158: 23 | P158: 4 | Q158: 34
A159: 9999 | B159: District | C159: 28296 | D159: 93 | E159: 342 | F159: 1913 | G159: 2509 | H159: 1852 | I159: 21587 | J159: 2459 | K159: 6686 | L159: 18724 | M159: 319 | N159: 31 | O159: 20034 | P159: 3943 | Q159: 2718

Sheet Bio Enrollment (hidden)
A3: Count of STUDENT_ID
A4: CLASS_SCHOOL | B4: S_SCHL_NAME | C4: Total
A5: 0241 | B5: RUTH K BROAD/BAY HARBOR K-8 | C5: 6
A6: 0950 | B6: AVENTURA CITY OF EXCELLENCE | C6: 24
A7: 1331 | B7: DEVON AIRE K-8 CENTER | C7: 18
A8: 3029 | B8: DORAL ACADEMY OF TECHNOLOGY | C8: 3
A9: 3101 | B9: FRANK C. MARTIN K-8 CENTER | C9: 55
A10: 3281 | B10: MIAMI LAKES K-8 CENTER | C10: 41
A11: 3610 | B11: KEYS GATE CHARTER SCHOOL | C11: 71
A12: 5006 | B12: EVERGLADES PREPARATORY ACADEMY | C12: 1
A13: 6001 | B13: HERBERT A. AMMONS MIDDLE | C13: 54
A14: 6012 | B14: MATER ACADEMY CHARTER MIDDLE | C14: 197
A15: 6021 | B15: ARVIDA MIDDLE SCHOOL | C15: 82
A16: 6022 | B16: PINECREST ACADEMY CHARTER MIDD | C16: 110
A17: 6023 | B17: ANDOVER MIDDLE SCHOOL | C17: 21
A18: 6030 | B18: DORAL ACADEMY CHARTER MIDDLE | C18: 1
A19: 6033 | B19: MATER ACADEMY LAKES MIDDLE | C19: 34
A20: 6040 | B20: DOCTORS CHARTER/MIAMI SHORES | C20: 83
A21: 6042 | B21: MATER GARDENS ACADEMY MIDDLE | C21: 36
A22: 6053 | B22: SOMERSET ACAD MIDDLE (S-MIAMI) | C22: 28
A23: 6071 | B23: GEORGE WASHINGTON CARVER | C23: 20
A24: 6081 | B24: CENTENNIAL MIDDLE | C24: 25
A25: 6111 | B25: CUTLER RIDGE MIDDLE | C25: 14
A26: 6211 | B26: GLADES MIDDLE | C26: 34
A27: 6241 | B27: HIGHLAND OAKS MIDDLE | C27: 43
A28: 6431 | B28: MAYS MIDDLE | C28: 2
A29: 6441 | B29: HOWARD D. MCMILLAN MIDDLE | C29: 50
A30: 6521 | B30: MIAMI SPRINGS MIDDLE | C30: 25
A31: 6541 | B31: NAUTILUS MIDDLE | C31: 44
A32: 6751 | B32: HIALEAH GARDENS MIDDLE SCHOOL | C32: 225
A33: 6781 | B33: RICHMOND HEIGHTS MIDDLE | C33: 2
A34: 6821 | B34: ROCKWAY MIDDLE | C34: 42
A35: 6841 | B35: SHENANDOAH MIDDLE | C35: 29
A36: 6861 | B36: SOUTHWOOD MIDDLE | C36: 1
A37: 6901 | B37: W. R. THOMAS MIDDLE | C37: 37
A38: 7001 | B38: MIAMI-DADE ONLINE ACADEMY | C38: 29
A39: 7007 | B39: INTL. STUDIES CHARTER SENIOR | C39: 97
A40: 7009 | B40: DORAL PERFORMING ARTS ACADEMY | C40: 86
A41: 7011 | B41: AMERICAN SENIOR | C41: 484
A42: 7014 | B42: MATER PERFORMING ARTS ACADEMY | C42: 24
A43: 7015 | B43: STELLAR LEADERSHIP ACADEMY | C43: 139
A44: 7016 | B44: SPORTS LEADERSHIP OF MIAMI CHS | C44: 13
A45: 7018 | B45: MATER ACADEMY LAKES HIGH SCH | C45: 226
A46: 7020 | B46: DORAL ACADEMY HIGH SCHOOL | C46: 404
A47: 7022 | B47: ACADEMY OF ARTS AND MINDS | C47: 68
A48: 7024 | B48: MATER ACADEMY HIGH-INTL STUDIE | C48: 12
A49: 7029 | B49: TERRA ENVIRONMENTAL RESEARCH | C49: 604
A50: 7030 | B50: INTEGRATED ACADEMICS (SIATECH) | C50: 30
A51: 7032 | B51: PALM GLADES PREP HIGH SCHOOL | C51: 122
A52: 7033 | B52: LAW ENFORCEMENT OFFICERS HS | C52: 79
A53: 7034 | B53: SOMERSET ACAD HIGH SOUTH-HMSTD | C53: 23
A54: 7036 | B54: LAWRENCE ACADEMY SENIOR | C54: 11
A55: 7037 | B55: MATER ACADEMY EAST HIGH SCHOOL | C55: 117
A56: 7038 | B56: SOMERSET ACADEMY HIGH (SOUTH) | C56: 1
A57: 7042 | B57: SOMERSET ACADEMY CHARTER HIGH | C57: 74
A58: 7048 | B58: ALONZO & TRACY MOURNING SH | C58: 475
A59: 7049 | B59: WESTLAND HIALEAH SENIOR HIGH | C59: 549
A60: 7050 | B60: KEYS GATE CHARTER HIGH SCHL | C60: 252
A61: 7051 | B61: G. HOLMES BRADDOCK SENIOR HIGH | C61: 845
A62: 7053 | B62: PINECREST ACADEMY CHARTER HIGH | C62: 126
A63: 7054 | B63: EXCELSIOR CHARTER HIGH SCHOOL | C63: 30
A64: 7055 | B64: YOUNG WOMEN'S PREPARATORY ACAD | C64: 51
A65: 7056 | B65: YOUNG MENS PREPARATORY ACADEMY | C65: 25
A66: 7058 | B66: MIAMI COMMUNITY CH HIGH SCHOOL | C66: 30
A67: 7059 | B67: MIAMI ARTS CHARTER | C67: 100
A68: 7060 | B68: EVERGLADES PREP ACADEMY HIGH | C68: 168
A69: 7062 | B69: MAVERICKS HIGH OF NORTH M-DADE | C69: 68
A70: 7065 | B70: MAVERICKS HIGH OF SOUTH M-DADE | C70: 64
A71: 7067 | B71: GREEN SPRINGS HIGH SCHOOL | C71: 62
A72: 7068 | B72: NORTH GARDENS HIGH SCHOOL | C72: 16
A73: 7069 | B73: NORTH PARK HIGH SCHOOL | C73: 38
A74: 7070 | B74: YOUTH CO-OP PREP HIGH SCHOOL | C74: 69
A75: 7071 | B75: CORAL GABLES SENIOR HIGH | C75: 898
A76: 7080 | B76: CHARTER HS OF THE AMERICAS | C76: 16
A77: 7081 | B77: DESIGN & ARCHITECTURE SENIOR | C77: 121
A78: 7101 | B78: CORAL REEF SENIOR HIGH | C78: 675
A79: 7111 | B79: HIALEAH SENIOR | C79: 749
A80: 7121 | B80: JOHN A FERGUSON SENIOR HIGH | C80: 1071
A81: 7131 | B81: HIALEAH-MIAMI LAKES SENIOR | C81: 464
A82: 7141 | B82: DR MICHAEL M KROP SENIOR HIGH | C82: 651
A83: 7151 | B83: HOMESTEAD SENIOR HIGH | C83: 502
A84: 7160 | B84: MATER ACADEMY CHARTER HIGH | C84: 170
A85: 7161 | B85: MAST @ VIRGINIA KEY | C85: 151
A86: 7171 | B86: MED ACAD SCIENCE & TECHNOLOGY | C86: 198
A87: 7191 | B87: HIALEAH GARDENS SENIOR | C87: 846
A88: 7201 | B88: MIAMI BEACH SENIOR HIGH | C88: 584
A89: 7231 | B89: MIAMI CAROL CITY SENIOR HIGH | C89: 473
A90: 7241 | B90: RONALD W REAGAN/DORAL SENIOR | C90: 331
A91: 7251 | B91: MIAMI CENTRAL SENIOR HIGH | C91: 420
A92: 7262 | B92: CITY OF HIALEAH EDUCATION ACAD | C92: 37
A93: 7265 | B93: ARCHIMEDEAN UPPER CONSERV CHAR | C93: 22
A94: 7271 | B94: MIAMI CORAL PARK SENIOR HIGH | C94: 656
A95: 7291 | B95: JOSE MARTI MAST 6-12 ACADEMY | C95: 39
A96: 7301 | B96: MIAMI EDISON SENIOR HIGH | C96: 208
A97: 7341 | B97: MIAMI JACKSON SENIOR HIGH | C97: 370
A98: 7351 | B98: ARTHUR AND POLLY MAYS CONSERVA | C98: 89
A99: 7361 | B99: MIAMI KILLIAN SENIOR HIGH | C99: 569
A100: 7371 | B100: ROBERT MORGAN EDUCATIONAL CTR | C100: 531
A101: 7381 | B101: MIAMI NORLAND SENIOR HIGH | C101: 380
A102: 7391 | B102: MIAMI LAKES EDUCATIONAL CENTER | C102: 183
A103: 7411 | B103: MIAMI NORTHWESTERN SENIOR HIGH | C103: 368
A104: 7431 | B104: MIAMI PALMETTO SENIOR HIGH | C104: 666
A105: 7461 | B105: MIAMI SENIOR HIGH | C105: 677
A106: 7511 | B106: MIAMI SPRINGS SENIOR HIGH | C106: 458
A107: 7531 | B107: MIAMI SUNSET SENIOR HIGH | C107: 457
A108: 7541 | B108: NORTH MIAMI BEACH SENIOR HIGH | C108: 524
A109: 7571 | B109: INTL STUDIES PREP ACADEMY | C109: 88
A110: 7581 | B110: IPREPARATORY ACADEMY | C110: 75
A111: 7591 | B111: NORTH MIAMI SENIOR HIGH | C111: 727
A112: 7601 | B112: WILLIAM H. TURNER TECHNICAL | C112: 411
A113: 7631 | B113: MIAMI MACARTHUR SOUTH | C113: 7
A114: 7701 | B114: SOUTH DADE SENIOR HIGH | C114: 837
A115: 7721 | B115: SOUTH MIAMI SENIOR HIGH | C115: 562
A116: 7731 | B116: MIAMI SOUTHRIDGE SENIOR HIGH | C116: 556
A117: 7741 | B117: SOUTHWEST MIAMI SENIOR HIGH | C117: 781
A118: 7751 | B118: BARBARA GOLEMAN SENIOR HIGH | C118: 481
A119: 7781 | B119: FELIX VARELA SENIOR HIGH | C119: 895
A120: 7791 | B120: BOOKER T. WASHINGTON SR. HIGH | C120: 215
A121: 7901 | B121: NEW WORLD SCHOOL OF THE ARTS | C121: 124
A122: 8014 | B122: ALTERNATIVE OUTREACH-EXT. YR | C122: 33
A123: 8017 | B123: ALTERNATIVE OUTREACH PROGRAM | C123: 62
A124: 8019 | B124: ACADEMY FOR COMMUNITY ED | C124: 34
A125: 8101 | B125: JAN MANN OPPORTUNITY SCHOOL | C125: 8
A126: 8121 | B126: COPE CENTER NORTH | C126: 28
A127: 8131 | B127: DOROTHY M WALLACE COPE CENTER | C127: 29
A128: 8141 | B128: JUVENILE JUSTICE CENTER | C128: 17
A129: 8151 | B129: ROBERT RENICK EDUCATION CTR | C129: 8
A130: 8181 | B130: RUTH OWENS KRUSE' EDUC CENTER | C130: 10
A131: 9732 | B131: MERRICK EDUCATIONAL CENTER | C131: 25
A132: 9999 | C132: 27636

Sheet USH Enrollment (hidden)
A3: Count of STUDENT_ID
A4: CLASS_SCHOOL | B4: S_SCHL_NAME | C4: Total
A5: 5006 | B5: EVERGLADES PREPARATORY ACADEMY | C5: 88
A6: 6040 | B6: DOCTORS CHARTER/MIAMI SHORES | C6: 64
A7: 7001 | B7: MIAMI-DADE ONLINE ACADEMY | C7: 23
A8: 7007 | B8: INTL. STUDIES CHARTER SENIOR | C8: 94
A9: 7009 | B9: DORAL PERFORMING ARTS ACADEMY | C9: 38
A10: 7011 | B10: AMERICAN SENIOR | C10: 424
A11: 7015 | B11: STELLAR LEADERSHIP ACADEMY | C11: 102
A12: 7018 | B12: MATER ACADEMY LAKES HIGH SCH | C12: 155
A13: 7020 | B13: DORAL ACADEMY HIGH SCHOOL | C13: 205
A14: 7022 | B14: ACADEMY OF ARTS AND MINDS | C14: 89
A15: 7029 | B15: TERRA ENVIRONMENTAL RESEARCH | C15: 195
A16: 7030 | B16: INTEGRATED ACADEMICS (SIATECH) | C16: 46
A17: 7033 | B17: LAW ENFORCEMENT OFFICERS HS | C17: 52
A18: 7034 | B18: SOMERSET ACAD HIGH SOUTH-HMSTD | C18: 17
A19: 7036 | B19: LAWRENCE ACADEMY SENIOR | C19: 18
A20: 7037 | B20: MATER ACADEMY EAST HIGH SCHOOL | C20: 62
A21: 7042 | B21: SOMERSET ACADEMY CHARTER HIGH | C21: 79
A22: 7048 | B22: ALONZO & TRACY MOURNING SH | C22: 413
A23: 7049 | B23: WESTLAND HIALEAH SENIOR HIGH | C23: 439
A24: 7050 | B24: KEYS GATE CHARTER HIGH SCHL | C24: 147
A25: 7051 | B25: G. HOLMES BRADDOCK SENIOR HIGH | C25: 616
A26: 7053 | B26: PINECREST ACADEMY CHARTER HIGH | C26: 39
A27: 7054 | B27: EXCELSIOR CHARTER HIGH SCHOOL | C27: 16
A28: 7056 | B28: YOUNG MENS PREPARATORY ACADEMY | C28: 19
A29: 7058 | B29: MIAMI COMMUNITY CH HIGH SCHOOL | C29: 30
A30: 7059 | B30: MIAMI ARTS CHARTER | C30: 59
A31: 7061 | B31: SCHOOL FOR ADVANCED STUDIES NO | C31: 1
A32: 7065 | B32: MAVERICKS HIGH OF SOUTH M-DADE | C32: 14
A33: 7067 | B33: GREEN SPRINGS HIGH SCHOOL | C33: 78
A34: 7068 | B34: NORTH GARDENS HIGH SCHOOL | C34: 28
A35: 7069 | B35: NORTH PARK HIGH SCHOOL | C35: 43
A36: 7071 | B36: CORAL GABLES SENIOR HIGH | C36: 582
A37: 7081 | B37: DESIGN & ARCHITECTURE SENIOR | C37: 93
A38: 7101 | B38: CORAL REEF SENIOR HIGH | C38: 439
A39: 7111 | B39: HIALEAH SENIOR | C39: 748
A40: 7121 | B40: JOHN A FERGUSON SENIOR HIGH | C40: 877
A41: 7131 | B41: HIALEAH-MIAMI LAKES SENIOR | C41: 347
A42: 7141 | B42: DR MICHAEL M KROP SENIOR HIGH | C42: 557
A43: 7151 | B43: HOMESTEAD SENIOR HIGH | C43: 407
A44: 7160 | B44: MATER ACADEMY CHARTER HIGH | C44: 280
A45: 7161 | B45: MAST @ VIRGINIA KEY | C45: 37
A46: 7171 | B46: MED ACAD SCIENCE & TECHNOLOGY | C46: 70
A47: 7191 | B47: HIALEAH GARDENS SENIOR | C47: 541
A48: 7201 | B48: MIAMI BEACH SENIOR HIGH | C48: 473
A49: 7231 | B49: MIAMI CAROL CITY SENIOR HIGH | C49: 420
A50: 7241 | B50: RONALD W REAGAN/DORAL SENIOR | C50: 447
A51: 7251 | B51: MIAMI CENTRAL SENIOR HIGH | C51: 415
A52: 7262 | B52: CITY OF HIALEAH EDUCATION ACAD | C52: 103
A53: 7265 | B53: ARCHIMEDEAN UPPER CONSERV CHAR | C53: 18
A54: 7271 | B54: MIAMI CORAL PARK SENIOR HIGH | C54: 663
A55: 7301 | B55: MIAMI EDISON SENIOR HIGH | C55: 233
A56: 7341 | B56: MIAMI JACKSON SENIOR HIGH | C56: 236
A57: 7351 | B57: ARTHUR AND POLLY MAYS CONSERVA | C57: 61
A58: 7361 | B58: MIAMI KILLIAN SENIOR HIGH | C58: 518
A59: 7371 | B59: ROBERT MORGAN EDUCATIONAL CTR | C59: 389
A60: 7381 | B60: MIAMI NORLAND SENIOR HIGH | C60: 404
A61: 7391 | B61: MIAMI LAKES EDUCATIONAL CENTER | C61: 322
A62: 7411 | B62: MIAMI NORTHWESTERN SENIOR HIGH | C62: 369
A63: 7431 | B63: MIAMI PALMETTO SENIOR HIGH | C63: 458
A64: 7461 | B64: MIAMI SENIOR HIGH | C64: 653
A65: 7511 | B65: MIAMI SPRINGS SENIOR HIGH | C65: 402
A66: 7531 | B66: MIAMI SUNSET SENIOR HIGH | C66: 493
A67: 7541 | B67: NORTH MIAMI BEACH SENIOR HIGH | C67: 407
A68: 7571 | B68: INTL STUDIES PREP ACADEMY | C68: 25
A69: 7591 | B69: NORTH MIAMI SENIOR HIGH | C69: 539
A70: 7601 | B70: WILLIAM H. TURNER TECHNICAL | C70: 262
A71: 7631 | B71: MIAMI MACARTHUR SOUTH | C71: 10
A72: 7701 | B72: SOUTH DADE SENIOR HIGH | C72: 696
A73: 7721 | B73: SOUTH MIAMI SENIOR HIGH | C73: 469
A74: 7731 | B74: MIAMI SOUTHRIDGE SENIOR HIGH | C74: 459
A75: 7741 | B75: SOUTHWEST MIAMI SENIOR HIGH | C75: 647
A76: 7751 | B76: BARBARA GOLEMAN SENIOR HIGH | C76: 354
A77: 7781 | B77: FELIX VARELA SENIOR HIGH | C77: 597
A78: 7791 | B78: BOOKER T. WASHINGTON SR. HIGH | C78: 194
A79: 7901 | B79: NEW WORLD SCHOOL OF THE ARTS | C79: 79
A80: 8014 | B80: ALTERNATIVE OUTREACH-EXT. YR | C80: 59
A81: 8017 | B81: ALTERNATIVE OUTREACH PROGRAM | C81: 48
A82: 8019 | B82: ACADEMY FOR COMMUNITY ED | C82: 27
A83: 8101 | B83: JAN MANN OPPORTUNITY SCHOOL | C83: 3
A84: 8121 | B84: COPE CENTER NORTH | C84: 44
A85: 8131 | B85: DOROTHY M WALLACE COPE CENTER | C85: 26
A86: 8141 | B86: JUVENILE JUSTICE CENTER | C86: 13
A87: 8151 | B87: ROBERT RENICK EDUCATION CTR | C87: 7
A88: 8181 | B88: RUTH OWENS KRUSE' EDUC CENTER | C88: 12
A89: 9732 | B89: MERRICK EDUCATIONAL CENTER | C89: 27
A91: 9999 | B91: DISTRICT | C91: 20752

Sheet Mem_All (hidden)
A1: 1 | B1: 2 | C1: 3 | D1: 4 | E1: 5 | F1: 6 | G1: 7 | H1: 8 | I1: 9 | J1: 10 | K1: 11 | L1: 12 | M1: 13 | N1: 14 | O1: 15 | P1: 16 | Q1: 17 | R1: GR10Reading exclude Retainee
A2: SCHOOL_NUMBER | B2: S_SCHL_NAME | C2: Total Of STUDENT_ID | D2: 00 | E2: 01 | F2: 02 | G2: 03 | H2: 04 | I2: 05 | J2: 06 | K2: 07 | L2: 08 | M2: 09 | N2: 10 | O2: 11 | P2: 12 | Q2: PK | R2: =N2-IFERROR(VLOOKUP(TEXT(A2,"0000"),G10RPassingR!$A$2:$S$200,4,FALSE),0) -> 10
A3: 0041 | B3: AIR BASE ELEMENTARY | C3: 737 | D3: 98 | E3: 107 | F3: 117 | G3: 111 | H3: 115 | I3: 116 | Q3: 73 | R3: =N3-IFERROR(VLOOKUP(TEXT(A3,"0000"),G10RPassingR!$A$2:$S$200,4,FALSE),0) -> 0
A4: 0070 | B4: CORAL REEF MONTESSORI ACAD CH | C4: 413 | D4: 71 | E4: 54 | F4: 58 | G4: 56 | H4: 43 | I4: 41 | J4: 28 | K4: 31 | L4: 31 | R4: =N4-IFERROR(VLOOKUP(TEXT(A4,"0000"),G10RPassingR!$A$2:$S$200,4,FALSE),0) -> 0
A5: 0071 | B5: EUGENIA B. THOMAS K-8 CENTER | C5: 1612 | D5: 148 | E5: 198 | F5: 184 | G5: 194 | H5: 187 | I5: 166 | J5: 151 | K5: 161 | L5: 180 | Q5: 43 | R5: =N5-IFERROR(VLOOKUP(TEXT(A5,"0000"),G10RPassingR!$A$2:$S$200,4,FALSE),0) -> 0
A6: 0072 | B6: SUMMERVILLE CHARTER SCHOOL | C6: 429 | E6: 103 | F6: 77 | G6: 84 | H6: 77 | I6: 88 | R6: =N6-IFERROR(VLOOKUP(TEXT(A6,"0000"),G10RPassingR!$A$2:$S$200,4,FALSE),0) -> 0
A7: 0073 | B7: MANDARIN LAKES K-8 CENTER | C7: 1112 | D7: 128 | E7: 152 | F7: 136 | G7: 153 | H7: 116 | I7: 120 | J7: 120 | K7: 79 | L7: 108 | R7: =N7-IFERROR(VLOOKUP(TEXT(A7,"0000"),G10RPassingR!$A$2:$S$200,4,FALSE),0) -> 0
A8: 0081 | B8: LENORA B. SMITH ELEMENTARY | C8: 429 | D8: 62 | E8: 64 | F8: 68 | G8: 80 | H8: 61 | I8: 56 | Q8: 38 | R8: =N8-IFERROR(VLOOKUP(TEXT(A8,"0000"),G10RPassingR!$A$2:$S$200,4,FALSE),0) -> 0
A9: 0091 | B9: BOB GRAHAM EDUCATION CTR | C9: 1716 | D9: 123 | E9: 141 | F9: 161 | G9: 192 | H9: 214 | I9: 194 | J9: 220 | K9: 229 | L9: 242 | R9: =N9-IFERROR(VLOOKUP(TEXT(A9,"0000"),G10RPassingR!$A$2:$S$200,4,FALSE),0) -> 0
A10: 0092 | B10: NORMAN S. EDELCUP/SUNNY ISLES | C10: 1778 | D10: 198 | E10: 203 | F10: 212 | G10: 217 | H10: 208 | I10: 166 | J10: 184 | K10: 196 | L10: 194 | R10: =N10-IFERROR(VLOOKUP(TEXT(A10,"0000"),G10RPassingR!$A$2:$S$200,4,FALSE),0) -> 0
A11: 0100 | B11: MATER ACADEMY | C11: 745 | D11: 125 | E11: 94 | F11: 149 | G11: 127 | H11: 123 | I11: 127 | R11: =N11-IFERROR(VLOOKUP(TEXT(A11,"0000"),G10RPassingR!$A$2:$S$200,4,FALSE),0) -> 0
A12: 0101 | B12: ARCOLA LAKE ELEMENTARY | C12: 512 | D12: 62 | E12: 70 | F12: 70 | G12: 68 | H12: 57 | I12: 87 | Q12: 98 | R12: =N12-IFERROR(VLOOKUP(TEXT(A12,"0000"),G10RPassingR!$A$2:$S$200,4,FALSE),0) -> 0
A13: 0102 | B13: MIAMI COMMUNITY CHARTER SCHOOL | C13: 516 | D13: 98 | E13: 94 | F13: 94 | G13: 88 | H13: 72 | I13: 70 | R13: =N13-IFERROR(VLOOKUP(TEXT(A13,"0000"),G10RPassingR!$A$2:$S$200,4,FALSE),0) -> 0
A14: 0111 | B14: MAYA ANGELOU ELEMENTARY | C14: 695 | D14: 144 | E14: 116 | F14: 99 | G14: 95 | H14: 85 | I14: 95 | Q14: 61 | R14: =N14-IFERROR(VLOOKUP(TEXT(A14,"0000"),G10RPassingR!$A$2:$S$200,4,FALSE),0) -> 0
A15: 0121 | B15: AUBURNDALE ELEMENTARY | C15: 828 | D15: 98 | E15: 148 | F15: 134 | G15: 133 | H15: 132 | I15: 132 | Q15: 51 | R15: =N15-IFERROR(VLOOKUP(TEXT(A15,"0000"),G10RPassingR!$A$2:$S$200,4,FALSE),0) -> 0
A16: 0122 | B16: DR ROLANDO ESPINOSA K-8 | C16: 1651 | D16: 152 | E16: 170 | F16: 186 | G16: 183 | H16: 203 | I16: 171 | J16: 183 | K16: 190 | L16: 194 | Q16: 19 | R16: =N16-IFERROR(VLOOKUP(TEXT(A16,"0000"),G10RPassingR!$A$2:$S$200,4,FALSE),0) -> 0
A17: 0125 | B17: NORMA BUTLER BOSSARD ELEM | C17: 1253 | D17: 197 | E17: 204 | F17: 174 | G17: 227 | H17: 203 | I17: 229 | Q17: 19 | R17: =N17-IFERROR(VLOOKUP(TEXT(A17,"0000"),G10RPassingR!$A$2:$S$200,4,FALSE),0) -> 0
A18: 0161 | B18: AVOCADO ELEMENTARY | C18: 580 | D18: 143 | E18: 147 | F18: 149 | G18: 141 | R18: =N18-IFERROR(VLOOKUP(TEXT(A18,"0000"),G10RPassingR!$A$2:$S$200,4,FALSE),0) -> 0
A19: 0201 | B19: BANYAN ELEMENTARY | C19: 365 | D19: 52 | E19: 62 | F19: 64 | G19: 36 | H19: 57 | I19: 54 | Q19: 40 | R19: =N19-IFERROR(VLOOKUP(TEXT(A19,"0000"),G10RPassingR!$A$2:$S$200,4,FALSE),0) -> 0
A20: 0211 | B20: DR. MANUEL C. BARREIRO ELEM | C20: 829 | D20: 106 | E20: 120 | F20: 124 | G20: 132 | H20: 163 | I20: 165 | Q20: 19 | R20: =N20-IFERROR(VLOOKUP(TEXT(A20,"0000"),G10RPassingR!$A$2:$S$200,4,FALSE),0) -> 0
A21: 0231 | B21: AVENTURA WATERWAYS K-8 CENTER | C21: 1882 | D21: 212 | E21: 235 | F21: 210 | G21: 207 | H21: 216 | I21: 198 | J21: 206 | K21: 186 | L21: 212 | R21: =N21-IFERROR(VLOOKUP(TEXT(A21,"0000"),G10RPassingR!$A$2:$S$200,4,FALSE),0) -> 0
A22: 0241 | B22: RUTH K BROAD/BAY HARBOR K-8 | C22: 1269 | D22: 130 | E22: 123 | F22: 157 | G22: 147 | H22: 162 | I22: 126 | J22: 164 | K22: 113 | L22: 128 | Q22: 19 | R22: =N22-IFERROR(VLOOKUP(TEXT(A22,"0000"),G10RPassingR!$A$2:$S$200,4,FALSE),0) -> 0
A23: 0251 | B23: ETHEL KOGER BECKHAM ELEMENTARY | C23: 713 | D23: 119 | E23: 110 | F23: 108 | G23: 116 | H23: 115 | I23: 106 | Q23: 39 | R23: =N23-IFERROR(VLOOKUP(TEXT(A23,"0000"),G10RPassingR!$A$2:$S$200,4,FALSE),0) -> 0
A24: 0261 | B24: BEL-AIRE ELEMENTARY | C24: 467 | D24: 80 | E24: 73 | F24: 74 | G24: 77 | H24: 57 | I24: 68 | Q24: 38 | R24: =N24-IFERROR(VLOOKUP(TEXT(A24,"0000"),G10RPassingR!$A$2:$S$200,4,FALSE),0) -> 0
A25: 0271 | B25: BENT TREE ELEMENTARY | C25: 563 | D25: 103 | E25: 71 | F25: 93 | G25: 85 | H25: 89 | I25: 98 | Q25: 24 | R25: =N25-IFERROR(VLOOKUP(TEXT(A25,"0000"),G10RPassingR!$A$2:$S$200,4,FALSE),0) -> 0
A26: 0311 | B26: GOULDS ELEMENTARY | C26: 596 | D26: 110 | E26: 122 | F26: 110 | G26: 81 | H26: 95 | I26: 78 | R26: =N26-IFERROR(VLOOKUP(TEXT(A26,"0000"),G10RPassingR!$A$2:$S$200,4,FALSE),0) -> 0
A27: 0312 | B27: MATER GARDENS ACADEMY | C27: 614 | D27: 101 | E27: 104 | F27: 101 | G27: 108 | H27: 99 | I27: 101 | R27: =N27-IFERROR(VLOOKUP(TEXT(A27,"0000"),G10RPassingR!$A$2:$S$200,4,FALSE),0) -> 0
A28: 0321 | B28: BISCAYNE ELEMENTARY | C28: 671 | D28: 97 | E28: 89 | F28: 89 | G28: 121 | H28: 107 | I28: 107 | Q28: 61 | R28: =N28-IFERROR(VLOOKUP(TEXT(A28,"0000"),G10RPassingR!$A$2:$S$200,4,FALSE),0) -> 0
A29: 0331 | B29: CHAPMAN PARTNERSHIP ECC NORTH | C29: 47 | Q29: 47 | R29: =N29-IFERROR(VLOOKUP(TEXT(A29,"0000"),G10RPassingR!$A$2:$S$200,4,FALSE),0) -> 0
A30: 0332 | B30: SOMERSET ACADEMY(SILVER PALMS) | C30: 634 | G30: 66 | H30: 46 | I30: 88 | J30: 164 | K30: 147 | L30: 123 | R30: =N30-IFERROR(VLOOKUP(TEXT(A30,"0000"),G10RPassingR!$A$2:$S$200,4,FALSE),0) -> 0
A31: 0339 | B31: SOMERSET ACADEMY CHARTER ELEM | C31: 316 | D31: 45 | E31: 60 | F31: 60 | G31: 60 | H31: 48 | I31: 43 | R31: =N31-IFERROR(VLOOKUP(TEXT(A31,"0000"),G10RPassingR!$A$2:$S$200,4,FALSE),0) -> 0
A32: 0341 | B32: ARCH CREEK ELEMENTARY SCHOOL | C32: 574 | D32: 75 | E32: 96 | F32: 96 | G32: 100 | H32: 102 | I32: 105 | R32: =N32-IFERROR(VLOOKUP(TEXT(A32,"0000"),G10RPassingR!$A$2:$S$200,4,FALSE),0) -> 0
A33: 0342 | B33: PINECREST ACADEMY SOUTH CAMPUS | C33: 746 | D33: 136 | E33: 134 | F33: 116 | G33: 127 | H33: 112 | I33: 121 | R33: =N33-IFERROR(VLOOKUP(TEXT(A33,"0000"),G10RPassingR!$A$2:$S$200,4,FALSE),0) -> 0
A34: 0351 | B34: CHAPMAN PARTNERSHIP ECC SOUTH | C34: 91 | Q34: 91 | R34: =N34-IFERROR(VLOOKUP(TEXT(A34,"0000"),G10RPassingR!$A$2:$S$200,4,FALSE),0) -> 0
A35: 0361 | B35: BISCAYNE GARDENS ELEMENTARY | C35: 609 | D35: 109 | E35: 89 | F35: 86 | G35: 92 | H35: 85 | I35: 79 | Q35: 69 | R35: =N35-IFERROR(VLOOKUP(TEXT(A35,"0000"),G10RPassingR!$A$2:$S$200,4,FALSE),0) -> 0
A36: 0400 | B36: RENAISSANCE ELEMENTARY CHARTER | C36: 914 | D36: 165 | E36: 156 | F36: 151 | G36: 157 | H36: 151 | I36: 134 | R36: =N36-IFERROR(VLOOKUP(TEXT(A36,"0000"),G10RPassingR!$A$2:$S$200,4,FALSE),0) -> 0
A37: 0401 | B37: VAN E. BLANTON ELEMENTARY | C37: 552 | D37: 90 | E37: 81 | F37: 90 | G37: 100 | H37: 73 | I37: 79 | Q37: 39 | R37: =N37-IFERROR(VLOOKUP(TEXT(A37,"0000"),G10RPassingR!$A$2:$S$200,4,FALSE),0) -> 0
A38: 0410 | B38: ACADEMIR CHARTER SCHOOL WEST | C38: 611 | D38: 95 | E38: 162 | F38: 121 | G38: 113 | H38: 64 | I38: 56 | R38: =N38-IFERROR(VLOOKUP(TEXT(A38,"0000"),G10RPassingR!$A$2:$S$200,4,FALSE),0) -> 0
A39: 0441 | B39: BLUE LAKES ELEMENTARY | C39: 468 | D39: 57 | E39: 60 | F39: 59 | G39: 76 | H39: 74 | I39: 66 | Q39: 76 | R39: =N39-IFERROR(VLOOKUP(TEXT(A39,"0000"),G10RPassingR!$A$2:$S$200,4,FALSE),0) -> 0
A40: 0451 | B40: BOWMAN ASHE/DOOLIN K-8 ACAD | C40: 1422 | D40: 140 | E40: 113 | F40: 119 | G40: 127 | H40: 154 | I40: 138 | J40: 149 | K40: 205 | L40: 226 | Q40: 51 | R40: =N40-IFERROR(VLOOKUP(TEXT(A40,"0000"),G10RPassingR!$A$2:$S$200,4,FALSE),0) -> 0
A41: 0461 | B41: BRENTWOOD ELEMENTARY | C41: 797 | D41: 135 | E41: 116 | F41: 123 | G41: 140 | H41: 104 | I41: 122 | Q41: 57 | R41: =N41-IFERROR(VLOOKUP(TEXT(A41,"0000"),G10RPassingR!$A$2:$S$200,4,FALSE),0) -> 0
A42: 0481 | B42: JAMES H. BRIGHT/JW JOHNSON ES | C42: 753 | D42: 92 | E42: 105 | F42: 114 | G42: 128 | H42: 118 | I42: 133 | Q42: 63 | R42: =N42-IFERROR(VLOOKUP(TEXT(A42,"0000"),G10RPassingR!$A$2:$S$200,4,FALSE),0) -> 0
A43: 0510 | B43: ARCHIMEDEAN ACADEMY | C43: 563 | D43: 79 | E43: 128 | F43: 104 | G43: 86 | H43: 81 | I43: 85 | R43: =N43-IFERROR(VLOOKUP(TEXT(A43,"0000"),G10RPassingR!$A$2:$S$200,4,FALSE),0) -> 0
A44: 0520 | B44: SOMERSET ACADEMY | C44: 573 | D44: 105 | E44: 100 | F44: 79 | G44: 103 | H44: 93 | I44: 93 | R44: =N44-IFERROR(VLOOKUP(TEXT(A44,"0000"),G10RPassingR!$A$2:$S$200,4,FALSE),0) -> 0
A45: 0521 | B45: BROADMOOR ELEMENTARY | C45: 454 | D45: 75 | E45: 69 | F45: 70 | G45: 62 | H45: 63 | I45: 67 | Q45: 48 | R45: =N45-IFERROR(VLOOKUP(TEXT(A45,"0000"),G10RPassingR!$A$2:$S$200,4,FALSE),0) -> 0
A46: 0561 | B46: W.J. BRYAN ELEMENTARY | C46: 743 | D46: 119 | E46: 127 | F46: 106 | G46: 124 | H46: 112 | I46: 123 | Q46: 32 | R46: =N46-IFERROR(VLOOKUP(TEXT(A46,"0000"),G10RPassingR!$A$2:$S$200,4,FALSE),0) -> 0
A47: 0600 | B47: PINECREST PREP ACADEMY | C47: 642 | D47: 76 | E47: 123 | F47: 109 | G47: 121 | H47: 113 | I47: 100 | R47: =N47-IFERROR(VLOOKUP(TEXT(A47,"0000"),G10RPassingR!$A$2:$S$200,4,FALSE),0) -> 0
A48: 0641 | B48: BUNCHE PARK ELEMENTARY | C48: 280 | D48: 43 | E48: 48 | F48: 43 | G48: 40 | H48: 35 | I48: 32 | Q48: 39 | R48: =N48-IFERROR(VLOOKUP(TEXT(A48,"0000"),G10RPassingR!$A$2:$S$200,4,FALSE),0) -> 0
A49: 0651 | B49: CAMPBELL DRIVE K-8 CENTER | C49: 766 | D49: 111 | E49: 105 | F49: 96 | G49: 99 | H49: 86 | I49: 102 | J49: 63 | K49: 63 | Q49: 41 | R49: =N49-IFERROR(VLOOKUP(TEXT(A49,"0000"),G10RPassingR!$A$2:$S$200,4,FALSE),0) -> 0
A50: 0661 | B50: CARIBBEAN ELEMENTARY | C50: 624 | D50: 109 | E50: 108 | F50: 89 | G50: 109 | H50: 77 | I50: 85 | Q50: 47 | R50: =N50-IFERROR(VLOOKUP(TEXT(A50,"0000"),G10RPassingR!$A$2:$S$200,4,FALSE),0) -> 0
A51: 0671 | B51: CALUSA ELEMENTARY | C51: 911 | D51: 139 | E51: 158 | F51: 123 | G51: 143 | H51: 162 | I51: 166 | Q51: 20 | R51: =N51-IFERROR(VLOOKUP(TEXT(A51,"0000"),G10RPassingR!$A$2:$S$200,4,FALSE),0) -> 0
A52: 0681 | B52: CAROL CITY ELEMENTARY | C52: 651 | D52: 103 | E52: 87 | F52: 118 | G52: 97 | H52: 84 | I52: 94 | Q52: 68 | R52: =N52-IFERROR(VLOOKUP(TEXT(A52,"0000"),G10RPassingR!$A$2:$S$200,4,FALSE),0) -> 0
A53: 0721 | B53: GEORGE WASHINGTON CARVER ELEM | C53: 453 | D53: 66 | E53: 79 | F53: 67 | G53: 85 | H53: 80 | I53: 76 | R53: =N53-IFERROR(VLOOKUP(TEXT(A53,"0000"),G10RPassingR!$A$2:$S$200,4,FALSE),0) -> 0
A54: 0761 | B54: FIENBERG/FISHER K-8 CENTER | C54: 841 | D54: 70 | E54: 78 | F54: 78 | G54: 86 | H54: 86 | I54: 89 | J54: 108 | K54: 93 | L54: 86 | Q54: 67 | R54: =N54-IFERROR(VLOOKUP(TEXT(A54,"0000"),G10RPassingR!$A$2:$S$200,4,FALSE),0) -> 0
A55: 0771 | B55: WILLIAM A. CHAPMAN ELEMENTARY | C55: 512 | D55: 95 | E55: 64 | F55: 72 | G55: 71 | H55: 54 | I55: 49 | Q55: 107 | R55: =N55-IFERROR(VLOOKUP(TEXT(A55,"0000"),G10RPassingR!$A$2:$S$200,4,FALSE),0) -> 0
A56: 0801 | B56: CITRUS GROVE ELEMENTARY | C56: 866 | D56: 120 | E56: 127 | F56: 143 | G56: 134 | H56: 153 | I56: 136 | Q56: 53 | R56: =N56-IFERROR(VLOOKUP(TEXT(A56,"0000"),G10RPassingR!$A$2:$S$200,4,FALSE),0) -> 0
A57: 0831 | B57: CLAUDE PEPPER ELEMENTARY | C57: 745 | D57: 95 | E57: 120 | F57: 109 | G57: 124 | H57: 113 | I57: 112 | Q57: 72 | R57: =N57-IFERROR(VLOOKUP(TEXT(A57,"0000"),G10RPassingR!$A$2:$S$200,4,FALSE),0) -> 0
A58: 0841 | B58: COCONUT GROVE ELEMENTARY | C58: 377 | D58: 75 | E58: 61 | F58: 50 | G58: 49 | H58: 61 | I58: 53 | Q58: 28 | R58: =N58-IFERROR(VLOOKUP(TEXT(A58,"0000"),G10RPassingR!$A$2:$S$200,4,FALSE),0) -> 0
A59: 0861 | B59: COLONIAL DRIVE ELEMENTARY | C59: 281 | D59: 41 | E59: 36 | F59: 43 | G59: 47 | H59: 30 | I59: 45 | Q59: 39 | R59: =N59-IFERROR(VLOOKUP(TEXT(A59,"0000"),G10RPassingR!$A$2:$S$200,4,FALSE),0) -> 0
A60: 0881 | B60: COMSTOCK ELEMENTARY | C60: 565 | D60: 88 | E60: 88 | F60: 75 | G60: 91 | H60: 89 | I60: 78 | Q60: 56 | R60: =N60-IFERROR(VLOOKUP(TEXT(A60,"0000"),G10RPassingR!$A$2:$S$200,4,FALSE),0) -> 0
A61: 0921 | B61: NEVA KING COOPER EDUCATIONAL | C61: 47 | D61: 3 | F61: 4 | P61: 37 | Q61: 3 | R61: =N61-IFERROR(VLOOKUP(TEXT(A61,"0000"),G10RPassingR!$A$2:$S$200,4,FALSE),0) -> 0
A62: 0950 | B62: AVENTURA CITY OF EXCELLENCE | C62: 983 | D62: 108 | E62: 108 | F62: 113 | G62: 107 | H62: 120 | I62: 109 | J62: 109 | K62: 106 | L62: 103 | R62: =N62-IFERROR(VLOOKUP(TEXT(A62,"0000"),G10RPassingR!$A$2:$S$200,4,FALSE),0) -> 0
A63: 0961 | B63: CORAL GABLES PREPARATORY ACAD | C63: 793 | D63: 86 | E63: 92 | F63: 86 | G63: 96 | H63: 104 | I63: 89 | J63: 70 | K63: 99 | L63: 52 | Q63: 19 | R63: =N63-IFERROR(VLOOKUP(TEXT(A63,"0000"),G10RPassingR!$A$2:$S$200,4,FALSE),0) -> 0
A64: 1001 | B64: CORAL PARK ELEMENTARY | C64: 1103 | D64: 163 | E64: 167 | F64: 156 | G64: 168 | H64: 167 | I64: 206 | Q64: 76 | R64: =N64-IFERROR(VLOOKUP(TEXT(A64,"0000"),G10RPassingR!$A$2:$S$200,4,FALSE),0) -> 0
A65: 1010 | B65: CHARTER SCHOOL AT WATERSTONE | C65: 905 | E65: 216 | F65: 193 | G65: 155 | H65: 167 | I65: 174 | R65: =N65-IFERROR(VLOOKUP(TEXT(A65,"0000"),G10RPassingR!$A$2:$S$200,4,FALSE),0) -> 0
A66: 1014 | B66: ADVANCED LEARNING CHARTER SCH | C66: 448 | D66: 52 | E66: 101 | F66: 99 | G66: 67 | H66: 68 | I66: 61 | R66: =N66-IFERROR(VLOOKUP(TEXT(A66,"0000"),G10RPassingR!$A$2:$S$200,4,FALSE),0) -> 0
A67: 1017 | B67: MATER ACADEMY OF INTL STUDIES | C67: 499 | D67: 124 | E67: 111 | F67: 86 | G67: 82 | H67: 45 | I67: 51 | R67: =N67-IFERROR(VLOOKUP(TEXT(A67,"0000"),G10RPassingR!$A$2:$S$200,4,FALSE),0) -> 0
A68: 1020 | B68: YOUTH CO-OP CHARTER SCHOOL | C68: 602 | D68: 84 | E68: 71 | F68: 57 | G68: 55 | H68: 42 | I68: 52 | J68: 63 | K68: 90 | L68: 88 | R68: =N68-IFERROR(VLOOKUP(TEXT(A68,"0000"),G10RPassingR!$A$2:$S$200,4,FALSE),0) -> 0
A69: 1041 | B69: CORAL REEF ELEMENTARY | C69: 817 | D69: 131 | E69: 102 | F69: 129 | G69: 135 | H69: 156 | I69: 144 | Q69: 20 | R69: =N69-IFERROR(VLOOKUP(TEXT(A69,"0000"),G10RPassingR!$A$2:$S$200,4,FALSE),0) -> 0
A70: 1070 | B70: SOUTH FLORIDA AUTISM CHARTER | C70: 16 | D70: 7 | E70: 3 | F70: 6 | R70: =N70-IFERROR(VLOOKUP(TEXT(A70,"0000"),G10RPassingR!$A$2:$S$200,4,FALSE),0) -> 0
A71: 1081 | B71: CORAL TERRACE ELEMENTARY | C71: 498 | D71: 70 | E71: 77 | F71: 85 | G71: 80 | H71: 76 | I71: 90 | Q71: 20 | R71: =N71-IFERROR(VLOOKUP(TEXT(A71,"0000"),G10RPassingR!$A$2:$S$200,4,FALSE),0) -> 0
A72: 1121 | B72: CORAL WAY K-8 CENTER | C72: 1537 | D72: 155 | E72: 156 | F72: 154 | G72: 172 | H72: 169 | I72: 186 | J72: 170 | K72: 164 | L72: 181 | Q72: 30 | R72: =N72-IFERROR(VLOOKUP(TEXT(A72,"0000"),G10RPassingR!$A$2:$S$200,4,FALSE),0) -> 0
A73: 1161 | B73: CRESTVIEW ELEMENTARY | C73: 488 | D73: 81 | E73: 64 | F73: 69 | G73: 89 | H73: 67 | I73: 99 | Q73: 19 | R73: =N73-IFERROR(VLOOKUP(TEXT(A73,"0000"),G10RPassingR!$A$2:$S$200,4,FALSE),0) -> 0
A74: 1241 | B74: CUTLER RIDGE ELEMENTARY | C74: 806 | D74: 118 | E74: 98 | F74: 124 | G74: 159 | H74: 152 | I74: 137 | Q74: 18 | R74: =N74-IFERROR(VLOOKUP(TEXT(A74,"0000"),G10RPassingR!$A$2:$S$200,4,FALSE),0) -> 0
A75: 1281 | B75: CYPRESS ELEMENTARY | C75: 342 | D75: 45 | E75: 61 | F75: 36 | G75: 53 | H75: 64 | I75: 64 | Q75: 19 | R75: =N75-IFERROR(VLOOKUP(TEXT(A75,"0000"),G10RPassingR!$A$2:$S$200,4,FALSE),0) -> 0
A76: 1331 | B76: DEVON AIRE K-8 CENTER | C76: 1533 | D76: 127 | E76: 173 | F76: 155 | G76: 159 | H76: 165 | I76: 174 | J76: 195 | K76: 178 | L76: 189 | Q76: 18 | R76: =N76-IFERROR(VLOOKUP(TEXT(A76,"0000"),G10RPassingR!$A$2:$S$200,4,FALSE),0) -> 0
A77: 1361 | B77: FREDERICK DOUGLASS ELEMENTARY | C77: 360 | D77: 43 | E77: 37 | F77: 38 | G77: 70 | H77: 29 | I77: 30 | Q77: 113 | R77: =N77-IFERROR(VLOOKUP(TEXT(A77,"0000"),G10RPassingR!$A$2:$S$200,4,FALSE),0) -> 0
A78: 1371 | B78: MARJORY STONEMAN DOUGLAS ELEM | C78: 1044 | D78: 139 | E78: 166 | F78: 157 | G78: 159 | H78: 159 | I78: 206 | Q78: 58 | R78: =N78-IFERROR(VLOOKUP(TEXT(A78,"0000"),G10RPassingR!$A$2:$S$200,4,FALSE),0) -> 0
A79: 1401 | B79: CHARLES R. DREW K-8 CENTER | C79: 366 | D79: 53 | E79: 39 | F79: 37 | G79: 38 | H79: 33 | I79: 40 | J79: 44 | Q79: 82 | R79: =N79-IFERROR(VLOOKUP(TEXT(A79,"0000"),G10RPassingR!$A$2:$S$200,4,FALSE),0) -> 0
A80: 1441 | B80: PAUL LAURENCE DUNBAR K-8 CTR | C80: 409 | D80: 55 | E80: 64 | F80: 64 | G80: 62 | H80: 55 | I80: 56 | J80: 34 | Q80: 19 | R80: =N80-IFERROR(VLOOKUP(TEXT(A80,"0000"),G10RPassingR!$A$2:$S$200,4,FALSE),0) -> 0
A81: 1481 | B81: JOHN G. DUPUIS ELEMENTARY | C81: 718 | D81: 84 | E81: 94 | F81: 115 | G81: 105 | H81: 108 | I81: 129 | Q81: 83 | R81: =N81-IFERROR(VLOOKUP(TEXT(A81,"0000"),G10RPassingR!$A$2:$S$200,4,FALSE),0) -> 0
A82: 1521 | B82: AMELIA EARHART ELEMENTARY | C82: 438 | D82: 56 | E82: 53 | F82: 74 | G82: 79 | H82: 63 | I82: 71 | Q82: 42 | R82: =N82-IFERROR(VLOOKUP(TEXT(A82,"0000"),G10RPassingR!$A$2:$S$200,4,FALSE),0) -> 0
A83: 1561 | B83: EARLINGTON HEIGHTS ELEMENTARY | C83: 479 | D83: 83 | E83: 73 | F83: 90 | G83: 73 | H83: 74 | I83: 68 | Q83: 18 | R83: =N83-IFERROR(VLOOKUP(TEXT(A83,"0000"),G10RPassingR!$A$2:$S$200,4,FALSE),0) -> 0
A84: 1601 | B84: EDISON PARK K-8 CENTER | C84: 383 | D84: 65 | E84: 61 | F84: 65 | G84: 62 | H84: 40 | I84: 46 | J84: 25 | Q84: 19 | R84: =N84-IFERROR(VLOOKUP(TEXT(A84,"0000"),G10RPassingR!$A$2:$S$200,4,FALSE),0) -> 0
A85: 1641 | B85: EMERSON ELEMENTARY | C85: 399 | D85: 65 | E85: 68 | F85: 46 | G85: 75 | H85: 53 | I85: 72 | Q85: 20 | R85: =N85-IFERROR(VLOOKUP(TEXT(A85,"0000"),G10RPassingR!$A$2:$S$200,4,FALSE),0) -> 0
A86: 1681 | B86: LILLIE C. EVANS K-8 CENTER | C86: 479 | D86: 42 | E86: 48 | F86: 57 | G86: 43 | H86: 64 | I86: 47 | J86: 61 | K86: 37 | L86: 24 | Q86: 56 | R86: =N86-IFERROR(VLOOKUP(TEXT(A86,"0000"),G10RPassingR!$A$2:$S$200,4,FALSE),0) -> 0
A87: 1691 | B87: CHRISTINA M. EVE ELEMENTARY | C87: 632 | D87: 102 | E87: 85 | F87: 111 | G87: 93 | H87: 106 | I87: 112 | Q87: 23 | R87: =N87-IFERROR(VLOOKUP(TEXT(A87,"0000"),G10RPassingR!$A$2:$S$200,4,FALSE),0) -> 0
A88: 1721 | B88: EVERGLADES K-8 CENTER | C88: 1143 | D88: 94 | E88: 129 | F88: 117 | G88: 100 | H88: 118 | I88: 118 | J88: 135 | K88: 152 | L88: 142 | Q88: 38 | R88: =N88-IFERROR(VLOOKUP(TEXT(A88,"0000"),G10RPassingR!$A$2:$S$200,4,FALSE),0) -> 0
A89: 1761 | B89: DAVID FAIRCHILD ELEMENTARY | C89: 624 | D89: 98 | E89: 102 | F89: 103 | G89: 119 | H89: 88 | I89: 85 | Q89: 29 | R89: =N89-IFERROR(VLOOKUP(TEXT(A89,"0000"),G10RPassingR!$A$2:$S$200,4,FALSE),0) -> 0
A90: 1801 | B90: FAIRLAWN ELEMENTARY | C90: 681 | D90: 100 | E90: 118 | F90: 105 | G90: 102 | H90: 119 | I90: 117 | Q90: 20 | R90: =N90-IFERROR(VLOOKUP(TEXT(A90,"0000"),G10RPassingR!$A$2:$S$200,4,FALSE),0) -> 0
A91: 1811 | B91: DANTE B. FASCELL ELEMENTARY | C91: 533 | D91: 81 | E91: 85 | F91: 85 | G91: 83 | H91: 80 | I91: 99 | Q91: 20 | R91: =N91-IFERROR(VLOOKUP(TEXT(A91,"0000"),G10RPassingR!$A$2:$S$200,4,FALSE),0) -> 0
A92: 1841 | B92: FLAGAMI ELEMENTARY | C92: 473 | D92: 61 | E92: 75 | F92: 78 | G92: 70 | H92: 76 | I92: 85 | Q92: 28 | R92: =N92-IFERROR(VLOOKUP(TEXT(A92,"0000"),G10RPassingR!$A$2:$S$200,4,FALSE),0) -> 0
A93: 1881 | B93: HENRY M. FLAGLER ELEMENTARY | C93: 834 | D93: 129 | E93: 143 | F93: 124 | G93: 137 | H93: 120 | I93: 132 | Q93: 49 | R93: =N93-IFERROR(VLOOKUP(TEXT(A93,"0000"),G10RPassingR!$A$2:$S$200,4,FALSE),0) -> 0
A94: 1921 | B94: FLAMINGO ELEMENTARY | C94: 767 | D94: 93 | E94: 107 | F94: 115 | G94: 149 | H94: 128 | I94: 155 | Q94: 20 | R94: =N94-IFERROR(VLOOKUP(TEXT(A94,"0000"),G10RPassingR!$A$2:$S$200,4,FALSE),0) -> 0
A95: 2001 | B95: FLORIDA CITY ELEMENTARY | C95: 751 | D95: 145 | E95: 140 | F95: 121 | G95: 96 | H95: 118 | I95: 91 | Q95: 40 | R95: =N95-IFERROR(VLOOKUP(TEXT(A95,"0000"),G10RPassingR!$A$2:$S$200,4,FALSE),0) -> 0
A96: 2003 | B96: BRIDGEPOINT ACADEMY | C96: 306 | D96: 60 | E96: 37 | F96: 75 | G96: 51 | H96: 43 | I96: 40 | R96: =N96-IFERROR(VLOOKUP(TEXT(A96,"0000"),G10RPassingR!$A$2:$S$200,4,FALSE),0) -> 0
A97: 2004 | B97: ISAAC ACADEMY K-8 | C97: 25 | F97: 25 | R97: =N97-IFERROR(VLOOKUP(TEXT(A97,"0000"),G10RPassingR!$A$2:$S$200,4,FALSE),0) -> 0
A98: 2006 | B98: RICHARD ALLEN LEADERSHIP ACAD | C98: 83 | D98: 11 | E98: 18 | F98: 11 | G98: 16 | H98: 15 | I98: 12 | R98: =N98-IFERROR(VLOOKUP(TEXT(A98,"0000"),G10RPassingR!$A$2:$S$200,4,FALSE),0) -> 0
A99: 2007 | B99: SOMERSET ACADEMY ELEMENTARY | C99: 474 | D99: 75 | E99: 77 | F99: 75 | G99: 98 | H99: 99 | I99: 50 | R99: =N99-IFERROR(VLOOKUP(TEXT(A99,"0000"),G10RPassingR!$A$2:$S$200,4,FALSE),0) -> 0
A100: 2012 | B100: SOMERSET ARTS ACADEMY | C100: 292 | D100: 43 | E100: 57 | F100: 34 | G100: 50 | H100: 71 | I100: 37 | R100: =N100-IFERROR(VLOOKUP(TEXT(A100,"0000"),G10RPassingR!$A$2:$S$200,4,FALSE),0) -> 0
A101: 2013 | B101: BRIDGEPOINT ACAD GREATER MIAMI | C101: 277 | D101: 81 | E101: 87 | F101: 38 | G101: 24 | H101: 26 | I101: 21 | R101: =N101-IFERROR(VLOOKUP(TEXT(A101,"0000"),G10RPassingR!$A$2:$S$200,4,FALSE),0) -> 0
A102: 2021 | B102: GLORIA FLOYD ELEMENTARY | C102: 587 | D102: 100 | E102: 101 | F102: 77 | G102: 89 | H102: 94 | I102: 92 | Q102: 34 | R102: =N102-IFERROR(VLOOKUP(TEXT(A102,"0000"),G10RPassingR!$A$2:$S$200,4,FALSE),0) -> 0
A103: 2041 | B103: BENJAMIN FRANKLIN K-8 CENTER | C103: 533 | D103: 70 | E103: 62 | F103: 66 | G103: 70 | H103: 63 | I103: 73 | J103: 66 | K103: 44 | Q103: 19 | R103: =N103-IFERROR(VLOOKUP(TEXT(A103,"0000"),G10RPassingR!$A$2:$S$200,4,FALSE),0) -> 0
A104: 2060 | B104: GIBSON CHARTER SCHOOL | C104: 261 | D104: 29 | E104: 26 | F104: 30 | G104: 22 | H104: 21 | I104: 29 | J104: 42 | K104: 33 | L104: 29 | R104: =N104-IFERROR(VLOOKUP(TEXT(A104,"0000"),G10RPassingR!$A$2:$S$200,4,FALSE),0) -> 0
A105: 2081 | B105: FULFORD ELEMENTARY | C105: 524 | D105: 97 | E105: 90 | F105: 70 | G105: 83 | H105: 87 | I105: 78 | Q105: 19 | R105: =N105-IFERROR(VLOOKUP(TEXT(A105,"0000"),G10RPassingR!$A$2:$S$200,4,FALSE),0) -> 0
A106: 2111 | B106: HIALEAH GARDENS ELEMENTARY | C106: 833 | D106: 141 | E106: 121 | F106: 126 | G106: 134 | H106: 133 | I106: 135 | Q106: 43 | R106: =N106-IFERROR(VLOOKUP(TEXT(A106,"0000"),G10RPassingR!$A$2:$S$200,4,FALSE),0) -> 0
A107: 2151 | B107: JACK D. GORDON ELEMENTARY | C107: 1103 | D107: 170 | E107: 153 | F107: 193 | G107: 181 | H107: 187 | I107: 199 | Q107: 20 | R107: =N107-IFERROR(VLOOKUP(TEXT(A107,"0000"),G10RPassingR!$A$2:$S$200,4,FALSE),0) -> 0
A108: 2161 | B108: GOLDEN GLADES ELEMENTARY | C108: 265 | D108: 44 | E108: 36 | F108: 34 | G108: 47 | H108: 39 | I108: 31 | Q108: 34 | R108: =N108-IFERROR(VLOOKUP(TEXT(A108,"0000"),G10RPassingR!$A$2:$S$200,4,FALSE),0) -> 0
A109: 2181 | B109: JOELLA C. GOOD ELEMENTARY | C109: 927 | D109: 152 | E109: 134 | F109: 142 | G109: 157 | H109: 169 | I109: 155 | Q109: 18 | R109: =N109-IFERROR(VLOOKUP(TEXT(A109,"0000"),G10RPassingR!$A$2:$S$200,4,FALSE),0) -> 0
A110: 2191 | B110: SPANISH LAKE ELEMENTARY | C110: 1640 | D110: 265 | E110: 245 | F110: 250 | G110: 305 | H110: 274 | I110: 293 | Q110: 8 | R110: =N110-IFERROR(VLOOKUP(TEXT(A110,"0000"),G10RPassingR!$A$2:$S$200,4,FALSE),0) -> 0
A111: 2241 | B111: GRATIGNY ELEMENTARY | C111: 668 | D111: 90 | E111: 77 | F111: 71 | G111: 106 | H111: 73 | I111: 90 | J111: 77 | Q111: 84 | R111: =N111-IFERROR(VLOOKUP(TEXT(A111,"0000"),G10RPassingR!$A$2:$S$200,4,FALSE),0) -> 0
A112: 2261 | B112: GREENGLADE ELEMENTARY | C112: 485 | D112: 78 | E112: 57 | F112: 65 | G112: 84 | H112: 91 | I112: 78 | Q112: 32 | R112: =N112-IFERROR(VLOOKUP(TEXT(A112,"0000"),G10RPassingR!$A$2:$S$200,4,FALSE),0) -> 0
A113: 2281 | B113: GREYNOLDS PARK ELEMENTARY | C113: 785 | D113: 132 | E113: 116 | F113: 101 | G113: 134 | H113: 108 | I113: 112 | Q113: 82 | R113: =N113-IFERROR(VLOOKUP(TEXT(A113,"0000"),G10RPassingR!$A$2:$S$200,4,FALSE),0) -> 0
A114: 2321 | B114: GULFSTREAM ELEMENTARY | C114: 562 | D114: 89 | E114: 86 | F114: 85 | G114: 71 | H114: 71 | I114: 64 | Q114: 96 | R114: =N114-IFERROR(VLOOKUP(TEXT(A114,"0000"),G10RPassingR!$A$2:$S$200,4,FALSE),0) -> 0
A115: 2331 | B115: CHARLES R. HADLEY ELEMENTARY | C115: 1025 | D115: 167 | E115: 175 | F115: 175 | G115: 144 | H115: 179 | I115: 149 | Q115: 36 | R115: =N115-IFERROR(VLOOKUP(TEXT(A115,"0000"),G10RPassingR!$A$2:$S$200,4,FALSE),0) -> 0
A116: 2341 | B116: JOE HALL ELEMENTARY | C116: 567 | D116: 90 | E116: 64 | F116: 94 | G116: 96 | H116: 93 | I116: 110 | Q116: 20 | R116: =N116-IFERROR(VLOOKUP(TEXT(A116,"0000"),G10RPassingR!$A$2:$S$200,4,FALSE),0) -> 0
A117: 2351 | B117: ENEIDA MASSAS HARTNER ELEM | C117: 551 | D117: 98 | E117: 99 | F117: 83 | G117: 91 | H117: 80 | I117: 82 | Q117: 18 | R117: =N117-IFERROR(VLOOKUP(TEXT(A117,"0000"),G10RPassingR!$A$2:$S$200,4,FALSE),0) -> 0
A118: 2361 | B118: HIALEAH ELEMENTARY | C118: 665 | D118: 75 | E118: 104 | F118: 112 | G118: 110 | H118: 117 | I118: 121 | Q118: 26 | R118: =N118-IFERROR(VLOOKUP(TEXT(A118,"0000"),G10RPassingR!$A$2:$S$200,4,FALSE),0) -> 0
A119: 2371 | B119: WEST HIALEAH GARDENS ELEM | C119: 1157 | D119: 182 | E119: 167 | F119: 203 | G119: 211 | H119: 209 | I119: 170 | Q119: 15 | R119: =N119-IFERROR(VLOOKUP(TEXT(A119,"0000"),G10RPassingR!$A$2:$S$200,4,FALSE),0) -> 0
A120: 2401 | B120: HIBISCUS ELEMENTARY | C120: 548 | D120: 85 | E120: 70 | F120: 89 | G120: 87 | H120: 72 | I120: 111 | Q120: 34 | R120: =N120-IFERROR(VLOOKUP(TEXT(A120,"0000"),G10RPassingR!$A$2:$S$200,4,FALSE),0) -> 0
A121: 2441 | B121: VIRGINIA A BOONE/HIGHLAND OAKS | C121: 734 | D121: 100 | E121: 136 | F121: 112 | G121: 143 | H121: 123 | I121: 86 | Q121: 34 | R121: =N121-IFERROR(VLOOKUP(TEXT(A121,"0000"),G10RPassingR!$A$2:$S$200,4,FALSE),0) -> 0
A122: 2501 | B122: HOLMES ELEMENTARY | C122: 593 | D122: 119 | E122: 111 | F122: 92 | G122: 107 | H122: 68 | I122: 78 | Q122: 18 | R122: =N122-IFERROR(VLOOKUP(TEXT(A122,"0000"),G10RPassingR!$A$2:$S$200,4,FALSE),0) -> 0
A123: 2511 | B123: ZORA NEALE HURSTON ELEMENTARY | C123: 746 | D123: 100 | E123: 117 | F123: 88 | G123: 131 | H123: 115 | I123: 133 | Q123: 62 | R123: =N123-IFERROR(VLOOKUP(TEXT(A123,"0000"),G10RPassingR!$A$2:$S$200,4,FALSE),0) -> 0
A124: 2521 | B124: OLIVER HOOVER ELEMENTARY | C124: 803 | D124: 115 | E124: 108 | F124: 126 | G124: 139 | H124: 134 | I124: 137 | Q124: 44 | R124: =N124-IFERROR(VLOOKUP(TEXT(A124,"0000"),G10RPassingR!$A$2:$S$200,4,FALSE),0) -> 0
A125: 2531 | B125: THENA C. CROWDER EARLY CHLDHD | C125: 51 | Q125: 51 | R125: =N125-IFERROR(VLOOKUP(TEXT(A125,"0000"),G10RPassingR!$A$2:$S$200,4,FALSE),0) -> 0
A126: 2541 | B126: HOWARD DRIVE ELEMENTARY | C126: 654 | D126: 73 | E126: 97 | F126: 100 | G126: 98 | H126: 135 | I126: 112 | Q126: 39 | R126: =N126-IFERROR(VLOOKUP(TEXT(A126,"0000"),G10RPassingR!$A$2:$S$200,4,FALSE),0) -> 0
A127: 2581 | B127: MADIE IVES ELEMENTARY | C127: 720 | D127: 104 | E127: 137 | F127: 108 | G127: 109 | H127: 122 | I127: 117 | Q127: 23 | R127: =N127-IFERROR(VLOOKUP(TEXT(A127,"0000"),G10RPassingR!$A$2:$S$200,4,FALSE),0) -> 0
A128: 2641 | B128: KENDALE ELEMENTARY | C128: 486 | D128: 74 | E128: 73 | F128: 76 | G128: 78 | H128: 76 | I128: 78 | Q128: 31 | R128: =N128-IFERROR(VLOOKUP(TEXT(A128,"0000"),G10RPassingR!$A$2:$S$200,4,FALSE),0) -> 0
A129: 2651 | B129: KENDALE LAKES ELEMENTARY | C129: 723 | D129: 125 | E129: 110 | F129: 100 | G129: 104 | H129: 105 | I129: 125 | Q129: 54 | R129: =N129-IFERROR(VLOOKUP(TEXT(A129,"0000"),G10RPassingR!$A$2:$S$200,4,FALSE),0) -> 0
A130: 2661 | B130: KENSINGTON PARK ELEMENTARY | C130: 1122 | D130: 161 | E130: 158 | F130: 177 | G130: 200 | H130: 189 | I130: 193 | Q130: 44 | R130: =N130-IFERROR(VLOOKUP(TEXT(A130,"0000"),G10RPassingR!$A$2:$S$200,4,FALSE),0) -> 0
A131: 2701 | B131: KENWOOD K-8 CENTER | C131: 1052 | D131: 114 | E131: 90 | F131: 99 | G131: 119 | H131: 112 | I131: 100 | J131: 144 | K131: 123 | L131: 127 | Q131: 24 | R131: =N131-IFERROR(VLOOKUP(TEXT(A131,"0000"),G10RPassingR!$A$2:$S$200,4,FALSE),0) -> 0
A132: 2741 | B132: KEY BISCAYNE K-8 CENTER | C132: 1313 | D132: 145 | E132: 151 | F132: 140 | G132: 181 | H132: 158 | I132: 157 | J132: 154 | K132: 140 | L132: 68 | Q132: 19 | R132: =N132-IFERROR(VLOOKUP(TEXT(A132,"0000"),G10RPassingR!$A$2:$S$200,4,FALSE),0) -> 0
A133: 2781 | B133: KINLOCH PARK ELEMENTARY | C133: 815 | D133: 127 | E133: 118 | F133: 123 | G133: 131 | H133: 132 | I133: 164 | Q133: 20 | R133: =N133-IFERROR(VLOOKUP(TEXT(A133,"0000"),G10RPassingR!$A$2:$S$200,4,FALSE),0) -> 0
A134: 2801 | B134: LAKE STEVENS ELEMENTARY | C134: 286 | D134: 48 | E134: 33 | F134: 43 | G134: 40 | H134: 51 | I134: 42 | Q134: 29 | R134: =N134-IFERROR(VLOOKUP(TEXT(A134,"0000"),G10RPassingR!$A$2:$S$200,4,FALSE),0) -> 0
A135: 2821 | B135: LAKEVIEW ELEMENTARY | C135: 421 | D135: 64 | E135: 60 | F135: 56 | G135: 64 | H135: 67 | I135: 81 | Q135: 29 | R135: =N135-IFERROR(VLOOKUP(TEXT(A135,"0000"),G10RPassingR!$A$2:$S$200,4,FALSE),0) -> 0
A136: 2881 | B136: LEEWOOD K-8 CENTER | C136: 783 | D136: 91 | E136: 78 | F136: 88 | G136: 102 | H136: 107 | I136: 87 | J136: 76 | K136: 67 | L136: 51 | Q136: 36 | R136: =N136-IFERROR(VLOOKUP(TEXT(A136,"0000"),G10RPassingR!$A$2:$S$200,4,FALSE),0) -> 0
A137: 2891 | B137: WILLIAM LEHMAN ELEMENTARY | C137: 618 | D137: 96 | E137: 88 | F137: 86 | G137: 111 | H137: 114 | I137: 96 | Q137: 27 | R137: =N137-IFERROR(VLOOKUP(TEXT(A137,"0000"),G10RPassingR!$A$2:$S$200,4,FALSE),0) -> 0
A138: 2901 | B138: LEISURE CITY K-8 CENTER | C138: 1119 | D138: 92 | E138: 110 | F138: 124 | G138: 98 | H138: 126 | I138: 123 | J138: 101 | K138: 113 | L138: 131 | Q138: 101 | R138: =N138-IFERROR(VLOOKUP(TEXT(A138,"0000"),G10RPassingR!$A$2:$S$200,4,FALSE),0) -> 0
A139: 2911 | B139: LINDA LENTIN K-8 CENTER | C139: 971 | D139: 91 | E139: 80 | F139: 85 | G139: 105 | H139: 98 | I139: 141 | J139: 122 | K139: 104 | L139: 109 | Q139: 36 | R139: =N139-IFERROR(VLOOKUP(TEXT(A139,"0000"),G10RPassingR!$A$2:$S$200,4,FALSE),0) -> 0
A140: 2941 | B140: LAURA C. SAUNDERS ELEMENTARY | C140: 711 | D140: 131 | E140: 127 | F140: 116 | G140: 122 | H140: 97 | I140: 101 | Q140: 17 | R140: =N140-IFERROR(VLOOKUP(TEXT(A140,"0000"),G10RPassingR!$A$2:$S$200,4,FALSE),0) -> 0
A141: 2981 | B141: LIBERTY CITY ELEMENTARY | C141: 467 | D141: 64 | E141: 61 | F141: 40 | G141: 62 | H141: 57 | I141: 49 | Q141: 134 | R141: =N141-IFERROR(VLOOKUP(TEXT(A141,"0000"),G10RPassingR!$A$2:$S$200,4,FALSE),0) -> 0
A142: 3021 | B142: JESSE J MCCRARY JR ELEMENTARY | C142: 560 | D142: 113 | E142: 92 | F142: 75 | G142: 99 | H142: 75 | I142: 67 | Q142: 39 | R142: =N142-IFERROR(VLOOKUP(TEXT(A142,"0000"),G10RPassingR!$A$2:$S$200,4,FALSE),0) -> 0
A143: 3024 | B143: FLORIDA INTERNATIONAL EL ACAD | C143: 446 | D143: 79 | E143: 71 | F143: 88 | G143: 87 | H143: 65 | I143: 56 | R143: =N143-IFERROR(VLOOKUP(TEXT(A143,"0000"),G10RPassingR!$A$2:$S$200,4,FALSE),0) -> 0
A144: 3025 | B144: ADVANTAGE ACADEMY SANTA FE | C144: 292 | D144: 61 | E144: 87 | F144: 58 | G144: 25 | H144: 35 | I144: 26 | R144: =N144-IFERROR(VLOOKUP(TEXT(A144,"0000"),G10RPassingR!$A$2:$S$200,4,FALSE),0) -> 0
A145: 3026 | B145: ADVANTAGE ACAD AT SUMMERVILLE | C145: 105 | D145: 105 | R145: =N145-IFERROR(VLOOKUP(TEXT(A145,"0000"),G10RPassingR!$A$2:$S$200,4,FALSE),0) -> 0
A146: 3027 | B146: ADVANTAGE ACAD AT WATERSTONE | C146: 240 | D146: 240 | R146: =N146-IFERROR(VLOOKUP(TEXT(A146,"0000"),G10RPassingR!$A$2:$S$200,4,FALSE),0) -> 0
A147: 3029 | B147: DORAL ACADEMY OF TECHNOLOGY | C147: 203 | J147: 70 | K147: 63 | L147: 70 | R147: =N147-IFERROR(VLOOKUP(TEXT(A147,"0000"),G10RPassingR!$A$2:$S$200,4,FALSE),0) -> 0
A148: 3030 | B148: DORAL ACADEMY | C148: 932 | D148: 185 | E148: 172 | F148: 143 | G148: 129 | H148: 150 | I148: 153 | R148: =N148-IFERROR(VLOOKUP(TEXT(A148,"0000"),G10RPassingR!$A$2:$S$200,4,FALSE),0) -> 0
A149: 3032 | B149: PALM GLADES PREPATORY ACADEMY | C149: 451 | J149: 187 | K149: 133 | L149: 131 | R149: =N149-IFERROR(VLOOKUP(TEXT(A149,"0000"),G10RPassingR!$A$2:$S$200,4,FALSE),0) -> 0
A150: 3033 | B150: SOMERSET OAKS ACADEMY | C150: 51 | D150: 40 | E150: 11 | R150: =N150-IFERROR(VLOOKUP(TEXT(A150,"0000"),G10RPassingR!$A$2:$S$200,4,FALSE),0) -> 0
A151: 3034 | B151: BRIDGEPOINT ACAD VILLAGE GREEN | C151: 163 | D151: 60 | E151: 47 | F151: 17 | G151: 17 | H151: 10 | I151: 12 | R151: =N151-IFERROR(VLOOKUP(TEXT(A151,"0000"),G10RPassingR!$A$2:$S$200,4,FALSE),0) -> 0
A152: 3035 | B152: RAMZ ACADEMY ELEM MIAMI CAMPUS | C152: 148 | D152: 36 | E152: 34 | F152: 19 | G152: 27 | H152: 11 | I152: 21 | R152: =N152-IFERROR(VLOOKUP(TEXT(A152,"0000"),G10RPassingR!$A$2:$S$200,4,FALSE),0) -> 0
A153: 3041 | B153: LORAH PARK ELEMENTARY | C153: 422 | D153: 87 | E153: 65 | F153: 78 | G153: 65 | H153: 50 | I153: 57 | Q153: 20 | R153: =N153-IFERROR(VLOOKUP(TEXT(A153,"0000"),G10RPassingR!$A$2:$S$200,4,FALSE),0) -> 0
A154: 3051 | B154: TOUSSAINT L'OUVERTURE ELEM | C154: 469 | D154: 70 | E154: 62 | F154: 68 | G154: 83 | H154: 74 | I154: 76 | Q154: 36 | R154: =N154-IFERROR(VLOOKUP(TEXT(A154,"0000"),G10RPassingR!$A$2:$S$200,4,FALSE),0) -> 0
A155: 3061 | B155: LUDLAM ELEMENTARY | C155: 400 | D155: 71 | E155: 67 | F155: 71 | G155: 57 | H155: 57 | I155: 61 | Q155: 16 | R155: =N155-IFERROR(VLOOKUP(TEXT(A155,"0000"),G10RPassingR!$A$2:$S$200,4,FALSE),0) -> 0
A156: 3100 | B156: MATER ACADEMY EAST CHARTER | C156: 615 | D156: 154 | E156: 121 | F156: 127 | G156: 82 | H156: 66 | I156: 65 | R156: =N156-IFERROR(VLOOKUP(TEXT(A156,"0000"),G10RPassingR!$A$2:$S$200,4,FALSE),0) -> 0
A157: 3101 | B157: FRANK C. MARTIN K-8 CENTER | C157: 1170 | D157: 104 | E157: 117 | F157: 121 | G157: 144 | H157: 131 | I157: 129 | J157: 136 | K157: 138 | L157: 130 | Q157: 20 | R157: =N157-IFERROR(VLOOKUP(TEXT(A157,"0000"),G10RPassingR!$A$2:$S$200,4,FALSE),0) -> 0
A158: 3111 | B158: WESLEY MATTHEWS ELEMENTARY | C158: 513 | D158: 81 | E158: 72 | F158: 74 | G158: 84 | H158: 78 | I158: 86 | Q158: 38 | R158: =N158-IFERROR(VLOOKUP(TEXT(A158,"0000"),G10RPassingR!$A$2:$S$200,4,FALSE),0) -> 0
A159: 3141 | B159: MEADOWLANE ELEMENTARY | C159: 1093 | D159: 132 | E159: 169 | F159: 176 | G159: 184 | H159: 193 | I159: 219 | Q159: 20 | R159: =N159-IFERROR(VLOOKUP(TEXT(A159,"0000"),G10RPassingR!$A$2:$S$200,4,FALSE),0) -> 0
A160: 3181 | B160: MELROSE ELEMENTARY | C160: 768 | D160: 80 | E160: 74 | F160: 100 | G160: 96 | H160: 101 | I160: 77 | Q160: 240 | R160: =N160-IFERROR(VLOOKUP(TEXT(A160,"0000"),G10RPassingR!$A$2:$S$200,4,FALSE),0) -> 0
A161: 3191 | B161: ADA MERRITT K-8 CENTER | C161: 726 | D161: 71 | E161: 72 | F161: 68 | G161: 78 | H161: 63 | I161: 73 | J161: 99 | K161: 112 | L161: 90 | R161: =N161-IFERROR(VLOOKUP(TEXT(A161,"0000"),G10RPassingR!$A$2:$S$200,4,FALSE),0) -> 0
A162: 3241 | B162: MIAMI GARDENS ELEMENTARY | C162: 286 | D162: 39 | E162: 47 | F162: 43 | G162: 40 | H162: 51 | I162: 38 | Q162: 28 | R162: =N162-IFERROR(VLOOKUP(TEXT(A162,"0000"),G10RPassingR!$A$2:$S$200,4,FALSE),0) -> 0
A163: 3261 | B163: MIAMI HEIGHTS ELEMENTARY | C163: 1165 | D163: 185 | E163: 167 | F163: 153 | G163: 200 | H163: 164 | I163: 181 | Q163: 115 | R163: =N163-IFERROR(VLOOKUP(TEXT(A163,"0000"),G10RPassingR!$A$2:$S$200,4,FALSE),0) -> 0
A164: 3281 | B164: MIAMI LAKES K-8 CENTER | C164: 1384 | D164: 124 | E164: 152 | F164: 127 | G164: 141 | H164: 167 | I164: 152 | J164: 167 | K164: 151 | L164: 183 | Q164: 20 | R164: =N164-IFERROR(VLOOKUP(TEXT(A164,"0000"),G10RPassingR!$A$2:$S$200,4,FALSE),0) -> 0
A165: 3301 | B165: MIAMI PARK ELEMENTARY | C165: 470 | D165: 71 | E165: 73 | F165: 61 | G165: 70 | H165: 59 | I165: 59 | Q165: 77 | R165: =N165-IFERROR(VLOOKUP(TEXT(A165,"0000"),G10RPassingR!$A$2:$S$200,4,FALSE),0) -> 0
A166: 3341 | B166: MIAMI SHORES ELEMENTARY | C166: 777 | D166: 112 | E166: 150 | F166: 120 | G166: 134 | H166: 117 | I166: 126 | Q166: 18 | R166: =N166-IFERROR(VLOOKUP(TEXT(A166,"0000"),G10RPassingR!$A$2:$S$200,4,FALSE),0) -> 0
A167: 3381 | B167: MIAMI SPRINGS ELEMENTARY | C167: 547 | D167: 66 | E167: 74 | F167: 93 | G167: 83 | H167: 100 | I167: 102 | Q167: 29 | R167: =N167-IFERROR(VLOOKUP(TEXT(A167,"0000"),G10RPassingR!$A$2:$S$200,4,FALSE),0) -> 0
A168: 3421 | B168: M.A. MILAM K-8 CENTER | C168: 993 | D168: 72 | E168: 87 | F168: 77 | G168: 96 | H168: 104 | I168: 112 | J168: 125 | K168: 153 | L168: 147 | Q168: 20 | R168: =N168-IFERROR(VLOOKUP(TEXT(A168,"0000"),G10RPassingR!$A$2:$S$200,4,FALSE),0) -> 0
A169: 3431 | B169: PHYLLIS RUTH MILLER ELEMENTARY | C169: 689 | D169: 113 | E169: 93 | F169: 95 | G169: 129 | H169: 100 | I169: 99 | Q169: 60 | R169: =N169-IFERROR(VLOOKUP(TEXT(A169,"0000"),G10RPassingR!$A$2:$S$200,4,FALSE),0) -> 0
A170: 3501 | B170: MORNINGSIDE K-8 ACADEMY | C170: 443 | D170: 62 | E170: 51 | F170: 70 | G170: 59 | H170: 75 | I170: 65 | J170: 27 | Q170: 34 | R170: =N170-IFERROR(VLOOKUP(TEXT(A170,"0000"),G10RPassingR!$A$2:$S$200,4,FALSE),0) -> 0
A171: 3541 | B171: ROBERT RUSSA MOTON ELEMENTARY | C171: 330 | D171: 65 | E171: 62 | F171: 47 | G171: 41 | H171: 43 | I171: 33 | Q171: 39 | R171: =N171-IFERROR(VLOOKUP(TEXT(A171,"0000"),G10RPassingR!$A$2:$S$200,4,FALSE),0) -> 0
A172: 3581 | B172: MYRTLE GROVE K-8 CENTER | C172: 430 | D172: 64 | E172: 59 | F172: 60 | G172: 49 | H172: 48 | I172: 48 | J172: 43 | Q172: 59 | R172: =N172-IFERROR(VLOOKUP(TEXT(A172,"0000"),G10RPassingR!$A$2:$S$200,4,FALSE),0) -> 0
A173: 3600 | B173: DOWNTOWN MIAMI CHARTER SCHOOL | C173: 644 | D173: 109 | E173: 100 | F173: 94 | G173: 79 | H173: 99 | I173: 92 | J173: 71 | R173: =N173-IFERROR(VLOOKUP(TEXT(A173,"0000"),G10RPassingR!$A$2:$S$200,4,FALSE),0) -> 0
A174: 3610 | B174: KEYS GATE CHARTER SCHOOL | C174: 2038 | D174: 206 | E174: 223 | F174: 218 | G174: 219 | H174: 176 | I174: 182 | J174: 241 | K174: 291 | L174: 282 | R174: =N174-IFERROR(VLOOKUP(TEXT(A174,"0000"),G10RPassingR!$A$2:$S$200,4,FALSE),0) -> 0
A175: 3621 | B175: COCONUT PALM K-8 ACADEMY | C175: 1219 | D175: 146 | E175: 142 | F175: 164 | G175: 163 | H175: 142 | I175: 137 | J175: 135 | K175: 113 | L175: 77 | R175: =N175-IFERROR(VLOOKUP(TEXT(A175,"0000"),G10RPassingR!$A$2:$S$200,4,FALSE),0) -> 0
A176: 3661 | B176: NATURAL BRIDGE ELEMENTARY | C176: 611 | D176: 100 | E176: 83 | F176: 105 | G176: 92 | H176: 87 | I176: 72 | Q176: 72 | R176: =N176-IFERROR(VLOOKUP(TEXT(A176,"0000"),G10RPassingR!$A$2:$S$200,4,FALSE),0) -> 0
A177: 3701 | B177: NORLAND ELEMENTARY | C177: 622 | D177: 112 | E177: 88 | F177: 83 | G177: 90 | H177: 97 | I177: 109 | Q177: 43 | R177: =N177-IFERROR(VLOOKUP(TEXT(A177,"0000"),G10RPassingR!$A$2:$S$200,4,FALSE),0) -> 0
A178: 3741 | B178: NORTH BEACH ELEMENTARY | C178: 1012 | D178: 144 | E178: 176 | F178: 166 | G178: 176 | H178: 148 | I178: 161 | Q178: 41 | R178: =N178-IFERROR(VLOOKUP(TEXT(A178,"0000"),G10RPassingR!$A$2:$S$200,4,FALSE),0) -> 0
A179: 3781 | B179: BARBARA HAWKINS ELEMENTARY | C179: 332 | D179: 52 | E179: 55 | F179: 51 | G179: 67 | H179: 43 | I179: 44 | Q179: 20 | R179: =N179-IFERROR(VLOOKUP(TEXT(A179,"0000"),G10RPassingR!$A$2:$S$200,4,FALSE),0) -> 0
A180: 3821 | B180: NORTH COUNTY K-8 CENTER | C180: 363 | D180: 51 | E180: 38 | F180: 52 | G180: 48 | H180: 38 | I180: 35 | J180: 45 | K180: 38 | Q180: 18 | R180: =N180-IFERROR(VLOOKUP(TEXT(A180,"0000"),G10RPassingR!$A$2:$S$200,4,FALSE),0) -> 0
A181: 3861 | B181: NORTH GLADE ELEMENTARY | C181: 352 | D181: 57 | E181: 47 | F181: 55 | G181: 71 | H181: 48 | I181: 45 | Q181: 29 | R181: =N181-IFERROR(VLOOKUP(TEXT(A181,"0000"),G10RPassingR!$A$2:$S$200,4,FALSE),0) -> 0
A182: 3901 | B182: NORTH HIALEAH ELEMENTARY | C182: 596 | D182: 70 | E182: 85 | F182: 103 | G182: 106 | H182: 107 | I182: 107 | Q182: 18 | R182: =N182-IFERROR(VLOOKUP(TEXT(A182,"0000"),G10RPassingR!$A$2:$S$200,4,FALSE),0) -> 0
A183: 3941 | B183: NORTH MIAMI ELEMENTARY | C183: 609 | D183: 100 | E183: 93 | F183: 93 | G183: 81 | H183: 94 | I183: 75 | Q183: 73 | R183: =N183-IFERROR(VLOOKUP(TEXT(A183,"0000"),G10RPassingR!$A$2:$S$200,4,FALSE),0) -> 0
A184: 3981 | B184: NORTH TWIN LAKES ELEMENTARY | C184: 580 | D184: 71 | E184: 88 | F184: 79 | G184: 101 | H184: 103 | I184: 81 | Q184: 57 | R184: =N184-IFERROR(VLOOKUP(TEXT(A184,"0000"),G10RPassingR!$A$2:$S$200,4,FALSE),0) -> 0
A185: 4000 | B185: MIAMI CHILDREN'S MUSEUM | C185: 302 | D185: 60 | E185: 54 | F185: 52 | G185: 53 | H185: 37 | I185: 46 | R185: =N185-IFERROR(VLOOKUP(TEXT(A185,"0000"),G10RPassingR!$A$2:$S$200,4,FALSE),0) -> 0
A186: 4001 | B186: NORWOOD ELEMENTARY | C186: 473 | D186: 71 | E186: 75 | F186: 84 | G186: 74 | H186: 61 | I186: 66 | Q186: 42 | R186: =N186-IFERROR(VLOOKUP(TEXT(A186,"0000"),G10RPassingR!$A$2:$S$200,4,FALSE),0) -> 0
A187: 4012 | B187: SOMERSET ACAD AT SILVER PALMS | C187: 612 | D187: 141 | E187: 121 | F187: 126 | G187: 68 | H187: 88 | I187: 68 | R187: =N187-IFERROR(VLOOKUP(TEXT(A187,"0000"),G10RPassingR!$A$2:$S$200,4,FALSE),0) -> 0
A188: 4021 | B188: OAK GROVE ELEMENTARY | C188: 690 | D188: 85 | E188: 104 | F188: 82 | G188: 96 | H188: 100 | I188: 107 | J188: 60 | Q188: 56 | R188: =N188-IFERROR(VLOOKUP(TEXT(A188,"0000"),G10RPassingR!$A$2:$S$200,4,FALSE),0) -> 0
A189: 4031 | B189: GATEWAY ENVIRONMENTAL K-8 | C189: 1580 | D189: 222 | E189: 246 | F189: 204 | G189: 223 | H189: 204 | I189: 167 | J189: 150 | K189: 128 | Q189: 36 | R189: =N189-IFERROR(VLOOKUP(TEXT(A189,"0000"),G10RPassingR!$A$2:$S$200,4,FALSE),0) -> 0
A190: 4061 | B190: OJUS ELEMENTARY | C190: 904 | D190: 152 | E190: 148 | F190: 143 | G190: 156 | H190: 160 | I190: 145 | R190: =N190-IFERROR(VLOOKUP(TEXT(A190,"0000"),G10RPassingR!$A$2:$S$200,4,FALSE),0) -> 0
A191: 4070 | B191: EARLY BEGINNINGS ACADEMY-CIVIC | C191: 126 | D191: 26 | E191: 10 | F191: 3 | Q191: 87 | R191: =N191-IFERROR(VLOOKUP(TEXT(A191,"0000"),G10RPassingR!$A$2:$S$200,4,FALSE),0) -> 0
A192: 4071 | B192: OLINDA ELEMENTARY | C192: 342 | D192: 48 | E192: 45 | F192: 62 | G192: 56 | H192: 47 | I192: 47 | Q192: 37 | R192: =N192-IFERROR(VLOOKUP(TEXT(A192,"0000"),G10RPassingR!$A$2:$S$200,4,FALSE),0) -> 0
A193: 4081 | B193: PRIMARY LEARNING CENTER | C193: 209 | D193: 54 | E193: 50 | F193: 35 | G193: 18 | Q193: 52 | R193: =N193-IFERROR(VLOOKUP(TEXT(A193,"0000"),G10RPassingR!$A$2:$S$200,4,FALSE),0) -> 0
A194: 4091 | B194: OLYMPIA HEIGHTS ELEMENTARY | C194: 504 | D194: 73 | E194: 82 | F194: 88 | G194: 77 | H194: 87 | I194: 78 | Q194: 19 | R194: =N194-IFERROR(VLOOKUP(TEXT(A194,"0000"),G10RPassingR!$A$2:$S$200,4,FALSE),0) -> 0
A195: 4121 | B195: DR. ROBERT B. INGRAM EL | C195: 389 | D195: 70 | E195: 59 | F195: 71 | G195: 67 | H195: 56 | I195: 46 | Q195: 20 | R195: =N195-IFERROR(VLOOKUP(TEXT(A195,"0000"),G10RPassingR!$A$2:$S$200,4,FALSE),0) -> 0
A196: 4171 | B196: ORCHARD VILLA ELEMENTARY | C196: 465 | D196: 81 | E196: 79 | F196: 57 | G196: 76 | H196: 60 | I196: 52 | Q196: 60 | R196: =N196-IFERROR(VLOOKUP(TEXT(A196,"0000"),G10RPassingR!$A$2:$S$200,4,FALSE),0) -> 0
A197: 4221 | B197: PALMETTO ELEMENTARY | C197: 616 | D197: 74 | E197: 104 | F197: 80 | G197: 113 | H197: 99 | I197: 101 | Q197: 45 | R197: =N197-IFERROR(VLOOKUP(TEXT(A197,"0000"),G10RPassingR!$A$2:$S$200,4,FALSE),0) -> 0
A198: 4241 | B198: PALM LAKES ELEMENTARY | C198: 876 | D198: 96 | E198: 140 | F198: 126 | G198: 157 | H198: 137 | I198: 171 | Q198: 49 | R198: =N198-IFERROR(VLOOKUP(TEXT(A198,"0000"),G10RPassingR!$A$2:$S$200,4,FALSE),0) -> 0
A199: 4261 | B199: PALM SPRINGS ELEMENTARY | C199: 724 | D199: 93 | E199: 116 | F199: 111 | G199: 121 | H199: 125 | I199: 119 | Q199: 39 | R199: =N199-IFERROR(VLOOKUP(TEXT(A199,"0000"),G10RPassingR!$A$2:$S$200,4,FALSE),0) -> 0
A200: 4281 | B200: PALM SPRINGS NORTH ELEMENTARY | C200: 1016 | D200: 167 | E200: 141 | F200: 173 | G200: 160 | H200: 187 | I200: 160 | Q200: 28 | R200: =N200-IFERROR(VLOOKUP(TEXT(A200,"0000"),G10RPassingR!$A$2:$S$200,4,FALSE),0) -> 0
... 273 more rows

Sheet G10RPassingR (hidden)
A1: SCHOOL_NUMBER | B1: STUDENT_GRADE | C1: FCAT_READ_PASS_FAIL | D1: Total Of STUDENT_ID | E1: NoLevel | F1: L2 | G1: L3 | H1: L4 | I1: L5 | J1: B | K1: W | L1: H | M1: A | N1: I | O1: 2 | P1: 3 | Q1: PPR | R1: Y | S1: SWD
A2: 7022 | B2: 10 | C2: P | D2: 1 | E2: 0 | F2: 0 | G2: 1 | H2: 0 | I2: 0 | J2: 0 | K2: 0 | L2: 1 | M2: 0 | N2: 0 | O2: 1 | P2: 0 | Q2: 0 | R2: 0 | S2: 0
A3: 7048 | B3: 10 | C3: P | D3: 1 | E3: 0 | F3: 0 | G3: 0 | H3: 1 | I3: 0 | J3: 0 | K3: 1 | L3: 0 | M3: 0 | N3: 0 | O3: 0 | P3: 0 | Q3: 0 | R3: 0 | S3: 0
A4: 7049 | B4: 10 | C4: P | D4: 2 | E4: 0 | F4: 0 | G4: 2 | H4: 0 | I4: 0 | J4: 0 | K4: 0 | L4: 2 | M4: 0 | N4: 0 | O4: 1 | P4: 1 | Q4: 1 | R4: 0 | S4: 0
A5: 7051 | B5: 10 | C5: P | D5: 4 | E5: 0 | F5: 0 | G5: 3 | H5: 1 | I5: 0 | J5: 1 | K5: 0 | L5: 3 | M5: 0 | N5: 0 | O5: 4 | P5: 0 | Q5: 0 | R5: 0 | S5: 0
A6: 7062 | B6: 10 | C6: P | D6: 4 | E6: 0 | F6: 0 | G6: 2 | H6: 2 | I6: 0 | J6: 0 | K6: 1 | L6: 3 | M6: 0 | N6: 0 | O6: 2 | P6: 0 | Q6: 0 | R6: 0 | S6: 0
A7: 7065 | B7: 10 | C7: P | D7: 1 | E7: 0 | F7: 0 | G7: 1 | H7: 0 | I7: 0 | J7: 0 | K7: 0 | L7: 1 | M7: 0 | N7: 0 | O7: 1 | P7: 0 | Q7: 0 | R7: 0 | S7: 1
A8: 7067 | B8: 10 | C8: P | D8: 6 | E8: 0 | F8: 3 | G8: 2 | H8: 1 | I8: 0 | J8: 0 | K8: 0 | L8: 6 | M8: 0 | N8: 0 | O8: 5 | P8: 0 | Q8: 0 | R8: 0 | S8: 0
A9: 7068 | B9: 10 | C9: P | D9: 1 | E9: 0 | F9: 0 | G9: 0 | H9: 1 | I9: 0 | J9: 0 | K9: 0 | L9: 1 | M9: 0 | N9: 0 | O9: 0 | P9: 0 | Q9: 0 | R9: 0 | S9: 0
A10: 7121 | B10: 10 | C10: P | D10: 2 | E10: 0 | F10: 0 | G10: 1 | H10: 1 | I10: 0 | J10: 0 | K10: 0 | L10: 2 | M10: 0 | N10: 0 | O10: 2 | P10: 0 | Q10: 0 | R10: 0 | S10: 0
A11: 7131 | B11: 10 | C11: P | D11: 1 | E11: 0 | F11: 0 | G11: 1 | H11: 0 | I11: 0 | J11: 0 | K11: 0 | L11: 1 | M11: 0 | N11: 0 | O11: 0 | P11: 0 | Q11: 0 | R11: 1 | S11: 0
A12: 7141 | B12: 10 | C12: P | D12: 18 | E12: 0 | F12: 0 | G12: 13 | H12: 5 | I12: 0 | J12: 9 | K12: 1 | L12: 8 | M12: 0 | N12: 0 | O12: 9 | P12: 3 | Q12: 0 | R12: 1 | S12: 2
A13: 7151 | B13: 10 | C13: P | D13: 2 | E13: 0 | F13: 0 | G13: 1 | H13: 1 | I13: 0 | J13: 0 | K13: 0 | L13: 2 | M13: 0 | N13: 0 | O13: 2 | P13: 0 | Q13: 1 | R13: 0 | S13: 0
A14: 7201 | B14: 10 | C14: P | D14: 1 | E14: 0 | F14: 0 | G14: 0 | H14: 1 | I14: 0 | J14: 0 | K14: 1 | L14: 0 | M14: 0 | N14: 0 | O14: 0 | P14: 0 | Q14: 0 | R14: 0 | S14: 0
A15: 7241 | B15: 10 | C15: P | D15: 2 | E15: 0 | F15: 0 | G15: 1 | H15: 1 | I15: 0 | J15: 0 | K15: 0 | L15: 2 | M15: 0 | N15: 0 | O15: 0 | P15: 0 | Q15: 0 | R15: 0 | S15: 0
A16: 7251 | B16: 10 | C16: P | D16: 1 | E16: 0 | F16: 0 | G16: 1 | H16: 0 | I16: 0 | J16: 0 | K16: 0 | L16: 1 | M16: 0 | N16: 0 | O16: 1 | P16: 0 | Q16: 0 | R16: 0 | S16: 0
A17: 7361 | B17: 10 | C17: P | D17: 6 | E17: 0 | F17: 0 | G17: 6 | H17: 0 | I17: 0 | J17: 0 | K17: 1 | L17: 5 | M17: 0 | N17: 0 | O17: 4 | P17: 1 | Q17: 0 | R17: 0 | S17: 0
A18: 7391 | B18: 10 | C18: P | D18: 1 | E18: 0 | F18: 0 | G18: 1 | H18: 0 | I18: 0 | J18: 1 | K18: 0 | L18: 0 | M18: 0 | N18: 0 | O18: 1 | P18: 0 | Q18: 0 | R18: 0 | S18: 0
A19: 7461 | B19: 10 | C19: P | D19: 9 | E19: 0 | F19: 0 | G19: 9 | H19: 0 | I19: 0 | J19: 1 | K19: 0 | L19: 8 | M19: 0 | N19: 0 | O19: 8 | P19: 0 | Q19: 0 | R19: 0 | S19: 4
A20: 7701 | B20: 10 | C20: P | D20: 10 | E20: 0 | F20: 0 | G20: 7 | H20: 2 | I20: 1 | J20: 1 | K20: 2 | L20: 7 | M20: 0 | N20: 0 | O20: 9 | P20: 0 | Q20: 0 | R20: 0 | S20: 0
A21: 7751 | B21: 10 | C21: P | D21: 4 | E21: 0 | F21: 0 | G21: 1 | H21: 2 | I21: 1 | J21: 0 | K21: 0 | L21: 4 | M21: 0 | N21: 0 | O21: 3 | P21: 0 | Q21: 0 | R21: 0 | S21: 0
A22: 7781 | B22: 10 | C22: P | D22: 9 | E22: 0 | F22: 0 | G22: 3 | H22: 4 | I22: 2 | J22: 0 | K22: 0 | L22: 9 | M22: 0 | N22: 0 | O22: 5 | P22: 2 | Q22: 0 | R22: 0 | S22: 0
A23: 7791 | B23: 10 | C23: P | D23: 1 | E23: 0 | F23: 0 | G23: 1 | H23: 0 | I23: 0 | J23: 0 | K23: 0 | L23: 1 | M23: 0 | N23: 0 | O23: 1 | P23: 0 | Q23: 0 | R23: 0 | S23: 0
A24: 9999 | B24: 10 | C24: P | D24: =SUM(D2:D23) -> 87 | E24: =SUM(E2:E23) -> 0 | F24: 3 | G24: 57 | H24: 23 | I24: 4 | J24: 13 | K24: 7 | L24: 67 | M24: 0 | N24: 0 | O24: 59 | P24: 7 | Q24: 2 | R24: 2 | S24: 7
A25: 1 | B25: 2 | C25: 3 | D25: 4 | E25: 5 | F25: 6 | G25: 7 | H25: 8 | I25: 9 | J25: 10 | K25: 11 | L25: 12 | M25: 13 | N25: 14 | O25: 15 | P25: 16 | Q25: 17 | R25: 18 | S25: 19
A45: 1 | B45: 2 | C45: 3 | D45: 4 | E45: 5 | F45: 6 | G45: 7 | H45: 8 | I45: 9 | J45: 10 | K45: 11 | L45: 12 | M45: 13 | N45: 14 | O45: 15 | P45: 16 | Q45: 17 | R45: 18 | S45: 19

Sheet MEM_RL1 (hidden)
A1: 1 | B1: 2 | C1: 3 | D1: 4 | E1: 5 | F1: 6 | G1: 7 | H1: 8 | I1: 9 | J1: 10 | K1: 11
A2: S_SCHOOL_NUM | B2: S_SCHL_NAME | C2: Total Of STUDENT_ID | D2: 03 | E2: 04 | F2: 05 | G2: 06 | H2: 07 | I2: 08 | J2: 09 | K2: 10
A3: 0041 | B3: AIR BASE ELEMENTARY | C3: 6 | D3: 2 | E3: 1 | F3: 3
A4: 0070 | B4: CORAL REEF MONTESSORI ACAD CH | C4: 4 | D4: 2 | E4: 1 | F4: 1
A5: 0071 | B5: EUGENIA B. THOMAS K-8 CENTER | C5: 79 | D5: 9 | E5: 17 | F5: 9 | G5: 15 | H5: 13 | I5: 16
A6: 0072 | B6: SUMMERVILLE CHARTER SCHOOL | C6: 22 | D6: 2 | E6: 8 | F6: 12
A7: 0073 | B7: MANDARIN LAKES K-8 CENTER | C7: 180 | D7: 31 | E7: 23 | F7: 24 | G7: 41 | H7: 22 | I7: 39
A8: 0081 | B8: LENORA B. SMITH ELEMENTARY | C8: 48 | D8: 8 | E8: 18 | F8: 22
A9: 0091 | B9: BOB GRAHAM EDUCATION CTR | C9: 102 | D9: 5 | E9: 10 | F9: 17 | G9: 23 | H9: 25 | I9: 22
A10: 0092 | B10: NORMAN S. EDELCUP/SUNNY ISLES | C10: 78 | D10: 2 | E10: 17 | F10: 11 | G10: 10 | H10: 13 | I10: 25
A11: 0100 | B11: MATER ACADEMY | C11: 17 | D11: 8 | E11: 3 | F11: 6
A12: 0101 | B12: ARCOLA LAKE ELEMENTARY | C12: 46 | D12: 14 | E12: 16 | F12: 16
A13: 0102 | B13: MIAMI COMMUNITY CHARTER SCHOOL | C13: 40 | D13: 6 | E13: 19 | F13: 15
A14: 0111 | B14: MAYA ANGELOU ELEMENTARY | C14: 54 | D14: 16 | E14: 19 | F14: 19
A15: 0121 | B15: AUBURNDALE ELEMENTARY | C15: 55 | D15: 4 | E15: 19 | F15: 32
A16: 0122 | B16: DR ROLANDO ESPINOSA K-8 | C16: 114 | D16: 7 | E16: 21 | F16: 15 | G16: 30 | H16: 22 | I16: 19
A17: 0125 | B17: NORMA BUTLER BOSSARD ELEM | C17: 42 | D17: 10 | E17: 13 | F17: 19
A18: 0161 | B18: AVOCADO ELEMENTARY | C18: 22 | D18: 22
A19: 0201 | B19: BANYAN ELEMENTARY | C19: 5 | E19: 1 | F19: 4
A20: 0211 | B20: DR. MANUEL C. BARREIRO ELEM | C20: 35 | D20: 5 | E20: 17 | F20: 13
A21: 0231 | B21: AVENTURA WATERWAYS K-8 CENTER | C21: 110 | D21: 18 | E21: 15 | F21: 25 | G21: 15 | H21: 20 | I21: 17
A22: 0241 | B22: RUTH K BROAD/BAY HARBOR K-8 | C22: 57 | D22: 5 | E22: 8 | F22: 11 | G22: 14 | H22: 7 | I22: 12
A23: 0251 | B23: ETHEL KOGER BECKHAM ELEMENTARY | C23: 10 | D23: 1 | E23: 6 | F23: 3
A24: 0261 | B24: BEL-AIRE ELEMENTARY | C24: 42 | D24: 8 | E24: 13 | F24: 21
A25: 0271 | B25: BENT TREE ELEMENTARY | C25: 21 | D25: 4 | E25: 7 | F25: 10
A26: 0311 | B26: GOULDS ELEMENTARY | C26: 44 | D26: 10 | E26: 20 | F26: 14
A27: 0312 | B27: MATER GARDENS ACADEMY | C27: 5 | D27: 1 | E27: 4
A28: 0321 | B28: BISCAYNE ELEMENTARY | C28: 55 | D28: 15 | E28: 19 | F28: 21
A29: 0332 | B29: SOMERSET ACADEMY(SILVER PALMS) | C29: 56 | D29: 2 | E29: 5 | F29: 4 | G29: 14 | H29: 18 | I29: 13
A30: 0339 | B30: SOMERSET ACADEMY CHARTER ELEM | C30: 11 | D30: 1 | E30: 4 | F30: 6
A31: 0341 | B31: ARCH CREEK ELEMENTARY SCHOOL | C31: 42 | D31: 7 | E31: 23 | F31: 12
A32: 0342 | B32: PINECREST ACADEMY SOUTH CAMPUS | C32: 13 | D32: 2 | E32: 7 | F32: 4
A33: 0361 | B33: BISCAYNE GARDENS ELEMENTARY | C33: 46 | D33: 10 | E33: 16 | F33: 20
A34: 0400 | B34: RENAISSANCE ELEMENTARY CHARTER | C34: 15 | D34: 1 | E34: 13 | F34: 1
A35: 0401 | B35: VAN E. BLANTON ELEMENTARY | C35: 46 | D35: 18 | E35: 9 | F35: 19
A36: 0410 | B36: ACADEMIR CHARTER SCHOOL WEST | C36: 6 | E36: 4 | F36: 2
A37: 0441 | B37: BLUE LAKES ELEMENTARY | C37: 18 | D37: 1 | E37: 11 | F37: 6
A38: 0451 | B38: BOWMAN ASHE/DOOLIN K-8 ACAD | C38: 172 | D38: 3 | E38: 16 | F38: 10 | G38: 37 | H38: 53 | I38: 53
A39: 0461 | B39: BRENTWOOD ELEMENTARY | C39: 59 | D39: 18 | E39: 19 | F39: 22
A40: 0481 | B40: JAMES H. BRIGHT/JW JOHNSON ES | C40: 74 | D40: 15 | E40: 21 | F40: 38
A41: 0510 | B41: ARCHIMEDEAN ACADEMY | C41: 3 | E41: 2 | F41: 1
A42: 0520 | B42: SOMERSET ACADEMY | C42: 7 | D42: 1 | E42: 4 | F42: 2
A43: 0521 | B43: BROADMOOR ELEMENTARY | C43: 40 | D43: 5 | E43: 17 | F43: 18
A44: 0561 | B44: W.J. BRYAN ELEMENTARY | C44: 46 | D44: 15 | E44: 15 | F44: 16
A45: 0600 | B45: PINECREST PREP ACADEMY | C45: 6 | E45: 5 | F45: 1
A46: 0641 | B46: BUNCHE PARK ELEMENTARY | C46: 25 | D46: 4 | E46: 10 | F46: 11
A47: 0651 | B47: CAMPBELL DRIVE K-8 CENTER | C47: 85 | D47: 14 | E47: 18 | F47: 21 | G47: 15 | H47: 17
A48: 0661 | B48: CARIBBEAN ELEMENTARY | C48: 45 | D48: 12 | E48: 16 | F48: 17
A49: 0671 | B49: CALUSA ELEMENTARY | C49: 20 | D49: 4 | E49: 7 | F49: 9
A50: 0681 | B50: CAROL CITY ELEMENTARY | C50: 63 | D50: 11 | E50: 30 | F50: 22
A51: 0721 | B51: GEORGE WASHINGTON CARVER ELEM | C51: 39 | D51: 7 | E51: 13 | F51: 19
A52: 0761 | B52: FIENBERG/FISHER K-8 CENTER | C52: 95 | D52: 6 | E52: 18 | F52: 17 | G52: 24 | H52: 17 | I52: 13
A53: 0771 | B53: WILLIAM A. CHAPMAN ELEMENTARY | C53: 27 | D53: 10 | E53: 6 | F53: 11
A54: 0801 | B54: CITRUS GROVE ELEMENTARY | C54: 98 | D54: 17 | E54: 40 | F54: 41
A55: 0831 | B55: CLAUDE PEPPER ELEMENTARY | C55: 30 | D55: 4 | E55: 16 | F55: 10
A56: 0841 | B56: COCONUT GROVE ELEMENTARY | C56: 12 | E56: 10 | F56: 2
A57: 0861 | B57: COLONIAL DRIVE ELEMENTARY | C57: 15 | D57: 4 | E57: 5 | F57: 6
A58: 0881 | B58: COMSTOCK ELEMENTARY | C58: 45 | D58: 9 | E58: 20 | F58: 16
A59: 0950 | B59: AVENTURA CITY OF EXCELLENCE | C59: 6 | D59: 1 | G59: 1 | H59: 2 | I59: 2
A60: 0961 | B60: CORAL GABLES PREPARATORY ACAD | C60: 19 | E60: 4 | F60: 3 | G60: 6 | H60: 5 | I60: 1
A61: 1001 | B61: CORAL PARK ELEMENTARY | C61: 28 | E61: 12 | F61: 16
A62: 1010 | B62: CHARTER SCHOOL AT WATERSTONE | C62: 22 | E62: 12 | F62: 10
A63: 1014 | B63: ADVANCED LEARNING CHARTER SCH | C63: 26 | D63: 5 | E63: 16 | F63: 5
A64: 1017 | B64: MATER ACADEMY OF INTL STUDIES | C64: 19 | D64: 3 | E64: 7 | F64: 9
A65: 1020 | B65: YOUTH CO-OP CHARTER SCHOOL | C65: 33 | D65: 4 | E65: 3 | F65: 4 | G65: 7 | H65: 10 | I65: 5
A66: 1041 | B66: CORAL REEF ELEMENTARY | C66: 25 | D66: 3 | E66: 9 | F66: 13
A67: 1081 | B67: CORAL TERRACE ELEMENTARY | C67: 44 | D67: 6 | E67: 16 | F67: 22
A68: 1121 | B68: CORAL WAY K-8 CENTER | C68: 146 | D68: 7 | E68: 29 | F68: 30 | G68: 35 | H68: 28 | I68: 17
A69: 1161 | B69: CRESTVIEW ELEMENTARY | C69: 43 | D69: 7 | E69: 15 | F69: 21
A70: 1241 | B70: CUTLER RIDGE ELEMENTARY | C70: 43 | D70: 5 | E70: 18 | F70: 20
A71: 1281 | B71: CYPRESS ELEMENTARY | C71: 9 | E71: 5 | F71: 4
A72: 1331 | B72: DEVON AIRE K-8 CENTER | C72: 64 | D72: 2 | E72: 7 | F72: 6 | G72: 17 | H72: 20 | I72: 12
A73: 1361 | B73: FREDERICK DOUGLASS ELEMENTARY | C73: 35 | D73: 12 | E73: 11 | F73: 12
A74: 1371 | B74: MARJORY STONEMAN DOUGLAS ELEM | C74: 62 | D74: 16 | E74: 25 | F74: 21
A75: 1401 | B75: CHARLES R. DREW K-8 CENTER | C75: 36 | D75: 4 | E75: 4 | F75: 19 | G75: 9
A76: 1441 | B76: PAUL LAURENCE DUNBAR K-8 CTR | C76: 57 | D76: 7 | E76: 12 | F76: 25 | G76: 13
A77: 1481 | B77: JOHN G. DUPUIS ELEMENTARY | C77: 34 | D77: 2 | E77: 14 | F77: 18
A78: 1521 | B78: AMELIA EARHART ELEMENTARY | C78: 36 | D78: 13 | E78: 11 | F78: 12
A79: 1561 | B79: EARLINGTON HEIGHTS ELEMENTARY | C79: 52 | D79: 3 | E79: 25 | F79: 24
A80: 1601 | B80: EDISON PARK K-8 CENTER | C80: 42 | D80: 10 | E80: 10 | F80: 13 | G80: 9
A81: 1641 | B81: EMERSON ELEMENTARY | C81: 18 | D81: 6 | E81: 5 | F81: 7
A82: 1681 | B82: LILLIE C. EVANS K-8 CENTER | C82: 62 | D82: 5 | E82: 24 | F82: 7 | G82: 16 | H82: 7 | I82: 3
A83: 1691 | B83: CHRISTINA M. EVE ELEMENTARY | C83: 12 | D83: 1 | E83: 5 | F83: 6
A84: 1721 | B84: EVERGLADES K-8 CENTER | C84: 82 | D84: 3 | E84: 10 | F84: 8 | G84: 9 | H84: 30 | I84: 22
A85: 1761 | B85: DAVID FAIRCHILD ELEMENTARY | C85: 10 | D85: 1 | E85: 2 | F85: 7
A86: 1801 | B86: FAIRLAWN ELEMENTARY | C86: 39 | D86: 2 | E86: 17 | F86: 20
A87: 1811 | B87: DANTE B. FASCELL ELEMENTARY | C87: 16 | E87: 9 | F87: 7
A88: 1841 | B88: FLAGAMI ELEMENTARY | C88: 38 | D88: 2 | E88: 15 | F88: 21
A89: 1881 | B89: HENRY M. FLAGLER ELEMENTARY | C89: 59 | D89: 11 | E89: 27 | F89: 21
A90: 1921 | B90: FLAMINGO ELEMENTARY | C90: 87 | D90: 20 | E90: 33 | F90: 34
A91: 2001 | B91: FLORIDA CITY ELEMENTARY | C91: 76 | D91: 9 | E91: 36 | F91: 31
A92: 2003 | B92: BRIDGEPOINT ACADEMY | C92: 6 | D92: 1 | E92: 3 | F92: 2
A93: 2006 | B93: RICHARD ALLEN LEADERSHIP ACAD | C93: 5 | E93: 4 | F93: 1
A94: 2007 | B94: SOMERSET ACADEMY ELEMENTARY | C94: 3 | E94: 1 | F94: 2
A95: 2012 | B95: SOMERSET ARTS ACADEMY | C95: 12 | D95: 1 | E95: 9 | F95: 2
A96: 2013 | B96: BRIDGEPOINT ACAD GREATER MIAMI | C96: 9 | E96: 4 | F96: 5
A97: 2021 | B97: GLORIA FLOYD ELEMENTARY | C97: 24 | D97: 8 | E97: 6 | F97: 10
A98: 2041 | B98: BENJAMIN FRANKLIN K-8 CENTER | C98: 63 | D98: 5 | E98: 11 | F98: 15 | G98: 20 | H98: 12
A99: 2060 | B99: GIBSON CHARTER SCHOOL | C99: 49 | D99: 3 | E99: 6 | F99: 10 | G99: 13 | H99: 7 | I99: 10
A100: 2081 | B100: FULFORD ELEMENTARY | C100: 53 | D100: 12 | E100: 21 | F100: 20
A101: 2111 | B101: HIALEAH GARDENS ELEMENTARY | C101: 34 | D101: 8 | E101: 19 | F101: 7
A102: 2151 | B102: JACK D. GORDON ELEMENTARY | C102: 41 | D102: 8 | E102: 22 | F102: 11
A103: 2161 | B103: GOLDEN GLADES ELEMENTARY | C103: 28 | D103: 6 | E103: 13 | F103: 9
A104: 2181 | B104: JOELLA C. GOOD ELEMENTARY | C104: 60 | D104: 9 | E104: 23 | F104: 28
A105: 2191 | B105: SPANISH LAKE ELEMENTARY | C105: 65 | D105: 9 | E105: 25 | F105: 31
A106: 2241 | B106: GRATIGNY ELEMENTARY | C106: 78 | D106: 14 | E106: 17 | F106: 26 | G106: 21
A107: 2261 | B107: GREENGLADE ELEMENTARY | C107: 18 | E107: 11 | F107: 7
A108: 2281 | B108: GREYNOLDS PARK ELEMENTARY | C108: 68 | D108: 14 | E108: 24 | F108: 30
A109: 2321 | B109: GULFSTREAM ELEMENTARY | C109: 27 | D109: 6 | E109: 7 | F109: 14
A110: 2331 | B110: CHARLES R. HADLEY ELEMENTARY | C110: 32 | D110: 3 | E110: 14 | F110: 15
A111: 2341 | B111: JOE HALL ELEMENTARY | C111: 33 | D111: 4 | E111: 13 | F111: 16
A112: 2351 | B112: ENEIDA MASSAS HARTNER ELEM | C112: 40 | D112: 12 | E112: 15 | F112: 13
A113: 2361 | B113: HIALEAH ELEMENTARY | C113: 52 | D113: 6 | E113: 20 | F113: 26
A114: 2371 | B114: WEST HIALEAH GARDENS ELEM | C114: 58 | D114: 12 | E114: 22 | F114: 24
A115: 2401 | B115: HIBISCUS ELEMENTARY | C115: 34 | D115: 8 | E115: 10 | F115: 16
A116: 2441 | B116: VIRGINIA A BOONE/HIGHLAND OAKS | C116: 20 | D116: 1 | E116: 12 | F116: 7
A117: 2501 | B117: HOLMES ELEMENTARY | C117: 67 | D117: 22 | E117: 19 | F117: 26
A118: 2511 | B118: ZORA NEALE HURSTON ELEMENTARY | C118: 34 | D118: 4 | E118: 19 | F118: 11
A119: 2521 | B119: OLIVER HOOVER ELEMENTARY | C119: 26 | D119: 4 | E119: 12 | F119: 10
A120: 2541 | B120: HOWARD DRIVE ELEMENTARY | C120: 27 | D120: 3 | E120: 14 | F120: 10
A121: 2581 | B121: MADIE IVES ELEMENTARY | C121: 41 | D121: 11 | E121: 12 | F121: 18
A122: 2641 | B122: KENDALE ELEMENTARY | C122: 8 | D122: 1 | E122: 4 | F122: 3
A123: 2651 | B123: KENDALE LAKES ELEMENTARY | C123: 21 | D123: 6 | E123: 11 | F123: 4
A124: 2661 | B124: KENSINGTON PARK ELEMENTARY | C124: 118 | D124: 28 | E124: 47 | F124: 43
A125: 2701 | B125: KENWOOD K-8 CENTER | C125: 68 | D125: 7 | E125: 7 | F125: 11 | G125: 20 | H125: 8 | I125: 15
A126: 2741 | B126: KEY BISCAYNE K-8 CENTER | C126: 31 | D126: 3 | E126: 6 | F126: 5 | G126: 6 | H126: 5 | I126: 6
A127: 2781 | B127: KINLOCH PARK ELEMENTARY | C127: 73 | D127: 11 | E127: 18 | F127: 44
A128: 2801 | B128: LAKE STEVENS ELEMENTARY | C128: 24 | D128: 4 | E128: 10 | F128: 10
A129: 2821 | B129: LAKEVIEW ELEMENTARY | C129: 46 | D129: 12 | E129: 12 | F129: 22
A130: 2881 | B130: LEEWOOD K-8 CENTER | C130: 22 | E130: 5 | F130: 6 | G130: 9 | H130: 2
A131: 2891 | B131: WILLIAM LEHMAN ELEMENTARY | C131: 16 | D131: 2 | E131: 10 | F131: 4
A132: 2901 | B132: LEISURE CITY K-8 CENTER | C132: 170 | D132: 17 | E132: 27 | F132: 31 | G132: 28 | H132: 37 | I132: 30
A133: 2911 | B133: LINDA LENTIN K-8 CENTER | C133: 145 | D133: 12 | E133: 19 | F133: 42 | G133: 26 | H133: 23 | I133: 23
A134: 2941 | B134: LAURA C. SAUNDERS ELEMENTARY | C134: 77 | D134: 23 | E134: 25 | F134: 29
A135: 2981 | B135: LIBERTY CITY ELEMENTARY | C135: 46 | D135: 4 | E135: 25 | F135: 17
A136: 3021 | B136: JESSE J MCCRARY JR ELEMENTARY | C136: 55 | D136: 19 | E136: 21 | F136: 15
A137: 3024 | B137: FLORIDA INTERNATIONAL EL ACAD | C137: 58 | D137: 18 | E137: 21 | F137: 19
A138: 3025 | B138: ADVANTAGE ACADEMY SANTA FE | C138: 4 | E138: 4
A139: 3029 | B139: DORAL ACADEMY OF TECHNOLOGY | C139: 2 | G139: 2
A140: 3030 | B140: DORAL ACADEMY | C140: 13 | D140: 1 | E140: 9 | F140: 3
A141: 3032 | B141: PALM GLADES PREPATORY ACADEMY | C141: 82 | G141: 33 | H141: 25 | I141: 24
A142: 3034 | B142: BRIDGEPOINT ACAD VILLAGE GREEN | C142: 3 | E142: 2 | F142: 1
A143: 3035 | B143: RAMZ ACADEMY ELEM MIAMI CAMPUS | C143: 3 | D143: 1 | E143: 1 | F143: 1
A144: 3041 | B144: LORAH PARK ELEMENTARY | C144: 29 | D144: 10 | E144: 8 | F144: 11
A145: 3051 | B145: TOUSSAINT L'OUVERTURE ELEM | C145: 52 | D145: 14 | E145: 23 | F145: 15
A146: 3061 | B146: LUDLAM ELEMENTARY | C146: 13 | E146: 3 | F146: 10
A147: 3100 | B147: MATER ACADEMY EAST CHARTER | C147: 6 | D147: 4 | E147: 1 | F147: 1
A148: 3101 | B148: FRANK C. MARTIN K-8 CENTER | C148: 14 | E148: 3 | F148: 3 | G148: 3 | H148: 1 | I148: 4
A149: 3111 | B149: WESLEY MATTHEWS ELEMENTARY | C149: 15 | E149: 6 | F149: 9
A150: 3141 | B150: MEADOWLANE ELEMENTARY | C150: 89 | D150: 12 | E150: 25 | F150: 52
A151: 3181 | B151: MELROSE ELEMENTARY | C151: 39 | D151: 5 | E151: 16 | F151: 18
A152: 3191 | B152: ADA MERRITT K-8 CENTER | C152: 7 | E152: 2 | F152: 1 | G152: 2 | H152: 2
A153: 3241 | B153: MIAMI GARDENS ELEMENTARY | C153: 28 | D153: 6 | E153: 8 | F153: 14
A154: 3261 | B154: MIAMI HEIGHTS ELEMENTARY | C154: 58 | D154: 15 | E154: 26 | F154: 17
A155: 3281 | B155: MIAMI LAKES K-8 CENTER | C155: 84 | D155: 5 | E155: 12 | F155: 15 | G155: 16 | H155: 17 | I155: 19
A156: 3301 | B156: MIAMI PARK ELEMENTARY | C156: 54 | D156: 15 | E156: 19 | F156: 20
A157: 3341 | B157: MIAMI SHORES ELEMENTARY | C157: 32 | D157: 15 | E157: 7 | F157: 10
A158: 3381 | B158: MIAMI SPRINGS ELEMENTARY | C158: 26 | D158: 4 | E158: 8 | F158: 14
A159: 3421 | B159: M.A. MILAM K-8 CENTER | C159: 123 | D159: 9 | E159: 18 | F159: 17 | G159: 18 | H159: 30 | I159: 31
A160: 3431 | B160: PHYLLIS RUTH MILLER ELEMENTARY | C160: 38 | D160: 5 | E160: 16 | F160: 17
A161: 3501 | B161: MORNINGSIDE K-8 ACADEMY | C161: 32 | D161: 7 | E161: 8 | F161: 12 | G161: 5
A162: 3541 | B162: ROBERT RUSSA MOTON ELEMENTARY | C162: 23 | D162: 8 | E162: 9 | F162: 6
A163: 3581 | B163: MYRTLE GROVE K-8 CENTER | C163: 47 | D163: 8 | E163: 13 | F163: 17 | G163: 9
A164: 3600 | B164: DOWNTOWN MIAMI CHARTER SCHOOL | C164: 34 | D164: 3 | E164: 6 | F164: 12 | G164: 13
A165: 3610 | B165: KEYS GATE CHARTER SCHOOL | C165: 189 | D165: 13 | E165: 19 | F165: 23 | G165: 27 | H165: 60 | I165: 47
A166: 3621 | B166: COCONUT PALM K-8 ACADEMY | C166: 153 | D166: 18 | E166: 30 | F166: 29 | G166: 33 | H166: 24 | I166: 19
A167: 3661 | B167: NATURAL BRIDGE ELEMENTARY | C167: 55 | D167: 8 | E167: 24 | F167: 23
A168: 3701 | B168: NORLAND ELEMENTARY | C168: 37 | D168: 7 | E168: 9 | F168: 21
A169: 3741 | B169: NORTH BEACH ELEMENTARY | C169: 10 | D169: 2 | E169: 3 | F169: 5
A170: 3781 | B170: BARBARA HAWKINS ELEMENTARY | C170: 23 | D170: 6 | E170: 4 | F170: 13
A171: 3821 | B171: NORTH COUNTY K-8 CENTER | C171: 45 | D171: 8 | E171: 6 | F171: 9 | G171: 13 | H171: 9
A172: 3861 | B172: NORTH GLADE ELEMENTARY | C172: 31 | D172: 5 | E172: 16 | F172: 10
A173: 3901 | B173: NORTH HIALEAH ELEMENTARY | C173: 46 | D173: 13 | E173: 22 | F173: 11
A174: 3941 | B174: NORTH MIAMI ELEMENTARY | C174: 60 | D174: 15 | E174: 30 | F174: 15
A175: 3981 | B175: NORTH TWIN LAKES ELEMENTARY | C175: 31 | D175: 6 | E175: 14 | F175: 11
A176: 4000 | B176: MIAMI CHILDREN'S MUSEUM | C176: 4 | F176: 4
A177: 4001 | B177: NORWOOD ELEMENTARY | C177: 23 | D177: 6 | E177: 9 | F177: 8
A178: 4012 | B178: SOMERSET ACAD AT SILVER PALMS | C178: 12 | D178: 1 | E178: 7 | F178: 4
A179: 4021 | B179: OAK GROVE ELEMENTARY | C179: 74 | D179: 11 | E179: 19 | F179: 25 | G179: 19
A180: 4031 | B180: GATEWAY ENVIRONMENTAL K-8 | C180: 141 | D180: 20 | E180: 36 | F180: 26 | G180: 30 | H180: 29
A181: 4061 | B181: OJUS ELEMENTARY | C181: 31 | D181: 8 | E181: 9 | F181: 14
A182: 4071 | B182: OLINDA ELEMENTARY | C182: 29 | D182: 6 | E182: 16 | F182: 7
A183: 4091 | B183: OLYMPIA HEIGHTS ELEMENTARY | C183: 18 | D183: 3 | E183: 9 | F183: 6
A184: 4121 | B184: DR. ROBERT B. INGRAM EL | C184: 28 | D184: 10 | E184: 11 | F184: 7
A185: 4171 | B185: ORCHARD VILLA ELEMENTARY | C185: 39 | D185: 5 | E185: 18 | F185: 16
A186: 4221 | B186: PALMETTO ELEMENTARY | C186: 15 | D186: 3 | E186: 7 | F186: 5
A187: 4241 | B187: PALM LAKES ELEMENTARY | C187: 64 | D187: 10 | E187: 22 | F187: 32
A188: 4261 | B188: PALM SPRINGS ELEMENTARY | C188: 53 | D188: 11 | E188: 26 | F188: 16
A189: 4281 | B189: PALM SPRINGS NORTH ELEMENTARY | C189: 37 | D189: 3 | E189: 18 | F189: 16
A190: 4301 | B190: PARKVIEW ELEMENTARY | C190: 21 | D190: 9 | E190: 5 | F190: 7
A191: 4341 | B191: PARKWAY ELEMENTARY | C191: 17 | D191: 2 | E191: 8 | F191: 7
A192: 4381 | B192: DR HENRY E PERRINE ACADEMY | C192: 33 | E192: 21 | F192: 12
A193: 4391 | B193: IRVING & BEATRICE PESKOE K-8 | C193: 81 | D193: 14 | E193: 17 | F193: 17 | G193: 19 | H193: 14
A194: 4401 | B194: KELSEY L. PHARR ELEMENTARY | C194: 34 | D194: 10 | E194: 13 | F194: 11
A195: 4421 | B195: PINECREST ELEMENTARY | C195: 16 | D195: 3 | E195: 8 | F195: 5
A196: 4441 | B196: PINE LAKE ELEMENTARY | C196: 49 | D196: 15 | E196: 16 | F196: 18
A197: 4461 | B197: PINE VILLA ELEMENTARY | C197: 30 | D197: 4 | E197: 18 | F197: 8
A198: 4491 | B198: HENRY E.S. REEVES ELEMENTARY | C198: 76 | D198: 23 | E198: 38 | F198: 15
A199: 4501 | B199: POINCIANA PARK ELEMENTARY | C199: 50 | D199: 16 | E199: 19 | F199: 15
A200: 4511 | B200: DR GILBERT L. PORTER ELEM | C200: 37 | D200: 5 | E200: 18 | F200: 14
... 245 more rows

Sheet MEM_RL2 (hidden)
A1: 1 | B1: 2 | C1: 3 | D1: 4 | E1: 5 | F1: 6 | G1: 7 | H1: 8 | I1: 9 | J1: 10 | K1: 11
A2: S_SCHOOL_NUM | B2: S_SCHL_NAME | C2: Total Of STUDENT_ID | D2: 03 | E2: 04 | F2: 05 | G2: 06 | H2: 07 | I2: 08 | J2: 09 | K2: 10 | R2: =K2-IFERROR(VLOOKUP(TEXT(A2,"0000"),G10RPassingR!$A$2:$S$200,6,FALSE),0) -> 10
A3: 0041 | B3: AIR BASE ELEMENTARY | C3: 33 | E3: 17 | F3: 16 | R3: =K3-IFERROR(VLOOKUP(TEXT(A3,"0000"),G10RPassingR!$A$2:$S$200,6,FALSE),0) -> 0
A4: 0070 | B4: CORAL REEF MONTESSORI ACAD CH | C4: 47 | E4: 11 | F4: 10 | G4: 9 | H4: 8 | I4: 9 | R4: =K4-IFERROR(VLOOKUP(TEXT(A4,"0000"),G10RPassingR!$A$2:$S$200,6,FALSE),0) -> 0
A5: 0071 | B5: EUGENIA B. THOMAS K-8 CENTER | C5: 166 | E5: 44 | F5: 25 | G5: 30 | H5: 30 | I5: 37 | R5: =K5-IFERROR(VLOOKUP(TEXT(A5,"0000"),G10RPassingR!$A$2:$S$200,6,FALSE),0) -> 0
A6: 0072 | B6: SUMMERVILLE CHARTER SCHOOL | C6: 53 | E6: 24 | F6: 29 | R6: =K6-IFERROR(VLOOKUP(TEXT(A6,"0000"),G10RPassingR!$A$2:$S$200,6,FALSE),0) -> 0
A7: 0073 | B7: MANDARIN LAKES K-8 CENTER | C7: 176 | E7: 56 | F7: 44 | G7: 32 | H7: 20 | I7: 24 | R7: =K7-IFERROR(VLOOKUP(TEXT(A7,"0000"),G10RPassingR!$A$2:$S$200,6,FALSE),0) -> 0
A8: 0081 | B8: LENORA B. SMITH ELEMENTARY | C8: 41 | E8: 26 | F8: 15 | R8: =K8-IFERROR(VLOOKUP(TEXT(A8,"0000"),G10RPassingR!$A$2:$S$200,6,FALSE),0) -> 0
A9: 0091 | B9: BOB GRAHAM EDUCATION CTR | C9: 230 | E9: 43 | F9: 41 | G9: 61 | H9: 43 | I9: 42 | R9: =K9-IFERROR(VLOOKUP(TEXT(A9,"0000"),G10RPassingR!$A$2:$S$200,6,FALSE),0) -> 0
A10: 0092 | B10: NORMAN S. EDELCUP/SUNNY ISLES | C10: 141 | E10: 36 | F10: 32 | G10: 22 | H10: 29 | I10: 22 | R10: =K10-IFERROR(VLOOKUP(TEXT(A10,"0000"),G10RPassingR!$A$2:$S$200,6,FALSE),0) -> 0
A11: 0100 | B11: MATER ACADEMY | C11: 71 | E11: 30 | F11: 41 | R11: =K11-IFERROR(VLOOKUP(TEXT(A11,"0000"),G10RPassingR!$A$2:$S$200,6,FALSE),0) -> 0
A12: 0101 | B12: ARCOLA LAKE ELEMENTARY | C12: 52 | E12: 16 | F12: 36 | R12: =K12-IFERROR(VLOOKUP(TEXT(A12,"0000"),G10RPassingR!$A$2:$S$200,6,FALSE),0) -> 0
A13: 0102 | B13: MIAMI COMMUNITY CHARTER SCHOOL | C13: 52 | E13: 22 | F13: 30 | R13: =K13-IFERROR(VLOOKUP(TEXT(A13,"0000"),G10RPassingR!$A$2:$S$200,6,FALSE),0) -> 0
A14: 0111 | B14: MAYA ANGELOU ELEMENTARY | C14: 64 | E14: 34 | F14: 30 | R14: =K14-IFERROR(VLOOKUP(TEXT(A14,"0000"),G10RPassingR!$A$2:$S$200,6,FALSE),0) -> 0
A15: 0121 | B15: AUBURNDALE ELEMENTARY | C15: 64 | E15: 38 | F15: 26 | R15: =K15-IFERROR(VLOOKUP(TEXT(A15,"0000"),G10RPassingR!$A$2:$S$200,6,FALSE),0) -> 0
A16: 0122 | B16: DR ROLANDO ESPINOSA K-8 | C16: 175 | E16: 28 | F16: 32 | G16: 30 | H16: 38 | I16: 47 | R16: =K16-IFERROR(VLOOKUP(TEXT(A16,"0000"),G10RPassingR!$A$2:$S$200,6,FALSE),0) -> 0
A17: 0125 | B17: NORMA BUTLER BOSSARD ELEM | C17: 90 | E17: 49 | F17: 41 | R17: =K17-IFERROR(VLOOKUP(TEXT(A17,"0000"),G10RPassingR!$A$2:$S$200,6,FALSE),0) -> 0
A18: 0201 | B18: BANYAN ELEMENTARY | C18: 24 | E18: 11 | F18: 13 | R18: =K18-IFERROR(VLOOKUP(TEXT(A18,"0000"),G10RPassingR!$A$2:$S$200,6,FALSE),0) -> 0
A19: 0211 | B19: DR. MANUEL C. BARREIRO ELEM | C19: 77 | E19: 36 | F19: 41 | R19: =K19-IFERROR(VLOOKUP(TEXT(A19,"0000"),G10RPassingR!$A$2:$S$200,6,FALSE),0) -> 0
A20: 0231 | B20: AVENTURA WATERWAYS K-8 CENTER | C20: 196 | E20: 26 | F20: 39 | G20: 41 | H20: 46 | I20: 44 | R20: =K20-IFERROR(VLOOKUP(TEXT(A20,"0000"),G10RPassingR!$A$2:$S$200,6,FALSE),0) -> 0
A21: 0241 | B21: RUTH K BROAD/BAY HARBOR K-8 | C21: 107 | E21: 21 | F21: 26 | G21: 20 | H21: 22 | I21: 18 | R21: =K21-IFERROR(VLOOKUP(TEXT(A21,"0000"),G10RPassingR!$A$2:$S$200,6,FALSE),0) -> 0
A22: 0251 | B22: ETHEL KOGER BECKHAM ELEMENTARY | C22: 32 | E22: 13 | F22: 19 | R22: =K22-IFERROR(VLOOKUP(TEXT(A22,"0000"),G10RPassingR!$A$2:$S$200,6,FALSE),0) -> 0
A23: 0261 | B23: BEL-AIRE ELEMENTARY | C23: 47 | E23: 25 | F23: 22 | R23: =K23-IFERROR(VLOOKUP(TEXT(A23,"0000"),G10RPassingR!$A$2:$S$200,6,FALSE),0) -> 0
A24: 0271 | B24: BENT TREE ELEMENTARY | C24: 48 | E24: 25 | F24: 23 | R24: =K24-IFERROR(VLOOKUP(TEXT(A24,"0000"),G10RPassingR!$A$2:$S$200,6,FALSE),0) -> 0
A25: 0311 | B25: GOULDS ELEMENTARY | C25: 66 | E25: 33 | F25: 33 | R25: =K25-IFERROR(VLOOKUP(TEXT(A25,"0000"),G10RPassingR!$A$2:$S$200,6,FALSE),0) -> 0
A26: 0312 | B26: MATER GARDENS ACADEMY | C26: 41 | E26: 25 | F26: 16 | R26: =K26-IFERROR(VLOOKUP(TEXT(A26,"0000"),G10RPassingR!$A$2:$S$200,6,FALSE),0) -> 0
A27: 0321 | B27: BISCAYNE ELEMENTARY | C27: 66 | E27: 32 | F27: 34 | R27: =K27-IFERROR(VLOOKUP(TEXT(A27,"0000"),G10RPassingR!$A$2:$S$200,6,FALSE),0) -> 0
A28: 0332 | B28: SOMERSET ACADEMY(SILVER PALMS) | C28: 145 | E28: 17 | F28: 24 | G28: 31 | H28: 40 | I28: 33 | R28: =K28-IFERROR(VLOOKUP(TEXT(A28,"0000"),G10RPassingR!$A$2:$S$200,6,FALSE),0) -> 0
A29: 0339 | B29: SOMERSET ACADEMY CHARTER ELEM | C29: 22 | E29: 12 | F29: 10 | R29: =K29-IFERROR(VLOOKUP(TEXT(A29,"0000"),G10RPassingR!$A$2:$S$200,6,FALSE),0) -> 0
A30: 0341 | B30: ARCH CREEK ELEMENTARY SCHOOL | C30: 66 | E30: 28 | F30: 38 | R30: =K30-IFERROR(VLOOKUP(TEXT(A30,"0000"),G10RPassingR!$A$2:$S$200,6,FALSE),0) -> 0
A31: 0342 | B31: PINECREST ACADEMY SOUTH CAMPUS | C31: 53 | E31: 34 | F31: 19 | R31: =K31-IFERROR(VLOOKUP(TEXT(A31,"0000"),G10RPassingR!$A$2:$S$200,6,FALSE),0) -> 0
A32: 0361 | B32: BISCAYNE GARDENS ELEMENTARY | C32: 58 | E32: 32 | F32: 26 | R32: =K32-IFERROR(VLOOKUP(TEXT(A32,"0000"),G10RPassingR!$A$2:$S$200,6,FALSE),0) -> 0
A33: 0400 | B33: RENAISSANCE ELEMENTARY CHARTER | C33: 42 | E33: 22 | F33: 20 | R33: =K33-IFERROR(VLOOKUP(TEXT(A33,"0000"),G10RPassingR!$A$2:$S$200,6,FALSE),0) -> 0
A34: 0401 | B34: VAN E. BLANTON ELEMENTARY | C34: 48 | E34: 28 | F34: 20 | R34: =K34-IFERROR(VLOOKUP(TEXT(A34,"0000"),G10RPassingR!$A$2:$S$200,6,FALSE),0) -> 0
A35: 0410 | B35: ACADEMIR CHARTER SCHOOL WEST | C35: 35 | E35: 23 | F35: 12 | R35: =K35-IFERROR(VLOOKUP(TEXT(A35,"0000"),G10RPassingR!$A$2:$S$200,6,FALSE),0) -> 0
A36: 0441 | B36: BLUE LAKES ELEMENTARY | C36: 23 | E36: 12 | F36: 11 | R36: =K36-IFERROR(VLOOKUP(TEXT(A36,"0000"),G10RPassingR!$A$2:$S$200,6,FALSE),0) -> 0
A37: 0451 | B37: BOWMAN ASHE/DOOLIN K-8 ACAD | C37: 204 | E37: 37 | F37: 40 | G37: 23 | H37: 53 | I37: 51 | R37: =K37-IFERROR(VLOOKUP(TEXT(A37,"0000"),G10RPassingR!$A$2:$S$200,6,FALSE),0) -> 0
A38: 0461 | B38: BRENTWOOD ELEMENTARY | C38: 91 | E38: 45 | F38: 46 | R38: =K38-IFERROR(VLOOKUP(TEXT(A38,"0000"),G10RPassingR!$A$2:$S$200,6,FALSE),0) -> 0
A39: 0481 | B39: JAMES H. BRIGHT/JW JOHNSON ES | C39: 61 | E39: 28 | F39: 33 | R39: =K39-IFERROR(VLOOKUP(TEXT(A39,"0000"),G10RPassingR!$A$2:$S$200,6,FALSE),0) -> 0
A40: 0510 | B40: ARCHIMEDEAN ACADEMY | C40: 12 | E40: 7 | F40: 5 | R40: =K40-IFERROR(VLOOKUP(TEXT(A40,"0000"),G10RPassingR!$A$2:$S$200,6,FALSE),0) -> 0
A41: 0520 | B41: SOMERSET ACADEMY | C41: 24 | E41: 16 | F41: 8 | R41: =K41-IFERROR(VLOOKUP(TEXT(A41,"0000"),G10RPassingR!$A$2:$S$200,6,FALSE),0) -> 0
A42: 0521 | B42: BROADMOOR ELEMENTARY | C42: 43 | E42: 21 | F42: 22 | R42: =K42-IFERROR(VLOOKUP(TEXT(A42,"0000"),G10RPassingR!$A$2:$S$200,6,FALSE),0) -> 0
A43: 0561 | B43: W.J. BRYAN ELEMENTARY | C43: 80 | E43: 44 | F43: 36 | R43: =K43-IFERROR(VLOOKUP(TEXT(A43,"0000"),G10RPassingR!$A$2:$S$200,6,FALSE),0) -> 0
A44: 0600 | B44: PINECREST PREP ACADEMY | C44: 35 | E44: 18 | F44: 17 | R44: =K44-IFERROR(VLOOKUP(TEXT(A44,"0000"),G10RPassingR!$A$2:$S$200,6,FALSE),0) -> 0
A45: 0641 | B45: BUNCHE PARK ELEMENTARY | C45: 18 | E45: 11 | F45: 7 | R45: =K45-IFERROR(VLOOKUP(TEXT(A45,"0000"),G10RPassingR!$A$2:$S$200,6,FALSE),0) -> 0
A46: 0651 | B46: CAMPBELL DRIVE K-8 CENTER | C46: 112 | E46: 36 | F46: 37 | G46: 22 | H46: 17 | R46: =K46-IFERROR(VLOOKUP(TEXT(A46,"0000"),G10RPassingR!$A$2:$S$200,6,FALSE),0) -> 0
A47: 0661 | B47: CARIBBEAN ELEMENTARY | C47: 67 | E47: 35 | F47: 32 | R47: =K47-IFERROR(VLOOKUP(TEXT(A47,"0000"),G10RPassingR!$A$2:$S$200,6,FALSE),0) -> 0
A48: 0671 | B48: CALUSA ELEMENTARY | C48: 42 | E48: 24 | F48: 18 | R48: =K48-IFERROR(VLOOKUP(TEXT(A48,"0000"),G10RPassingR!$A$2:$S$200,6,FALSE),0) -> 0
A49: 0681 | B49: CAROL CITY ELEMENTARY | C49: 76 | E49: 43 | F49: 33 | R49: =K49-IFERROR(VLOOKUP(TEXT(A49,"0000"),G10RPassingR!$A$2:$S$200,6,FALSE),0) -> 0
A50: 0721 | B50: GEORGE WASHINGTON CARVER ELEM | C50: 40 | E50: 26 | F50: 14 | R50: =K50-IFERROR(VLOOKUP(TEXT(A50,"0000"),G10RPassingR!$A$2:$S$200,6,FALSE),0) -> 0
A51: 0761 | B51: FIENBERG/FISHER K-8 CENTER | C51: 133 | E51: 25 | F51: 26 | G51: 30 | H51: 26 | I51: 26 | R51: =K51-IFERROR(VLOOKUP(TEXT(A51,"0000"),G10RPassingR!$A$2:$S$200,6,FALSE),0) -> 0
A52: 0771 | B52: WILLIAM A. CHAPMAN ELEMENTARY | C52: 40 | E52: 25 | F52: 15 | R52: =K52-IFERROR(VLOOKUP(TEXT(A52,"0000"),G10RPassingR!$A$2:$S$200,6,FALSE),0) -> 0
A53: 0801 | B53: CITRUS GROVE ELEMENTARY | C53: 94 | E53: 53 | F53: 41 | R53: =K53-IFERROR(VLOOKUP(TEXT(A53,"0000"),G10RPassingR!$A$2:$S$200,6,FALSE),0) -> 0
A54: 0831 | B54: CLAUDE PEPPER ELEMENTARY | C54: 49 | E54: 29 | F54: 20 | R54: =K54-IFERROR(VLOOKUP(TEXT(A54,"0000"),G10RPassingR!$A$2:$S$200,6,FALSE),0) -> 0
A55: 0841 | B55: COCONUT GROVE ELEMENTARY | C55: 28 | E55: 17 | F55: 11 | R55: =K55-IFERROR(VLOOKUP(TEXT(A55,"0000"),G10RPassingR!$A$2:$S$200,6,FALSE),0) -> 0
A56: 0861 | B56: COLONIAL DRIVE ELEMENTARY | C56: 27 | E56: 13 | F56: 14 | R56: =K56-IFERROR(VLOOKUP(TEXT(A56,"0000"),G10RPassingR!$A$2:$S$200,6,FALSE),0) -> 0
A57: 0881 | B57: COMSTOCK ELEMENTARY | C57: 49 | E57: 26 | F57: 23 | R57: =K57-IFERROR(VLOOKUP(TEXT(A57,"0000"),G10RPassingR!$A$2:$S$200,6,FALSE),0) -> 0
A58: 0950 | B58: AVENTURA CITY OF EXCELLENCE | C58: 60 | E58: 17 | F58: 10 | G58: 9 | H58: 12 | I58: 12 | R58: =K58-IFERROR(VLOOKUP(TEXT(A58,"0000"),G10RPassingR!$A$2:$S$200,6,FALSE),0) -> 0
A59: 0961 | B59: CORAL GABLES PREPARATORY ACAD | C59: 50 | E59: 8 | F59: 7 | G59: 12 | H59: 17 | I59: 6 | R59: =K59-IFERROR(VLOOKUP(TEXT(A59,"0000"),G10RPassingR!$A$2:$S$200,6,FALSE),0) -> 0
A60: 1001 | B60: CORAL PARK ELEMENTARY | C60: 40 | E60: 9 | F60: 31 | R60: =K60-IFERROR(VLOOKUP(TEXT(A60,"0000"),G10RPassingR!$A$2:$S$200,6,FALSE),0) -> 0
A61: 1010 | B61: CHARTER SCHOOL AT WATERSTONE | C61: 95 | E61: 51 | F61: 44 | R61: =K61-IFERROR(VLOOKUP(TEXT(A61,"0000"),G10RPassingR!$A$2:$S$200,6,FALSE),0) -> 0
A62: 1014 | B62: ADVANCED LEARNING CHARTER SCH | C62: 47 | E62: 25 | F62: 22 | R62: =K62-IFERROR(VLOOKUP(TEXT(A62,"0000"),G10RPassingR!$A$2:$S$200,6,FALSE),0) -> 0
A63: 1017 | B63: MATER ACADEMY OF INTL STUDIES | C63: 31 | E63: 14 | F63: 17 | R63: =K63-IFERROR(VLOOKUP(TEXT(A63,"0000"),G10RPassingR!$A$2:$S$200,6,FALSE),0) -> 0
A64: 1020 | B64: YOUTH CO-OP CHARTER SCHOOL | C64: 78 | E64: 12 | F64: 9 | G64: 13 | H64: 23 | I64: 21 | R64: =K64-IFERROR(VLOOKUP(TEXT(A64,"0000"),G10RPassingR!$A$2:$S$200,6,FALSE),0) -> 0
A65: 1041 | B65: CORAL REEF ELEMENTARY | C65: 53 | E65: 35 | F65: 18 | R65: =K65-IFERROR(VLOOKUP(TEXT(A65,"0000"),G10RPassingR!$A$2:$S$200,6,FALSE),0) -> 0
A66: 1081 | B66: CORAL TERRACE ELEMENTARY | C66: 36 | E66: 17 | F66: 19 | R66: =K66-IFERROR(VLOOKUP(TEXT(A66,"0000"),G10RPassingR!$A$2:$S$200,6,FALSE),0) -> 0
A67: 1121 | B67: CORAL WAY K-8 CENTER | C67: 185 | E67: 36 | F67: 39 | G67: 37 | H67: 31 | I67: 42 | R67: =K67-IFERROR(VLOOKUP(TEXT(A67,"0000"),G10RPassingR!$A$2:$S$200,6,FALSE),0) -> 0
A68: 1161 | B68: CRESTVIEW ELEMENTARY | C68: 51 | E68: 20 | F68: 31 | R68: =K68-IFERROR(VLOOKUP(TEXT(A68,"0000"),G10RPassingR!$A$2:$S$200,6,FALSE),0) -> 0
A69: 1241 | B69: CUTLER RIDGE ELEMENTARY | C69: 57 | E69: 37 | F69: 20 | R69: =K69-IFERROR(VLOOKUP(TEXT(A69,"0000"),G10RPassingR!$A$2:$S$200,6,FALSE),0) -> 0
A70: 1281 | B70: CYPRESS ELEMENTARY | C70: 30 | E70: 16 | F70: 14 | R70: =K70-IFERROR(VLOOKUP(TEXT(A70,"0000"),G10RPassingR!$A$2:$S$200,6,FALSE),0) -> 0
A71: 1331 | B71: DEVON AIRE K-8 CENTER | C71: 159 | E71: 41 | F71: 24 | G71: 32 | H71: 34 | I71: 28 | R71: =K71-IFERROR(VLOOKUP(TEXT(A71,"0000"),G10RPassingR!$A$2:$S$200,6,FALSE),0) -> 0
A72: 1361 | B72: FREDERICK DOUGLASS ELEMENTARY | C72: 20 | E72: 12 | F72: 8 | R72: =K72-IFERROR(VLOOKUP(TEXT(A72,"0000"),G10RPassingR!$A$2:$S$200,6,FALSE),0) -> 0
A73: 1371 | B73: MARJORY STONEMAN DOUGLAS ELEM | C73: 88 | E73: 36 | F73: 52 | R73: =K73-IFERROR(VLOOKUP(TEXT(A73,"0000"),G10RPassingR!$A$2:$S$200,6,FALSE),0) -> 0
A74: 1401 | B74: CHARLES R. DREW K-8 CENTER | C74: 38 | E74: 8 | F74: 13 | G74: 17 | R74: =K74-IFERROR(VLOOKUP(TEXT(A74,"0000"),G10RPassingR!$A$2:$S$200,6,FALSE),0) -> 0
A75: 1441 | B75: PAUL LAURENCE DUNBAR K-8 CTR | C75: 49 | E75: 24 | F75: 12 | G75: 13 | R75: =K75-IFERROR(VLOOKUP(TEXT(A75,"0000"),G10RPassingR!$A$2:$S$200,6,FALSE),0) -> 0
A76: 1481 | B76: JOHN G. DUPUIS ELEMENTARY | C76: 64 | E76: 23 | F76: 41 | R76: =K76-IFERROR(VLOOKUP(TEXT(A76,"0000"),G10RPassingR!$A$2:$S$200,6,FALSE),0) -> 0
A77: 1521 | B77: AMELIA EARHART ELEMENTARY | C77: 40 | E77: 17 | F77: 23 | R77: =K77-IFERROR(VLOOKUP(TEXT(A77,"0000"),G10RPassingR!$A$2:$S$200,6,FALSE),0) -> 0
A78: 1561 | B78: EARLINGTON HEIGHTS ELEMENTARY | C78: 40 | E78: 22 | F78: 18 | R78: =K78-IFERROR(VLOOKUP(TEXT(A78,"0000"),G10RPassingR!$A$2:$S$200,6,FALSE),0) -> 0
A79: 1601 | B79: EDISON PARK K-8 CENTER | C79: 44 | E79: 17 | F79: 18 | G79: 9 | R79: =K79-IFERROR(VLOOKUP(TEXT(A79,"0000"),G10RPassingR!$A$2:$S$200,6,FALSE),0) -> 0
A80: 1641 | B80: EMERSON ELEMENTARY | C80: 24 | E80: 14 | F80: 10 | R80: =K80-IFERROR(VLOOKUP(TEXT(A80,"0000"),G10RPassingR!$A$2:$S$200,6,FALSE),0) -> 0
A81: 1681 | B81: LILLIE C. EVANS K-8 CENTER | C81: 81 | E81: 26 | F81: 13 | G81: 20 | H81: 14 | I81: 8 | R81: =K81-IFERROR(VLOOKUP(TEXT(A81,"0000"),G10RPassingR!$A$2:$S$200,6,FALSE),0) -> 0
A82: 1691 | B82: CHRISTINA M. EVE ELEMENTARY | C82: 25 | E82: 11 | F82: 14 | R82: =K82-IFERROR(VLOOKUP(TEXT(A82,"0000"),G10RPassingR!$A$2:$S$200,6,FALSE),0) -> 0
A83: 1721 | B83: EVERGLADES K-8 CENTER | C83: 130 | E83: 29 | F83: 24 | G83: 24 | H83: 27 | I83: 26 | R83: =K83-IFERROR(VLOOKUP(TEXT(A83,"0000"),G10RPassingR!$A$2:$S$200,6,FALSE),0) -> 0
A84: 1761 | B84: DAVID FAIRCHILD ELEMENTARY | C84: 25 | E84: 16 | F84: 9 | R84: =K84-IFERROR(VLOOKUP(TEXT(A84,"0000"),G10RPassingR!$A$2:$S$200,6,FALSE),0) -> 0
A85: 1801 | B85: FAIRLAWN ELEMENTARY | C85: 58 | E85: 30 | F85: 28 | R85: =K85-IFERROR(VLOOKUP(TEXT(A85,"0000"),G10RPassingR!$A$2:$S$200,6,FALSE),0) -> 0
A86: 1811 | B86: DANTE B. FASCELL ELEMENTARY | C86: 22 | E86: 12 | F86: 10 | R86: =K86-IFERROR(VLOOKUP(TEXT(A86,"0000"),G10RPassingR!$A$2:$S$200,6,FALSE),0) -> 0
A87: 1841 | B87: FLAGAMI ELEMENTARY | C87: 38 | E87: 18 | F87: 20 | R87: =K87-IFERROR(VLOOKUP(TEXT(A87,"0000"),G10RPassingR!$A$2:$S$200,6,FALSE),0) -> 0
A88: 1881 | B88: HENRY M. FLAGLER ELEMENTARY | C88: 50 | E88: 27 | F88: 23 | R88: =K88-IFERROR(VLOOKUP(TEXT(A88,"0000"),G10RPassingR!$A$2:$S$200,6,FALSE),0) -> 0
A89: 1921 | B89: FLAMINGO ELEMENTARY | C89: 69 | E89: 28 | F89: 41 | R89: =K89-IFERROR(VLOOKUP(TEXT(A89,"0000"),G10RPassingR!$A$2:$S$200,6,FALSE),0) -> 0
A90: 2001 | B90: FLORIDA CITY ELEMENTARY | C90: 75 | D90: 1 | E90: 41 | F90: 33 | R90: =K90-IFERROR(VLOOKUP(TEXT(A90,"0000"),G10RPassingR!$A$2:$S$200,6,FALSE),0) -> 0
A91: 2003 | B91: BRIDGEPOINT ACADEMY | C91: 17 | E91: 9 | F91: 8 | R91: =K91-IFERROR(VLOOKUP(TEXT(A91,"0000"),G10RPassingR!$A$2:$S$200,6,FALSE),0) -> 0
A92: 2006 | B92: RICHARD ALLEN LEADERSHIP ACAD | C92: 11 | E92: 5 | F92: 6 | R92: =K92-IFERROR(VLOOKUP(TEXT(A92,"0000"),G10RPassingR!$A$2:$S$200,6,FALSE),0) -> 0
A93: 2007 | B93: SOMERSET ACADEMY ELEMENTARY | C93: 17 | E93: 9 | F93: 8 | R93: =K93-IFERROR(VLOOKUP(TEXT(A93,"0000"),G10RPassingR!$A$2:$S$200,6,FALSE),0) -> 0
A94: 2012 | B94: SOMERSET ARTS ACADEMY | C94: 20 | E94: 16 | F94: 4 | R94: =K94-IFERROR(VLOOKUP(TEXT(A94,"0000"),G10RPassingR!$A$2:$S$200,6,FALSE),0) -> 0
A95: 2013 | B95: BRIDGEPOINT ACAD GREATER MIAMI | C95: 9 | E95: 5 | F95: 4 | R95: =K95-IFERROR(VLOOKUP(TEXT(A95,"0000"),G10RPassingR!$A$2:$S$200,6,FALSE),0) -> 0
A96: 2021 | B96: GLORIA FLOYD ELEMENTARY | C96: 36 | E96: 21 | F96: 15 | R96: =K96-IFERROR(VLOOKUP(TEXT(A96,"0000"),G10RPassingR!$A$2:$S$200,6,FALSE),0) -> 0
A97: 2041 | B97: BENJAMIN FRANKLIN K-8 CENTER | C97: 94 | E97: 29 | F97: 24 | G97: 24 | H97: 17 | R97: =K97-IFERROR(VLOOKUP(TEXT(A97,"0000"),G10RPassingR!$A$2:$S$200,6,FALSE),0) -> 0
A98: 2060 | B98: GIBSON CHARTER SCHOOL | C98: 59 | E98: 6 | F98: 11 | G98: 18 | H98: 15 | I98: 9 | R98: =K98-IFERROR(VLOOKUP(TEXT(A98,"0000"),G10RPassingR!$A$2:$S$200,6,FALSE),0) -> 0
A99: 2081 | B99: FULFORD ELEMENTARY | C99: 43 | E99: 24 | F99: 19 | R99: =K99-IFERROR(VLOOKUP(TEXT(A99,"0000"),G10RPassingR!$A$2:$S$200,6,FALSE),0) -> 0
A100: 2111 | B100: HIALEAH GARDENS ELEMENTARY | C100: 64 | E100: 25 | F100: 39 | R100: =K100-IFERROR(VLOOKUP(TEXT(A100,"0000"),G10RPassingR!$A$2:$S$200,6,FALSE),0) -> 0
A101: 2151 | B101: JACK D. GORDON ELEMENTARY | C101: 78 | E101: 40 | F101: 38 | R101: =K101-IFERROR(VLOOKUP(TEXT(A101,"0000"),G10RPassingR!$A$2:$S$200,6,FALSE),0) -> 0
A102: 2161 | B102: GOLDEN GLADES ELEMENTARY | C102: 26 | E102: 11 | F102: 15 | R102: =K102-IFERROR(VLOOKUP(TEXT(A102,"0000"),G10RPassingR!$A$2:$S$200,6,FALSE),0) -> 0
A103: 2181 | B103: JOELLA C. GOOD ELEMENTARY | C103: 80 | E103: 48 | F103: 32 | R103: =K103-IFERROR(VLOOKUP(TEXT(A103,"0000"),G10RPassingR!$A$2:$S$200,6,FALSE),0) -> 0
A104: 2191 | B104: SPANISH LAKE ELEMENTARY | C104: 132 | E104: 59 | F104: 73 | R104: =K104-IFERROR(VLOOKUP(TEXT(A104,"0000"),G10RPassingR!$A$2:$S$200,6,FALSE),0) -> 0
A105: 2241 | B105: GRATIGNY ELEMENTARY | C105: 73 | E105: 25 | F105: 23 | G105: 25 | R105: =K105-IFERROR(VLOOKUP(TEXT(A105,"0000"),G10RPassingR!$A$2:$S$200,6,FALSE),0) -> 0
A106: 2261 | B106: GREENGLADE ELEMENTARY | C106: 44 | E106: 30 | F106: 14 | R106: =K106-IFERROR(VLOOKUP(TEXT(A106,"0000"),G10RPassingR!$A$2:$S$200,6,FALSE),0) -> 0
A107: 2281 | B107: GREYNOLDS PARK ELEMENTARY | C107: 65 | E107: 35 | F107: 30 | R107: =K107-IFERROR(VLOOKUP(TEXT(A107,"0000"),G10RPassingR!$A$2:$S$200,6,FALSE),0) -> 0
A108: 2321 | B108: GULFSTREAM ELEMENTARY | C108: 40 | E108: 23 | F108: 17 | R108: =K108-IFERROR(VLOOKUP(TEXT(A108,"0000"),G10RPassingR!$A$2:$S$200,6,FALSE),0) -> 0
A109: 2331 | B109: CHARLES R. HADLEY ELEMENTARY | C109: 77 | E109: 44 | F109: 33 | R109: =K109-IFERROR(VLOOKUP(TEXT(A109,"0000"),G10RPassingR!$A$2:$S$200,6,FALSE),0) -> 0
A110: 2341 | B110: JOE HALL ELEMENTARY | C110: 45 | E110: 26 | F110: 19 | R110: =K110-IFERROR(VLOOKUP(TEXT(A110,"0000"),G10RPassingR!$A$2:$S$200,6,FALSE),0) -> 0
A111: 2351 | B111: ENEIDA MASSAS HARTNER ELEM | C111: 58 | E111: 30 | F111: 28 | R111: =K111-IFERROR(VLOOKUP(TEXT(A111,"0000"),G10RPassingR!$A$2:$S$200,6,FALSE),0) -> 0
A112: 2361 | B112: HIALEAH ELEMENTARY | C112: 65 | E112: 38 | F112: 27 | R112: =K112-IFERROR(VLOOKUP(TEXT(A112,"0000"),G10RPassingR!$A$2:$S$200,6,FALSE),0) -> 0
A113: 2371 | B113: WEST HIALEAH GARDENS ELEM | C113: 99 | E113: 66 | F113: 33 | R113: =K113-IFERROR(VLOOKUP(TEXT(A113,"0000"),G10RPassingR!$A$2:$S$200,6,FALSE),0) -> 0
A114: 2401 | B114: HIBISCUS ELEMENTARY | C114: 60 | D114: 1 | E114: 26 | F114: 33 | R114: =K114-IFERROR(VLOOKUP(TEXT(A114,"0000"),G10RPassingR!$A$2:$S$200,6,FALSE),0) -> 0
A115: 2441 | B115: VIRGINIA A BOONE/HIGHLAND OAKS | C115: 24 | E115: 15 | F115: 9 | R115: =K115-IFERROR(VLOOKUP(TEXT(A115,"0000"),G10RPassingR!$A$2:$S$200,6,FALSE),0) -> 0
A116: 2501 | B116: HOLMES ELEMENTARY | C116: 59 | E116: 29 | F116: 30 | R116: =K116-IFERROR(VLOOKUP(TEXT(A116,"0000"),G10RPassingR!$A$2:$S$200,6,FALSE),0) -> 0
A117: 2511 | B117: ZORA NEALE HURSTON ELEMENTARY | C117: 52 | E117: 28 | F117: 24 | R117: =K117-IFERROR(VLOOKUP(TEXT(A117,"0000"),G10RPassingR!$A$2:$S$200,6,FALSE),0) -> 0
A118: 2521 | B118: OLIVER HOOVER ELEMENTARY | C118: 58 | E118: 26 | F118: 32 | R118: =K118-IFERROR(VLOOKUP(TEXT(A118,"0000"),G10RPassingR!$A$2:$S$200,6,FALSE),0) -> 0
A119: 2541 | B119: HOWARD DRIVE ELEMENTARY | C119: 40 | E119: 24 | F119: 16 | R119: =K119-IFERROR(VLOOKUP(TEXT(A119,"0000"),G10RPassingR!$A$2:$S$200,6,FALSE),0) -> 0
A120: 2581 | B120: MADIE IVES ELEMENTARY | C120: 65 | E120: 34 | F120: 31 | R120: =K120-IFERROR(VLOOKUP(TEXT(A120,"0000"),G10RPassingR!$A$2:$S$200,6,FALSE),0) -> 0
A121: 2641 | B121: KENDALE ELEMENTARY | C121: 24 | E121: 12 | F121: 12 | R121: =K121-IFERROR(VLOOKUP(TEXT(A121,"0000"),G10RPassingR!$A$2:$S$200,6,FALSE),0) -> 0
A122: 2651 | B122: KENDALE LAKES ELEMENTARY | C122: 35 | E122: 21 | F122: 14 | R122: =K122-IFERROR(VLOOKUP(TEXT(A122,"0000"),G10RPassingR!$A$2:$S$200,6,FALSE),0) -> 0
A123: 2661 | B123: KENSINGTON PARK ELEMENTARY | C123: 117 | E123: 63 | F123: 54 | R123: =K123-IFERROR(VLOOKUP(TEXT(A123,"0000"),G10RPassingR!$A$2:$S$200,6,FALSE),0) -> 0
A124: 2701 | B124: KENWOOD K-8 CENTER | C124: 104 | D124: 1 | E124: 21 | F124: 21 | G124: 19 | H124: 19 | I124: 23 | R124: =K124-IFERROR(VLOOKUP(TEXT(A124,"0000"),G10RPassingR!$A$2:$S$200,6,FALSE),0) -> 0
A125: 2741 | B125: KEY BISCAYNE K-8 CENTER | C125: 77 | E125: 17 | F125: 14 | G125: 16 | H125: 19 | I125: 11 | R125: =K125-IFERROR(VLOOKUP(TEXT(A125,"0000"),G10RPassingR!$A$2:$S$200,6,FALSE),0) -> 0
A126: 2781 | B126: KINLOCH PARK ELEMENTARY | C126: 82 | E126: 45 | F126: 37 | R126: =K126-IFERROR(VLOOKUP(TEXT(A126,"0000"),G10RPassingR!$A$2:$S$200,6,FALSE),0) -> 0
A127: 2801 | B127: LAKE STEVENS ELEMENTARY | C127: 29 | E127: 17 | F127: 12 | R127: =K127-IFERROR(VLOOKUP(TEXT(A127,"0000"),G10RPassingR!$A$2:$S$200,6,FALSE),0) -> 0
A128: 2821 | B128: LAKEVIEW ELEMENTARY | C128: 50 | E128: 21 | F128: 29 | R128: =K128-IFERROR(VLOOKUP(TEXT(A128,"0000"),G10RPassingR!$A$2:$S$200,6,FALSE),0) -> 0
A129: 2881 | B129: LEEWOOD K-8 CENTER | C129: 61 | D129: 2 | E129: 14 | F129: 12 | G129: 14 | H129: 14 | I129: 5 | R129: =K129-IFERROR(VLOOKUP(TEXT(A129,"0000"),G10RPassingR!$A$2:$S$200,6,FALSE),0) -> 0
A130: 2891 | B130: WILLIAM LEHMAN ELEMENTARY | C130: 36 | E130: 19 | F130: 17 | R130: =K130-IFERROR(VLOOKUP(TEXT(A130,"0000"),G10RPassingR!$A$2:$S$200,6,FALSE),0) -> 0
A131: 2901 | B131: LEISURE CITY K-8 CENTER | C131: 224 | E131: 49 | F131: 53 | G131: 36 | H131: 39 | I131: 47 | R131: =K131-IFERROR(VLOOKUP(TEXT(A131,"0000"),G10RPassingR!$A$2:$S$200,6,FALSE),0) -> 0
A132: 2911 | B132: LINDA LENTIN K-8 CENTER | C132: 172 | E132: 28 | F132: 39 | G132: 38 | H132: 26 | I132: 41 | R132: =K132-IFERROR(VLOOKUP(TEXT(A132,"0000"),G10RPassingR!$A$2:$S$200,6,FALSE),0) -> 0
